Workbook

Sheet بيانات الموظفين
A1: =SUBTOTAL(3,A3:A54) -> 52 | B1: بيانات الموظفين | I1: 0.11
A2: كود الموظف | B2: إسم الموظف | C2: تاريخ التعيين | D2: الكادر | E2: القسم | F2: المرحلة | G2: الأساسي | H2: الشامل | I2: نسبة الفرد بالتأمين
A3: 200 | B3: محمد حسن 1 | C3: 2015-01-01 | D3: مدير | E3: حسابات | F3: إدارة | G3: =Table1[[#This Row],[الشامل]]*70% -> 5600 | H3: 8000 | I3: 0
A4: 201 | B4: محمد حسن 2 | C4: 2020-01-01 | D4: مدير إدارة الجودة | E4: حسابات | F4: إدارة | G4: =Table1[[#This Row],[الشامل]]*70% -> 5600 | H4: 8000 | I4: 0
A5: 202 | B5: محمد حسن 3 | C5: 2021-11-03 | D5: الموارد البشرية | E5: حسابات | F5: إدارة | G5: =Table1[[#This Row],[الشامل]]*70% -> 5600 | H5: 8000 | I5: 0
A6: 203 | B6: محمد حسن 4 | C6: 2020-01-01 | D6: مدير الإنتاج | E6: حسابات | F6: إدارة | G6: =Table1[[#This Row],[الشامل]]*70% -> 5600 | H6: 8000 | I6: 0
A7: 204 | B7: محمد حسن 5 | C7: 2020-01-01 | D7: مدير الصيانة العامة | E7: حسابات | F7: إدارة | G7: =Table1[[#This Row],[الشامل]]*70% -> 5600 | H7: 8000 | I7: 0
A8: 205 | B8: محمد حسن 6 | C8: 2020-01-01 | D8: مدير صالة | E8: حسابات | F8: إدارة | G8: =Table1[[#This Row],[الشامل]]*70% -> 5600 | H8: 8000 | I8: 0
A9: 206 | B9: محمد حسن 7 | C9: 2020-01-01 | D9: فني إنتاج | E9: حسابات | F9: إدارة | G9: =Table1[[#This Row],[الشامل]]*70% -> 2800 | H9: 4000 | I9: 132
A10: 207 | B10: محمد حسن 8 | C10: 2020-01-01 | D10: عامل إنتاج | E10: حسابات | F10: إدارة | G10: =Table1[[#This Row],[الشامل]]*70% -> 2345 | H10: 3350 | I10: 132
A11: 208 | B11: محمد حسن 9 | C11: 2020-01-01 | D11: مراقب جودة | E11: حسابات | F11: إدارة | G11: =Table1[[#This Row],[الشامل]]*70% -> 2275 | H11: 3250 | I11: 0
A12: 209 | B12: محمد حسن 10 | C12: 2020-01-01 | D12: عامل إنتاج | E12: حسابات | F12: إدارة | G12: =Table1[[#This Row],[الشامل]]*70% -> 2345 | H12: 3350 | I12: 132
A13: 210 | B13: محمد حسن 11 | C13: 2020-01-01 | D13: عامل إنتاج | E13: حسابات | F13: إدارة | G13: =Table1[[#This Row],[الشامل]]*70% -> 3115 | H13: 4450 | I13: 132
A14: 211 | B14: محمد حسن 12 | C14: 2020-01-01 | D14: عامل إنتاج | E14: حسابات | F14: إدارة | G14: =Table1[[#This Row],[الشامل]]*70% -> 2240 | H14: 3200 | I14: 0
A15: 212 | B15: محمد حسن 13 | C15: 2020-01-01 | D15: عامل إنتاج | E15: حسابات | F15: إدارة | G15: =Table1[[#This Row],[الشامل]]*70% -> 0 | H15: 0 | I15: 0
A16: 213 | B16: محمد حسن 14 | C16: 2020-01-01 | D16: عامل إنتاج | E16: حسابات | F16: إدارة | G16: =Table1[[#This Row],[الشامل]]*70% -> 2345 | H16: 3350 | I16: 0
A17: 214 | B17: محمد حسن 15 | C17: 2020-01-01 | D17: عامل إنتاج | E17: حسابات | F17: إدارة | G17: =Table1[[#This Row],[الشامل]]*70% -> 2695 | H17: 3850 | I17: 0
A18: 215 | B18: محمد حسن 16 | C18: 2020-01-01 | D18: عامل إنتاج | E18: حسابات | F18: إدارة | G18: =Table1[[#This Row],[الشامل]]*70% -> 0 | H18: 0 | I18: 0
A19: 216 | B19: محمد حسن 17 | C19: 2020-01-01 | D19: عامل إنتاج | E19: حسابات | F19: إدارة | G19: =Table1[[#This Row],[الشامل]]*70% -> 2380 | H19: 3400 | I19: 0
A20: 217 | B20: محمد حسن 18 | C20: 2021-07-01 | D20: عامل إنتاج | E20: حسابات | F20: إدارة | G20: =Table1[[#This Row],[الشامل]]*70% -> 2380 | H20: 3400 | I20: 0
A21: 218 | B21: محمد حسن 19 | C21: 2020-01-01 | D21: فني إنتاج | E21: حسابات | F21: إدارة | G21: =Table1[[#This Row],[الشامل]]*70% -> 3150 | H21: 4500 | I21: 132
A22: 219 | B22: محمد حسن 20 | C22: 2020-01-01 | D22: عامل إنتاج | E22: حسابات | F22: إدارة | G22: =Table1[[#This Row],[الشامل]]*70% -> 2100 | H22: 3000 | I22: 0
A23: 220 | B23: محمد حسن 21 | C23: 2020-01-01 | D23: عامل إنتاج | E23: حسابات | F23: إدارة | G23: =Table1[[#This Row],[الشامل]]*70% -> 2100 | H23: 3000 | I23: 0
A24: 221 | B24: محمد حسن 22 | C24: 2020-01-01 | D24: عامل إنتاج | E24: حسابات | F24: إدارة | G24: =Table1[[#This Row],[الشامل]]*70% -> 2310 | H24: 3300 | I24: 0
A25: 222 | B25: محمد حسن 23 | C25: 2021-07-01 | D25: عامل إنتاج | E25: حسابات | F25: إدارة | G25: =Table1[[#This Row],[الشامل]]*70% -> 2380 | H25: 3400 | I25: 0
A26: 223 | B26: محمد حسن 24 | C26: 2020-01-01 | D26: عامل إنتاج | E26: حسابات | F26: إدارة | G26: =Table1[[#This Row],[الشامل]]*70% -> 2310 | H26: 3300 | I26: 0
A27: 224 | B27: محمد حسن 25 | C27: 2020-01-01 | D27: عامل إنتاج | E27: حسابات | F27: إدارة | G27: =Table1[[#This Row],[الشامل]]*70% -> 2380 | H27: 3400 | I27: 0
A28: 225 | B28: محمد حسن 26 | C28: 2021-07-01 | D28: عامل إنتاج | E28: حسابات | F28: إدارة | G28: =Table1[[#This Row],[الشامل]]*70% -> 2660 | H28: 3800 | I28: 0
A29: 226 | B29: محمد حسن 27 | C29: 2020-01-01 | D29: عامل إنتاج | E29: حسابات | F29: إدارة | G29: =Table1[[#This Row],[الشامل]]*70% -> 2345 | H29: 3350 | I29: 0
A30: 227 | B30: محمد حسن 28 | C30: 2020-01-01 | D30: عامل إنتاج | E30: حسابات | F30: إدارة | G30: =Table1[[#This Row],[الشامل]]*70% -> 2380 | H30: 3400 | I30: 0
A31: 228 | B31: محمد حسن 29 | C31: 2020-01-01 | D31: عامل إنتاج | E31: حسابات | F31: إدارة | G31: =Table1[[#This Row],[الشامل]]*70% -> 2940 | H31: 4200 | I31: 132
A32: 229 | B32: محمد حسن 30 | C32: 2020-01-01 | D32: عامل إنتاج | E32: حسابات | F32: إدارة | G32: =Table1[[#This Row],[الشامل]]*70% -> 2625 | H32: 3750 | I32: 132
A33: 230 | B33: محمد حسن 31 | C33: 2020-01-01 | D33: عامل إنتاج | E33: حسابات | F33: إدارة | G33: =Table1[[#This Row],[الشامل]]*70% -> 2310 | H33: 3300 | I33: 0
A34: 231 | B34: محمد حسن 32 | C34: 2020-01-01 | D34: عامل إنتاج | E34: حسابات | F34: إدارة | G34: =Table1[[#This Row],[الشامل]]*70% -> 2625 | H34: 3750 | I34: 0
A35: 232 | B35: محمد حسن 33 | C35: 2020-01-01 | D35: فني إنتاج | E35: حسابات | F35: إدارة | G35: =Table1[[#This Row],[الشامل]]*70% -> 2765 | H35: 3950 | I35: 132
A36: 233 | B36: محمد حسن 34 | C36: 2020-01-01 | D36: عامل إنتاج | E36: حسابات | F36: إدارة | G36: =Table1[[#This Row],[الشامل]]*70% -> 2450 | H36: 3500 | I36: 0
A37: 234 | B37: محمد حسن 35 | C37: 2020-01-01 | D37: عامل إنتاج | E37: حسابات | F37: إدارة | G37: =Table1[[#This Row],[الشامل]]*70% -> 2730 | H37: 3900 | I37: 132
A38: 235 | B38: محمد حسن 36 | C38: 2020-01-01 | D38: عامل إنتاج | E38: حسابات | F38: إدارة | G38: =Table1[[#This Row],[الشامل]]*70% -> 2415 | H38: 3450 | I38: 132
A39: 236 | B39: محمد حسن 37 | C39: 2020-01-01 | D39: عامل إنتاج | E39: حسابات | F39: إدارة | G39: =Table1[[#This Row],[الشامل]]*70% -> 0 | H39: 0 | I39: 0
A40: 237 | B40: محمد حسن 38 | C40: 2021-07-01 | D40: عامل إنتاج | E40: حسابات | F40: إدارة | G40: =Table1[[#This Row],[الشامل]]*70% -> 2345 | H40: 3350 | I40: 0
A41: 238 | B41: محمد حسن 39 | C41: 2021-07-01 | D41: عامل إنتاج | E41: حسابات | F41: إدارة | G41: =Table1[[#This Row],[الشامل]]*70% -> 2450 | H41: 3500 | I41: 0
A42: 239 | B42: محمد حسن 40 | C42: 2020-01-01 | D42: عامل إنتاج | E42: حسابات | F42: إدارة | G42: =Table1[[#This Row],[الشامل]]*70% -> 2730 | H42: 3900 | I42: 132
A43: 240 | B43: محمد حسن 41 | C43: 2021-07-01 | D43: عامل إنتاج | E43: حسابات | F43: إدارة | G43: =Table1[[#This Row],[الشامل]]*70% -> 2380 | H43: 3400 | I43: 0
A44: 241 | B44: محمد حسن 42 | C44: 2020-01-01 | D44: عامل إنتاج | E44: حسابات | F44: إدارة | G44: =Table1[[#This Row],[الشامل]]*70% -> 2380 | H44: 3400 | I44: 0
A45: 242 | B45: محمد حسن 43 | C45: 2020-01-01 | D45: عامل إنتاج | E45: حسابات | F45: إدارة | G45: =Table1[[#This Row],[الشامل]]*70% -> 2240 | H45: 3200 | I45: 0
A46: 243 | B46: محمد حسن 44 | C46: 2020-01-01 | D46: عامل إنتاج | E46: حسابات | F46: إدارة | G46: =Table1[[#This Row],[الشامل]]*70% -> 2450 | H46: 3500 | I46: 0
A47: 244 | B47: محمد حسن 45 | C47: 2021-07-01 | D47: عامل إنتاج | E47: حسابات | F47: إدارة | G47: =Table1[[#This Row],[الشامل]]*70% -> 2485 | H47: 3550 | I47: 0
A48: 245 | B48: محمد حسن 46 | C48: 2020-01-01 | D48: عامل إنتاج | E48: حسابات | F48: إدارة | G48: =Table1[[#This Row],[الشامل]]*70% -> 3220 | H48: 4600 | I48: 132
A49: 246 | B49: محمد حسن 47 | C49: 2020-01-01 | D49: عامل إنتاج | E49: حسابات | F49: إدارة | G49: =Table1[[#This Row],[الشامل]]*70% -> 2590 | H49: 3700 | I49: 0
A50: 247 | B50: محمد حسن 48 | C50: 2020-01-01 | D50: عامل إنتاج | E50: حسابات | F50: إدارة | G50: =Table1[[#This Row],[الشامل]]*70% -> 0 | H50: 0 | I50: 0
A51: 248 | B51: محمد حسن 49 | C51: 2020-01-01 | D51: عامل إنتاج | E51: حسابات | F51: إدارة | G51: =Table1[[#This Row],[الشامل]]*70% -> 2485 | H51: 3550 | I51: 132
A52: 249 | B52: محمد حسن 50 | C52: 2020-01-01 | D52: عامل إنتاج | E52: حسابات | F52: إدارة | G52: =Table1[[#This Row],[الشامل]]*70% -> 2310 | H52: 3300 | I52: 0
A53: 250 | B53: محمد حسن 51 | C53: 2020-01-01 | D53: عامل إنتاج | E53: حسابات | F53: إدارة | G53: =Table1[[#This Row],[الشامل]]*70% -> 2240 | H53: 3200 | I53: 0
A54: 251 | B54: محمد حسن 52 | C54: 2020-01-01 | D54: عامل إنتاج | E54: حسابات | F54: إدارة | G54: =Table1[[#This Row],[الشامل]]*70% -> 2100 | H54: 3000 | I54: 0

Sheet يومية الحضور والإنصراف
C1: بيانات الموظفين | H1: الحضور | I1: 08:00:00 | K1: 8.5 | L1: =(I2-INT(I2))*24 -> 16.5 | M1: 8.5 | N1: 2 | O1: 0.55 | AC1: 2021-11-27
H2: الإنصراف | I2: 16:30:00 | K2: =SUBTOTAL(9,Table13[موقف تأخير]) -> 153.95 | L2: =SUBTOTAL(9,Table13[إضافي]) -> 108.6833333 | M2: =SUBTOTAL(9,Table13[إضافي]) -> 108.6833333 | O2: =SUBTOTAL(9,Table13[جزاءات]) -> 0 | P2: =SUBTOTAL(9,Table13[سلف]) -> 0 | Q2: =SUBTOTAL(9,Table13[بدل إنتظام]) -> 0 | R2: =SUBTOTAL(9,Table13[بدل مواصلات ووجبة]) -> 0 | S2: =SUBTOTAL(9,Table13[بدلات اخرى المتغير]) -> 0 | T2: =SUBTOTAL(9,Table13[حوافز]) -> 0 | V2: =SUBTOTAL(9,Table13[إضافي نهاري]) -> 29.98333333 | W2: =SUBTOTAL(9,Table13[إضافي ليلي]) -> 75.21666667 | Y2: =SUBTOTAL(9,Table13[تسوية]) -> 0 | Z2: =SUBTOTAL(9,Table13[التأخير]) -> 145.75
A3: Merge | B3: كود الموظف | C3: إسم الموظف | D3: التاريخ | E3: اليوم | F3: شهر | G3: سنة | H3: حضور | I3: إنصراف | J3: عدد ساعات العمل | K3: التحويل | L3: موقف تأخير | M3: إضافي | N3: إذن | O3: إذن بدون أجر | P3: جزاءات | Q3: سلف | R3: بدل إنتظام | S3: بدل مواصلات ووجبة | T3: بدلات اخرى المتغير | U3: حوافز | V3: إضافي نهاري | W3: إضافي ليلي | X3: إضافي جمعة | Y3: تسوية | Z3: التأخير | AA3: ملاحظات | AB3: بمعرفة | AC3: تاريخ التعيين | AD3: sal | AE3: datedif | AF3: day sal | AG3: القسم | AH3: موقف التعاقد | AI3: الرصيد القديم | AJ3: الرصيد الحالي
A4: =Table13[[#This Row],[كود الموظف]]&Table13[[#This Row],[شهر]] -> 20011 | B4: 200 | C4: =IFERROR(VLOOKUP(Table13[كود الموظف],Table1[[كود الموظف]:[إسم الموظف]],2,0),"") -> محمد حسن 1 | D4: 2021-10-26 | E4: =TEXT(Table13[[#This Row],[التاريخ]],"DDDD") -> الثلاثاء | F4: 11 | G4: =IF(Table13[[#This Row],[التاريخ]]="","",YEAR(Table13[[#This Row],[التاريخ]])) -> 2021 | H4: 08:00:00 | I4: 16:25:57 | J4: =IFERROR(TIME(HOUR(I4-H4),MINUTE(I4-H4),0),0) -> 08:25:00 | K4: =(J4-INT(J4))*24 -> 8.416666667 | L4: =(IF(K4<$M$1,$M$1-K4,"---")) -> 0.08333333333 | M4: =IF(K4>$M$1,K4-$M$1,"---") -> --- | V4: =IFERROR(IF(Table13[[#This Row],[إضافي]]>$O$1,Table13[[#This Row],[إضافي]]-Table13[[#This Row],[إضافي ليلي]],0),"") ->  | W4: =IFERROR(IF(Table13[[#This Row],[إضافي]]>$N$1,Table13[[#This Row],[إضافي]]-$N$1,0),"") ->  | Z4: =IF(Table13[[#This Row],[موقف تأخير]]<=0.5,"0",Table13[[#This Row],[موقف تأخير]]) -> 0 | AC4: =VLOOKUP(Table13[كود الموظف],Table1[[كود الموظف]:[تاريخ التعيين]],3,0) -> 2015-01-01 | AD4: =VLOOKUP(Table13[كود الموظف],'بيانات الموظفين'!A:I,12,0) ->  | AE4: =IFERROR(DATEDIF($AC$1,Table13[[#This Row],[تاريخ التعيين]],"D"),"") ->  | AF4: =Table13[[#This Row],[sal]]/30 ->  | AG4: =VLOOKUP(Table13[كود الموظف],Table1[[كود الموظف]:[القسم]],5,0) -> حسابات | AH4: =VLOOKUP(Table13[كود الموظف],#REF!,23,0) ->  | AI4: =IFERROR(VLOOKUP(Table13[كود الموظف],#REF!,7,0),0) -> 0 | AJ4: =IFERROR(Table13[[#This Row],[الرصيد القديم]]-(COUNTIFS('يومية الحضور والإنصراف'!$B$4:$B$35796,$B4,'يومية الحضور والإنصراف'!$H$4:$H$35796,"أجازة")+((COUNTIFS('يومية الحضور والإنصراف'!$B$4:$B$35796,$B4,'يومية الحضور والإنصراف'!$H$4:$H$35796,"أجازة نصف يوم سنوي")+COUNTIFS('يومية الحضور والإنصراف'!$B$4:$B$35796,$B4,'يومية الحضور والإنصراف'!$I$4:$I$35796,"أجازة نصف يوم سنوي"))/2)),0) -> -1
A5: =Table13[[#This Row],[كود الموظف]]&Table13[[#This Row],[شهر]] -> 20011 | B5: 200 | C5: =IFERROR(VLOOKUP(Table13[كود الموظف],Table1[[كود الموظف]:[إسم الموظف]],2,0),"") -> محمد حسن 1 | D5: 2021-10-26 | E5: =TEXT(Table13[[#This Row],[التاريخ]],"DDDD") -> الثلاثاء | F5: 11 | G5: =IF(Table13[[#This Row],[التاريخ]]="","",YEAR(Table13[[#This Row],[التاريخ]])) -> 2021 | H5: 08:06:20 | I5: 16:13:35 | J5: =IFERROR(TIME(HOUR(I5-H5),MINUTE(I5-H5),0),0) -> 08:07:00 | K5: =(J5-INT(J5))*24 -> 8.116666667 | L5: =(IF(K5<$M$1,$M$1-K5,"---")) -> 0.3833333333 | M5: =IF(K5>$M$1,K5-$M$1,"---") -> --- | V5: =IFERROR(IF(Table13[[#This Row],[إضافي]]>$O$1,Table13[[#This Row],[إضافي]]-Table13[[#This Row],[إضافي ليلي]],0),"") ->  | W5: =IFERROR(IF(Table13[[#This Row],[إضافي]]>$N$1,Table13[[#This Row],[إضافي]]-$N$1,0),"") ->  | Z5: =IF(Table13[[#This Row],[موقف تأخير]]<=0.5,"0",Table13[[#This Row],[موقف تأخير]]) -> 0 | AC5: =VLOOKUP(Table13[كود الموظف],Table1[[كود الموظف]:[تاريخ التعيين]],3,0) -> 2015-01-01 | AD5: =VLOOKUP(Table13[كود الموظف],'بيانات الموظفين'!A:I,12,0) ->  | AE5: =IFERROR(DATEDIF($AC$1,Table13[[#This Row],[تاريخ التعيين]],"D"),"") ->  | AF5: =Table13[[#This Row],[sal]]/30 ->  | AG5: =VLOOKUP(Table13[كود الموظف],Table1[[كود الموظف]:[القسم]],5,0) -> حسابات | AH5: =VLOOKUP(Table13[كود الموظف],#REF!,23,0) ->  | AI5: =IFERROR(VLOOKUP(Table13[كود الموظف],#REF!,7,0),0) -> 0 | AJ5: =IFERROR(Table13[[#This Row],[الرصيد القديم]]-(COUNTIFS('يومية الحضور والإنصراف'!$B$4:$B$35796,$B5,'يومية الحضور والإنصراف'!$H$4:$H$35796,"أجازة")+((COUNTIFS('يومية الحضور والإنصراف'!$B$4:$B$35796,$B5,'يومية الحضور والإنصراف'!$H$4:$H$35796,"أجازة نصف يوم سنوي")+COUNTIFS('يومية الحضور والإنصراف'!$B$4:$B$35796,$B5,'يومية الحضور والإنصراف'!$I$4:$I$35796,"أجازة نصف يوم سنوي"))/2)),0) -> -1
A6: =Table13[[#This Row],[كود الموظف]]&Table13[[#This Row],[شهر]] -> 20011 | B6: 200 | C6: =IFERROR(VLOOKUP(Table13[كود الموظف],Table1[[كود الموظف]:[إسم الموظف]],2,0),"") -> محمد حسن 1 | D6: 2021-11-07 | E6: =TEXT(Table13[[#This Row],[التاريخ]],"DDDD") -> الأحد | F6: 11 | G6: =IF(Table13[[#This Row],[التاريخ]]="","",YEAR(Table13[[#This Row],[التاريخ]])) -> 2021 | H6: 07:55:00 | I6: 16:25:47 | J6: =IFERROR(TIME(HOUR(I6-H6),MINUTE(I6-H6),0),0) -> 08:30:00 | K6: =(J6-INT(J6))*24 -> 8.5 | L6: =(IF(K6<$M$1,$M$1-K6,"---")) -> --- | M6: =IF(K6>$M$1,K6-$M$1,"---") -> --- | V6: =IFERROR(IF(Table13[[#This Row],[إضافي]]>$O$1,Table13[[#This Row],[إضافي]]-Table13[[#This Row],[إضافي ليلي]],0),"") ->  | W6: =IFERROR(IF(Table13[[#This Row],[إضافي]]>$N$1,Table13[[#This Row],[إضافي]]-$N$1,0),"") ->  | Z6: =IF(Table13[[#This Row],[موقف تأخير]]<=0.5,"0",Table13[[#This Row],[موقف تأخير]]) -> --- | AC6: =VLOOKUP(Table13[كود الموظف],Table1[[كود الموظف]:[تاريخ التعيين]],3,0) -> 2015-01-01 | AD6: =VLOOKUP(Table13[كود الموظف],'بيانات الموظفين'!A:I,12,0) ->  | AE6: =IFERROR(DATEDIF($AC$1,Table13[[#This Row],[تاريخ التعيين]],"D"),"") ->  | AF6: =Table13[[#This Row],[sal]]/30 ->  | AG6: =VLOOKUP(Table13[كود الموظف],Table1[[كود الموظف]:[القسم]],5,0) -> حسابات | AH6: =VLOOKUP(Table13[كود الموظف],#REF!,23,0) ->  | AI6: =IFERROR(VLOOKUP(Table13[كود الموظف],#REF!,7,0),0) -> 0 | AJ6: =IFERROR(Table13[[#This Row],[الرصيد القديم]]-(COUNTIFS('يومية الحضور والإنصراف'!$B$4:$B$35796,$B6,'يومية الحضور والإنصراف'!$H$4:$H$35796,"أجازة")+((COUNTIFS('يومية الحضور والإنصراف'!$B$4:$B$35796,$B6,'يومية الحضور والإنصراف'!$H$4:$H$35796,"أجازة نصف يوم سنوي")+COUNTIFS('يومية الحضور والإنصراف'!$B$4:$B$35796,$B6,'يومية الحضور والإنصراف'!$I$4:$I$35796,"أجازة نصف يوم سنوي"))/2)),0) -> -1
A7: =Table13[[#This Row],[كود الموظف]]&Table13[[#This Row],[شهر]] -> 20011 | B7: 200 | C7: =IFERROR(VLOOKUP(Table13[كود الموظف],Table1[[كود الموظف]:[إسم الموظف]],2,0),"") -> محمد حسن 1 | D7: 2021-11-07 | E7: =TEXT(Table13[[#This Row],[التاريخ]],"DDDD") -> الأحد | F7: 11 | G7: =IF(Table13[[#This Row],[التاريخ]]="","",YEAR(Table13[[#This Row],[التاريخ]])) -> 2021 | H7: 08:02:20 | I7: 16:27:09 | J7: =IFERROR(TIME(HOUR(I7-H7),MINUTE(I7-H7),0),0) -> 08:24:00 | K7: =(J7-INT(J7))*24 -> 8.4 | L7: =(IF(K7<$M$1,$M$1-K7,"---")) -> 0.1 | M7: =IF(K7>$M$1,K7-$M$1,"---") -> --- | V7: =IFERROR(IF(Table13[[#This Row],[إضافي]]>$O$1,Table13[[#This Row],[إضافي]]-Table13[[#This Row],[إضافي ليلي]],0),"") ->  | W7: =IFERROR(IF(Table13[[#This Row],[إضافي]]>$N$1,Table13[[#This Row],[إضافي]]-$N$1,0),"") ->  | Z7: =IF(Table13[[#This Row],[موقف تأخير]]<=0.5,"0",Table13[[#This Row],[موقف تأخير]]) -> 0 | AC7: =VLOOKUP(Table13[كود الموظف],Table1[[كود الموظف]:[تاريخ التعيين]],3,0) -> 2015-01-01 | AD7: =VLOOKUP(Table13[كود الموظف],'بيانات الموظفين'!A:I,12,0) ->  | AE7: =IFERROR(DATEDIF($AC$1,Table13[[#This Row],[تاريخ التعيين]],"D"),"") ->  | AF7: =Table13[[#This Row],[sal]]/30 ->  | AG7: =VLOOKUP(Table13[كود الموظف],Table1[[كود الموظف]:[القسم]],5,0) -> حسابات | AH7: =VLOOKUP(Table13[كود الموظف],#REF!,23,0) ->  | AI7: =IFERROR(VLOOKUP(Table13[كود الموظف],#REF!,7,0),0) -> 0 | AJ7: =IFERROR(Table13[[#This Row],[الرصيد القديم]]-(COUNTIFS('يومية الحضور والإنصراف'!$B$4:$B$35796,$B7,'يومية الحضور والإنصراف'!$H$4:$H$35796,"أجازة")+((COUNTIFS('يومية الحضور والإنصراف'!$B$4:$B$35796,$B7,'يومية الحضور والإنصراف'!$H$4:$H$35796,"أجازة نصف يوم سنوي")+COUNTIFS('يومية الحضور والإنصراف'!$B$4:$B$35796,$B7,'يومية الحضور والإنصراف'!$I$4:$I$35796,"أجازة نصف يوم سنوي"))/2)),0) -> -1
A8: =Table13[[#This Row],[كود الموظف]]&Table13[[#This Row],[شهر]] -> 20011 | B8: 200 | C8: =IFERROR(VLOOKUP(Table13[كود الموظف],Table1[[كود الموظف]:[إسم الموظف]],2,0),"") -> محمد حسن 1 | D8: 2021-11-07 | E8: =TEXT(Table13[[#This Row],[التاريخ]],"DDDD") -> الأحد | F8: 11 | G8: =IF(Table13[[#This Row],[التاريخ]]="","",YEAR(Table13[[#This Row],[التاريخ]])) -> 2021 | H8: 08:15:21 | I8: 16:33:38 | J8: =IFERROR(TIME(HOUR(I8-H8),MINUTE(I8-H8),0),0) -> 08:18:00 | K8: =(J8-INT(J8))*24 -> 8.3 | L8: =(IF(K8<$M$1,$M$1-K8,"---")) -> 0.2 | M8: =IF(K8>$M$1,K8-$M$1,"---") -> --- | V8: =IFERROR(IF(Table13[[#This Row],[إضافي]]>$O$1,Table13[[#This Row],[إضافي]]-Table13[[#This Row],[إضافي ليلي]],0),"") ->  | W8: =IFERROR(IF(Table13[[#This Row],[إضافي]]>$N$1,Table13[[#This Row],[إضافي]]-$N$1,0),"") ->  | Z8: =IF(Table13[[#This Row],[موقف تأخير]]<=0.5,"0",Table13[[#This Row],[موقف تأخير]]) -> 0 | AC8: =VLOOKUP(Table13[كود الموظف],Table1[[كود الموظف]:[تاريخ التعيين]],3,0) -> 2015-01-01 | AD8: =VLOOKUP(Table13[كود الموظف],'بيانات الموظفين'!A:I,12,0) ->  | AE8: =IFERROR(DATEDIF($AC$1,Table13[[#This Row],[تاريخ التعيين]],"D"),"") ->  | AF8: =Table13[[#This Row],[sal]]/30 ->  | AG8: =VLOOKUP(Table13[كود الموظف],Table1[[كود الموظف]:[القسم]],5,0) -> حسابات | AH8: =VLOOKUP(Table13[كود الموظف],#REF!,23,0) ->  | AI8: =IFERROR(VLOOKUP(Table13[كود الموظف],#REF!,7,0),0) -> 0 | AJ8: =IFERROR(Table13[[#This Row],[الرصيد القديم]]-(COUNTIFS('يومية الحضور والإنصراف'!$B$4:$B$35796,$B8,'يومية الحضور والإنصراف'!$H$4:$H$35796,"أجازة")+((COUNTIFS('يومية الحضور والإنصراف'!$B$4:$B$35796,$B8,'يومية الحضور والإنصراف'!$H$4:$H$35796,"أجازة نصف يوم سنوي")+COUNTIFS('يومية الحضور والإنصراف'!$B$4:$B$35796,$B8,'يومية الحضور والإنصراف'!$I$4:$I$35796,"أجازة نصف يوم سنوي"))/2)),0) -> -1
A9: =Table13[[#This Row],[كود الموظف]]&Table13[[#This Row],[شهر]] -> 20011 | B9: 200 | C9: =IFERROR(VLOOKUP(Table13[كود الموظف],Table1[[كود الموظف]:[إسم الموظف]],2,0),"") -> محمد حسن 1 | D9: 2021-11-07 | E9: =TEXT(Table13[[#This Row],[التاريخ]],"DDDD") -> الأحد | F9: 11 | G9: =IF(Table13[[#This Row],[التاريخ]]="","",YEAR(Table13[[#This Row],[التاريخ]])) -> 2021 | H9: 08:01:55 | I9: 16:31:48 | J9: =IFERROR(TIME(HOUR(I9-H9),MINUTE(I9-H9),0),0) -> 08:29:00 | K9: =(J9-INT(J9))*24 -> 8.483333333 | L9: =(IF(K9<$M$1,$M$1-K9,"---")) -> 0.01666666667 | M9: =IF(K9>$M$1,K9-$M$1,"---") -> --- | V9: =IFERROR(IF(Table13[[#This Row],[إضافي]]>$O$1,Table13[[#This Row],[إضافي]]-Table13[[#This Row],[إضافي ليلي]],0),"") ->  | W9: =IFERROR(IF(Table13[[#This Row],[إضافي]]>$N$1,Table13[[#This Row],[إضافي]]-$N$1,0),"") ->  | Z9: =IF(Table13[[#This Row],[موقف تأخير]]<=0.5,"0",Table13[[#This Row],[موقف تأخير]]) -> 0 | AC9: =VLOOKUP(Table13[كود الموظف],Table1[[كود الموظف]:[تاريخ التعيين]],3,0) -> 2015-01-01 | AD9: =VLOOKUP(Table13[كود الموظف],'بيانات الموظفين'!A:I,12,0) ->  | AE9: =IFERROR(DATEDIF($AC$1,Table13[[#This Row],[تاريخ التعيين]],"D"),"") ->  | AF9: =Table13[[#This Row],[sal]]/30 ->  | AG9: =VLOOKUP(Table13[كود الموظف],Table1[[كود الموظف]:[القسم]],5,0) -> حسابات | AH9: =VLOOKUP(Table13[كود الموظف],#REF!,23,0) ->  | AI9: =IFERROR(VLOOKUP(Table13[كود الموظف],#REF!,7,0),0) -> 0 | AJ9: =IFERROR(Table13[[#This Row],[الرصيد القديم]]-(COUNTIFS('يومية الحضور والإنصراف'!$B$4:$B$35796,$B9,'يومية الحضور والإنصراف'!$H$4:$H$35796,"أجازة")+((COUNTIFS('يومية الحضور والإنصراف'!$B$4:$B$35796,$B9,'يومية الحضور والإنصراف'!$H$4:$H$35796,"أجازة نصف يوم سنوي")+COUNTIFS('يومية الحضور والإنصراف'!$B$4:$B$35796,$B9,'يومية الحضور والإنصراف'!$I$4:$I$35796,"أجازة نصف يوم سنوي"))/2)),0) -> -1
A10: =Table13[[#This Row],[كود الموظف]]&Table13[[#This Row],[شهر]] -> 20011 | B10: 200 | C10: =IFERROR(VLOOKUP(Table13[كود الموظف],Table1[[كود الموظف]:[إسم الموظف]],2,0),"") -> محمد حسن 1 | D10: 2021-11-07 | E10: =TEXT(Table13[[#This Row],[التاريخ]],"DDDD") -> الأحد | F10: 11 | G10: =IF(Table13[[#This Row],[التاريخ]]="","",YEAR(Table13[[#This Row],[التاريخ]])) -> 2021 | H10: 08:00:29 | I10: 16:30:04 | J10: =IFERROR(TIME(HOUR(I10-H10),MINUTE(I10-H10),0),0) -> 08:29:00 | K10: =(J10-INT(J10))*24 -> 8.483333333 | L10: =(IF(K10<$M$1,$M$1-K10,"---")) -> 0.01666666667 | M10: =IF(K10>$M$1,K10-$M$1,"---") -> --- | V10: =IFERROR(IF(Table13[[#This Row],[إضافي]]>$O$1,Table13[[#This Row],[إضافي]]-Table13[[#This Row],[إضافي ليلي]],0),"") ->  | W10: =IFERROR(IF(Table13[[#This Row],[إضافي]]>$N$1,Table13[[#This Row],[إضافي]]-$N$1,0),"") ->  | Z10: =IF(Table13[[#This Row],[موقف تأخير]]<=0.5,"0",Table13[[#This Row],[موقف تأخير]]) -> 0 | AC10: =VLOOKUP(Table13[كود الموظف],Table1[[كود الموظف]:[تاريخ التعيين]],3,0) -> 2015-01-01 | AD10: =VLOOKUP(Table13[كود الموظف],'بيانات الموظفين'!A:I,12,0) ->  | AE10: =IFERROR(DATEDIF($AC$1,Table13[[#This Row],[تاريخ التعيين]],"D"),"") ->  | AF10: =Table13[[#This Row],[sal]]/30 ->  | AG10: =VLOOKUP(Table13[كود الموظف],Table1[[كود الموظف]:[القسم]],5,0) -> حسابات | AH10: =VLOOKUP(Table13[كود الموظف],#REF!,23,0) ->  | AI10: =IFERROR(VLOOKUP(Table13[كود الموظف],#REF!,7,0),0) -> 0 | AJ10: =IFERROR(Table13[[#This Row],[الرصيد القديم]]-(COUNTIFS('يومية الحضور والإنصراف'!$B$4:$B$35796,$B10,'يومية الحضور والإنصراف'!$H$4:$H$35796,"أجازة")+((COUNTIFS('يومية الحضور والإنصراف'!$B$4:$B$35796,$B10,'يومية الحضور والإنصراف'!$H$4:$H$35796,"أجازة نصف يوم سنوي")+COUNTIFS('يومية الحضور والإنصراف'!$B$4:$B$35796,$B10,'يومية الحضور والإنصراف'!$I$4:$I$35796,"أجازة نصف يوم سنوي"))/2)),0) -> -1
A11: =Table13[[#This Row],[كود الموظف]]&Table13[[#This Row],[شهر]] -> 20011 | B11: 200 | C11: =IFERROR(VLOOKUP(Table13[كود الموظف],Table1[[كود الموظف]:[إسم الموظف]],2,0),"") -> محمد حسن 1 | D11: 2021-11-07 | E11: =TEXT(Table13[[#This Row],[التاريخ]],"DDDD") -> الأحد | F11: 11 | G11: =IF(Table13[[#This Row],[التاريخ]]="","",YEAR(Table13[[#This Row],[التاريخ]])) -> 2021 | H11: 08:00:37 | I11: 16:29:55 | J11: =IFERROR(TIME(HOUR(I11-H11),MINUTE(I11-H11),0),0) -> 08:29:00 | K11: =(J11-INT(J11))*24 -> 8.483333333 | L11: =(IF(K11<$M$1,$M$1-K11,"---")) -> 0.01666666667 | M11: =IF(K11>$M$1,K11-$M$1,"---") -> --- | V11: =IFERROR(IF(Table13[[#This Row],[إضافي]]>$O$1,Table13[[#This Row],[إضافي]]-Table13[[#This Row],[إضافي ليلي]],0),"") ->  | W11: =IFERROR(IF(Table13[[#This Row],[إضافي]]>$N$1,Table13[[#This Row],[إضافي]]-$N$1,0),"") ->  | Z11: =IF(Table13[[#This Row],[موقف تأخير]]<=0.5,"0",Table13[[#This Row],[موقف تأخير]]) -> 0 | AC11: =VLOOKUP(Table13[كود الموظف],Table1[[كود الموظف]:[تاريخ التعيين]],3,0) -> 2015-01-01 | AD11: =VLOOKUP(Table13[كود الموظف],'بيانات الموظفين'!A:I,12,0) ->  | AE11: =IFERROR(DATEDIF($AC$1,Table13[[#This Row],[تاريخ التعيين]],"D"),"") ->  | AF11: =Table13[[#This Row],[sal]]/30 ->  | AG11: =VLOOKUP(Table13[كود الموظف],Table1[[كود الموظف]:[القسم]],5,0) -> حسابات | AH11: =VLOOKUP(Table13[كود الموظف],#REF!,23,0) ->  | AI11: =IFERROR(VLOOKUP(Table13[كود الموظف],#REF!,7,0),0) -> 0 | AJ11: =IFERROR(Table13[[#This Row],[الرصيد القديم]]-(COUNTIFS('يومية الحضور والإنصراف'!$B$4:$B$35796,$B11,'يومية الحضور والإنصراف'!$H$4:$H$35796,"أجازة")+((COUNTIFS('يومية الحضور والإنصراف'!$B$4:$B$35796,$B11,'يومية الحضور والإنصراف'!$H$4:$H$35796,"أجازة نصف يوم سنوي")+COUNTIFS('يومية الحضور والإنصراف'!$B$4:$B$35796,$B11,'يومية الحضور والإنصراف'!$I$4:$I$35796,"أجازة نصف يوم سنوي"))/2)),0) -> -1
A12: =Table13[[#This Row],[كود الموظف]]&Table13[[#This Row],[شهر]] -> 20011 | B12: 200 | C12: =IFERROR(VLOOKUP(Table13[كود الموظف],Table1[[كود الموظف]:[إسم الموظف]],2,0),"") -> محمد حسن 1 | D12: 2021-11-08 | E12: =TEXT(Table13[[#This Row],[التاريخ]],"DDDD") -> الإثنين | F12: 11 | G12: =IF(Table13[[#This Row],[التاريخ]]="","",YEAR(Table13[[#This Row],[التاريخ]])) -> 2021 | H12: 07:55:00 | I12: 16:26:32 | J12: =IFERROR(TIME(HOUR(I12-H12),MINUTE(I12-H12),0),0) -> 08:31:00 | K12: =(J12-INT(J12))*24 -> 8.516666667 | L12: =(IF(K12<$M$1,$M$1-K12,"---")) -> --- | M12: =IF(K12>$M$1,K12-$M$1,"---") -> 0.01666666667 | V12: =IFERROR(IF(Table13[[#This Row],[إضافي]]>$O$1,Table13[[#This Row],[إضافي]]-Table13[[#This Row],[إضافي ليلي]],0),"") -> 0 | W12: =IFERROR(IF(Table13[[#This Row],[إضافي]]>$N$1,Table13[[#This Row],[إضافي]]-$N$1,0),"") -> 0 | Z12: =IF(Table13[[#This Row],[موقف تأخير]]<=0.5,"0",Table13[[#This Row],[موقف تأخير]]) -> --- | AC12: =VLOOKUP(Table13[كود الموظف],Table1[[كود الموظف]:[تاريخ التعيين]],3,0) -> 2015-01-01 | AD12: =VLOOKUP(Table13[كود الموظف],'بيانات الموظفين'!A:I,12,0) ->  | AE12: =IFERROR(DATEDIF($AC$1,Table13[[#This Row],[تاريخ التعيين]],"D"),"") ->  | AF12: =Table13[[#This Row],[sal]]/30 ->  | AG12: =VLOOKUP(Table13[كود الموظف],Table1[[كود الموظف]:[القسم]],5,0) -> حسابات | AH12: =VLOOKUP(Table13[كود الموظف],#REF!,23,0) ->  | AI12: =IFERROR(VLOOKUP(Table13[كود الموظف],#REF!,7,0),0) -> 0 | AJ12: =IFERROR(Table13[[#This Row],[الرصيد القديم]]-(COUNTIFS('يومية الحضور والإنصراف'!$B$4:$B$35796,$B12,'يومية الحضور والإنصراف'!$H$4:$H$35796,"أجازة")+((COUNTIFS('يومية الحضور والإنصراف'!$B$4:$B$35796,$B12,'يومية الحضور والإنصراف'!$H$4:$H$35796,"أجازة نصف يوم سنوي")+COUNTIFS('يومية الحضور والإنصراف'!$B$4:$B$35796,$B12,'يومية الحضور والإنصراف'!$I$4:$I$35796,"أجازة نصف يوم سنوي"))/2)),0) -> -1
A13: =Table13[[#This Row],[كود الموظف]]&Table13[[#This Row],[شهر]] -> 20012 | B13: 200 | C13: =IFERROR(VLOOKUP(Table13[كود الموظف],Table1[[كود الموظف]:[إسم الموظف]],2,0),"") -> محمد حسن 1 | D13: 2021-12-25 | E13: =TEXT(Table13[[#This Row],[التاريخ]],"DDDD") -> السبت | F13: 12 | G13: =IF(Table13[[#This Row],[التاريخ]]="","",YEAR(Table13[[#This Row],[التاريخ]])) -> 2021 | H13: أجازة رسمية | I13: أجازة رسمية | J13: =IFERROR(TIME(HOUR(I13-H13),MINUTE(I13-H13),0),0) -> 00:00:00 | K13: =(J13-INT(J13))*24 -> 00:00:00 | L13: =(IF(K13<$M$1,$M$1-K13,"---")) -> 8.5 | M13: =IF(K13>$M$1,K13-$M$1,"---") -> --- | V13: =IFERROR(IF(Table13[[#This Row],[إضافي]]>$O$1,Table13[[#This Row],[إضافي]]-Table13[[#This Row],[إضافي ليلي]],0),"") ->  | W13: =IFERROR(IF(Table13[[#This Row],[إضافي]]>$N$1,Table13[[#This Row],[إضافي]]-$N$1,0),"") ->  | Z13: =IF(Table13[[#This Row],[موقف تأخير]]<=0.5,"0",Table13[[#This Row],[موقف تأخير]]) -> 8.5 | AC13: =VLOOKUP(Table13[كود الموظف],Table1[[كود الموظف]:[تاريخ التعيين]],3,0) -> 2015-01-01 | AD13: =VLOOKUP(Table13[كود الموظف],'بيانات الموظفين'!A:I,12,0) ->  | AE13: =IFERROR(DATEDIF($AC$1,Table13[[#This Row],[تاريخ التعيين]],"D"),"") ->  | AF13: =Table13[[#This Row],[sal]]/30 ->  | AG13: =VLOOKUP(Table13[كود الموظف],Table1[[كود الموظف]:[القسم]],5,0) -> حسابات | AH13: =VLOOKUP(Table13[كود الموظف],#REF!,23,0) ->  | AI13: =IFERROR(VLOOKUP(Table13[كود الموظف],#REF!,7,0),0) -> 0 | AJ13: =IFERROR(Table13[[#This Row],[الرصيد القديم]]-(COUNTIFS('يومية الحضور والإنصراف'!$B$4:$B$35796,$B13,'يومية الحضور والإنصراف'!$H$4:$H$35796,"أجازة")+((COUNTIFS('يومية الحضور والإنصراف'!$B$4:$B$35796,$B13,'يومية الحضور والإنصراف'!$H$4:$H$35796,"أجازة نصف يوم سنوي")+COUNTIFS('يومية الحضور والإنصراف'!$B$4:$B$35796,$B13,'يومية الحضور والإنصراف'!$I$4:$I$35796,"أجازة نصف يوم سنوي"))/2)),0) -> -1
A14: =Table13[[#This Row],[كود الموظف]]&Table13[[#This Row],[شهر]] -> 20012 | B14: 200 | C14: =IFERROR(VLOOKUP(Table13[كود الموظف],Table1[[كود الموظف]:[إسم الموظف]],2,0),"") -> محمد حسن 1 | D14: 2021-12-13 | E14: =TEXT(Table13[[#This Row],[التاريخ]],"DDDD") -> الإثنين | F14: 12 | G14: =IF(Table13[[#This Row],[التاريخ]]="","",YEAR(Table13[[#This Row],[التاريخ]])) -> 2021 | H14: أجازة | I14: أجازة | J14: =IFERROR(TIME(HOUR(I14-H14),MINUTE(I14-H14),0),0) -> 00:00:00 | K14: =(J14-INT(J14))*24 -> 00:00:00 | L14: =(IF(K14<$M$1,$M$1-K14,"---")) -> 8.5 | M14: =IF(K14>$M$1,K14-$M$1,"---") -> --- | V14: =IFERROR(IF(Table13[[#This Row],[إضافي]]>$O$1,Table13[[#This Row],[إضافي]]-Table13[[#This Row],[إضافي ليلي]],0),"") ->  | W14: =IFERROR(IF(Table13[[#This Row],[إضافي]]>$N$1,Table13[[#This Row],[إضافي]]-$N$1,0),"") ->  | Z14: =IF(Table13[[#This Row],[موقف تأخير]]<=0.5,"0",Table13[[#This Row],[موقف تأخير]]) -> 8.5 | AC14: =VLOOKUP(Table13[كود الموظف],Table1[[كود الموظف]:[تاريخ التعيين]],3,0) -> 2015-01-01 | AD14: =VLOOKUP(Table13[كود الموظف],'بيانات الموظفين'!A:I,12,0) ->  | AE14: =IFERROR(DATEDIF($AC$1,Table13[[#This Row],[تاريخ التعيين]],"D"),"") ->  | AF14: =Table13[[#This Row],[sal]]/30 ->  | AG14: =VLOOKUP(Table13[كود الموظف],Table1[[كود الموظف]:[القسم]],5,0) -> حسابات | AH14: =VLOOKUP(Table13[كود الموظف],#REF!,23,0) ->  | AI14: =IFERROR(VLOOKUP(Table13[كود الموظف],#REF!,7,0),0) -> 0 | AJ14: =IFERROR(Table13[[#This Row],[الرصيد القديم]]-(COUNTIFS('يومية الحضور والإنصراف'!$B$4:$B$35796,$B14,'يومية الحضور والإنصراف'!$H$4:$H$35796,"أجازة")+((COUNTIFS('يومية الحضور والإنصراف'!$B$4:$B$35796,$B14,'يومية الحضور والإنصراف'!$H$4:$H$35796,"أجازة نصف يوم سنوي")+COUNTIFS('يومية الحضور والإنصراف'!$B$4:$B$35796,$B14,'يومية الحضور والإنصراف'!$I$4:$I$35796,"أجازة نصف يوم سنوي"))/2)),0) -> -1
A15: =Table13[[#This Row],[كود الموظف]]&Table13[[#This Row],[شهر]] -> 20111 | B15: 201 | C15: =IFERROR(VLOOKUP(Table13[كود الموظف],Table1[[كود الموظف]:[إسم الموظف]],2,0),"") -> محمد حسن 2 | D15: 2021-10-26 | E15: =TEXT(Table13[[#This Row],[التاريخ]],"DDDD") -> الثلاثاء | F15: 11 | G15: =IF(Table13[[#This Row],[التاريخ]]="","",YEAR(Table13[[#This Row],[التاريخ]])) -> 2021 | H15: 07:56:49 | I15: 16:26:42 | J15: =IFERROR(TIME(HOUR(I15-H15),MINUTE(I15-H15),0),0) -> 08:29:00 | K15: =(J15-INT(J15))*24 -> 8.483333333 | L15: =(IF(K15<$M$1,$M$1-K15,"---")) -> 0.01666666667 | M15: =IF(K15>$M$1,K15-$M$1,"---") -> --- | V15: =IFERROR(IF(Table13[[#This Row],[إضافي]]>$O$1,Table13[[#This Row],[إضافي]]-Table13[[#This Row],[إضافي ليلي]],0),"") ->  | W15: =IFERROR(IF(Table13[[#This Row],[إضافي]]>$N$1,Table13[[#This Row],[إضافي]]-$N$1,0),"") ->  | Z15: =IF(Table13[[#This Row],[موقف تأخير]]<=0.5,"0",Table13[[#This Row],[موقف تأخير]]) -> 0 | AC15: =VLOOKUP(Table13[كود الموظف],Table1[[كود الموظف]:[تاريخ التعيين]],3,0) -> 2020-01-01 | AD15: =VLOOKUP(Table13[كود الموظف],'بيانات الموظفين'!A:I,12,0) ->  | AE15: =IFERROR(DATEDIF($AC$1,Table13[[#This Row],[تاريخ التعيين]],"D"),"") ->  | AF15: =Table13[[#This Row],[sal]]/30 ->  | AG15: =VLOOKUP(Table13[كود الموظف],Table1[[كود الموظف]:[القسم]],5,0) -> حسابات | AH15: =VLOOKUP(Table13[كود الموظف],#REF!,23,0) ->  | AI15: =IFERROR(VLOOKUP(Table13[كود الموظف],#REF!,7,0),0) -> 0 | AJ15: =IFERROR(Table13[[#This Row],[الرصيد القديم]]-(COUNTIFS('يومية الحضور والإنصراف'!$B$4:$B$35796,$B15,'يومية الحضور والإنصراف'!$H$4:$H$35796,"أجازة")+((COUNTIFS('يومية الحضور والإنصراف'!$B$4:$B$35796,$B15,'يومية الحضور والإنصراف'!$H$4:$H$35796,"أجازة نصف يوم سنوي")+COUNTIFS('يومية الحضور والإنصراف'!$B$4:$B$35796,$B15,'يومية الحضور والإنصراف'!$I$4:$I$35796,"أجازة نصف يوم سنوي"))/2)),0) -> -1
A16: =Table13[[#This Row],[كود الموظف]]&Table13[[#This Row],[شهر]] -> 20111 | B16: 201 | C16: =IFERROR(VLOOKUP(Table13[كود الموظف],Table1[[كود الموظف]:[إسم الموظف]],2,0),"") -> محمد حسن 2 | D16: 2021-11-07 | E16: =TEXT(Table13[[#This Row],[التاريخ]],"DDDD") -> الأحد | F16: 11 | G16: =IF(Table13[[#This Row],[التاريخ]]="","",YEAR(Table13[[#This Row],[التاريخ]])) -> 2021 | H16: 08:10:00 | I16: 16:28:25 | J16: =IFERROR(TIME(HOUR(I16-H16),MINUTE(I16-H16),0),0) -> 08:18:00 | K16: =(J16-INT(J16))*24 -> 8.3 | L16: =(IF(K16<$M$1,$M$1-K16,"---")) -> 0.2 | M16: =IF(K16>$M$1,K16-$M$1,"---") -> --- | V16: =IFERROR(IF(Table13[[#This Row],[إضافي]]>$O$1,Table13[[#This Row],[إضافي]]-Table13[[#This Row],[إضافي ليلي]],0),"") ->  | W16: =IFERROR(IF(Table13[[#This Row],[إضافي]]>$N$1,Table13[[#This Row],[إضافي]]-$N$1,0),"") ->  | Z16: =IF(Table13[[#This Row],[موقف تأخير]]<=0.5,"0",Table13[[#This Row],[موقف تأخير]]) -> 0 | AC16: =VLOOKUP(Table13[كود الموظف],Table1[[كود الموظف]:[تاريخ التعيين]],3,0) -> 2020-01-01 | AD16: =VLOOKUP(Table13[كود الموظف],'بيانات الموظفين'!A:I,12,0) ->  | AE16: =IFERROR(DATEDIF($AC$1,Table13[[#This Row],[تاريخ التعيين]],"D"),"") ->  | AF16: =Table13[[#This Row],[sal]]/30 ->  | AG16: =VLOOKUP(Table13[كود الموظف],Table1[[كود الموظف]:[القسم]],5,0) -> حسابات | AH16: =VLOOKUP(Table13[كود الموظف],#REF!,23,0) ->  | AI16: =IFERROR(VLOOKUP(Table13[كود الموظف],#REF!,7,0),0) -> 0 | AJ16: =IFERROR(Table13[[#This Row],[الرصيد القديم]]-(COUNTIFS('يومية الحضور والإنصراف'!$B$4:$B$35796,$B16,'يومية الحضور والإنصراف'!$H$4:$H$35796,"أجازة")+((COUNTIFS('يومية الحضور والإنصراف'!$B$4:$B$35796,$B16,'يومية الحضور والإنصراف'!$H$4:$H$35796,"أجازة نصف يوم سنوي")+COUNTIFS('يومية الحضور والإنصراف'!$B$4:$B$35796,$B16,'يومية الحضور والإنصراف'!$I$4:$I$35796,"أجازة نصف يوم سنوي"))/2)),0) -> -1
A17: =Table13[[#This Row],[كود الموظف]]&Table13[[#This Row],[شهر]] -> 20111 | B17: 201 | C17: =IFERROR(VLOOKUP(Table13[كود الموظف],Table1[[كود الموظف]:[إسم الموظف]],2,0),"") -> محمد حسن 2 | D17: 2021-11-07 | E17: =TEXT(Table13[[#This Row],[التاريخ]],"DDDD") -> الأحد | F17: 11 | G17: =IF(Table13[[#This Row],[التاريخ]]="","",YEAR(Table13[[#This Row],[التاريخ]])) -> 2021 | H17: 08:04:13 | I17: 16:28:45 | J17: =IFERROR(TIME(HOUR(I17-H17),MINUTE(I17-H17),0),0) -> 08:24:00 | K17: =(J17-INT(J17))*24 -> 8.4 | L17: =(IF(K17<$M$1,$M$1-K17,"---")) -> 0.1 | M17: =IF(K17>$M$1,K17-$M$1,"---") -> --- | V17: =IFERROR(IF(Table13[[#This Row],[إضافي]]>$O$1,Table13[[#This Row],[إضافي]]-Table13[[#This Row],[إضافي ليلي]],0),"") ->  | W17: =IFERROR(IF(Table13[[#This Row],[إضافي]]>$N$1,Table13[[#This Row],[إضافي]]-$N$1,0),"") ->  | Z17: =IF(Table13[[#This Row],[موقف تأخير]]<=0.5,"0",Table13[[#This Row],[موقف تأخير]]) -> 0 | AC17: =VLOOKUP(Table13[كود الموظف],Table1[[كود الموظف]:[تاريخ التعيين]],3,0) -> 2020-01-01 | AD17: =VLOOKUP(Table13[كود الموظف],'بيانات الموظفين'!A:I,12,0) ->  | AE17: =IFERROR(DATEDIF($AC$1,Table13[[#This Row],[تاريخ التعيين]],"D"),"") ->  | AF17: =Table13[[#This Row],[sal]]/30 ->  | AG17: =VLOOKUP(Table13[كود الموظف],Table1[[كود الموظف]:[القسم]],5,0) -> حسابات | AH17: =VLOOKUP(Table13[كود الموظف],#REF!,23,0) ->  | AI17: =IFERROR(VLOOKUP(Table13[كود الموظف],#REF!,7,0),0) -> 0 | AJ17: =IFERROR(Table13[[#This Row],[الرصيد القديم]]-(COUNTIFS('يومية الحضور والإنصراف'!$B$4:$B$35796,$B17,'يومية الحضور والإنصراف'!$H$4:$H$35796,"أجازة")+((COUNTIFS('يومية الحضور والإنصراف'!$B$4:$B$35796,$B17,'يومية الحضور والإنصراف'!$H$4:$H$35796,"أجازة نصف يوم سنوي")+COUNTIFS('يومية الحضور والإنصراف'!$B$4:$B$35796,$B17,'يومية الحضور والإنصراف'!$I$4:$I$35796,"أجازة نصف يوم سنوي"))/2)),0) -> -1
A18: =Table13[[#This Row],[كود الموظف]]&Table13[[#This Row],[شهر]] -> 20111 | B18: 201 | C18: =IFERROR(VLOOKUP(Table13[كود الموظف],Table1[[كود الموظف]:[إسم الموظف]],2,0),"") -> محمد حسن 2 | D18: 2021-11-07 | E18: =TEXT(Table13[[#This Row],[التاريخ]],"DDDD") -> الأحد | F18: 11 | G18: =IF(Table13[[#This Row],[التاريخ]]="","",YEAR(Table13[[#This Row],[التاريخ]])) -> 2021 | H18: 08:13:00 | I18: 16:29:13 | J18: =IFERROR(TIME(HOUR(I18-H18),MINUTE(I18-H18),0),0) -> 08:16:00 | K18: =(J18-INT(J18))*24 -> 8.266666667 | L18: =(IF(K18<$M$1,$M$1-K18,"---")) -> 0.2333333333 | M18: =IF(K18>$M$1,K18-$M$1,"---") -> --- | V18: =IFERROR(IF(Table13[[#This Row],[إضافي]]>$O$1,Table13[[#This Row],[إضافي]]-Table13[[#This Row],[إضافي ليلي]],0),"") ->  | W18: =IFERROR(IF(Table13[[#This Row],[إضافي]]>$N$1,Table13[[#This Row],[إضافي]]-$N$1,0),"") ->  | Z18: =IF(Table13[[#This Row],[موقف تأخير]]<=0.5,"0",Table13[[#This Row],[موقف تأخير]]) -> 0 | AC18: =VLOOKUP(Table13[كود الموظف],Table1[[كود الموظف]:[تاريخ التعيين]],3,0) -> 2020-01-01 | AD18: =VLOOKUP(Table13[كود الموظف],'بيانات الموظفين'!A:I,12,0) ->  | AE18: =IFERROR(DATEDIF($AC$1,Table13[[#This Row],[تاريخ التعيين]],"D"),"") ->  | AF18: =Table13[[#This Row],[sal]]/30 ->  | AG18: =VLOOKUP(Table13[كود الموظف],Table1[[كود الموظف]:[القسم]],5,0) -> حسابات | AH18: =VLOOKUP(Table13[كود الموظف],#REF!,23,0) ->  | AI18: =IFERROR(VLOOKUP(Table13[كود الموظف],#REF!,7,0),0) -> 0 | AJ18: =IFERROR(Table13[[#This Row],[الرصيد القديم]]-(COUNTIFS('يومية الحضور والإنصراف'!$B$4:$B$35796,$B18,'يومية الحضور والإنصراف'!$H$4:$H$35796,"أجازة")+((COUNTIFS('يومية الحضور والإنصراف'!$B$4:$B$35796,$B18,'يومية الحضور والإنصراف'!$H$4:$H$35796,"أجازة نصف يوم سنوي")+COUNTIFS('يومية الحضور والإنصراف'!$B$4:$B$35796,$B18,'يومية الحضور والإنصراف'!$I$4:$I$35796,"أجازة نصف يوم سنوي"))/2)),0) -> -1
A19: =Table13[[#This Row],[كود الموظف]]&Table13[[#This Row],[شهر]] -> 20111 | B19: 201 | C19: =IFERROR(VLOOKUP(Table13[كود الموظف],Table1[[كود الموظف]:[إسم الموظف]],2,0),"") -> محمد حسن 2 | D19: 2021-11-07 | E19: =TEXT(Table13[[#This Row],[التاريخ]],"DDDD") -> الأحد | F19: 11 | G19: =IF(Table13[[#This Row],[التاريخ]]="","",YEAR(Table13[[#This Row],[التاريخ]])) -> 2021 | H19: 07:55:00 | I19: 16:39:21 | J19: =IFERROR(TIME(HOUR(I19-H19),MINUTE(I19-H19),0),0) -> 08:44:00 | K19: =(J19-INT(J19))*24 -> 8.733333333 | L19: =(IF(K19<$M$1,$M$1-K19,"---")) -> --- | M19: =IF(K19>$M$1,K19-$M$1,"---") -> 0.2333333333 | V19: =IFERROR(IF(Table13[[#This Row],[إضافي]]>$O$1,Table13[[#This Row],[إضافي]]-Table13[[#This Row],[إضافي ليلي]],0),"") -> 0 | W19: =IFERROR(IF(Table13[[#This Row],[إضافي]]>$N$1,Table13[[#This Row],[إضافي]]-$N$1,0),"") -> 0 | Z19: =IF(Table13[[#This Row],[موقف تأخير]]<=0.5,"0",Table13[[#This Row],[موقف تأخير]]) -> --- | AC19: =VLOOKUP(Table13[كود الموظف],Table1[[كود الموظف]:[تاريخ التعيين]],3,0) -> 2020-01-01 | AD19: =VLOOKUP(Table13[كود الموظف],'بيانات الموظفين'!A:I,12,0) ->  | AE19: =IFERROR(DATEDIF($AC$1,Table13[[#This Row],[تاريخ التعيين]],"D"),"") ->  | AF19: =Table13[[#This Row],[sal]]/30 ->  | AG19: =VLOOKUP(Table13[كود الموظف],Table1[[كود الموظف]:[القسم]],5,0) -> حسابات | AH19: =VLOOKUP(Table13[كود الموظف],#REF!,23,0) ->  | AI19: =IFERROR(VLOOKUP(Table13[كود الموظف],#REF!,7,0),0) -> 0 | AJ19: =IFERROR(Table13[[#This Row],[الرصيد القديم]]-(COUNTIFS('يومية الحضور والإنصراف'!$B$4:$B$35796,$B19,'يومية الحضور والإنصراف'!$H$4:$H$35796,"أجازة")+((COUNTIFS('يومية الحضور والإنصراف'!$B$4:$B$35796,$B19,'يومية الحضور والإنصراف'!$H$4:$H$35796,"أجازة نصف يوم سنوي")+COUNTIFS('يومية الحضور والإنصراف'!$B$4:$B$35796,$B19,'يومية الحضور والإنصراف'!$I$4:$I$35796,"أجازة نصف يوم سنوي"))/2)),0) -> -1
A20: =Table13[[#This Row],[كود الموظف]]&Table13[[#This Row],[شهر]] -> 20111 | B20: 201 | C20: =IFERROR(VLOOKUP(Table13[كود الموظف],Table1[[كود الموظف]:[إسم الموظف]],2,0),"") -> محمد حسن 2 | D20: 2021-11-07 | E20: =TEXT(Table13[[#This Row],[التاريخ]],"DDDD") -> الأحد | F20: 11 | G20: =IF(Table13[[#This Row],[التاريخ]]="","",YEAR(Table13[[#This Row],[التاريخ]])) -> 2021 | H20: 08:12:03 | I20: 16:31:51 | J20: =IFERROR(TIME(HOUR(I20-H20),MINUTE(I20-H20),0),0) -> 08:19:00 | K20: =(J20-INT(J20))*24 -> 8.316666667 | L20: =(IF(K20<$M$1,$M$1-K20,"---")) -> 0.1833333333 | M20: =IF(K20>$M$1,K20-$M$1,"---") -> --- | V20: =IFERROR(IF(Table13[[#This Row],[إضافي]]>$O$1,Table13[[#This Row],[إضافي]]-Table13[[#This Row],[إضافي ليلي]],0),"") ->  | W20: =IFERROR(IF(Table13[[#This Row],[إضافي]]>$N$1,Table13[[#This Row],[إضافي]]-$N$1,0),"") ->  | Z20: =IF(Table13[[#This Row],[موقف تأخير]]<=0.5,"0",Table13[[#This Row],[موقف تأخير]]) -> 0 | AC20: =VLOOKUP(Table13[كود الموظف],Table1[[كود الموظف]:[تاريخ التعيين]],3,0) -> 2020-01-01 | AD20: =VLOOKUP(Table13[كود الموظف],'بيانات الموظفين'!A:I,12,0) ->  | AE20: =IFERROR(DATEDIF($AC$1,Table13[[#This Row],[تاريخ التعيين]],"D"),"") ->  | AF20: =Table13[[#This Row],[sal]]/30 ->  | AG20: =VLOOKUP(Table13[كود الموظف],Table1[[كود الموظف]:[القسم]],5,0) -> حسابات | AH20: =VLOOKUP(Table13[كود الموظف],#REF!,23,0) ->  | AI20: =IFERROR(VLOOKUP(Table13[كود الموظف],#REF!,7,0),0) -> 0 | AJ20: =IFERROR(Table13[[#This Row],[الرصيد القديم]]-(COUNTIFS('يومية الحضور والإنصراف'!$B$4:$B$35796,$B20,'يومية الحضور والإنصراف'!$H$4:$H$35796,"أجازة")+((COUNTIFS('يومية الحضور والإنصراف'!$B$4:$B$35796,$B20,'يومية الحضور والإنصراف'!$H$4:$H$35796,"أجازة نصف يوم سنوي")+COUNTIFS('يومية الحضور والإنصراف'!$B$4:$B$35796,$B20,'يومية الحضور والإنصراف'!$I$4:$I$35796,"أجازة نصف يوم سنوي"))/2)),0) -> -1
A21: =Table13[[#This Row],[كود الموظف]]&Table13[[#This Row],[شهر]] -> 20111 | B21: 201 | C21: =IFERROR(VLOOKUP(Table13[كود الموظف],Table1[[كود الموظف]:[إسم الموظف]],2,0),"") -> محمد حسن 2 | D21: 2021-11-07 | E21: =TEXT(Table13[[#This Row],[التاريخ]],"DDDD") -> الأحد | F21: 11 | G21: =IF(Table13[[#This Row],[التاريخ]]="","",YEAR(Table13[[#This Row],[التاريخ]])) -> 2021 | H21: تدريب | I21: تدريب | J21: =IFERROR(TIME(HOUR(I21-H21),MINUTE(I21-H21),0),0) -> 00:00:00 | K21: =(J21-INT(J21))*24 -> 00:00:00 | L21: =(IF(K21<$M$1,$M$1-K21,"---")) -> 8.5 | M21: =IF(K21>$M$1,K21-$M$1,"---") -> --- | V21: =IFERROR(IF(Table13[[#This Row],[إضافي]]>$O$1,Table13[[#This Row],[إضافي]]-Table13[[#This Row],[إضافي ليلي]],0),"") ->  | W21: =IFERROR(IF(Table13[[#This Row],[إضافي]]>$N$1,Table13[[#This Row],[إضافي]]-$N$1,0),"") ->  | Z21: =IF(Table13[[#This Row],[موقف تأخير]]<=0.5,"0",Table13[[#This Row],[موقف تأخير]]) -> 8.5 | AC21: =VLOOKUP(Table13[كود الموظف],Table1[[كود الموظف]:[تاريخ التعيين]],3,0) -> 2020-01-01 | AD21: =VLOOKUP(Table13[كود الموظف],'بيانات الموظفين'!A:I,12,0) ->  | AE21: =IFERROR(DATEDIF($AC$1,Table13[[#This Row],[تاريخ التعيين]],"D"),"") ->  | AF21: =Table13[[#This Row],[sal]]/30 ->  | AG21: =VLOOKUP(Table13[كود الموظف],Table1[[كود الموظف]:[القسم]],5,0) -> حسابات | AH21: =VLOOKUP(Table13[كود الموظف],#REF!,23,0) ->  | AI21: =IFERROR(VLOOKUP(Table13[كود الموظف],#REF!,7,0),0) -> 0 | AJ21: =IFERROR(Table13[[#This Row],[الرصيد القديم]]-(COUNTIFS('يومية الحضور والإنصراف'!$B$4:$B$35796,$B21,'يومية الحضور والإنصراف'!$H$4:$H$35796,"أجازة")+((COUNTIFS('يومية الحضور والإنصراف'!$B$4:$B$35796,$B21,'يومية الحضور والإنصراف'!$H$4:$H$35796,"أجازة نصف يوم سنوي")+COUNTIFS('يومية الحضور والإنصراف'!$B$4:$B$35796,$B21,'يومية الحضور والإنصراف'!$I$4:$I$35796,"أجازة نصف يوم سنوي"))/2)),0) -> -1
A22: =Table13[[#This Row],[كود الموظف]]&Table13[[#This Row],[شهر]] -> 20111 | B22: 201 | C22: =IFERROR(VLOOKUP(Table13[كود الموظف],Table1[[كود الموظف]:[إسم الموظف]],2,0),"") -> محمد حسن 2 | D22: 2021-11-07 | E22: =TEXT(Table13[[#This Row],[التاريخ]],"DDDD") -> الأحد | F22: 11 | G22: =IF(Table13[[#This Row],[التاريخ]]="","",YEAR(Table13[[#This Row],[التاريخ]])) -> 2021 | H22: 08:03:14 | I22: 18:32:24 | J22: =IFERROR(TIME(HOUR(I22-H22),MINUTE(I22-H22),0),0) -> 10:29:00 | K22: =(J22-INT(J22))*24 -> 10.48333333 | L22: =(IF(K22<$M$1,$M$1-K22,"---")) -> --- | M22: =IF(K22>$M$1,K22-$M$1,"---") -> 1.983333333 | V22: =IFERROR(IF(Table13[[#This Row],[إضافي]]>$O$1,Table13[[#This Row],[إضافي]]-Table13[[#This Row],[إضافي ليلي]],0),"") -> 1.983333333 | W22: =IFERROR(IF(Table13[[#This Row],[إضافي]]>$N$1,Table13[[#This Row],[إضافي]]-$N$1,0),"") -> 0 | Z22: =IF(Table13[[#This Row],[موقف تأخير]]<=0.5,"0",Table13[[#This Row],[موقف تأخير]]) -> --- | AC22: =VLOOKUP(Table13[كود الموظف],Table1[[كود الموظف]:[تاريخ التعيين]],3,0) -> 2020-01-01 | AD22: =VLOOKUP(Table13[كود الموظف],'بيانات الموظفين'!A:I,12,0) ->  | AE22: =IFERROR(DATEDIF($AC$1,Table13[[#This Row],[تاريخ التعيين]],"D"),"") ->  | AF22: =Table13[[#This Row],[sal]]/30 ->  | AG22: =VLOOKUP(Table13[كود الموظف],Table1[[كود الموظف]:[القسم]],5,0) -> حسابات | AH22: =VLOOKUP(Table13[كود الموظف],#REF!,23,0) ->  | AI22: =IFERROR(VLOOKUP(Table13[كود الموظف],#REF!,7,0),0) -> 0 | AJ22: =IFERROR(Table13[[#This Row],[الرصيد القديم]]-(COUNTIFS('يومية الحضور والإنصراف'!$B$4:$B$35796,$B22,'يومية الحضور والإنصراف'!$H$4:$H$35796,"أجازة")+((COUNTIFS('يومية الحضور والإنصراف'!$B$4:$B$35796,$B22,'يومية الحضور والإنصراف'!$H$4:$H$35796,"أجازة نصف يوم سنوي")+COUNTIFS('يومية الحضور والإنصراف'!$B$4:$B$35796,$B22,'يومية الحضور والإنصراف'!$I$4:$I$35796,"أجازة نصف يوم سنوي"))/2)),0) -> -1
A23: =Table13[[#This Row],[كود الموظف]]&Table13[[#This Row],[شهر]] -> 20111 | B23: 201 | C23: =IFERROR(VLOOKUP(Table13[كود الموظف],Table1[[كود الموظف]:[إسم الموظف]],2,0),"") -> محمد حسن 2 | D23: 2021-11-08 | E23: =TEXT(Table13[[#This Row],[التاريخ]],"DDDD") -> الإثنين | F23: 11 | G23: =IF(Table13[[#This Row],[التاريخ]]="","",YEAR(Table13[[#This Row],[التاريخ]])) -> 2021 | H23: أجازة | I23: أجازة | J23: =IFERROR(TIME(HOUR(I23-H23),MINUTE(I23-H23),0),0) -> 00:00:00 | K23: =(J23-INT(J23))*24 -> 00:00:00 | L23: =(IF(K23<$M$1,$M$1-K23,"---")) -> 8.5 | M23: =IF(K23>$M$1,K23-$M$1,"---") -> --- | V23: =IFERROR(IF(Table13[[#This Row],[إضافي]]>$O$1,Table13[[#This Row],[إضافي]]-Table13[[#This Row],[إضافي ليلي]],0),"") ->  | W23: =IFERROR(IF(Table13[[#This Row],[إضافي]]>$N$1,Table13[[#This Row],[إضافي]]-$N$1,0),"") ->  | Z23: =IF(Table13[[#This Row],[موقف تأخير]]<=0.5,"0",Table13[[#This Row],[موقف تأخير]]) -> 8.5 | AC23: =VLOOKUP(Table13[كود الموظف],Table1[[كود الموظف]:[تاريخ التعيين]],3,0) -> 2020-01-01 | AD23: =VLOOKUP(Table13[كود الموظف],'بيانات الموظفين'!A:I,12,0) ->  | AE23: =IFERROR(DATEDIF($AC$1,Table13[[#This Row],[تاريخ التعيين]],"D"),"") ->  | AF23: =Table13[[#This Row],[sal]]/30 ->  | AG23: =VLOOKUP(Table13[كود الموظف],Table1[[كود الموظف]:[القسم]],5,0) -> حسابات | AH23: =VLOOKUP(Table13[كود الموظف],#REF!,23,0) ->  | AI23: =IFERROR(VLOOKUP(Table13[كود الموظف],#REF!,7,0),0) -> 0 | AJ23: =IFERROR(Table13[[#This Row],[الرصيد القديم]]-(COUNTIFS('يومية الحضور والإنصراف'!$B$4:$B$35796,$B23,'يومية الحضور والإنصراف'!$H$4:$H$35796,"أجازة")+((COUNTIFS('يومية الحضور والإنصراف'!$B$4:$B$35796,$B23,'يومية الحضور والإنصراف'!$H$4:$H$35796,"أجازة نصف يوم سنوي")+COUNTIFS('يومية الحضور والإنصراف'!$B$4:$B$35796,$B23,'يومية الحضور والإنصراف'!$I$4:$I$35796,"أجازة نصف يوم سنوي"))/2)),0) -> -1
A24: =Table13[[#This Row],[كود الموظف]]&Table13[[#This Row],[شهر]] -> 20112 | B24: 201 | C24: =IFERROR(VLOOKUP(Table13[كود الموظف],Table1[[كود الموظف]:[إسم الموظف]],2,0),"") -> محمد حسن 2 | D24: 2021-12-25 | E24: =TEXT(Table13[[#This Row],[التاريخ]],"DDDD") -> السبت | F24: 12 | G24: =IF(Table13[[#This Row],[التاريخ]]="","",YEAR(Table13[[#This Row],[التاريخ]])) -> 2021 | H24: أجازة رسمية | I24: أجازة رسمية | J24: =IFERROR(TIME(HOUR(I24-H24),MINUTE(I24-H24),0),0) -> 00:00:00 | K24: =(J24-INT(J24))*24 -> 00:00:00 | L24: =(IF(K24<$M$1,$M$1-K24,"---")) -> 8.5 | M24: =IF(K24>$M$1,K24-$M$1,"---") -> --- | V24: =IFERROR(IF(Table13[[#This Row],[إضافي]]>$O$1,Table13[[#This Row],[إضافي]]-Table13[[#This Row],[إضافي ليلي]],0),"") ->  | W24: =IFERROR(IF(Table13[[#This Row],[إضافي]]>$N$1,Table13[[#This Row],[إضافي]]-$N$1,0),"") ->  | Z24: =IF(Table13[[#This Row],[موقف تأخير]]<=0.5,"0",Table13[[#This Row],[موقف تأخير]]) -> 8.5 | AC24: =VLOOKUP(Table13[كود الموظف],Table1[[كود الموظف]:[تاريخ التعيين]],3,0) -> 2020-01-01 | AD24: =VLOOKUP(Table13[كود الموظف],'بيانات الموظفين'!A:I,12,0) ->  | AE24: =IFERROR(DATEDIF($AC$1,Table13[[#This Row],[تاريخ التعيين]],"D"),"") ->  | AF24: =Table13[[#This Row],[sal]]/30 ->  | AG24: =VLOOKUP(Table13[كود الموظف],Table1[[كود الموظف]:[القسم]],5,0) -> حسابات | AH24: =VLOOKUP(Table13[كود الموظف],#REF!,23,0) ->  | AI24: =IFERROR(VLOOKUP(Table13[كود الموظف],#REF!,7,0),0) -> 0 | AJ24: =IFERROR(Table13[[#This Row],[الرصيد القديم]]-(COUNTIFS('يومية الحضور والإنصراف'!$B$4:$B$35796,$B24,'يومية الحضور والإنصراف'!$H$4:$H$35796,"أجازة")+((COUNTIFS('يومية الحضور والإنصراف'!$B$4:$B$35796,$B24,'يومية الحضور والإنصراف'!$H$4:$H$35796,"أجازة نصف يوم سنوي")+COUNTIFS('يومية الحضور والإنصراف'!$B$4:$B$35796,$B24,'يومية الحضور والإنصراف'!$I$4:$I$35796,"أجازة نصف يوم سنوي"))/2)),0) -> -1
A25: =Table13[[#This Row],[كود الموظف]]&Table13[[#This Row],[شهر]] -> 20211 | B25: 202 | C25: =IFERROR(VLOOKUP(Table13[كود الموظف],Table1[[كود الموظف]:[إسم الموظف]],2,0),"") -> محمد حسن 3 | D25: 2021-10-26 | E25: =TEXT(Table13[[#This Row],[التاريخ]],"DDDD") -> الثلاثاء | F25: 11 | G25: =IF(Table13[[#This Row],[التاريخ]]="","",YEAR(Table13[[#This Row],[التاريخ]])) -> 2021 | H25: 07:53:35 | I25: 16:13:20 | J25: =IFERROR(TIME(HOUR(I25-H25),MINUTE(I25-H25),0),0) -> 08:19:00 | K25: =(J25-INT(J25))*24 -> 8.316666667 | L25: =(IF(K25<$M$1,$M$1-K25,"---")) -> 0.1833333333 | M25: =IF(K25>$M$1,K25-$M$1,"---") -> --- | V25: =IFERROR(IF(Table13[[#This Row],[إضافي]]>$O$1,Table13[[#This Row],[إضافي]]-Table13[[#This Row],[إضافي ليلي]],0),"") ->  | W25: =IFERROR(IF(Table13[[#This Row],[إضافي]]>$N$1,Table13[[#This Row],[إضافي]]-$N$1,0),"") ->  | Z25: =IF(Table13[[#This Row],[موقف تأخير]]<=0.5,"0",Table13[[#This Row],[موقف تأخير]]) -> 0 | AC25: =VLOOKUP(Table13[كود الموظف],Table1[[كود الموظف]:[تاريخ التعيين]],3,0) -> 2021-11-03 | AD25: =VLOOKUP(Table13[كود الموظف],'بيانات الموظفين'!A:I,12,0) ->  | AE25: =IFERROR(DATEDIF($AC$1,Table13[[#This Row],[تاريخ التعيين]],"D"),"") ->  | AF25: =Table13[[#This Row],[sal]]/30 ->  | AG25: =VLOOKUP(Table13[كود الموظف],Table1[[كود الموظف]:[القسم]],5,0) -> حسابات | AH25: =VLOOKUP(Table13[كود الموظف],#REF!,23,0) ->  | AI25: =IFERROR(VLOOKUP(Table13[كود الموظف],#REF!,7,0),0) -> 0 | AJ25: =IFERROR(Table13[[#This Row],[الرصيد القديم]]-(COUNTIFS('يومية الحضور والإنصراف'!$B$4:$B$35796,$B25,'يومية الحضور والإنصراف'!$H$4:$H$35796,"أجازة")+((COUNTIFS('يومية الحضور والإنصراف'!$B$4:$B$35796,$B25,'يومية الحضور والإنصراف'!$H$4:$H$35796,"أجازة نصف يوم سنوي")+COUNTIFS('يومية الحضور والإنصراف'!$B$4:$B$35796,$B25,'يومية الحضور والإنصراف'!$I$4:$I$35796,"أجازة نصف يوم سنوي"))/2)),0) -> -1
A26: =Table13[[#This Row],[كود الموظف]]&Table13[[#This Row],[شهر]] -> 20211 | B26: 202 | C26: =IFERROR(VLOOKUP(Table13[كود الموظف],Table1[[كود الموظف]:[إسم الموظف]],2,0),"") -> محمد حسن 3 | D26: 2021-11-07 | E26: =TEXT(Table13[[#This Row],[التاريخ]],"DDDD") -> الأحد | F26: 11 | G26: =IF(Table13[[#This Row],[التاريخ]]="","",YEAR(Table13[[#This Row],[التاريخ]])) -> 2021 | H26: 07:43:48 | I26: 16:29:02 | J26: =IFERROR(TIME(HOUR(I26-H26),MINUTE(I26-H26),0),0) -> 08:45:00 | K26: =(J26-INT(J26))*24 -> 8.75 | L26: =(IF(K26<$M$1,$M$1-K26,"---")) -> --- | M26: =IF(K26>$M$1,K26-$M$1,"---") -> 0.25 | V26: =IFERROR(IF(Table13[[#This Row],[إضافي]]>$O$1,Table13[[#This Row],[إضافي]]-Table13[[#This Row],[إضافي ليلي]],0),"") -> 0 | W26: =IFERROR(IF(Table13[[#This Row],[إضافي]]>$N$1,Table13[[#This Row],[إضافي]]-$N$1,0),"") -> 0 | Z26: =IF(Table13[[#This Row],[موقف تأخير]]<=0.5,"0",Table13[[#This Row],[موقف تأخير]]) -> --- | AC26: =VLOOKUP(Table13[كود الموظف],Table1[[كود الموظف]:[تاريخ التعيين]],3,0) -> 2021-11-03 | AD26: =VLOOKUP(Table13[كود الموظف],'بيانات الموظفين'!A:I,12,0) ->  | AE26: =IFERROR(DATEDIF($AC$1,Table13[[#This Row],[تاريخ التعيين]],"D"),"") ->  | AF26: =Table13[[#This Row],[sal]]/30 ->  | AG26: =VLOOKUP(Table13[كود الموظف],Table1[[كود الموظف]:[القسم]],5,0) -> حسابات | AH26: =VLOOKUP(Table13[كود الموظف],#REF!,23,0) ->  | AI26: =IFERROR(VLOOKUP(Table13[كود الموظف],#REF!,7,0),0) -> 0 | AJ26: =IFERROR(Table13[[#This Row],[الرصيد القديم]]-(COUNTIFS('يومية الحضور والإنصراف'!$B$4:$B$35796,$B26,'يومية الحضور والإنصراف'!$H$4:$H$35796,"أجازة")+((COUNTIFS('يومية الحضور والإنصراف'!$B$4:$B$35796,$B26,'يومية الحضور والإنصراف'!$H$4:$H$35796,"أجازة نصف يوم سنوي")+COUNTIFS('يومية الحضور والإنصراف'!$B$4:$B$35796,$B26,'يومية الحضور والإنصراف'!$I$4:$I$35796,"أجازة نصف يوم سنوي"))/2)),0) -> -1
A27: =Table13[[#This Row],[كود الموظف]]&Table13[[#This Row],[شهر]] -> 20211 | B27: 202 | C27: =IFERROR(VLOOKUP(Table13[كود الموظف],Table1[[كود الموظف]:[إسم الموظف]],2,0),"") -> محمد حسن 3 | D27: 2021-11-07 | E27: =TEXT(Table13[[#This Row],[التاريخ]],"DDDD") -> الأحد | F27: 11 | G27: =IF(Table13[[#This Row],[التاريخ]]="","",YEAR(Table13[[#This Row],[التاريخ]])) -> 2021 | H27: 07:55:00 | I27: 23:50:14 | J27: =IFERROR(TIME(HOUR(I27-H27),MINUTE(I27-H27),0),0) -> 15:55:00 | K27: =(J27-INT(J27))*24 -> 15.91666667 | L27: =(IF(K27<$M$1,$M$1-K27,"---")) -> --- | M27: =IF(K27>$M$1,K27-$M$1,"---") -> 7.416666667 | V27: =IFERROR(IF(Table13[[#This Row],[إضافي]]>$O$1,Table13[[#This Row],[إضافي]]-Table13[[#This Row],[إضافي ليلي]],0),"") -> 2 | W27: =IFERROR(IF(Table13[[#This Row],[إضافي]]>$N$1,Table13[[#This Row],[إضافي]]-$N$1,0),"") -> 5.416666667 | Z27: =IF(Table13[[#This Row],[موقف تأخير]]<=0.5,"0",Table13[[#This Row],[موقف تأخير]]) -> --- | AC27: =VLOOKUP(Table13[كود الموظف],Table1[[كود الموظف]:[تاريخ التعيين]],3,0) -> 2021-11-03 | AD27: =VLOOKUP(Table13[كود الموظف],'بيانات الموظفين'!A:I,12,0) ->  | AE27: =IFERROR(DATEDIF($AC$1,Table13[[#This Row],[تاريخ التعيين]],"D"),"") ->  | AF27: =Table13[[#This Row],[sal]]/30 ->  | AG27: =VLOOKUP(Table13[كود الموظف],Table1[[كود الموظف]:[القسم]],5,0) -> حسابات | AH27: =VLOOKUP(Table13[كود الموظف],#REF!,23,0) ->  | AI27: =IFERROR(VLOOKUP(Table13[كود الموظف],#REF!,7,0),0) -> 0 | AJ27: =IFERROR(Table13[[#This Row],[الرصيد القديم]]-(COUNTIFS('يومية الحضور والإنصراف'!$B$4:$B$35796,$B27,'يومية الحضور والإنصراف'!$H$4:$H$35796,"أجازة")+((COUNTIFS('يومية الحضور والإنصراف'!$B$4:$B$35796,$B27,'يومية الحضور والإنصراف'!$H$4:$H$35796,"أجازة نصف يوم سنوي")+COUNTIFS('يومية الحضور والإنصراف'!$B$4:$B$35796,$B27,'يومية الحضور والإنصراف'!$I$4:$I$35796,"أجازة نصف يوم سنوي"))/2)),0) -> -1
A28: =Table13[[#This Row],[كود الموظف]]&Table13[[#This Row],[شهر]] -> 20211 | B28: 202 | C28: =IFERROR(VLOOKUP(Table13[كود الموظف],Table1[[كود الموظف]:[إسم الموظف]],2,0),"") -> محمد حسن 3 | D28: 2021-11-07 | E28: =TEXT(Table13[[#This Row],[التاريخ]],"DDDD") -> الأحد | F28: 11 | G28: =IF(Table13[[#This Row],[التاريخ]]="","",YEAR(Table13[[#This Row],[التاريخ]])) -> 2021 | H28: 07:47:26 | I28: 16:25:43 | J28: =IFERROR(TIME(HOUR(I28-H28),MINUTE(I28-H28),0),0) -> 08:38:00 | K28: =(J28-INT(J28))*24 -> 8.633333333 | L28: =(IF(K28<$M$1,$M$1-K28,"---")) -> --- | M28: =IF(K28>$M$1,K28-$M$1,"---") -> 0.1333333333 | V28: =IFERROR(IF(Table13[[#This Row],[إضافي]]>$O$1,Table13[[#This Row],[إضافي]]-Table13[[#This Row],[إضافي ليلي]],0),"") -> 0 | W28: =IFERROR(IF(Table13[[#This Row],[إضافي]]>$N$1,Table13[[#This Row],[إضافي]]-$N$1,0),"") -> 0 | Z28: =IF(Table13[[#This Row],[موقف تأخير]]<=0.5,"0",Table13[[#This Row],[موقف تأخير]]) -> --- | AC28: =VLOOKUP(Table13[كود الموظف],Table1[[كود الموظف]:[تاريخ التعيين]],3,0) -> 2021-11-03 | AD28: =VLOOKUP(Table13[كود الموظف],'بيانات الموظفين'!A:I,12,0) ->  | AE28: =IFERROR(DATEDIF($AC$1,Table13[[#This Row],[تاريخ التعيين]],"D"),"") ->  | AF28: =Table13[[#This Row],[sal]]/30 ->  | AG28: =VLOOKUP(Table13[كود الموظف],Table1[[كود الموظف]:[القسم]],5,0) -> حسابات | AH28: =VLOOKUP(Table13[كود الموظف],#REF!,23,0) ->  | AI28: =IFERROR(VLOOKUP(Table13[كود الموظف],#REF!,7,0),0) -> 0 | AJ28: =IFERROR(Table13[[#This Row],[الرصيد القديم]]-(COUNTIFS('يومية الحضور والإنصراف'!$B$4:$B$35796,$B28,'يومية الحضور والإنصراف'!$H$4:$H$35796,"أجازة")+((COUNTIFS('يومية الحضور والإنصراف'!$B$4:$B$35796,$B28,'يومية الحضور والإنصراف'!$H$4:$H$35796,"أجازة نصف يوم سنوي")+COUNTIFS('يومية الحضور والإنصراف'!$B$4:$B$35796,$B28,'يومية الحضور والإنصراف'!$I$4:$I$35796,"أجازة نصف يوم سنوي"))/2)),0) -> -1
A29: =Table13[[#This Row],[كود الموظف]]&Table13[[#This Row],[شهر]] -> 20211 | B29: 202 | C29: =IFERROR(VLOOKUP(Table13[كود الموظف],Table1[[كود الموظف]:[إسم الموظف]],2,0),"") -> محمد حسن 3 | D29: 2021-11-07 | E29: =TEXT(Table13[[#This Row],[التاريخ]],"DDDD") -> الأحد | F29: 11 | G29: =IF(Table13[[#This Row],[التاريخ]]="","",YEAR(Table13[[#This Row],[التاريخ]])) -> 2021 | H29: أجازة | I29: أجازة | J29: =IFERROR(TIME(HOUR(I29-H29),MINUTE(I29-H29),0),0) -> 00:00:00 | K29: =(J29-INT(J29))*24 -> 00:00:00 | L29: =(IF(K29<$M$1,$M$1-K29,"---")) -> 8.5 | M29: =IF(K29>$M$1,K29-$M$1,"---") -> --- | V29: =IFERROR(IF(Table13[[#This Row],[إضافي]]>$O$1,Table13[[#This Row],[إضافي]]-Table13[[#This Row],[إضافي ليلي]],0),"") ->  | W29: =IFERROR(IF(Table13[[#This Row],[إضافي]]>$N$1,Table13[[#This Row],[إضافي]]-$N$1,0),"") ->  | Z29: =IF(Table13[[#This Row],[موقف تأخير]]<=0.5,"0",Table13[[#This Row],[موقف تأخير]]) -> 8.5 | AC29: =VLOOKUP(Table13[كود الموظف],Table1[[كود الموظف]:[تاريخ التعيين]],3,0) -> 2021-11-03 | AD29: =VLOOKUP(Table13[كود الموظف],'بيانات الموظفين'!A:I,12,0) ->  | AE29: =IFERROR(DATEDIF($AC$1,Table13[[#This Row],[تاريخ التعيين]],"D"),"") ->  | AF29: =Table13[[#This Row],[sal]]/30 ->  | AG29: =VLOOKUP(Table13[كود الموظف],Table1[[كود الموظف]:[القسم]],5,0) -> حسابات | AH29: =VLOOKUP(Table13[كود الموظف],#REF!,23,0) ->  | AI29: =IFERROR(VLOOKUP(Table13[كود الموظف],#REF!,7,0),0) -> 0 | AJ29: =IFERROR(Table13[[#This Row],[الرصيد القديم]]-(COUNTIFS('يومية الحضور والإنصراف'!$B$4:$B$35796,$B29,'يومية الحضور والإنصراف'!$H$4:$H$35796,"أجازة")+((COUNTIFS('يومية الحضور والإنصراف'!$B$4:$B$35796,$B29,'يومية الحضور والإنصراف'!$H$4:$H$35796,"أجازة نصف يوم سنوي")+COUNTIFS('يومية الحضور والإنصراف'!$B$4:$B$35796,$B29,'يومية الحضور والإنصراف'!$I$4:$I$35796,"أجازة نصف يوم سنوي"))/2)),0) -> -1
A30: =Table13[[#This Row],[كود الموظف]]&Table13[[#This Row],[شهر]] -> 20211 | B30: 202 | C30: =IFERROR(VLOOKUP(Table13[كود الموظف],Table1[[كود الموظف]:[إسم الموظف]],2,0),"") -> محمد حسن 3 | D30: 2021-11-07 | E30: =TEXT(Table13[[#This Row],[التاريخ]],"DDDD") -> الأحد | F30: 11 | G30: =IF(Table13[[#This Row],[التاريخ]]="","",YEAR(Table13[[#This Row],[التاريخ]])) -> 2021 | H30: 08:10:08 | I30: 16:27:14 | J30: =IFERROR(TIME(HOUR(I30-H30),MINUTE(I30-H30),0),0) -> 08:17:00 | K30: =(J30-INT(J30))*24 -> 8.283333333 | L30: =(IF(K30<$M$1,$M$1-K30,"---")) -> 0.2166666667 | M30: =IF(K30>$M$1,K30-$M$1,"---") -> --- | V30: =IFERROR(IF(Table13[[#This Row],[إضافي]]>$O$1,Table13[[#This Row],[إضافي]]-Table13[[#This Row],[إضافي ليلي]],0),"") ->  | W30: =IFERROR(IF(Table13[[#This Row],[إضافي]]>$N$1,Table13[[#This Row],[إضافي]]-$N$1,0),"") ->  | Z30: =IF(Table13[[#This Row],[موقف تأخير]]<=0.5,"0",Table13[[#This Row],[موقف تأخير]]) -> 0 | AC30: =VLOOKUP(Table13[كود الموظف],Table1[[كود الموظف]:[تاريخ التعيين]],3,0) -> 2021-11-03 | AD30: =VLOOKUP(Table13[كود الموظف],'بيانات الموظفين'!A:I,12,0) ->  | AE30: =IFERROR(DATEDIF($AC$1,Table13[[#This Row],[تاريخ التعيين]],"D"),"") ->  | AF30: =Table13[[#This Row],[sal]]/30 ->  | AG30: =VLOOKUP(Table13[كود الموظف],Table1[[كود الموظف]:[القسم]],5,0) -> حسابات | AH30: =VLOOKUP(Table13[كود الموظف],#REF!,23,0) ->  | AI30: =IFERROR(VLOOKUP(Table13[كود الموظف],#REF!,7,0),0) -> 0 | AJ30: =IFERROR(Table13[[#This Row],[الرصيد القديم]]-(COUNTIFS('يومية الحضور والإنصراف'!$B$4:$B$35796,$B30,'يومية الحضور والإنصراف'!$H$4:$H$35796,"أجازة")+((COUNTIFS('يومية الحضور والإنصراف'!$B$4:$B$35796,$B30,'يومية الحضور والإنصراف'!$H$4:$H$35796,"أجازة نصف يوم سنوي")+COUNTIFS('يومية الحضور والإنصراف'!$B$4:$B$35796,$B30,'يومية الحضور والإنصراف'!$I$4:$I$35796,"أجازة نصف يوم سنوي"))/2)),0) -> -1
A31: =Table13[[#This Row],[كود الموظف]]&Table13[[#This Row],[شهر]] -> 20211 | B31: 202 | C31: =IFERROR(VLOOKUP(Table13[كود الموظف],Table1[[كود الموظف]:[إسم الموظف]],2,0),"") -> محمد حسن 3 | D31: 2021-11-07 | E31: =TEXT(Table13[[#This Row],[التاريخ]],"DDDD") -> الأحد | F31: 11 | G31: =IF(Table13[[#This Row],[التاريخ]]="","",YEAR(Table13[[#This Row],[التاريخ]])) -> 2021 | H31: 07:58:53 | I31: 16:31:29 | J31: =IFERROR(TIME(HOUR(I31-H31),MINUTE(I31-H31),0),0) -> 08:32:00 | K31: =(J31-INT(J31))*24 -> 8.533333333 | L31: =(IF(K31<$M$1,$M$1-K31,"---")) -> --- | M31: =IF(K31>$M$1,K31-$M$1,"---") -> 0.03333333333 | V31: =IFERROR(IF(Table13[[#This Row],[إضافي]]>$O$1,Table13[[#This Row],[إضافي]]-Table13[[#This Row],[إضافي ليلي]],0),"") -> 0 | W31: =IFERROR(IF(Table13[[#This Row],[إضافي]]>$N$1,Table13[[#This Row],[إضافي]]-$N$1,0),"") -> 0 | Z31: =IF(Table13[[#This Row],[موقف تأخير]]<=0.5,"0",Table13[[#This Row],[موقف تأخير]]) -> --- | AC31: =VLOOKUP(Table13[كود الموظف],Table1[[كود الموظف]:[تاريخ التعيين]],3,0) -> 2021-11-03 | AD31: =VLOOKUP(Table13[كود الموظف],'بيانات الموظفين'!A:I,12,0) ->  | AE31: =IFERROR(DATEDIF($AC$1,Table13[[#This Row],[تاريخ التعيين]],"D"),"") ->  | AF31: =Table13[[#This Row],[sal]]/30 ->  | AG31: =VLOOKUP(Table13[كود الموظف],Table1[[كود الموظف]:[القسم]],5,0) -> حسابات | AH31: =VLOOKUP(Table13[كود الموظف],#REF!,23,0) ->  | AI31: =IFERROR(VLOOKUP(Table13[كود الموظف],#REF!,7,0),0) -> 0 | AJ31: =IFERROR(Table13[[#This Row],[الرصيد القديم]]-(COUNTIFS('يومية الحضور والإنصراف'!$B$4:$B$35796,$B31,'يومية الحضور والإنصراف'!$H$4:$H$35796,"أجازة")+((COUNTIFS('يومية الحضور والإنصراف'!$B$4:$B$35796,$B31,'يومية الحضور والإنصراف'!$H$4:$H$35796,"أجازة نصف يوم سنوي")+COUNTIFS('يومية الحضور والإنصراف'!$B$4:$B$35796,$B31,'يومية الحضور والإنصراف'!$I$4:$I$35796,"أجازة نصف يوم سنوي"))/2)),0) -> -1
A32: =Table13[[#This Row],[كود الموظف]]&Table13[[#This Row],[شهر]] -> 20211 | B32: 202 | C32: =IFERROR(VLOOKUP(Table13[كود الموظف],Table1[[كود الموظف]:[إسم الموظف]],2,0),"") -> محمد حسن 3 | D32: 2021-11-07 | E32: =TEXT(Table13[[#This Row],[التاريخ]],"DDDD") -> الأحد | F32: 11 | G32: =IF(Table13[[#This Row],[التاريخ]]="","",YEAR(Table13[[#This Row],[التاريخ]])) -> 2021 | H32: 08:01:29 | I32: 16:29:10 | J32: =IFERROR(TIME(HOUR(I32-H32),MINUTE(I32-H32),0),0) -> 08:27:00 | K32: =(J32-INT(J32))*24 -> 8.45 | L32: =(IF(K32<$M$1,$M$1-K32,"---")) -> 0.05 | M32: =IF(K32>$M$1,K32-$M$1,"---") -> --- | V32: =IFERROR(IF(Table13[[#This Row],[إضافي]]>$O$1,Table13[[#This Row],[إضافي]]-Table13[[#This Row],[إضافي ليلي]],0),"") ->  | W32: =IFERROR(IF(Table13[[#This Row],[إضافي]]>$N$1,Table13[[#This Row],[إضافي]]-$N$1,0),"") ->  | Z32: =IF(Table13[[#This Row],[موقف تأخير]]<=0.5,"0",Table13[[#This Row],[موقف تأخير]]) -> 0 | AC32: =VLOOKUP(Table13[كود الموظف],Table1[[كود الموظف]:[تاريخ التعيين]],3,0) -> 2021-11-03 | AD32: =VLOOKUP(Table13[كود الموظف],'بيانات الموظفين'!A:I,12,0) ->  | AE32: =IFERROR(DATEDIF($AC$1,Table13[[#This Row],[تاريخ التعيين]],"D"),"") ->  | AF32: =Table13[[#This Row],[sal]]/30 ->  | AG32: =VLOOKUP(Table13[كود الموظف],Table1[[كود الموظف]:[القسم]],5,0) -> حسابات | AH32: =VLOOKUP(Table13[كود الموظف],#REF!,23,0) ->  | AI32: =IFERROR(VLOOKUP(Table13[كود الموظف],#REF!,7,0),0) -> 0 | AJ32: =IFERROR(Table13[[#This Row],[الرصيد القديم]]-(COUNTIFS('يومية الحضور والإنصراف'!$B$4:$B$35796,$B32,'يومية الحضور والإنصراف'!$H$4:$H$35796,"أجازة")+((COUNTIFS('يومية الحضور والإنصراف'!$B$4:$B$35796,$B32,'يومية الحضور والإنصراف'!$H$4:$H$35796,"أجازة نصف يوم سنوي")+COUNTIFS('يومية الحضور والإنصراف'!$B$4:$B$35796,$B32,'يومية الحضور والإنصراف'!$I$4:$I$35796,"أجازة نصف يوم سنوي"))/2)),0) -> -1
A33: =Table13[[#This Row],[كود الموظف]]&Table13[[#This Row],[شهر]] -> 20211 | B33: 202 | C33: =IFERROR(VLOOKUP(Table13[كود الموظف],Table1[[كود الموظف]:[إسم الموظف]],2,0),"") -> محمد حسن 3 | D33: 2021-11-08 | E33: =TEXT(Table13[[#This Row],[التاريخ]],"DDDD") -> الإثنين | F33: 11 | G33: =IF(Table13[[#This Row],[التاريخ]]="","",YEAR(Table13[[#This Row],[التاريخ]])) -> 2021 | H33: 08:03:48 | I33: 16:27:58 | J33: =IFERROR(TIME(HOUR(I33-H33),MINUTE(I33-H33),0),0) -> 08:24:00 | K33: =(J33-INT(J33))*24 -> 8.4 | L33: =(IF(K33<$M$1,$M$1-K33,"---")) -> 0.1 | M33: =IF(K33>$M$1,K33-$M$1,"---") -> --- | V33: =IFERROR(IF(Table13[[#This Row],[إضافي]]>$O$1,Table13[[#This Row],[إضافي]]-Table13[[#This Row],[إضافي ليلي]],0),"") ->  | W33: =IFERROR(IF(Table13[[#This Row],[إضافي]]>$N$1,Table13[[#This Row],[إضافي]]-$N$1,0),"") ->  | Z33: =IF(Table13[[#This Row],[موقف تأخير]]<=0.5,"0",Table13[[#This Row],[موقف تأخير]]) -> 0 | AC33: =VLOOKUP(Table13[كود الموظف],Table1[[كود الموظف]:[تاريخ التعيين]],3,0) -> 2021-11-03 | AD33: =VLOOKUP(Table13[كود الموظف],'بيانات الموظفين'!A:I,12,0) ->  | AE33: =IFERROR(DATEDIF($AC$1,Table13[[#This Row],[تاريخ التعيين]],"D"),"") ->  | AF33: =Table13[[#This Row],[sal]]/30 ->  | AG33: =VLOOKUP(Table13[كود الموظف],Table1[[كود الموظف]:[القسم]],5,0) -> حسابات | AH33: =VLOOKUP(Table13[كود الموظف],#REF!,23,0) ->  | AI33: =IFERROR(VLOOKUP(Table13[كود الموظف],#REF!,7,0),0) -> 0 | AJ33: =IFERROR(Table13[[#This Row],[الرصيد القديم]]-(COUNTIFS('يومية الحضور والإنصراف'!$B$4:$B$35796,$B33,'يومية الحضور والإنصراف'!$H$4:$H$35796,"أجازة")+((COUNTIFS('يومية الحضور والإنصراف'!$B$4:$B$35796,$B33,'يومية الحضور والإنصراف'!$H$4:$H$35796,"أجازة نصف يوم سنوي")+COUNTIFS('يومية الحضور والإنصراف'!$B$4:$B$35796,$B33,'يومية الحضور والإنصراف'!$I$4:$I$35796,"أجازة نصف يوم سنوي"))/2)),0) -> -1
A34: =Table13[[#This Row],[كود الموظف]]&Table13[[#This Row],[شهر]] -> 20311 | B34: 203 | C34: =IFERROR(VLOOKUP(Table13[كود الموظف],Table1[[كود الموظف]:[إسم الموظف]],2,0),"") -> محمد حسن 4 | D34: 2021-10-26 | E34: =TEXT(Table13[[#This Row],[التاريخ]],"DDDD") -> الثلاثاء | F34: 11 | G34: =IF(Table13[[#This Row],[التاريخ]]="","",YEAR(Table13[[#This Row],[التاريخ]])) -> 2021 | H34: 07:55:00 | I34: 16:24:08 | J34: =IFERROR(TIME(HOUR(I34-H34),MINUTE(I34-H34),0),0) -> 08:29:00 | K34: =(J34-INT(J34))*24 -> 8.483333333 | L34: =(IF(K34<$M$1,$M$1-K34,"---")) -> 0.01666666667 | M34: =IF(K34>$M$1,K34-$M$1,"---") -> --- | V34: =IFERROR(IF(Table13[[#This Row],[إضافي]]>$O$1,Table13[[#This Row],[إضافي]]-Table13[[#This Row],[إضافي ليلي]],0),"") ->  | W34: =IFERROR(IF(Table13[[#This Row],[إضافي]]>$N$1,Table13[[#This Row],[إضافي]]-$N$1,0),"") ->  | Z34: =IF(Table13[[#This Row],[موقف تأخير]]<=0.5,"0",Table13[[#This Row],[موقف تأخير]]) -> 0 | AC34: =VLOOKUP(Table13[كود الموظف],Table1[[كود الموظف]:[تاريخ التعيين]],3,0) -> 2020-01-01 | AD34: =VLOOKUP(Table13[كود الموظف],'بيانات الموظفين'!A:I,12,0) ->  | AE34: =IFERROR(DATEDIF($AC$1,Table13[[#This Row],[تاريخ التعيين]],"D"),"") ->  | AF34: =Table13[[#This Row],[sal]]/30 ->  | AG34: =VLOOKUP(Table13[كود الموظف],Table1[[كود الموظف]:[القسم]],5,0) -> حسابات | AH34: =VLOOKUP(Table13[كود الموظف],#REF!,23,0) ->  | AI34: =IFERROR(VLOOKUP(Table13[كود الموظف],#REF!,7,0),0) -> 0 | AJ34: =IFERROR(Table13[[#This Row],[الرصيد القديم]]-(COUNTIFS('يومية الحضور والإنصراف'!$B$4:$B$35796,$B34,'يومية الحضور والإنصراف'!$H$4:$H$35796,"أجازة")+((COUNTIFS('يومية الحضور والإنصراف'!$B$4:$B$35796,$B34,'يومية الحضور والإنصراف'!$H$4:$H$35796,"أجازة نصف يوم سنوي")+COUNTIFS('يومية الحضور والإنصراف'!$B$4:$B$35796,$B34,'يومية الحضور والإنصراف'!$I$4:$I$35796,"أجازة نصف يوم سنوي"))/2)),0) -> 0
A35: =Table13[[#This Row],[كود الموظف]]&Table13[[#This Row],[شهر]] -> 20311 | B35: 203 | C35: =IFERROR(VLOOKUP(Table13[كود الموظف],Table1[[كود الموظف]:[إسم الموظف]],2,0),"") -> محمد حسن 4 | D35: 2021-11-07 | E35: =TEXT(Table13[[#This Row],[التاريخ]],"DDDD") -> الأحد | F35: 11 | G35: =IF(Table13[[#This Row],[التاريخ]]="","",YEAR(Table13[[#This Row],[التاريخ]])) -> 2021 | H35: 07:55:00 | I35: 16:29:06 | J35: =IFERROR(TIME(HOUR(I35-H35),MINUTE(I35-H35),0),0) -> 08:34:00 | K35: =(J35-INT(J35))*24 -> 8.566666667 | L35: =(IF(K35<$M$1,$M$1-K35,"---")) -> --- | M35: =IF(K35>$M$1,K35-$M$1,"---") -> 0.06666666667 | V35: =IFERROR(IF(Table13[[#This Row],[إضافي]]>$O$1,Table13[[#This Row],[إضافي]]-Table13[[#This Row],[إضافي ليلي]],0),"") -> 0 | W35: =IFERROR(IF(Table13[[#This Row],[إضافي]]>$N$1,Table13[[#This Row],[إضافي]]-$N$1,0),"") -> 0 | Z35: =IF(Table13[[#This Row],[موقف تأخير]]<=0.5,"0",Table13[[#This Row],[موقف تأخير]]) -> --- | AC35: =VLOOKUP(Table13[كود الموظف],Table1[[كود الموظف]:[تاريخ التعيين]],3,0) -> 2020-01-01 | AD35: =VLOOKUP(Table13[كود الموظف],'بيانات الموظفين'!A:I,12,0) ->  | AE35: =IFERROR(DATEDIF($AC$1,Table13[[#This Row],[تاريخ التعيين]],"D"),"") ->  | AF35: =Table13[[#This Row],[sal]]/30 ->  | AG35: =VLOOKUP(Table13[كود الموظف],Table1[[كود الموظف]:[القسم]],5,0) -> حسابات | AH35: =VLOOKUP(Table13[كود الموظف],#REF!,23,0) ->  | AI35: =IFERROR(VLOOKUP(Table13[كود الموظف],#REF!,7,0),0) -> 0 | AJ35: =IFERROR(Table13[[#This Row],[الرصيد القديم]]-(COUNTIFS('يومية الحضور والإنصراف'!$B$4:$B$35796,$B35,'يومية الحضور والإنصراف'!$H$4:$H$35796,"أجازة")+((COUNTIFS('يومية الحضور والإنصراف'!$B$4:$B$35796,$B35,'يومية الحضور والإنصراف'!$H$4:$H$35796,"أجازة نصف يوم سنوي")+COUNTIFS('يومية الحضور والإنصراف'!$B$4:$B$35796,$B35,'يومية الحضور والإنصراف'!$I$4:$I$35796,"أجازة نصف يوم سنوي"))/2)),0) -> 0
A36: =Table13[[#This Row],[كود الموظف]]&Table13[[#This Row],[شهر]] -> 20311 | B36: 203 | C36: =IFERROR(VLOOKUP(Table13[كود الموظف],Table1[[كود الموظف]:[إسم الموظف]],2,0),"") -> محمد حسن 4 | D36: 2021-11-07 | E36: =TEXT(Table13[[#This Row],[التاريخ]],"DDDD") -> الأحد | F36: 11 | G36: =IF(Table13[[#This Row],[التاريخ]]="","",YEAR(Table13[[#This Row],[التاريخ]])) -> 2021 | H36: 07:55:00 | I36: 23:50:59 | J36: =IFERROR(TIME(HOUR(I36-H36),MINUTE(I36-H36),0),0) -> 15:55:00 | K36: =(J36-INT(J36))*24 -> 15.91666667 | L36: =(IF(K36<$M$1,$M$1-K36,"---")) -> --- | M36: =IF(K36>$M$1,K36-$M$1,"---") -> 7.416666667 | V36: =IFERROR(IF(Table13[[#This Row],[إضافي]]>$O$1,Table13[[#This Row],[إضافي]]-Table13[[#This Row],[إضافي ليلي]],0),"") -> 2 | W36: =IFERROR(IF(Table13[[#This Row],[إضافي]]>$N$1,Table13[[#This Row],[إضافي]]-$N$1,0),"") -> 5.416666667 | Z36: =IF(Table13[[#This Row],[موقف تأخير]]<=0.5,"0",Table13[[#This Row],[موقف تأخير]]) -> --- | AC36: =VLOOKUP(Table13[كود الموظف],Table1[[كود الموظف]:[تاريخ التعيين]],3,0) -> 2020-01-01 | AD36: =VLOOKUP(Table13[كود الموظف],'بيانات الموظفين'!A:I,12,0) ->  | AE36: =IFERROR(DATEDIF($AC$1,Table13[[#This Row],[تاريخ التعيين]],"D"),"") ->  | AF36: =Table13[[#This Row],[sal]]/30 ->  | AG36: =VLOOKUP(Table13[كود الموظف],Table1[[كود الموظف]:[القسم]],5,0) -> حسابات | AH36: =VLOOKUP(Table13[كود الموظف],#REF!,23,0) ->  | AI36: =IFERROR(VLOOKUP(Table13[كود الموظف],#REF!,7,0),0) -> 0 | AJ36: =IFERROR(Table13[[#This Row],[الرصيد القديم]]-(COUNTIFS('يومية الحضور والإنصراف'!$B$4:$B$35796,$B36,'يومية الحضور والإنصراف'!$H$4:$H$35796,"أجازة")+((COUNTIFS('يومية الحضور والإنصراف'!$B$4:$B$35796,$B36,'يومية الحضور والإنصراف'!$H$4:$H$35796,"أجازة نصف يوم سنوي")+COUNTIFS('يومية الحضور والإنصراف'!$B$4:$B$35796,$B36,'يومية الحضور والإنصراف'!$I$4:$I$35796,"أجازة نصف يوم سنوي"))/2)),0) -> 0
A37: =Table13[[#This Row],[كود الموظف]]&Table13[[#This Row],[شهر]] -> 20311 | B37: 203 | C37: =IFERROR(VLOOKUP(Table13[كود الموظف],Table1[[كود الموظف]:[إسم الموظف]],2,0),"") -> محمد حسن 4 | D37: 2021-11-07 | E37: =TEXT(Table13[[#This Row],[التاريخ]],"DDDD") -> الأحد | F37: 11 | G37: =IF(Table13[[#This Row],[التاريخ]]="","",YEAR(Table13[[#This Row],[التاريخ]])) -> 2021 | H37: 07:52:38 | I37: 16:30:09 | J37: =IFERROR(TIME(HOUR(I37-H37),MINUTE(I37-H37),0),0) -> 08:37:00 | K37: =(J37-INT(J37))*24 -> 8.616666667 | L37: =(IF(K37<$M$1,$M$1-K37,"---")) -> --- | M37: =IF(K37>$M$1,K37-$M$1,"---") -> 0.1166666667 | V37: =IFERROR(IF(Table13[[#This Row],[إضافي]]>$O$1,Table13[[#This Row],[إضافي]]-Table13[[#This Row],[إضافي ليلي]],0),"") -> 0 | W37: =IFERROR(IF(Table13[[#This Row],[إضافي]]>$N$1,Table13[[#This Row],[إضافي]]-$N$1,0),"") -> 0 | Z37: =IF(Table13[[#This Row],[موقف تأخير]]<=0.5,"0",Table13[[#This Row],[موقف تأخير]]) -> --- | AC37: =VLOOKUP(Table13[كود الموظف],Table1[[كود الموظف]:[تاريخ التعيين]],3,0) -> 2020-01-01 | AD37: =VLOOKUP(Table13[كود الموظف],'بيانات الموظفين'!A:I,12,0) ->  | AE37: =IFERROR(DATEDIF($AC$1,Table13[[#This Row],[تاريخ التعيين]],"D"),"") ->  | AF37: =Table13[[#This Row],[sal]]/30 ->  | AG37: =VLOOKUP(Table13[كود الموظف],Table1[[كود الموظف]:[القسم]],5,0) -> حسابات | AH37: =VLOOKUP(Table13[كود الموظف],#REF!,23,0) ->  | AI37: =IFERROR(VLOOKUP(Table13[كود الموظف],#REF!,7,0),0) -> 0 | AJ37: =IFERROR(Table13[[#This Row],[الرصيد القديم]]-(COUNTIFS('يومية الحضور والإنصراف'!$B$4:$B$35796,$B37,'يومية الحضور والإنصراف'!$H$4:$H$35796,"أجازة")+((COUNTIFS('يومية الحضور والإنصراف'!$B$4:$B$35796,$B37,'يومية الحضور والإنصراف'!$H$4:$H$35796,"أجازة نصف يوم سنوي")+COUNTIFS('يومية الحضور والإنصراف'!$B$4:$B$35796,$B37,'يومية الحضور والإنصراف'!$I$4:$I$35796,"أجازة نصف يوم سنوي"))/2)),0) -> 0
A38: =Table13[[#This Row],[كود الموظف]]&Table13[[#This Row],[شهر]] -> 20311 | B38: 203 | C38: =IFERROR(VLOOKUP(Table13[كود الموظف],Table1[[كود الموظف]:[إسم الموظف]],2,0),"") -> محمد حسن 4 | D38: 2021-11-07 | E38: =TEXT(Table13[[#This Row],[التاريخ]],"DDDD") -> الأحد | F38: 11 | G38: =IF(Table13[[#This Row],[التاريخ]]="","",YEAR(Table13[[#This Row],[التاريخ]])) -> 2021 | H38: 08:07:29 | I38: 16:37:11 | J38: =IFERROR(TIME(HOUR(I38-H38),MINUTE(I38-H38),0),0) -> 08:29:00 | K38: =(J38-INT(J38))*24 -> 8.483333333 | L38: =(IF(K38<$M$1,$M$1-K38,"---")) -> 0.01666666667 | M38: =IF(K38>$M$1,K38-$M$1,"---") -> --- | V38: =IFERROR(IF(Table13[[#This Row],[إضافي]]>$O$1,Table13[[#This Row],[إضافي]]-Table13[[#This Row],[إضافي ليلي]],0),"") ->  | W38: =IFERROR(IF(Table13[[#This Row],[إضافي]]>$N$1,Table13[[#This Row],[إضافي]]-$N$1,0),"") ->  | Z38: =IF(Table13[[#This Row],[موقف تأخير]]<=0.5,"0",Table13[[#This Row],[موقف تأخير]]) -> 0 | AC38: =VLOOKUP(Table13[كود الموظف],Table1[[كود الموظف]:[تاريخ التعيين]],3,0) -> 2020-01-01 | AD38: =VLOOKUP(Table13[كود الموظف],'بيانات الموظفين'!A:I,12,0) ->  | AE38: =IFERROR(DATEDIF($AC$1,Table13[[#This Row],[تاريخ التعيين]],"D"),"") ->  | AF38: =Table13[[#This Row],[sal]]/30 ->  | AG38: =VLOOKUP(Table13[كود الموظف],Table1[[كود الموظف]:[القسم]],5,0) -> حسابات | AH38: =VLOOKUP(Table13[كود الموظف],#REF!,23,0) ->  | AI38: =IFERROR(VLOOKUP(Table13[كود الموظف],#REF!,7,0),0) -> 0 | AJ38: =IFERROR(Table13[[#This Row],[الرصيد القديم]]-(COUNTIFS('يومية الحضور والإنصراف'!$B$4:$B$35796,$B38,'يومية الحضور والإنصراف'!$H$4:$H$35796,"أجازة")+((COUNTIFS('يومية الحضور والإنصراف'!$B$4:$B$35796,$B38,'يومية الحضور والإنصراف'!$H$4:$H$35796,"أجازة نصف يوم سنوي")+COUNTIFS('يومية الحضور والإنصراف'!$B$4:$B$35796,$B38,'يومية الحضور والإنصراف'!$I$4:$I$35796,"أجازة نصف يوم سنوي"))/2)),0) -> 0
A39: =Table13[[#This Row],[كود الموظف]]&Table13[[#This Row],[شهر]] -> 20311 | B39: 203 | C39: =IFERROR(VLOOKUP(Table13[كود الموظف],Table1[[كود الموظف]:[إسم الموظف]],2,0),"") -> محمد حسن 4 | D39: 2021-11-07 | E39: =TEXT(Table13[[#This Row],[التاريخ]],"DDDD") -> الأحد | F39: 11 | G39: =IF(Table13[[#This Row],[التاريخ]]="","",YEAR(Table13[[#This Row],[التاريخ]])) -> 2021 | H39: 07:58:00 | I39: 16:31:57 | J39: =IFERROR(TIME(HOUR(I39-H39),MINUTE(I39-H39),0),0) -> 08:33:00 | K39: =(J39-INT(J39))*24 -> 8.55 | L39: =(IF(K39<$M$1,$M$1-K39,"---")) -> --- | M39: =IF(K39>$M$1,K39-$M$1,"---") -> 0.05 | V39: =IFERROR(IF(Table13[[#This Row],[إضافي]]>$O$1,Table13[[#This Row],[إضافي]]-Table13[[#This Row],[إضافي ليلي]],0),"") -> 0 | W39: =IFERROR(IF(Table13[[#This Row],[إضافي]]>$N$1,Table13[[#This Row],[إضافي]]-$N$1,0),"") -> 0 | Z39: =IF(Table13[[#This Row],[موقف تأخير]]<=0.5,"0",Table13[[#This Row],[موقف تأخير]]) -> --- | AC39: =VLOOKUP(Table13[كود الموظف],Table1[[كود الموظف]:[تاريخ التعيين]],3,0) -> 2020-01-01 | AD39: =VLOOKUP(Table13[كود الموظف],'بيانات الموظفين'!A:I,12,0) ->  | AE39: =IFERROR(DATEDIF($AC$1,Table13[[#This Row],[تاريخ التعيين]],"D"),"") ->  | AF39: =Table13[[#This Row],[sal]]/30 ->  | AG39: =VLOOKUP(Table13[كود الموظف],Table1[[كود الموظف]:[القسم]],5,0) -> حسابات | AH39: =VLOOKUP(Table13[كود الموظف],#REF!,23,0) ->  | AI39: =IFERROR(VLOOKUP(Table13[كود الموظف],#REF!,7,0),0) -> 0 | AJ39: =IFERROR(Table13[[#This Row],[الرصيد القديم]]-(COUNTIFS('يومية الحضور والإنصراف'!$B$4:$B$35796,$B39,'يومية الحضور والإنصراف'!$H$4:$H$35796,"أجازة")+((COUNTIFS('يومية الحضور والإنصراف'!$B$4:$B$35796,$B39,'يومية الحضور والإنصراف'!$H$4:$H$35796,"أجازة نصف يوم سنوي")+COUNTIFS('يومية الحضور والإنصراف'!$B$4:$B$35796,$B39,'يومية الحضور والإنصراف'!$I$4:$I$35796,"أجازة نصف يوم سنوي"))/2)),0) -> 0
A40: =Table13[[#This Row],[كود الموظف]]&Table13[[#This Row],[شهر]] -> 20311 | B40: 203 | C40: =IFERROR(VLOOKUP(Table13[كود الموظف],Table1[[كود الموظف]:[إسم الموظف]],2,0),"") -> محمد حسن 4 | D40: 2021-11-07 | E40: =TEXT(Table13[[#This Row],[التاريخ]],"DDDD") -> الأحد | F40: 11 | G40: =IF(Table13[[#This Row],[التاريخ]]="","",YEAR(Table13[[#This Row],[التاريخ]])) -> 2021 | H40: 07:56:48 | I40: 16:30:10 | J40: =IFERROR(TIME(HOUR(I40-H40),MINUTE(I40-H40),0),0) -> 08:33:00 | K40: =(J40-INT(J40))*24 -> 8.55 | L40: =(IF(K40<$M$1,$M$1-K40,"---")) -> --- | M40: =IF(K40>$M$1,K40-$M$1,"---") -> 0.05 | V40: =IFERROR(IF(Table13[[#This Row],[إضافي]]>$O$1,Table13[[#This Row],[إضافي]]-Table13[[#This Row],[إضافي ليلي]],0),"") -> 0 | W40: =IFERROR(IF(Table13[[#This Row],[إضافي]]>$N$1,Table13[[#This Row],[إضافي]]-$N$1,0),"") -> 0 | Z40: =IF(Table13[[#This Row],[موقف تأخير]]<=0.5,"0",Table13[[#This Row],[موقف تأخير]]) -> --- | AC40: =VLOOKUP(Table13[كود الموظف],Table1[[كود الموظف]:[تاريخ التعيين]],3,0) -> 2020-01-01 | AD40: =VLOOKUP(Table13[كود الموظف],'بيانات الموظفين'!A:I,12,0) ->  | AE40: =IFERROR(DATEDIF($AC$1,Table13[[#This Row],[تاريخ التعيين]],"D"),"") ->  | AF40: =Table13[[#This Row],[sal]]/30 ->  | AG40: =VLOOKUP(Table13[كود الموظف],Table1[[كود الموظف]:[القسم]],5,0) -> حسابات | AH40: =VLOOKUP(Table13[كود الموظف],#REF!,23,0) ->  | AI40: =IFERROR(VLOOKUP(Table13[كود الموظف],#REF!,7,0),0) -> 0 | AJ40: =IFERROR(Table13[[#This Row],[الرصيد القديم]]-(COUNTIFS('يومية الحضور والإنصراف'!$B$4:$B$35796,$B40,'يومية الحضور والإنصراف'!$H$4:$H$35796,"أجازة")+((COUNTIFS('يومية الحضور والإنصراف'!$B$4:$B$35796,$B40,'يومية الحضور والإنصراف'!$H$4:$H$35796,"أجازة نصف يوم سنوي")+COUNTIFS('يومية الحضور والإنصراف'!$B$4:$B$35796,$B40,'يومية الحضور والإنصراف'!$I$4:$I$35796,"أجازة نصف يوم سنوي"))/2)),0) -> 0
A41: =Table13[[#This Row],[كود الموظف]]&Table13[[#This Row],[شهر]] -> 20311 | B41: 203 | C41: =IFERROR(VLOOKUP(Table13[كود الموظف],Table1[[كود الموظف]:[إسم الموظف]],2,0),"") -> محمد حسن 4 | D41: 2021-11-07 | E41: =TEXT(Table13[[#This Row],[التاريخ]],"DDDD") -> الأحد | F41: 11 | G41: =IF(Table13[[#This Row],[التاريخ]]="","",YEAR(Table13[[#This Row],[التاريخ]])) -> 2021 | H41: 08:01:15 | I41: 16:30:36 | J41: =IFERROR(TIME(HOUR(I41-H41),MINUTE(I41-H41),0),0) -> 08:29:00 | K41: =(J41-INT(J41))*24 -> 8.483333333 | L41: =(IF(K41<$M$1,$M$1-K41,"---")) -> 0.01666666667 | M41: =IF(K41>$M$1,K41-$M$1,"---") -> --- | V41: =IFERROR(IF(Table13[[#This Row],[إضافي]]>$O$1,Table13[[#This Row],[إضافي]]-Table13[[#This Row],[إضافي ليلي]],0),"") ->  | W41: =IFERROR(IF(Table13[[#This Row],[إضافي]]>$N$1,Table13[[#This Row],[إضافي]]-$N$1,0),"") ->  | Z41: =IF(Table13[[#This Row],[موقف تأخير]]<=0.5,"0",Table13[[#This Row],[موقف تأخير]]) -> 0 | AC41: =VLOOKUP(Table13[كود الموظف],Table1[[كود الموظف]:[تاريخ التعيين]],3,0) -> 2020-01-01 | AD41: =VLOOKUP(Table13[كود الموظف],'بيانات الموظفين'!A:I,12,0) ->  | AE41: =IFERROR(DATEDIF($AC$1,Table13[[#This Row],[تاريخ التعيين]],"D"),"") ->  | AF41: =Table13[[#This Row],[sal]]/30 ->  | AG41: =VLOOKUP(Table13[كود الموظف],Table1[[كود الموظف]:[القسم]],5,0) -> حسابات | AH41: =VLOOKUP(Table13[كود الموظف],#REF!,23,0) ->  | AI41: =IFERROR(VLOOKUP(Table13[كود الموظف],#REF!,7,0),0) -> 0 | AJ41: =IFERROR(Table13[[#This Row],[الرصيد القديم]]-(COUNTIFS('يومية الحضور والإنصراف'!$B$4:$B$35796,$B41,'يومية الحضور والإنصراف'!$H$4:$H$35796,"أجازة")+((COUNTIFS('يومية الحضور والإنصراف'!$B$4:$B$35796,$B41,'يومية الحضور والإنصراف'!$H$4:$H$35796,"أجازة نصف يوم سنوي")+COUNTIFS('يومية الحضور والإنصراف'!$B$4:$B$35796,$B41,'يومية الحضور والإنصراف'!$I$4:$I$35796,"أجازة نصف يوم سنوي"))/2)),0) -> 0
A42: =Table13[[#This Row],[كود الموظف]]&Table13[[#This Row],[شهر]] -> 20311 | B42: 203 | C42: =IFERROR(VLOOKUP(Table13[كود الموظف],Table1[[كود الموظف]:[إسم الموظف]],2,0),"") -> محمد حسن 4 | D42: 2021-11-08 | E42: =TEXT(Table13[[#This Row],[التاريخ]],"DDDD") -> الإثنين | F42: 11 | G42: =IF(Table13[[#This Row],[التاريخ]]="","",YEAR(Table13[[#This Row],[التاريخ]])) -> 2021 | H42: 08:04:30 | I42: 16:24:52 | J42: =IFERROR(TIME(HOUR(I42-H42),MINUTE(I42-H42),0),0) -> 08:20:00 | K42: =(J42-INT(J42))*24 -> 8.333333333 | L42: =(IF(K42<$M$1,$M$1-K42,"---")) -> 0.1666666667 | M42: =IF(K42>$M$1,K42-$M$1,"---") -> --- | V42: =IFERROR(IF(Table13[[#This Row],[إضافي]]>$O$1,Table13[[#This Row],[إضافي]]-Table13[[#This Row],[إضافي ليلي]],0),"") ->  | W42: =IFERROR(IF(Table13[[#This Row],[إضافي]]>$N$1,Table13[[#This Row],[إضافي]]-$N$1,0),"") ->  | Z42: =IF(Table13[[#This Row],[موقف تأخير]]<=0.5,"0",Table13[[#This Row],[موقف تأخير]]) -> 0 | AC42: =VLOOKUP(Table13[كود الموظف],Table1[[كود الموظف]:[تاريخ التعيين]],3,0) -> 2020-01-01 | AD42: =VLOOKUP(Table13[كود الموظف],'بيانات الموظفين'!A:I,12,0) ->  | AE42: =IFERROR(DATEDIF($AC$1,Table13[[#This Row],[تاريخ التعيين]],"D"),"") ->  | AF42: =Table13[[#This Row],[sal]]/30 ->  | AG42: =VLOOKUP(Table13[كود الموظف],Table1[[كود الموظف]:[القسم]],5,0) -> حسابات | AH42: =VLOOKUP(Table13[كود الموظف],#REF!,23,0) ->  | AI42: =IFERROR(VLOOKUP(Table13[كود الموظف],#REF!,7,0),0) -> 0 | AJ42: =IFERROR(Table13[[#This Row],[الرصيد القديم]]-(COUNTIFS('يومية الحضور والإنصراف'!$B$4:$B$35796,$B42,'يومية الحضور والإنصراف'!$H$4:$H$35796,"أجازة")+((COUNTIFS('يومية الحضور والإنصراف'!$B$4:$B$35796,$B42,'يومية الحضور والإنصراف'!$H$4:$H$35796,"أجازة نصف يوم سنوي")+COUNTIFS('يومية الحضور والإنصراف'!$B$4:$B$35796,$B42,'يومية الحضور والإنصراف'!$I$4:$I$35796,"أجازة نصف يوم سنوي"))/2)),0) -> 0
A43: =Table13[[#This Row],[كود الموظف]]&Table13[[#This Row],[شهر]] -> 20411 | B43: 204 | C43: =IFERROR(VLOOKUP(Table13[كود الموظف],Table1[[كود الموظف]:[إسم الموظف]],2,0),"") -> محمد حسن 5 | D43: 2021-10-26 | E43: =TEXT(Table13[[#This Row],[التاريخ]],"DDDD") -> الثلاثاء | F43: 11 | G43: =IF(Table13[[#This Row],[التاريخ]]="","",YEAR(Table13[[#This Row],[التاريخ]])) -> 2021 | H43: 07:51:02 | I43: 16:25:50 | J43: =IFERROR(TIME(HOUR(I43-H43),MINUTE(I43-H43),0),0) -> 08:34:00 | K43: =(J43-INT(J43))*24 -> 8.566666667 | L43: =(IF(K43<$M$1,$M$1-K43,"---")) -> --- | M43: =IF(K43>$M$1,K43-$M$1,"---") -> 0.06666666667 | V43: =IFERROR(IF(Table13[[#This Row],[إضافي]]>$O$1,Table13[[#This Row],[إضافي]]-Table13[[#This Row],[إضافي ليلي]],0),"") -> 0 | W43: =IFERROR(IF(Table13[[#This Row],[إضافي]]>$N$1,Table13[[#This Row],[إضافي]]-$N$1,0),"") -> 0 | Z43: =IF(Table13[[#This Row],[موقف تأخير]]<=0.5,"0",Table13[[#This Row],[موقف تأخير]]) -> --- | AC43: =VLOOKUP(Table13[كود الموظف],Table1[[كود الموظف]:[تاريخ التعيين]],3,0) -> 2020-01-01 | AD43: =VLOOKUP(Table13[كود الموظف],'بيانات الموظفين'!A:I,12,0) ->  | AE43: =IFERROR(DATEDIF($AC$1,Table13[[#This Row],[تاريخ التعيين]],"D"),"") ->  | AF43: =Table13[[#This Row],[sal]]/30 ->  | AG43: =VLOOKUP(Table13[كود الموظف],Table1[[كود الموظف]:[القسم]],5,0) -> حسابات | AH43: =VLOOKUP(Table13[كود الموظف],#REF!,23,0) ->  | AI43: =IFERROR(VLOOKUP(Table13[كود الموظف],#REF!,7,0),0) -> 0 | AJ43: =IFERROR(Table13[[#This Row],[الرصيد القديم]]-(COUNTIFS('يومية الحضور والإنصراف'!$B$4:$B$35796,$B43,'يومية الحضور والإنصراف'!$H$4:$H$35796,"أجازة")+((COUNTIFS('يومية الحضور والإنصراف'!$B$4:$B$35796,$B43,'يومية الحضور والإنصراف'!$H$4:$H$35796,"أجازة نصف يوم سنوي")+COUNTIFS('يومية الحضور والإنصراف'!$B$4:$B$35796,$B43,'يومية الحضور والإنصراف'!$I$4:$I$35796,"أجازة نصف يوم سنوي"))/2)),0) -> 0
A44: =Table13[[#This Row],[كود الموظف]]&Table13[[#This Row],[شهر]] -> 20411 | B44: 204 | C44: =IFERROR(VLOOKUP(Table13[كود الموظف],Table1[[كود الموظف]:[إسم الموظف]],2,0),"") -> محمد حسن 5 | D44: 2021-11-07 | E44: =TEXT(Table13[[#This Row],[التاريخ]],"DDDD") -> الأحد | F44: 11 | G44: =IF(Table13[[#This Row],[التاريخ]]="","",YEAR(Table13[[#This Row],[التاريخ]])) -> 2021 | H44: 08:04:05 | I44: 16:11:57 | J44: =IFERROR(TIME(HOUR(I44-H44),MINUTE(I44-H44),0),0) -> 08:07:00 | K44: =(J44-INT(J44))*24 -> 8.116666667 | L44: =(IF(K44<$M$1,$M$1-K44,"---")) -> 0.3833333333 | M44: =IF(K44>$M$1,K44-$M$1,"---") -> --- | V44: =IFERROR(IF(Table13[[#This Row],[إضافي]]>$O$1,Table13[[#This Row],[إضافي]]-Table13[[#This Row],[إضافي ليلي]],0),"") ->  | W44: =IFERROR(IF(Table13[[#This Row],[إضافي]]>$N$1,Table13[[#This Row],[إضافي]]-$N$1,0),"") ->  | Z44: =IF(Table13[[#This Row],[موقف تأخير]]<=0.5,"0",Table13[[#This Row],[موقف تأخير]]) -> 0 | AC44: =VLOOKUP(Table13[كود الموظف],Table1[[كود الموظف]:[تاريخ التعيين]],3,0) -> 2020-01-01 | AD44: =VLOOKUP(Table13[كود الموظف],'بيانات الموظفين'!A:I,12,0) ->  | AE44: =IFERROR(DATEDIF($AC$1,Table13[[#This Row],[تاريخ التعيين]],"D"),"") ->  | AF44: =Table13[[#This Row],[sal]]/30 ->  | AG44: =VLOOKUP(Table13[كود الموظف],Table1[[كود الموظف]:[القسم]],5,0) -> حسابات | AH44: =VLOOKUP(Table13[كود الموظف],#REF!,23,0) ->  | AI44: =IFERROR(VLOOKUP(Table13[كود الموظف],#REF!,7,0),0) -> 0 | AJ44: =IFERROR(Table13[[#This Row],[الرصيد القديم]]-(COUNTIFS('يومية الحضور والإنصراف'!$B$4:$B$35796,$B44,'يومية الحضور والإنصراف'!$H$4:$H$35796,"أجازة")+((COUNTIFS('يومية الحضور والإنصراف'!$B$4:$B$35796,$B44,'يومية الحضور والإنصراف'!$H$4:$H$35796,"أجازة نصف يوم سنوي")+COUNTIFS('يومية الحضور والإنصراف'!$B$4:$B$35796,$B44,'يومية الحضور والإنصراف'!$I$4:$I$35796,"أجازة نصف يوم سنوي"))/2)),0) -> 0
A45: =Table13[[#This Row],[كود الموظف]]&Table13[[#This Row],[شهر]] -> 20411 | B45: 204 | C45: =IFERROR(VLOOKUP(Table13[كود الموظف],Table1[[كود الموظف]:[إسم الموظف]],2,0),"") -> محمد حسن 5 | D45: 2021-11-07 | E45: =TEXT(Table13[[#This Row],[التاريخ]],"DDDD") -> الأحد | F45: 11 | G45: =IF(Table13[[#This Row],[التاريخ]]="","",YEAR(Table13[[#This Row],[التاريخ]])) -> 2021 | H45: 07:54:54 | I45: 16:29:28 | J45: =IFERROR(TIME(HOUR(I45-H45),MINUTE(I45-H45),0),0) -> 08:34:00 | K45: =(J45-INT(J45))*24 -> 8.566666667 | L45: =(IF(K45<$M$1,$M$1-K45,"---")) -> --- | M45: =IF(K45>$M$1,K45-$M$1,"---") -> 0.06666666667 | V45: =IFERROR(IF(Table13[[#This Row],[إضافي]]>$O$1,Table13[[#This Row],[إضافي]]-Table13[[#This Row],[إضافي ليلي]],0),"") -> 0 | W45: =IFERROR(IF(Table13[[#This Row],[إضافي]]>$N$1,Table13[[#This Row],[إضافي]]-$N$1,0),"") -> 0 | Z45: =IF(Table13[[#This Row],[موقف تأخير]]<=0.5,"0",Table13[[#This Row],[موقف تأخير]]) -> --- | AC45: =VLOOKUP(Table13[كود الموظف],Table1[[كود الموظف]:[تاريخ التعيين]],3,0) -> 2020-01-01 | AD45: =VLOOKUP(Table13[كود الموظف],'بيانات الموظفين'!A:I,12,0) ->  | AE45: =IFERROR(DATEDIF($AC$1,Table13[[#This Row],[تاريخ التعيين]],"D"),"") ->  | AF45: =Table13[[#This Row],[sal]]/30 ->  | AG45: =VLOOKUP(Table13[كود الموظف],Table1[[كود الموظف]:[القسم]],5,0) -> حسابات | AH45: =VLOOKUP(Table13[كود الموظف],#REF!,23,0) ->  | AI45: =IFERROR(VLOOKUP(Table13[كود الموظف],#REF!,7,0),0) -> 0 | AJ45: =IFERROR(Table13[[#This Row],[الرصيد القديم]]-(COUNTIFS('يومية الحضور والإنصراف'!$B$4:$B$35796,$B45,'يومية الحضور والإنصراف'!$H$4:$H$35796,"أجازة")+((COUNTIFS('يومية الحضور والإنصراف'!$B$4:$B$35796,$B45,'يومية الحضور والإنصراف'!$H$4:$H$35796,"أجازة نصف يوم سنوي")+COUNTIFS('يومية الحضور والإنصراف'!$B$4:$B$35796,$B45,'يومية الحضور والإنصراف'!$I$4:$I$35796,"أجازة نصف يوم سنوي"))/2)),0) -> 0
A46: =Table13[[#This Row],[كود الموظف]]&Table13[[#This Row],[شهر]] -> 20411 | B46: 204 | C46: =IFERROR(VLOOKUP(Table13[كود الموظف],Table1[[كود الموظف]:[إسم الموظف]],2,0),"") -> محمد حسن 5 | D46: 2021-11-07 | E46: =TEXT(Table13[[#This Row],[التاريخ]],"DDDD") -> الأحد | F46: 11 | G46: =IF(Table13[[#This Row],[التاريخ]]="","",YEAR(Table13[[#This Row],[التاريخ]])) -> 2021 | H46: 07:47:17 | I46: 16:23:41 | J46: =IFERROR(TIME(HOUR(I46-H46),MINUTE(I46-H46),0),0) -> 08:36:00 | K46: =(J46-INT(J46))*24 -> 8.6 | L46: =(IF(K46<$M$1,$M$1-K46,"---")) -> --- | M46: =IF(K46>$M$1,K46-$M$1,"---") -> 0.1 | V46: =IFERROR(IF(Table13[[#This Row],[إضافي]]>$O$1,Table13[[#This Row],[إضافي]]-Table13[[#This Row],[إضافي ليلي]],0),"") -> 0 | W46: =IFERROR(IF(Table13[[#This Row],[إضافي]]>$N$1,Table13[[#This Row],[إضافي]]-$N$1,0),"") -> 0 | Z46: =IF(Table13[[#This Row],[موقف تأخير]]<=0.5,"0",Table13[[#This Row],[موقف تأخير]]) -> --- | AC46: =VLOOKUP(Table13[كود الموظف],Table1[[كود الموظف]:[تاريخ التعيين]],3,0) -> 2020-01-01 | AD46: =VLOOKUP(Table13[كود الموظف],'بيانات الموظفين'!A:I,12,0) ->  | AE46: =IFERROR(DATEDIF($AC$1,Table13[[#This Row],[تاريخ التعيين]],"D"),"") ->  | AF46: =Table13[[#This Row],[sal]]/30 ->  | AG46: =VLOOKUP(Table13[كود الموظف],Table1[[كود الموظف]:[القسم]],5,0) -> حسابات | AH46: =VLOOKUP(Table13[كود الموظف],#REF!,23,0) ->  | AI46: =IFERROR(VLOOKUP(Table13[كود الموظف],#REF!,7,0),0) -> 0 | AJ46: =IFERROR(Table13[[#This Row],[الرصيد القديم]]-(COUNTIFS('يومية الحضور والإنصراف'!$B$4:$B$35796,$B46,'يومية الحضور والإنصراف'!$H$4:$H$35796,"أجازة")+((COUNTIFS('يومية الحضور والإنصراف'!$B$4:$B$35796,$B46,'يومية الحضور والإنصراف'!$H$4:$H$35796,"أجازة نصف يوم سنوي")+COUNTIFS('يومية الحضور والإنصراف'!$B$4:$B$35796,$B46,'يومية الحضور والإنصراف'!$I$4:$I$35796,"أجازة نصف يوم سنوي"))/2)),0) -> 0
A47: =Table13[[#This Row],[كود الموظف]]&Table13[[#This Row],[شهر]] -> 20411 | B47: 204 | C47: =IFERROR(VLOOKUP(Table13[كود الموظف],Table1[[كود الموظف]:[إسم الموظف]],2,0),"") -> محمد حسن 5 | D47: 2021-11-07 | E47: =TEXT(Table13[[#This Row],[التاريخ]],"DDDD") -> الأحد | F47: 11 | G47: =IF(Table13[[#This Row],[التاريخ]]="","",YEAR(Table13[[#This Row],[التاريخ]])) -> 2021 | H47: 08:00:36 | I47: 16:32:01 | J47: =IFERROR(TIME(HOUR(I47-H47),MINUTE(I47-H47),0),0) -> 08:31:00 | K47: =(J47-INT(J47))*24 -> 8.516666667 | L47: =(IF(K47<$M$1,$M$1-K47,"---")) -> --- | M47: =IF(K47>$M$1,K47-$M$1,"---") -> 0.01666666667 | V47: =IFERROR(IF(Table13[[#This Row],[إضافي]]>$O$1,Table13[[#This Row],[إضافي]]-Table13[[#This Row],[إضافي ليلي]],0),"") -> 0 | W47: =IFERROR(IF(Table13[[#This Row],[إضافي]]>$N$1,Table13[[#This Row],[إضافي]]-$N$1,0),"") -> 0 | Z47: =IF(Table13[[#This Row],[موقف تأخير]]<=0.5,"0",Table13[[#This Row],[موقف تأخير]]) -> --- | AC47: =VLOOKUP(Table13[كود الموظف],Table1[[كود الموظف]:[تاريخ التعيين]],3,0) -> 2020-01-01 | AD47: =VLOOKUP(Table13[كود الموظف],'بيانات الموظفين'!A:I,12,0) ->  | AE47: =IFERROR(DATEDIF($AC$1,Table13[[#This Row],[تاريخ التعيين]],"D"),"") ->  | AF47: =Table13[[#This Row],[sal]]/30 ->  | AG47: =VLOOKUP(Table13[كود الموظف],Table1[[كود الموظف]:[القسم]],5,0) -> حسابات | AH47: =VLOOKUP(Table13[كود الموظف],#REF!,23,0) ->  | AI47: =IFERROR(VLOOKUP(Table13[كود الموظف],#REF!,7,0),0) -> 0 | AJ47: =IFERROR(Table13[[#This Row],[الرصيد القديم]]-(COUNTIFS('يومية الحضور والإنصراف'!$B$4:$B$35796,$B47,'يومية الحضور والإنصراف'!$H$4:$H$35796,"أجازة")+((COUNTIFS('يومية الحضور والإنصراف'!$B$4:$B$35796,$B47,'يومية الحضور والإنصراف'!$H$4:$H$35796,"أجازة نصف يوم سنوي")+COUNTIFS('يومية الحضور والإنصراف'!$B$4:$B$35796,$B47,'يومية الحضور والإنصراف'!$I$4:$I$35796,"أجازة نصف يوم سنوي"))/2)),0) -> 0
A48: =Table13[[#This Row],[كود الموظف]]&Table13[[#This Row],[شهر]] -> 20411 | B48: 204 | C48: =IFERROR(VLOOKUP(Table13[كود الموظف],Table1[[كود الموظف]:[إسم الموظف]],2,0),"") -> محمد حسن 5 | D48: 2021-11-07 | E48: =TEXT(Table13[[#This Row],[التاريخ]],"DDDD") -> الأحد | F48: 11 | G48: =IF(Table13[[#This Row],[التاريخ]]="","",YEAR(Table13[[#This Row],[التاريخ]])) -> 2021 | H48: 07:55:00 | I48: 16:32:23 | J48: =IFERROR(TIME(HOUR(I48-H48),MINUTE(I48-H48),0),0) -> 08:37:00 | K48: =(J48-INT(J48))*24 -> 8.616666667 | L48: =(IF(K48<$M$1,$M$1-K48,"---")) -> --- | M48: =IF(K48>$M$1,K48-$M$1,"---") -> 0.1166666667 | V48: =IFERROR(IF(Table13[[#This Row],[إضافي]]>$O$1,Table13[[#This Row],[إضافي]]-Table13[[#This Row],[إضافي ليلي]],0),"") -> 0 | W48: =IFERROR(IF(Table13[[#This Row],[إضافي]]>$N$1,Table13[[#This Row],[إضافي]]-$N$1,0),"") -> 0 | Z48: =IF(Table13[[#This Row],[موقف تأخير]]<=0.5,"0",Table13[[#This Row],[موقف تأخير]]) -> --- | AC48: =VLOOKUP(Table13[كود الموظف],Table1[[كود الموظف]:[تاريخ التعيين]],3,0) -> 2020-01-01 | AD48: =VLOOKUP(Table13[كود الموظف],'بيانات الموظفين'!A:I,12,0) ->  | AE48: =IFERROR(DATEDIF($AC$1,Table13[[#This Row],[تاريخ التعيين]],"D"),"") ->  | AF48: =Table13[[#This Row],[sal]]/30 ->  | AG48: =VLOOKUP(Table13[كود الموظف],Table1[[كود الموظف]:[القسم]],5,0) -> حسابات | AH48: =VLOOKUP(Table13[كود الموظف],#REF!,23,0) ->  | AI48: =IFERROR(VLOOKUP(Table13[كود الموظف],#REF!,7,0),0) -> 0 | AJ48: =IFERROR(Table13[[#This Row],[الرصيد القديم]]-(COUNTIFS('يومية الحضور والإنصراف'!$B$4:$B$35796,$B48,'يومية الحضور والإنصراف'!$H$4:$H$35796,"أجازة")+((COUNTIFS('يومية الحضور والإنصراف'!$B$4:$B$35796,$B48,'يومية الحضور والإنصراف'!$H$4:$H$35796,"أجازة نصف يوم سنوي")+COUNTIFS('يومية الحضور والإنصراف'!$B$4:$B$35796,$B48,'يومية الحضور والإنصراف'!$I$4:$I$35796,"أجازة نصف يوم سنوي"))/2)),0) -> 0
A49: =Table13[[#This Row],[كود الموظف]]&Table13[[#This Row],[شهر]] -> 20411 | B49: 204 | C49: =IFERROR(VLOOKUP(Table13[كود الموظف],Table1[[كود الموظف]:[إسم الموظف]],2,0),"") -> محمد حسن 5 | D49: 2021-11-07 | E49: =TEXT(Table13[[#This Row],[التاريخ]],"DDDD") -> الأحد | F49: 11 | G49: =IF(Table13[[#This Row],[التاريخ]]="","",YEAR(Table13[[#This Row],[التاريخ]])) -> 2021 | H49: 07:59:23 | I49: 16:28:06 | J49: =IFERROR(TIME(HOUR(I49-H49),MINUTE(I49-H49),0),0) -> 08:28:00 | K49: =(J49-INT(J49))*24 -> 8.466666667 | L49: =(IF(K49<$M$1,$M$1-K49,"---")) -> 0.03333333333 | M49: =IF(K49>$M$1,K49-$M$1,"---") -> --- | V49: =IFERROR(IF(Table13[[#This Row],[إضافي]]>$O$1,Table13[[#This Row],[إضافي]]-Table13[[#This Row],[إضافي ليلي]],0),"") ->  | W49: =IFERROR(IF(Table13[[#This Row],[إضافي]]>$N$1,Table13[[#This Row],[إضافي]]-$N$1,0),"") ->  | Z49: =IF(Table13[[#This Row],[موقف تأخير]]<=0.5,"0",Table13[[#This Row],[موقف تأخير]]) -> 0 | AC49: =VLOOKUP(Table13[كود الموظف],Table1[[كود الموظف]:[تاريخ التعيين]],3,0) -> 2020-01-01 | AD49: =VLOOKUP(Table13[كود الموظف],'بيانات الموظفين'!A:I,12,0) ->  | AE49: =IFERROR(DATEDIF($AC$1,Table13[[#This Row],[تاريخ التعيين]],"D"),"") ->  | AF49: =Table13[[#This Row],[sal]]/30 ->  | AG49: =VLOOKUP(Table13[كود الموظف],Table1[[كود الموظف]:[القسم]],5,0) -> حسابات | AH49: =VLOOKUP(Table13[كود الموظف],#REF!,23,0) ->  | AI49: =IFERROR(VLOOKUP(Table13[كود الموظف],#REF!,7,0),0) -> 0 | AJ49: =IFERROR(Table13[[#This Row],[الرصيد القديم]]-(COUNTIFS('يومية الحضور والإنصراف'!$B$4:$B$35796,$B49,'يومية الحضور والإنصراف'!$H$4:$H$35796,"أجازة")+((COUNTIFS('يومية الحضور والإنصراف'!$B$4:$B$35796,$B49,'يومية الحضور والإنصراف'!$H$4:$H$35796,"أجازة نصف يوم سنوي")+COUNTIFS('يومية الحضور والإنصراف'!$B$4:$B$35796,$B49,'يومية الحضور والإنصراف'!$I$4:$I$35796,"أجازة نصف يوم سنوي"))/2)),0) -> 0
A50: =Table13[[#This Row],[كود الموظف]]&Table13[[#This Row],[شهر]] -> 20411 | B50: 204 | C50: =IFERROR(VLOOKUP(Table13[كود الموظف],Table1[[كود الموظف]:[إسم الموظف]],2,0),"") -> محمد حسن 5 | D50: 2021-11-07 | E50: =TEXT(Table13[[#This Row],[التاريخ]],"DDDD") -> الأحد | F50: 11 | G50: =IF(Table13[[#This Row],[التاريخ]]="","",YEAR(Table13[[#This Row],[التاريخ]])) -> 2021 | H50: 08:04:42 | I50: 16:34:26 | J50: =IFERROR(TIME(HOUR(I50-H50),MINUTE(I50-H50),0),0) -> 08:29:00 | K50: =(J50-INT(J50))*24 -> 8.483333333 | L50: =(IF(K50<$M$1,$M$1-K50,"---")) -> 0.01666666667 | M50: =IF(K50>$M$1,K50-$M$1,"---") -> --- | V50: =IFERROR(IF(Table13[[#This Row],[إضافي]]>$O$1,Table13[[#This Row],[إضافي]]-Table13[[#This Row],[إضافي ليلي]],0),"") ->  | W50: =IFERROR(IF(Table13[[#This Row],[إضافي]]>$N$1,Table13[[#This Row],[إضافي]]-$N$1,0),"") ->  | Z50: =IF(Table13[[#This Row],[موقف تأخير]]<=0.5,"0",Table13[[#This Row],[موقف تأخير]]) -> 0 | AC50: =VLOOKUP(Table13[كود الموظف],Table1[[كود الموظف]:[تاريخ التعيين]],3,0) -> 2020-01-01 | AD50: =VLOOKUP(Table13[كود الموظف],'بيانات الموظفين'!A:I,12,0) ->  | AE50: =IFERROR(DATEDIF($AC$1,Table13[[#This Row],[تاريخ التعيين]],"D"),"") ->  | AF50: =Table13[[#This Row],[sal]]/30 ->  | AG50: =VLOOKUP(Table13[كود الموظف],Table1[[كود الموظف]:[القسم]],5,0) -> حسابات | AH50: =VLOOKUP(Table13[كود الموظف],#REF!,23,0) ->  | AI50: =IFERROR(VLOOKUP(Table13[كود الموظف],#REF!,7,0),0) -> 0 | AJ50: =IFERROR(Table13[[#This Row],[الرصيد القديم]]-(COUNTIFS('يومية الحضور والإنصراف'!$B$4:$B$35796,$B50,'يومية الحضور والإنصراف'!$H$4:$H$35796,"أجازة")+((COUNTIFS('يومية الحضور والإنصراف'!$B$4:$B$35796,$B50,'يومية الحضور والإنصراف'!$H$4:$H$35796,"أجازة نصف يوم سنوي")+COUNTIFS('يومية الحضور والإنصراف'!$B$4:$B$35796,$B50,'يومية الحضور والإنصراف'!$I$4:$I$35796,"أجازة نصف يوم سنوي"))/2)),0) -> 0
A51: =Table13[[#This Row],[كود الموظف]]&Table13[[#This Row],[شهر]] -> 20411 | B51: 204 | C51: =IFERROR(VLOOKUP(Table13[كود الموظف],Table1[[كود الموظف]:[إسم الموظف]],2,0),"") -> محمد حسن 5 | D51: 2021-11-08 | E51: =TEXT(Table13[[#This Row],[التاريخ]],"DDDD") -> الإثنين | F51: 11 | G51: =IF(Table13[[#This Row],[التاريخ]]="","",YEAR(Table13[[#This Row],[التاريخ]])) -> 2021 | H51: 07:58:33 | I51: أجازة نصف يوم | J51: =IFERROR(TIME(HOUR(I51-H51),MINUTE(I51-H51),0),0) -> 00:00:00 | K51: =(J51-INT(J51))*24 -> 00:00:00 | L51: =(IF(K51<$M$1,$M$1-K51,"---")) -> 8.5 | M51: =IF(K51>$M$1,K51-$M$1,"---") -> --- | V51: =IFERROR(IF(Table13[[#This Row],[إضافي]]>$O$1,Table13[[#This Row],[إضافي]]-Table13[[#This Row],[إضافي ليلي]],0),"") ->  | W51: =IFERROR(IF(Table13[[#This Row],[إضافي]]>$N$1,Table13[[#This Row],[إضافي]]-$N$1,0),"") ->  | Z51: =IF(Table13[[#This Row],[موقف تأخير]]<=0.5,"0",Table13[[#This Row],[موقف تأخير]]) -> 8.5 | AC51: =VLOOKUP(Table13[كود الموظف],Table1[[كود الموظف]:[تاريخ التعيين]],3,0) -> 2020-01-01 | AD51: =VLOOKUP(Table13[كود الموظف],'بيانات الموظفين'!A:I,12,0) ->  | AE51: =IFERROR(DATEDIF($AC$1,Table13[[#This Row],[تاريخ التعيين]],"D"),"") ->  | AF51: =Table13[[#This Row],[sal]]/30 ->  | AG51: =VLOOKUP(Table13[كود الموظف],Table1[[كود الموظف]:[القسم]],5,0) -> حسابات | AH51: =VLOOKUP(Table13[كود الموظف],#REF!,23,0) ->  | AI51: =IFERROR(VLOOKUP(Table13[كود الموظف],#REF!,7,0),0) -> 0 | AJ51: =IFERROR(Table13[[#This Row],[الرصيد القديم]]-(COUNTIFS('يومية الحضور والإنصراف'!$B$4:$B$35796,$B51,'يومية الحضور والإنصراف'!$H$4:$H$35796,"أجازة")+((COUNTIFS('يومية الحضور والإنصراف'!$B$4:$B$35796,$B51,'يومية الحضور والإنصراف'!$H$4:$H$35796,"أجازة نصف يوم سنوي")+COUNTIFS('يومية الحضور والإنصراف'!$B$4:$B$35796,$B51,'يومية الحضور والإنصراف'!$I$4:$I$35796,"أجازة نصف يوم سنوي"))/2)),0) -> 0
A52: =Table13[[#This Row],[كود الموظف]]&Table13[[#This Row],[شهر]] -> 20511 | B52: 205 | C52: =IFERROR(VLOOKUP(Table13[كود الموظف],Table1[[كود الموظف]:[إسم الموظف]],2,0),"") -> محمد حسن 6 | D52: 2021-10-26 | E52: =TEXT(Table13[[#This Row],[التاريخ]],"DDDD") -> الثلاثاء | F52: 11 | G52: =IF(Table13[[#This Row],[التاريخ]]="","",YEAR(Table13[[#This Row],[التاريخ]])) -> 2021 | H52: 07:55:00 | I52: 16:13:44 | J52: =IFERROR(TIME(HOUR(I52-H52),MINUTE(I52-H52),0),0) -> 08:18:00 | K52: =(J52-INT(J52))*24 -> 8.3 | L52: =(IF(K52<$M$1,$M$1-K52,"---")) -> 0.2 | M52: =IF(K52>$M$1,K52-$M$1,"---") -> --- | V52: =IFERROR(IF(Table13[[#This Row],[إضافي]]>$O$1,Table13[[#This Row],[إضافي]]-Table13[[#This Row],[إضافي ليلي]],0),"") ->  | W52: =IFERROR(IF(Table13[[#This Row],[إضافي]]>$N$1,Table13[[#This Row],[إضافي]]-$N$1,0),"") ->  | Z52: =IF(Table13[[#This Row],[موقف تأخير]]<=0.5,"0",Table13[[#This Row],[موقف تأخير]]) -> 0 | AC52: =VLOOKUP(Table13[كود الموظف],Table1[[كود الموظف]:[تاريخ التعيين]],3,0) -> 2020-01-01 | AD52: =VLOOKUP(Table13[كود الموظف],'بيانات الموظفين'!A:I,12,0) ->  | AE52: =IFERROR(DATEDIF($AC$1,Table13[[#This Row],[تاريخ التعيين]],"D"),"") ->  | AF52: =Table13[[#This Row],[sal]]/30 ->  | AG52: =VLOOKUP(Table13[كود الموظف],Table1[[كود الموظف]:[القسم]],5,0) -> حسابات | AH52: =VLOOKUP(Table13[كود الموظف],#REF!,23,0) ->  | AI52: =IFERROR(VLOOKUP(Table13[كود الموظف],#REF!,7,0),0) -> 0 | AJ52: =IFERROR(Table13[[#This Row],[الرصيد القديم]]-(COUNTIFS('يومية الحضور والإنصراف'!$B$4:$B$35796,$B52,'يومية الحضور والإنصراف'!$H$4:$H$35796,"أجازة")+((COUNTIFS('يومية الحضور والإنصراف'!$B$4:$B$35796,$B52,'يومية الحضور والإنصراف'!$H$4:$H$35796,"أجازة نصف يوم سنوي")+COUNTIFS('يومية الحضور والإنصراف'!$B$4:$B$35796,$B52,'يومية الحضور والإنصراف'!$I$4:$I$35796,"أجازة نصف يوم سنوي"))/2)),0) -> 0
A53: =Table13[[#This Row],[كود الموظف]]&Table13[[#This Row],[شهر]] -> 20511 | B53: 205 | C53: =IFERROR(VLOOKUP(Table13[كود الموظف],Table1[[كود الموظف]:[إسم الموظف]],2,0),"") -> محمد حسن 6 | D53: 2021-11-07 | E53: =TEXT(Table13[[#This Row],[التاريخ]],"DDDD") -> الأحد | F53: 11 | G53: =IF(Table13[[#This Row],[التاريخ]]="","",YEAR(Table13[[#This Row],[التاريخ]])) -> 2021 | H53: 08:00:00 | I53: 16:30:00 | J53: =IFERROR(TIME(HOUR(I53-H53),MINUTE(I53-H53),0),0) -> 08:30:00 | K53: =(J53-INT(J53))*24 -> 8.5 | L53: =(IF(K53<$M$1,$M$1-K53,"---")) -> --- | M53: =IF(K53>$M$1,K53-$M$1,"---") -> --- | V53: =IFERROR(IF(Table13[[#This Row],[إضافي]]>$O$1,Table13[[#This Row],[إضافي]]-Table13[[#This Row],[إضافي ليلي]],0),"") ->  | W53: =IFERROR(IF(Table13[[#This Row],[إضافي]]>$N$1,Table13[[#This Row],[إضافي]]-$N$1,0),"") ->  | Z53: =IF(Table13[[#This Row],[موقف تأخير]]<=0.5,"0",Table13[[#This Row],[موقف تأخير]]) -> --- | AC53: =VLOOKUP(Table13[كود الموظف],Table1[[كود الموظف]:[تاريخ التعيين]],3,0) -> 2020-01-01 | AD53: =VLOOKUP(Table13[كود الموظف],'بيانات الموظفين'!A:I,12,0) ->  | AE53: =IFERROR(DATEDIF($AC$1,Table13[[#This Row],[تاريخ التعيين]],"D"),"") ->  | AF53: =Table13[[#This Row],[sal]]/30 ->  | AG53: =VLOOKUP(Table13[كود الموظف],Table1[[كود الموظف]:[القسم]],5,0) -> حسابات | AH53: =VLOOKUP(Table13[كود الموظف],#REF!,23,0) ->  | AI53: =IFERROR(VLOOKUP(Table13[كود الموظف],#REF!,7,0),0) -> 0 | AJ53: =IFERROR(Table13[[#This Row],[الرصيد القديم]]-(COUNTIFS('يومية الحضور والإنصراف'!$B$4:$B$35796,$B53,'يومية الحضور والإنصراف'!$H$4:$H$35796,"أجازة")+((COUNTIFS('يومية الحضور والإنصراف'!$B$4:$B$35796,$B53,'يومية الحضور والإنصراف'!$H$4:$H$35796,"أجازة نصف يوم سنوي")+COUNTIFS('يومية الحضور والإنصراف'!$B$4:$B$35796,$B53,'يومية الحضور والإنصراف'!$I$4:$I$35796,"أجازة نصف يوم سنوي"))/2)),0) -> 0
A54: =Table13[[#This Row],[كود الموظف]]&Table13[[#This Row],[شهر]] -> 20511 | B54: 205 | C54: =IFERROR(VLOOKUP(Table13[كود الموظف],Table1[[كود الموظف]:[إسم الموظف]],2,0),"") -> محمد حسن 6 | D54: 2021-11-07 | E54: =TEXT(Table13[[#This Row],[التاريخ]],"DDDD") -> الأحد | F54: 11 | G54: =IF(Table13[[#This Row],[التاريخ]]="","",YEAR(Table13[[#This Row],[التاريخ]])) -> 2021 | H54: 08:04:41 | I54: 16:28:35 | J54: =IFERROR(TIME(HOUR(I54-H54),MINUTE(I54-H54),0),0) -> 08:23:00 | K54: =(J54-INT(J54))*24 -> 8.383333333 | L54: =(IF(K54<$M$1,$M$1-K54,"---")) -> 0.1166666667 | M54: =IF(K54>$M$1,K54-$M$1,"---") -> --- | V54: =IFERROR(IF(Table13[[#This Row],[إضافي]]>$O$1,Table13[[#This Row],[إضافي]]-Table13[[#This Row],[إضافي ليلي]],0),"") ->  | W54: =IFERROR(IF(Table13[[#This Row],[إضافي]]>$N$1,Table13[[#This Row],[إضافي]]-$N$1,0),"") ->  | Z54: =IF(Table13[[#This Row],[موقف تأخير]]<=0.5,"0",Table13[[#This Row],[موقف تأخير]]) -> 0 | AC54: =VLOOKUP(Table13[كود الموظف],Table1[[كود الموظف]:[تاريخ التعيين]],3,0) -> 2020-01-01 | AD54: =VLOOKUP(Table13[كود الموظف],'بيانات الموظفين'!A:I,12,0) ->  | AE54: =IFERROR(DATEDIF($AC$1,Table13[[#This Row],[تاريخ التعيين]],"D"),"") ->  | AF54: =Table13[[#This Row],[sal]]/30 ->  | AG54: =VLOOKUP(Table13[كود الموظف],Table1[[كود الموظف]:[القسم]],5,0) -> حسابات | AH54: =VLOOKUP(Table13[كود الموظف],#REF!,23,0) ->  | AI54: =IFERROR(VLOOKUP(Table13[كود الموظف],#REF!,7,0),0) -> 0 | AJ54: =IFERROR(Table13[[#This Row],[الرصيد القديم]]-(COUNTIFS('يومية الحضور والإنصراف'!$B$4:$B$35796,$B54,'يومية الحضور والإنصراف'!$H$4:$H$35796,"أجازة")+((COUNTIFS('يومية الحضور والإنصراف'!$B$4:$B$35796,$B54,'يومية الحضور والإنصراف'!$H$4:$H$35796,"أجازة نصف يوم سنوي")+COUNTIFS('يومية الحضور والإنصراف'!$B$4:$B$35796,$B54,'يومية الحضور والإنصراف'!$I$4:$I$35796,"أجازة نصف يوم سنوي"))/2)),0) -> 0
A55: =Table13[[#This Row],[كود الموظف]]&Table13[[#This Row],[شهر]] -> 20511 | B55: 205 | C55: =IFERROR(VLOOKUP(Table13[كود الموظف],Table1[[كود الموظف]:[إسم الموظف]],2,0),"") -> محمد حسن 6 | D55: 2021-11-07 | E55: =TEXT(Table13[[#This Row],[التاريخ]],"DDDD") -> الأحد | F55: 11 | G55: =IF(Table13[[#This Row],[التاريخ]]="","",YEAR(Table13[[#This Row],[التاريخ]])) -> 2021 | H55: 07:53:06 | I55: 16:29:31 | J55: =IFERROR(TIME(HOUR(I55-H55),MINUTE(I55-H55),0),0) -> 08:36:00 | K55: =(J55-INT(J55))*24 -> 8.6 | L55: =(IF(K55<$M$1,$M$1-K55,"---")) -> --- | M55: =IF(K55>$M$1,K55-$M$1,"---") -> 0.1 | V55: =IFERROR(IF(Table13[[#This Row],[إضافي]]>$O$1,Table13[[#This Row],[إضافي]]-Table13[[#This Row],[إضافي ليلي]],0),"") -> 0 | W55: =IFERROR(IF(Table13[[#This Row],[إضافي]]>$N$1,Table13[[#This Row],[إضافي]]-$N$1,0),"") -> 0 | Z55: =IF(Table13[[#This Row],[موقف تأخير]]<=0.5,"0",Table13[[#This Row],[موقف تأخير]]) -> --- | AC55: =VLOOKUP(Table13[كود الموظف],Table1[[كود الموظف]:[تاريخ التعيين]],3,0) -> 2020-01-01 | AD55: =VLOOKUP(Table13[كود الموظف],'بيانات الموظفين'!A:I,12,0) ->  | AE55: =IFERROR(DATEDIF($AC$1,Table13[[#This Row],[تاريخ التعيين]],"D"),"") ->  | AF55: =Table13[[#This Row],[sal]]/30 ->  | AG55: =VLOOKUP(Table13[كود الموظف],Table1[[كود الموظف]:[القسم]],5,0) -> حسابات | AH55: =VLOOKUP(Table13[كود الموظف],#REF!,23,0) ->  | AI55: =IFERROR(VLOOKUP(Table13[كود الموظف],#REF!,7,0),0) -> 0 | AJ55: =IFERROR(Table13[[#This Row],[الرصيد القديم]]-(COUNTIFS('يومية الحضور والإنصراف'!$B$4:$B$35796,$B55,'يومية الحضور والإنصراف'!$H$4:$H$35796,"أجازة")+((COUNTIFS('يومية الحضور والإنصراف'!$B$4:$B$35796,$B55,'يومية الحضور والإنصراف'!$H$4:$H$35796,"أجازة نصف يوم سنوي")+COUNTIFS('يومية الحضور والإنصراف'!$B$4:$B$35796,$B55,'يومية الحضور والإنصراف'!$I$4:$I$35796,"أجازة نصف يوم سنوي"))/2)),0) -> 0
A56: =Table13[[#This Row],[كود الموظف]]&Table13[[#This Row],[شهر]] -> 20511 | B56: 205 | C56: =IFERROR(VLOOKUP(Table13[كود الموظف],Table1[[كود الموظف]:[إسم الموظف]],2,0),"") -> محمد حسن 6 | D56: 2021-11-07 | E56: =TEXT(Table13[[#This Row],[التاريخ]],"DDDD") -> الأحد | F56: 11 | G56: =IF(Table13[[#This Row],[التاريخ]]="","",YEAR(Table13[[#This Row],[التاريخ]])) -> 2021 | H56: 08:00:32 | I56: 16:32:05 | J56: =IFERROR(TIME(HOUR(I56-H56),MINUTE(I56-H56),0),0) -> 08:31:00 | K56: =(J56-INT(J56))*24 -> 8.516666667 | L56: =(IF(K56<$M$1,$M$1-K56,"---")) -> --- | M56: =IF(K56>$M$1,K56-$M$1,"---") -> 0.01666666667 | V56: =IFERROR(IF(Table13[[#This Row],[إضافي]]>$O$1,Table13[[#This Row],[إضافي]]-Table13[[#This Row],[إضافي ليلي]],0),"") -> 0 | W56: =IFERROR(IF(Table13[[#This Row],[إضافي]]>$N$1,Table13[[#This Row],[إضافي]]-$N$1,0),"") -> 0 | Z56: =IF(Table13[[#This Row],[موقف تأخير]]<=0.5,"0",Table13[[#This Row],[موقف تأخير]]) -> --- | AC56: =VLOOKUP(Table13[كود الموظف],Table1[[كود الموظف]:[تاريخ التعيين]],3,0) -> 2020-01-01 | AD56: =VLOOKUP(Table13[كود الموظف],'بيانات الموظفين'!A:I,12,0) ->  | AE56: =IFERROR(DATEDIF($AC$1,Table13[[#This Row],[تاريخ التعيين]],"D"),"") ->  | AF56: =Table13[[#This Row],[sal]]/30 ->  | AG56: =VLOOKUP(Table13[كود الموظف],Table1[[كود الموظف]:[القسم]],5,0) -> حسابات | AH56: =VLOOKUP(Table13[كود الموظف],#REF!,23,0) ->  | AI56: =IFERROR(VLOOKUP(Table13[كود الموظف],#REF!,7,0),0) -> 0 | AJ56: =IFERROR(Table13[[#This Row],[الرصيد القديم]]-(COUNTIFS('يومية الحضور والإنصراف'!$B$4:$B$35796,$B56,'يومية الحضور والإنصراف'!$H$4:$H$35796,"أجازة")+((COUNTIFS('يومية الحضور والإنصراف'!$B$4:$B$35796,$B56,'يومية الحضور والإنصراف'!$H$4:$H$35796,"أجازة نصف يوم سنوي")+COUNTIFS('يومية الحضور والإنصراف'!$B$4:$B$35796,$B56,'يومية الحضور والإنصراف'!$I$4:$I$35796,"أجازة نصف يوم سنوي"))/2)),0) -> 0
A57: =Table13[[#This Row],[كود الموظف]]&Table13[[#This Row],[شهر]] -> 20511 | B57: 205 | C57: =IFERROR(VLOOKUP(Table13[كود الموظف],Table1[[كود الموظف]:[إسم الموظف]],2,0),"") -> محمد حسن 6 | D57: 2021-11-07 | E57: =TEXT(Table13[[#This Row],[التاريخ]],"DDDD") -> الأحد | F57: 11 | G57: =IF(Table13[[#This Row],[التاريخ]]="","",YEAR(Table13[[#This Row],[التاريخ]])) -> 2021 | H57: 07:55:00 | I57: 16:29:51 | J57: =IFERROR(TIME(HOUR(I57-H57),MINUTE(I57-H57),0),0) -> 08:34:00 | K57: =(J57-INT(J57))*24 -> 8.566666667 | L57: =(IF(K57<$M$1,$M$1-K57,"---")) -> --- | M57: =IF(K57>$M$1,K57-$M$1,"---") -> 0.06666666667 | V57: =IFERROR(IF(Table13[[#This Row],[إضافي]]>$O$1,Table13[[#This Row],[إضافي]]-Table13[[#This Row],[إضافي ليلي]],0),"") -> 0 | W57: =IFERROR(IF(Table13[[#This Row],[إضافي]]>$N$1,Table13[[#This Row],[إضافي]]-$N$1,0),"") -> 0 | Z57: =IF(Table13[[#This Row],[موقف تأخير]]<=0.5,"0",Table13[[#This Row],[موقف تأخير]]) -> --- | AC57: =VLOOKUP(Table13[كود الموظف],Table1[[كود الموظف]:[تاريخ التعيين]],3,0) -> 2020-01-01 | AD57: =VLOOKUP(Table13[كود الموظف],'بيانات الموظفين'!A:I,12,0) ->  | AE57: =IFERROR(DATEDIF($AC$1,Table13[[#This Row],[تاريخ التعيين]],"D"),"") ->  | AF57: =Table13[[#This Row],[sal]]/30 ->  | AG57: =VLOOKUP(Table13[كود الموظف],Table1[[كود الموظف]:[القسم]],5,0) -> حسابات | AH57: =VLOOKUP(Table13[كود الموظف],#REF!,23,0) ->  | AI57: =IFERROR(VLOOKUP(Table13[كود الموظف],#REF!,7,0),0) -> 0 | AJ57: =IFERROR(Table13[[#This Row],[الرصيد القديم]]-(COUNTIFS('يومية الحضور والإنصراف'!$B$4:$B$35796,$B57,'يومية الحضور والإنصراف'!$H$4:$H$35796,"أجازة")+((COUNTIFS('يومية الحضور والإنصراف'!$B$4:$B$35796,$B57,'يومية الحضور والإنصراف'!$H$4:$H$35796,"أجازة نصف يوم سنوي")+COUNTIFS('يومية الحضور والإنصراف'!$B$4:$B$35796,$B57,'يومية الحضور والإنصراف'!$I$4:$I$35796,"أجازة نصف يوم سنوي"))/2)),0) -> 0
A58: =Table13[[#This Row],[كود الموظف]]&Table13[[#This Row],[شهر]] -> 20511 | B58: 205 | C58: =IFERROR(VLOOKUP(Table13[كود الموظف],Table1[[كود الموظف]:[إسم الموظف]],2,0),"") -> محمد حسن 6 | D58: 2021-11-07 | E58: =TEXT(Table13[[#This Row],[التاريخ]],"DDDD") -> الأحد | F58: 11 | G58: =IF(Table13[[#This Row],[التاريخ]]="","",YEAR(Table13[[#This Row],[التاريخ]])) -> 2021 | H58: 08:07:29 | I58: 16:29:16 | J58: =IFERROR(TIME(HOUR(I58-H58),MINUTE(I58-H58),0),0) -> 08:21:00 | K58: =(J58-INT(J58))*24 -> 8.35 | L58: =(IF(K58<$M$1,$M$1-K58,"---")) -> 0.15 | M58: =IF(K58>$M$1,K58-$M$1,"---") -> --- | V58: =IFERROR(IF(Table13[[#This Row],[إضافي]]>$O$1,Table13[[#This Row],[إضافي]]-Table13[[#This Row],[إضافي ليلي]],0),"") ->  | W58: =IFERROR(IF(Table13[[#This Row],[إضافي]]>$N$1,Table13[[#This Row],[إضافي]]-$N$1,0),"") ->  | Z58: =IF(Table13[[#This Row],[موقف تأخير]]<=0.5,"0",Table13[[#This Row],[موقف تأخير]]) -> 0 | AC58: =VLOOKUP(Table13[كود الموظف],Table1[[كود الموظف]:[تاريخ التعيين]],3,0) -> 2020-01-01 | AD58: =VLOOKUP(Table13[كود الموظف],'بيانات الموظفين'!A:I,12,0) ->  | AE58: =IFERROR(DATEDIF($AC$1,Table13[[#This Row],[تاريخ التعيين]],"D"),"") ->  | AF58: =Table13[[#This Row],[sal]]/30 ->  | AG58: =VLOOKUP(Table13[كود الموظف],Table1[[كود الموظف]:[القسم]],5,0) -> حسابات | AH58: =VLOOKUP(Table13[كود الموظف],#REF!,23,0) ->  | AI58: =IFERROR(VLOOKUP(Table13[كود الموظف],#REF!,7,0),0) -> 0 | AJ58: =IFERROR(Table13[[#This Row],[الرصيد القديم]]-(COUNTIFS('يومية الحضور والإنصراف'!$B$4:$B$35796,$B58,'يومية الحضور والإنصراف'!$H$4:$H$35796,"أجازة")+((COUNTIFS('يومية الحضور والإنصراف'!$B$4:$B$35796,$B58,'يومية الحضور والإنصراف'!$H$4:$H$35796,"أجازة نصف يوم سنوي")+COUNTIFS('يومية الحضور والإنصراف'!$B$4:$B$35796,$B58,'يومية الحضور والإنصراف'!$I$4:$I$35796,"أجازة نصف يوم سنوي"))/2)),0) -> 0
A59: =Table13[[#This Row],[كود الموظف]]&Table13[[#This Row],[شهر]] -> 20511 | B59: 205 | C59: =IFERROR(VLOOKUP(Table13[كود الموظف],Table1[[كود الموظف]:[إسم الموظف]],2,0),"") -> محمد حسن 6 | D59: 2021-11-07 | E59: =TEXT(Table13[[#This Row],[التاريخ]],"DDDD") -> الأحد | F59: 11 | G59: =IF(Table13[[#This Row],[التاريخ]]="","",YEAR(Table13[[#This Row],[التاريخ]])) -> 2021 | H59: 07:56:21 | I59: 16:32:53 | J59: =IFERROR(TIME(HOUR(I59-H59),MINUTE(I59-H59),0),0) -> 08:36:00 | K59: =(J59-INT(J59))*24 -> 8.6 | L59: =(IF(K59<$M$1,$M$1-K59,"---")) -> --- | M59: =IF(K59>$M$1,K59-$M$1,"---") -> 0.1 | V59: =IFERROR(IF(Table13[[#This Row],[إضافي]]>$O$1,Table13[[#This Row],[إضافي]]-Table13[[#This Row],[إضافي ليلي]],0),"") -> 0 | W59: =IFERROR(IF(Table13[[#This Row],[إضافي]]>$N$1,Table13[[#This Row],[إضافي]]-$N$1,0),"") -> 0 | Z59: =IF(Table13[[#This Row],[موقف تأخير]]<=0.5,"0",Table13[[#This Row],[موقف تأخير]]) -> --- | AC59: =VLOOKUP(Table13[كود الموظف],Table1[[كود الموظف]:[تاريخ التعيين]],3,0) -> 2020-01-01 | AD59: =VLOOKUP(Table13[كود الموظف],'بيانات الموظفين'!A:I,12,0) ->  | AE59: =IFERROR(DATEDIF($AC$1,Table13[[#This Row],[تاريخ التعيين]],"D"),"") ->  | AF59: =Table13[[#This Row],[sal]]/30 ->  | AG59: =VLOOKUP(Table13[كود الموظف],Table1[[كود الموظف]:[القسم]],5,0) -> حسابات | AH59: =VLOOKUP(Table13[كود الموظف],#REF!,23,0) ->  | AI59: =IFERROR(VLOOKUP(Table13[كود الموظف],#REF!,7,0),0) -> 0 | AJ59: =IFERROR(Table13[[#This Row],[الرصيد القديم]]-(COUNTIFS('يومية الحضور والإنصراف'!$B$4:$B$35796,$B59,'يومية الحضور والإنصراف'!$H$4:$H$35796,"أجازة")+((COUNTIFS('يومية الحضور والإنصراف'!$B$4:$B$35796,$B59,'يومية الحضور والإنصراف'!$H$4:$H$35796,"أجازة نصف يوم سنوي")+COUNTIFS('يومية الحضور والإنصراف'!$B$4:$B$35796,$B59,'يومية الحضور والإنصراف'!$I$4:$I$35796,"أجازة نصف يوم سنوي"))/2)),0) -> 0
A60: =Table13[[#This Row],[كود الموظف]]&Table13[[#This Row],[شهر]] -> 20511 | B60: 205 | C60: =IFERROR(VLOOKUP(Table13[كود الموظف],Table1[[كود الموظف]:[إسم الموظف]],2,0),"") -> محمد حسن 6 | D60: 2021-11-08 | E60: =TEXT(Table13[[#This Row],[التاريخ]],"DDDD") -> الإثنين | F60: 11 | G60: =IF(Table13[[#This Row],[التاريخ]]="","",YEAR(Table13[[#This Row],[التاريخ]])) -> 2021 | H60: 07:59:03 | I60: 16:26:55 | J60: =IFERROR(TIME(HOUR(I60-H60),MINUTE(I60-H60),0),0) -> 08:27:00 | K60: =(J60-INT(J60))*24 -> 8.45 | L60: =(IF(K60<$M$1,$M$1-K60,"---")) -> 0.05 | M60: =IF(K60>$M$1,K60-$M$1,"---") -> --- | V60: =IFERROR(IF(Table13[[#This Row],[إضافي]]>$O$1,Table13[[#This Row],[إضافي]]-Table13[[#This Row],[إضافي ليلي]],0),"") ->  | W60: =IFERROR(IF(Table13[[#This Row],[إضافي]]>$N$1,Table13[[#This Row],[إضافي]]-$N$1,0),"") ->  | Z60: =IF(Table13[[#This Row],[موقف تأخير]]<=0.5,"0",Table13[[#This Row],[موقف تأخير]]) -> 0 | AC60: =VLOOKUP(Table13[كود الموظف],Table1[[كود الموظف]:[تاريخ التعيين]],3,0) -> 2020-01-01 | AD60: =VLOOKUP(Table13[كود الموظف],'بيانات الموظفين'!A:I,12,0) ->  | AE60: =IFERROR(DATEDIF($AC$1,Table13[[#This Row],[تاريخ التعيين]],"D"),"") ->  | AF60: =Table13[[#This Row],[sal]]/30 ->  | AG60: =VLOOKUP(Table13[كود الموظف],Table1[[كود الموظف]:[القسم]],5,0) -> حسابات | AH60: =VLOOKUP(Table13[كود الموظف],#REF!,23,0) ->  | AI60: =IFERROR(VLOOKUP(Table13[كود الموظف],#REF!,7,0),0) -> 0 | AJ60: =IFERROR(Table13[[#This Row],[الرصيد القديم]]-(COUNTIFS('يومية الحضور والإنصراف'!$B$4:$B$35796,$B60,'يومية الحضور والإنصراف'!$H$4:$H$35796,"أجازة")+((COUNTIFS('يومية الحضور والإنصراف'!$B$4:$B$35796,$B60,'يومية الحضور والإنصراف'!$H$4:$H$35796,"أجازة نصف يوم سنوي")+COUNTIFS('يومية الحضور والإنصراف'!$B$4:$B$35796,$B60,'يومية الحضور والإنصراف'!$I$4:$I$35796,"أجازة نصف يوم سنوي"))/2)),0) -> 0
A61: =Table13[[#This Row],[كود الموظف]]&Table13[[#This Row],[شهر]] -> 20611 | B61: 206 | C61: =IFERROR(VLOOKUP(Table13[كود الموظف],Table1[[كود الموظف]:[إسم الموظف]],2,0),"") -> محمد حسن 7 | D61: 2021-10-26 | E61: =TEXT(Table13[[#This Row],[التاريخ]],"DDDD") -> الثلاثاء | F61: 11 | G61: =IF(Table13[[#This Row],[التاريخ]]="","",YEAR(Table13[[#This Row],[التاريخ]])) -> 2021 | H61: 07:55:00 | I61: 16:24:31 | J61: =IFERROR(TIME(HOUR(I61-H61),MINUTE(I61-H61),0),0) -> 08:29:00 | K61: =(J61-INT(J61))*24 -> 8.483333333 | L61: =(IF(K61<$M$1,$M$1-K61,"---")) -> 0.01666666667 | M61: =IF(K61>$M$1,K61-$M$1,"---") -> --- | V61: =IFERROR(IF(Table13[[#This Row],[إضافي]]>$O$1,Table13[[#This Row],[إضافي]]-Table13[[#This Row],[إضافي ليلي]],0),"") ->  | W61: =IFERROR(IF(Table13[[#This Row],[إضافي]]>$N$1,Table13[[#This Row],[إضافي]]-$N$1,0),"") ->  | Z61: =IF(Table13[[#This Row],[موقف تأخير]]<=0.5,"0",Table13[[#This Row],[موقف تأخير]]) -> 0 | AC61: =VLOOKUP(Table13[كود الموظف],Table1[[كود الموظف]:[تاريخ التعيين]],3,0) -> 2020-01-01 | AD61: =VLOOKUP(Table13[كود الموظف],'بيانات الموظفين'!A:I,12,0) ->  | AE61: =IFERROR(DATEDIF($AC$1,Table13[[#This Row],[تاريخ التعيين]],"D"),"") ->  | AF61: =Table13[[#This Row],[sal]]/30 ->  | AG61: =VLOOKUP(Table13[كود الموظف],Table1[[كود الموظف]:[القسم]],5,0) -> حسابات | AH61: =VLOOKUP(Table13[كود الموظف],#REF!,23,0) ->  | AI61: =IFERROR(VLOOKUP(Table13[كود الموظف],#REF!,7,0),0) -> 0 | AJ61: =IFERROR(Table13[[#This Row],[الرصيد القديم]]-(COUNTIFS('يومية الحضور والإنصراف'!$B$4:$B$35796,$B61,'يومية الحضور والإنصراف'!$H$4:$H$35796,"أجازة")+((COUNTIFS('يومية الحضور والإنصراف'!$B$4:$B$35796,$B61,'يومية الحضور والإنصراف'!$H$4:$H$35796,"أجازة نصف يوم سنوي")+COUNTIFS('يومية الحضور والإنصراف'!$B$4:$B$35796,$B61,'يومية الحضور والإنصراف'!$I$4:$I$35796,"أجازة نصف يوم سنوي"))/2)),0) -> 0
A62: =Table13[[#This Row],[كود الموظف]]&Table13[[#This Row],[شهر]] -> 20611 | B62: 206 | C62: =IFERROR(VLOOKUP(Table13[كود الموظف],Table1[[كود الموظف]:[إسم الموظف]],2,0),"") -> محمد حسن 7 | D62: 2021-11-07 | E62: =TEXT(Table13[[#This Row],[التاريخ]],"DDDD") -> الأحد | F62: 11 | G62: =IF(Table13[[#This Row],[التاريخ]]="","",YEAR(Table13[[#This Row],[التاريخ]])) -> 2021 | H62: 07:55:04 | I62: 16:26:59 | J62: =IFERROR(TIME(HOUR(I62-H62),MINUTE(I62-H62),0),0) -> 08:31:00 | K62: =(J62-INT(J62))*24 -> 8.516666667 | L62: =(IF(K62<$M$1,$M$1-K62,"---")) -> --- | M62: =IF(K62>$M$1,K62-$M$1,"---") -> 0.01666666667 | V62: =IFERROR(IF(Table13[[#This Row],[إضافي]]>$O$1,Table13[[#This Row],[إضافي]]-Table13[[#This Row],[إضافي ليلي]],0),"") -> 0 | W62: =IFERROR(IF(Table13[[#This Row],[إضافي]]>$N$1,Table13[[#This Row],[إضافي]]-$N$1,0),"") -> 0 | Z62: =IF(Table13[[#This Row],[موقف تأخير]]<=0.5,"0",Table13[[#This Row],[موقف تأخير]]) -> --- | AC62: =VLOOKUP(Table13[كود الموظف],Table1[[كود الموظف]:[تاريخ التعيين]],3,0) -> 2020-01-01 | AD62: =VLOOKUP(Table13[كود الموظف],'بيانات الموظفين'!A:I,12,0) ->  | AE62: =IFERROR(DATEDIF($AC$1,Table13[[#This Row],[تاريخ التعيين]],"D"),"") ->  | AF62: =Table13[[#This Row],[sal]]/30 ->  | AG62: =VLOOKUP(Table13[كود الموظف],Table1[[كود الموظف]:[القسم]],5,0) -> حسابات | AH62: =VLOOKUP(Table13[كود الموظف],#REF!,23,0) ->  | AI62: =IFERROR(VLOOKUP(Table13[كود الموظف],#REF!,7,0),0) -> 0 | AJ62: =IFERROR(Table13[[#This Row],[الرصيد القديم]]-(COUNTIFS('يومية الحضور والإنصراف'!$B$4:$B$35796,$B62,'يومية الحضور والإنصراف'!$H$4:$H$35796,"أجازة")+((COUNTIFS('يومية الحضور والإنصراف'!$B$4:$B$35796,$B62,'يومية الحضور والإنصراف'!$H$4:$H$35796,"أجازة نصف يوم سنوي")+COUNTIFS('يومية الحضور والإنصراف'!$B$4:$B$35796,$B62,'يومية الحضور والإنصراف'!$I$4:$I$35796,"أجازة نصف يوم سنوي"))/2)),0) -> 0
A63: =Table13[[#This Row],[كود الموظف]]&Table13[[#This Row],[شهر]] -> 20611 | B63: 206 | C63: =IFERROR(VLOOKUP(Table13[كود الموظف],Table1[[كود الموظف]:[إسم الموظف]],2,0),"") -> محمد حسن 7 | D63: 2021-11-07 | E63: =TEXT(Table13[[#This Row],[التاريخ]],"DDDD") -> الأحد | F63: 11 | G63: =IF(Table13[[#This Row],[التاريخ]]="","",YEAR(Table13[[#This Row],[التاريخ]])) -> 2021 | H63: 08:04:57 | I63: 16:28:41 | J63: =IFERROR(TIME(HOUR(I63-H63),MINUTE(I63-H63),0),0) -> 08:23:00 | K63: =(J63-INT(J63))*24 -> 8.383333333 | L63: =(IF(K63<$M$1,$M$1-K63,"---")) -> 0.1166666667 | M63: =IF(K63>$M$1,K63-$M$1,"---") -> --- | V63: =IFERROR(IF(Table13[[#This Row],[إضافي]]>$O$1,Table13[[#This Row],[إضافي]]-Table13[[#This Row],[إضافي ليلي]],0),"") ->  | W63: =IFERROR(IF(Table13[[#This Row],[إضافي]]>$N$1,Table13[[#This Row],[إضافي]]-$N$1,0),"") ->  | Z63: =IF(Table13[[#This Row],[موقف تأخير]]<=0.5,"0",Table13[[#This Row],[موقف تأخير]]) -> 0 | AC63: =VLOOKUP(Table13[كود الموظف],Table1[[كود الموظف]:[تاريخ التعيين]],3,0) -> 2020-01-01 | AD63: =VLOOKUP(Table13[كود الموظف],'بيانات الموظفين'!A:I,12,0) ->  | AE63: =IFERROR(DATEDIF($AC$1,Table13[[#This Row],[تاريخ التعيين]],"D"),"") ->  | AF63: =Table13[[#This Row],[sal]]/30 ->  | AG63: =VLOOKUP(Table13[كود الموظف],Table1[[كود الموظف]:[القسم]],5,0) -> حسابات | AH63: =VLOOKUP(Table13[كود الموظف],#REF!,23,0) ->  | AI63: =IFERROR(VLOOKUP(Table13[كود الموظف],#REF!,7,0),0) -> 0 | AJ63: =IFERROR(Table13[[#This Row],[الرصيد القديم]]-(COUNTIFS('يومية الحضور والإنصراف'!$B$4:$B$35796,$B63,'يومية الحضور والإنصراف'!$H$4:$H$35796,"أجازة")+((COUNTIFS('يومية الحضور والإنصراف'!$B$4:$B$35796,$B63,'يومية الحضور والإنصراف'!$H$4:$H$35796,"أجازة نصف يوم سنوي")+COUNTIFS('يومية الحضور والإنصراف'!$B$4:$B$35796,$B63,'يومية الحضور والإنصراف'!$I$4:$I$35796,"أجازة نصف يوم سنوي"))/2)),0) -> 0
A64: =Table13[[#This Row],[كود الموظف]]&Table13[[#This Row],[شهر]] -> 20611 | B64: 206 | C64: =IFERROR(VLOOKUP(Table13[كود الموظف],Table1[[كود الموظف]:[إسم الموظف]],2,0),"") -> محمد حسن 7 | D64: 2021-11-07 | E64: =TEXT(Table13[[#This Row],[التاريخ]],"DDDD") -> الأحد | F64: 11 | G64: =IF(Table13[[#This Row],[التاريخ]]="","",YEAR(Table13[[#This Row],[التاريخ]])) -> 2021 | H64: 07:55:00 | I64: 23:49:07 | J64: =IFERROR(TIME(HOUR(I64-H64),MINUTE(I64-H64),0),0) -> 15:54:00 | K64: =(J64-INT(J64))*24 -> 15.9 | L64: =(IF(K64<$M$1,$M$1-K64,"---")) -> --- | M64: =IF(K64>$M$1,K64-$M$1,"---") -> 7.4 | V64: =IFERROR(IF(Table13[[#This Row],[إضافي]]>$O$1,Table13[[#This Row],[إضافي]]-Table13[[#This Row],[إضافي ليلي]],0),"") -> 2 | W64: =IFERROR(IF(Table13[[#This Row],[إضافي]]>$N$1,Table13[[#This Row],[إضافي]]-$N$1,0),"") -> 5.4 | Z64: =IF(Table13[[#This Row],[موقف تأخير]]<=0.5,"0",Table13[[#This Row],[موقف تأخير]]) -> --- | AC64: =VLOOKUP(Table13[كود الموظف],Table1[[كود الموظف]:[تاريخ التعيين]],3,0) -> 2020-01-01 | AD64: =VLOOKUP(Table13[كود الموظف],'بيانات الموظفين'!A:I,12,0) ->  | AE64: =IFERROR(DATEDIF($AC$1,Table13[[#This Row],[تاريخ التعيين]],"D"),"") ->  | AF64: =Table13[[#This Row],[sal]]/30 ->  | AG64: =VLOOKUP(Table13[كود الموظف],Table1[[كود الموظف]:[القسم]],5,0) -> حسابات | AH64: =VLOOKUP(Table13[كود الموظف],#REF!,23,0) ->  | AI64: =IFERROR(VLOOKUP(Table13[كود الموظف],#REF!,7,0),0) -> 0 | AJ64: =IFERROR(Table13[[#This Row],[الرصيد القديم]]-(COUNTIFS('يومية الحضور والإنصراف'!$B$4:$B$35796,$B64,'يومية الحضور والإنصراف'!$H$4:$H$35796,"أجازة")+((COUNTIFS('يومية الحضور والإنصراف'!$B$4:$B$35796,$B64,'يومية الحضور والإنصراف'!$H$4:$H$35796,"أجازة نصف يوم سنوي")+COUNTIFS('يومية الحضور والإنصراف'!$B$4:$B$35796,$B64,'يومية الحضور والإنصراف'!$I$4:$I$35796,"أجازة نصف يوم سنوي"))/2)),0) -> 0
A65: =Table13[[#This Row],[كود الموظف]]&Table13[[#This Row],[شهر]] -> 20611 | B65: 206 | C65: =IFERROR(VLOOKUP(Table13[كود الموظف],Table1[[كود الموظف]:[إسم الموظف]],2,0),"") -> محمد حسن 7 | D65: 2021-11-07 | E65: =TEXT(Table13[[#This Row],[التاريخ]],"DDDD") -> الأحد | F65: 11 | G65: =IF(Table13[[#This Row],[التاريخ]]="","",YEAR(Table13[[#This Row],[التاريخ]])) -> 2021 | H65: 08:07:33 | I65: 23:50:00 | J65: =IFERROR(TIME(HOUR(I65-H65),MINUTE(I65-H65),0),0) -> 15:42:00 | K65: =(J65-INT(J65))*24 -> 15.7 | L65: =(IF(K65<$M$1,$M$1-K65,"---")) -> --- | M65: =IF(K65>$M$1,K65-$M$1,"---") -> 7.2 | V65: =IFERROR(IF(Table13[[#This Row],[إضافي]]>$O$1,Table13[[#This Row],[إضافي]]-Table13[[#This Row],[إضافي ليلي]],0),"") -> 2 | W65: =IFERROR(IF(Table13[[#This Row],[إضافي]]>$N$1,Table13[[#This Row],[إضافي]]-$N$1,0),"") -> 5.2 | Z65: =IF(Table13[[#This Row],[موقف تأخير]]<=0.5,"0",Table13[[#This Row],[موقف تأخير]]) -> --- | AC65: =VLOOKUP(Table13[كود الموظف],Table1[[كود الموظف]:[تاريخ التعيين]],3,0) -> 2020-01-01 | AD65: =VLOOKUP(Table13[كود الموظف],'بيانات الموظفين'!A:I,12,0) ->  | AE65: =IFERROR(DATEDIF($AC$1,Table13[[#This Row],[تاريخ التعيين]],"D"),"") ->  | AF65: =Table13[[#This Row],[sal]]/30 ->  | AG65: =VLOOKUP(Table13[كود الموظف],Table1[[كود الموظف]:[القسم]],5,0) -> حسابات | AH65: =VLOOKUP(Table13[كود الموظف],#REF!,23,0) ->  | AI65: =IFERROR(VLOOKUP(Table13[كود الموظف],#REF!,7,0),0) -> 0 | AJ65: =IFERROR(Table13[[#This Row],[الرصيد القديم]]-(COUNTIFS('يومية الحضور والإنصراف'!$B$4:$B$35796,$B65,'يومية الحضور والإنصراف'!$H$4:$H$35796,"أجازة")+((COUNTIFS('يومية الحضور والإنصراف'!$B$4:$B$35796,$B65,'يومية الحضور والإنصراف'!$H$4:$H$35796,"أجازة نصف يوم سنوي")+COUNTIFS('يومية الحضور والإنصراف'!$B$4:$B$35796,$B65,'يومية الحضور والإنصراف'!$I$4:$I$35796,"أجازة نصف يوم سنوي"))/2)),0) -> 0
A66: =Table13[[#This Row],[كود الموظف]]&Table13[[#This Row],[شهر]] -> 20611 | B66: 206 | C66: =IFERROR(VLOOKUP(Table13[كود الموظف],Table1[[كود الموظف]:[إسم الموظف]],2,0),"") -> محمد حسن 7 | D66: 2021-11-07 | E66: =TEXT(Table13[[#This Row],[التاريخ]],"DDDD") -> الأحد | F66: 11 | G66: =IF(Table13[[#This Row],[التاريخ]]="","",YEAR(Table13[[#This Row],[التاريخ]])) -> 2021 | H66: 08:10:20 | I66: 16:25:33 | J66: =IFERROR(TIME(HOUR(I66-H66),MINUTE(I66-H66),0),0) -> 08:15:00 | K66: =(J66-INT(J66))*24 -> 8.25 | L66: =(IF(K66<$M$1,$M$1-K66,"---")) -> 0.25 | M66: =IF(K66>$M$1,K66-$M$1,"---") -> --- | V66: =IFERROR(IF(Table13[[#This Row],[إضافي]]>$O$1,Table13[[#This Row],[إضافي]]-Table13[[#This Row],[إضافي ليلي]],0),"") ->  | W66: =IFERROR(IF(Table13[[#This Row],[إضافي]]>$N$1,Table13[[#This Row],[إضافي]]-$N$1,0),"") ->  | Z66: =IF(Table13[[#This Row],[موقف تأخير]]<=0.5,"0",Table13[[#This Row],[موقف تأخير]]) -> 0 | AC66: =VLOOKUP(Table13[كود الموظف],Table1[[كود الموظف]:[تاريخ التعيين]],3,0) -> 2020-01-01 | AD66: =VLOOKUP(Table13[كود الموظف],'بيانات الموظفين'!A:I,12,0) ->  | AE66: =IFERROR(DATEDIF($AC$1,Table13[[#This Row],[تاريخ التعيين]],"D"),"") ->  | AF66: =Table13[[#This Row],[sal]]/30 ->  | AG66: =VLOOKUP(Table13[كود الموظف],Table1[[كود الموظف]:[القسم]],5,0) -> حسابات | AH66: =VLOOKUP(Table13[كود الموظف],#REF!,23,0) ->  | AI66: =IFERROR(VLOOKUP(Table13[كود الموظف],#REF!,7,0),0) -> 0 | AJ66: =IFERROR(Table13[[#This Row],[الرصيد القديم]]-(COUNTIFS('يومية الحضور والإنصراف'!$B$4:$B$35796,$B66,'يومية الحضور والإنصراف'!$H$4:$H$35796,"أجازة")+((COUNTIFS('يومية الحضور والإنصراف'!$B$4:$B$35796,$B66,'يومية الحضور والإنصراف'!$H$4:$H$35796,"أجازة نصف يوم سنوي")+COUNTIFS('يومية الحضور والإنصراف'!$B$4:$B$35796,$B66,'يومية الحضور والإنصراف'!$I$4:$I$35796,"أجازة نصف يوم سنوي"))/2)),0) -> 0
A67: =Table13[[#This Row],[كود الموظف]]&Table13[[#This Row],[شهر]] -> 20611 | B67: 206 | C67: =IFERROR(VLOOKUP(Table13[كود الموظف],Table1[[كود الموظف]:[إسم الموظف]],2,0),"") -> محمد حسن 7 | D67: 2021-11-07 | E67: =TEXT(Table13[[#This Row],[التاريخ]],"DDDD") -> الأحد | F67: 11 | G67: =IF(Table13[[#This Row],[التاريخ]]="","",YEAR(Table13[[#This Row],[التاريخ]])) -> 2021 | H67: 08:10:00 | I67: 16:25:29 | J67: =IFERROR(TIME(HOUR(I67-H67),MINUTE(I67-H67),0),0) -> 08:15:00 | K67: =(J67-INT(J67))*24 -> 8.25 | L67: =(IF(K67<$M$1,$M$1-K67,"---")) -> 0.25 | M67: =IF(K67>$M$1,K67-$M$1,"---") -> --- | V67: =IFERROR(IF(Table13[[#This Row],[إضافي]]>$O$1,Table13[[#This Row],[إضافي]]-Table13[[#This Row],[إضافي ليلي]],0),"") ->  | W67: =IFERROR(IF(Table13[[#This Row],[إضافي]]>$N$1,Table13[[#This Row],[إضافي]]-$N$1,0),"") ->  | Z67: =IF(Table13[[#This Row],[موقف تأخير]]<=0.5,"0",Table13[[#This Row],[موقف تأخير]]) -> 0 | AC67: =VLOOKUP(Table13[كود الموظف],Table1[[كود الموظف]:[تاريخ التعيين]],3,0) -> 2020-01-01 | AD67: =VLOOKUP(Table13[كود الموظف],'بيانات الموظفين'!A:I,12,0) ->  | AE67: =IFERROR(DATEDIF($AC$1,Table13[[#This Row],[تاريخ التعيين]],"D"),"") ->  | AF67: =Table13[[#This Row],[sal]]/30 ->  | AG67: =VLOOKUP(Table13[كود الموظف],Table1[[كود الموظف]:[القسم]],5,0) -> حسابات | AH67: =VLOOKUP(Table13[كود الموظف],#REF!,23,0) ->  | AI67: =IFERROR(VLOOKUP(Table13[كود الموظف],#REF!,7,0),0) -> 0 | AJ67: =IFERROR(Table13[[#This Row],[الرصيد القديم]]-(COUNTIFS('يومية الحضور والإنصراف'!$B$4:$B$35796,$B67,'يومية الحضور والإنصراف'!$H$4:$H$35796,"أجازة")+((COUNTIFS('يومية الحضور والإنصراف'!$B$4:$B$35796,$B67,'يومية الحضور والإنصراف'!$H$4:$H$35796,"أجازة نصف يوم سنوي")+COUNTIFS('يومية الحضور والإنصراف'!$B$4:$B$35796,$B67,'يومية الحضور والإنصراف'!$I$4:$I$35796,"أجازة نصف يوم سنوي"))/2)),0) -> 0
A68: =Table13[[#This Row],[كود الموظف]]&Table13[[#This Row],[شهر]] -> 20611 | B68: 206 | C68: =IFERROR(VLOOKUP(Table13[كود الموظف],Table1[[كود الموظف]:[إسم الموظف]],2,0),"") -> محمد حسن 7 | D68: 2021-11-07 | E68: =TEXT(Table13[[#This Row],[التاريخ]],"DDDD") -> الأحد | F68: 11 | G68: =IF(Table13[[#This Row],[التاريخ]]="","",YEAR(Table13[[#This Row],[التاريخ]])) -> 2021 | H68: 07:52:56 | I68: 16:36:16 | J68: =IFERROR(TIME(HOUR(I68-H68),MINUTE(I68-H68),0),0) -> 08:43:00 | K68: =(J68-INT(J68))*24 -> 8.716666667 | L68: =(IF(K68<$M$1,$M$1-K68,"---")) -> --- | M68: =IF(K68>$M$1,K68-$M$1,"---") -> 0.2166666667 | V68: =IFERROR(IF(Table13[[#This Row],[إضافي]]>$O$1,Table13[[#This Row],[إضافي]]-Table13[[#This Row],[إضافي ليلي]],0),"") -> 0 | W68: =IFERROR(IF(Table13[[#This Row],[إضافي]]>$N$1,Table13[[#This Row],[إضافي]]-$N$1,0),"") -> 0 | Z68: =IF(Table13[[#This Row],[موقف تأخير]]<=0.5,"0",Table13[[#This Row],[موقف تأخير]]) -> --- | AC68: =VLOOKUP(Table13[كود الموظف],Table1[[كود الموظف]:[تاريخ التعيين]],3,0) -> 2020-01-01 | AD68: =VLOOKUP(Table13[كود الموظف],'بيانات الموظفين'!A:I,12,0) ->  | AE68: =IFERROR(DATEDIF($AC$1,Table13[[#This Row],[تاريخ التعيين]],"D"),"") ->  | AF68: =Table13[[#This Row],[sal]]/30 ->  | AG68: =VLOOKUP(Table13[كود الموظف],Table1[[كود الموظف]:[القسم]],5,0) -> حسابات | AH68: =VLOOKUP(Table13[كود الموظف],#REF!,23,0) ->  | AI68: =IFERROR(VLOOKUP(Table13[كود الموظف],#REF!,7,0),0) -> 0 | AJ68: =IFERROR(Table13[[#This Row],[الرصيد القديم]]-(COUNTIFS('يومية الحضور والإنصراف'!$B$4:$B$35796,$B68,'يومية الحضور والإنصراف'!$H$4:$H$35796,"أجازة")+((COUNTIFS('يومية الحضور والإنصراف'!$B$4:$B$35796,$B68,'يومية الحضور والإنصراف'!$H$4:$H$35796,"أجازة نصف يوم سنوي")+COUNTIFS('يومية الحضور والإنصراف'!$B$4:$B$35796,$B68,'يومية الحضور والإنصراف'!$I$4:$I$35796,"أجازة نصف يوم سنوي"))/2)),0) -> 0
A69: =Table13[[#This Row],[كود الموظف]]&Table13[[#This Row],[شهر]] -> 20611 | B69: 206 | C69: =IFERROR(VLOOKUP(Table13[كود الموظف],Table1[[كود الموظف]:[إسم الموظف]],2,0),"") -> محمد حسن 7 | D69: 2021-11-08 | E69: =TEXT(Table13[[#This Row],[التاريخ]],"DDDD") -> الإثنين | F69: 11 | G69: =IF(Table13[[#This Row],[التاريخ]]="","",YEAR(Table13[[#This Row],[التاريخ]])) -> 2021 | H69: 07:52:11 | I69: 16:26:07 | J69: =IFERROR(TIME(HOUR(I69-H69),MINUTE(I69-H69),0),0) -> 08:33:00 | K69: =(J69-INT(J69))*24 -> 8.55 | L69: =(IF(K69<$M$1,$M$1-K69,"---")) -> --- | M69: =IF(K69>$M$1,K69-$M$1,"---") -> 0.05 | V69: =IFERROR(IF(Table13[[#This Row],[إضافي]]>$O$1,Table13[[#This Row],[إضافي]]-Table13[[#This Row],[إضافي ليلي]],0),"") -> 0 | W69: =IFERROR(IF(Table13[[#This Row],[إضافي]]>$N$1,Table13[[#This Row],[إضافي]]-$N$1,0),"") -> 0 | Z69: =IF(Table13[[#This Row],[موقف تأخير]]<=0.5,"0",Table13[[#This Row],[موقف تأخير]]) -> --- | AC69: =VLOOKUP(Table13[كود الموظف],Table1[[كود الموظف]:[تاريخ التعيين]],3,0) -> 2020-01-01 | AD69: =VLOOKUP(Table13[كود الموظف],'بيانات الموظفين'!A:I,12,0) ->  | AE69: =IFERROR(DATEDIF($AC$1,Table13[[#This Row],[تاريخ التعيين]],"D"),"") ->  | AF69: =Table13[[#This Row],[sal]]/30 ->  | AG69: =VLOOKUP(Table13[كود الموظف],Table1[[كود الموظف]:[القسم]],5,0) -> حسابات | AH69: =VLOOKUP(Table13[كود الموظف],#REF!,23,0) ->  | AI69: =IFERROR(VLOOKUP(Table13[كود الموظف],#REF!,7,0),0) -> 0 | AJ69: =IFERROR(Table13[[#This Row],[الرصيد القديم]]-(COUNTIFS('يومية الحضور والإنصراف'!$B$4:$B$35796,$B69,'يومية الحضور والإنصراف'!$H$4:$H$35796,"أجازة")+((COUNTIFS('يومية الحضور والإنصراف'!$B$4:$B$35796,$B69,'يومية الحضور والإنصراف'!$H$4:$H$35796,"أجازة نصف يوم سنوي")+COUNTIFS('يومية الحضور والإنصراف'!$B$4:$B$35796,$B69,'يومية الحضور والإنصراف'!$I$4:$I$35796,"أجازة نصف يوم سنوي"))/2)),0) -> 0
A70: =Table13[[#This Row],[كود الموظف]]&Table13[[#This Row],[شهر]] -> 20711 | B70: 207 | C70: =IFERROR(VLOOKUP(Table13[كود الموظف],Table1[[كود الموظف]:[إسم الموظف]],2,0),"") -> محمد حسن 8 | D70: 2021-10-26 | E70: =TEXT(Table13[[#This Row],[التاريخ]],"DDDD") -> الثلاثاء | F70: 11 | G70: =IF(Table13[[#This Row],[التاريخ]]="","",YEAR(Table13[[#This Row],[التاريخ]])) -> 2021 | H70: 07:51:02 | I70: 16:26:04 | J70: =IFERROR(TIME(HOUR(I70-H70),MINUTE(I70-H70),0),0) -> 08:35:00 | K70: =(J70-INT(J70))*24 -> 8.583333333 | L70: =(IF(K70<$M$1,$M$1-K70,"---")) -> --- | M70: =IF(K70>$M$1,K70-$M$1,"---") -> 0.08333333333 | V70: =IFERROR(IF(Table13[[#This Row],[إضافي]]>$O$1,Table13[[#This Row],[إضافي]]-Table13[[#This Row],[إضافي ليلي]],0),"") -> 0 | W70: =IFERROR(IF(Table13[[#This Row],[إضافي]]>$N$1,Table13[[#This Row],[إضافي]]-$N$1,0),"") -> 0 | Z70: =IF(Table13[[#This Row],[موقف تأخير]]<=0.5,"0",Table13[[#This Row],[موقف تأخير]]) -> --- | AC70: =VLOOKUP(Table13[كود الموظف],Table1[[كود الموظف]:[تاريخ التعيين]],3,0) -> 2020-01-01 | AD70: =VLOOKUP(Table13[كود الموظف],'بيانات الموظفين'!A:I,12,0) ->  | AE70: =IFERROR(DATEDIF($AC$1,Table13[[#This Row],[تاريخ التعيين]],"D"),"") ->  | AF70: =Table13[[#This Row],[sal]]/30 ->  | AG70: =VLOOKUP(Table13[كود الموظف],Table1[[كود الموظف]:[القسم]],5,0) -> حسابات | AH70: =VLOOKUP(Table13[كود الموظف],#REF!,23,0) ->  | AI70: =IFERROR(VLOOKUP(Table13[كود الموظف],#REF!,7,0),0) -> 0 | AJ70: =IFERROR(Table13[[#This Row],[الرصيد القديم]]-(COUNTIFS('يومية الحضور والإنصراف'!$B$4:$B$35796,$B70,'يومية الحضور والإنصراف'!$H$4:$H$35796,"أجازة")+((COUNTIFS('يومية الحضور والإنصراف'!$B$4:$B$35796,$B70,'يومية الحضور والإنصراف'!$H$4:$H$35796,"أجازة نصف يوم سنوي")+COUNTIFS('يومية الحضور والإنصراف'!$B$4:$B$35796,$B70,'يومية الحضور والإنصراف'!$I$4:$I$35796,"أجازة نصف يوم سنوي"))/2)),0) -> 0
A71: =Table13[[#This Row],[كود الموظف]]&Table13[[#This Row],[شهر]] -> 20711 | B71: 207 | C71: =IFERROR(VLOOKUP(Table13[كود الموظف],Table1[[كود الموظف]:[إسم الموظف]],2,0),"") -> محمد حسن 8 | D71: 2021-11-07 | E71: =TEXT(Table13[[#This Row],[التاريخ]],"DDDD") -> الأحد | F71: 11 | G71: =IF(Table13[[#This Row],[التاريخ]]="","",YEAR(Table13[[#This Row],[التاريخ]])) -> 2021 | H71: 07:55:00 | I71: 23:54:41 | J71: =IFERROR(TIME(HOUR(I71-H71),MINUTE(I71-H71),0),0) -> 15:59:00 | K71: =(J71-INT(J71))*24 -> 15.98333333 | L71: =(IF(K71<$M$1,$M$1-K71,"---")) -> --- | M71: =IF(K71>$M$1,K71-$M$1,"---") -> 7.483333333 | V71: =IFERROR(IF(Table13[[#This Row],[إضافي]]>$O$1,Table13[[#This Row],[إضافي]]-Table13[[#This Row],[إضافي ليلي]],0),"") -> 2 | W71: =IFERROR(IF(Table13[[#This Row],[إضافي]]>$N$1,Table13[[#This Row],[إضافي]]-$N$1,0),"") -> 5.483333333 | Z71: =IF(Table13[[#This Row],[موقف تأخير]]<=0.5,"0",Table13[[#This Row],[موقف تأخير]]) -> --- | AC71: =VLOOKUP(Table13[كود الموظف],Table1[[كود الموظف]:[تاريخ التعيين]],3,0) -> 2020-01-01 | AD71: =VLOOKUP(Table13[كود الموظف],'بيانات الموظفين'!A:I,12,0) ->  | AE71: =IFERROR(DATEDIF($AC$1,Table13[[#This Row],[تاريخ التعيين]],"D"),"") ->  | AF71: =Table13[[#This Row],[sal]]/30 ->  | AG71: =VLOOKUP(Table13[كود الموظف],Table1[[كود الموظف]:[القسم]],5,0) -> حسابات | AH71: =VLOOKUP(Table13[كود الموظف],#REF!,23,0) ->  | AI71: =IFERROR(VLOOKUP(Table13[كود الموظف],#REF!,7,0),0) -> 0 | AJ71: =IFERROR(Table13[[#This Row],[الرصيد القديم]]-(COUNTIFS('يومية الحضور والإنصراف'!$B$4:$B$35796,$B71,'يومية الحضور والإنصراف'!$H$4:$H$35796,"أجازة")+((COUNTIFS('يومية الحضور والإنصراف'!$B$4:$B$35796,$B71,'يومية الحضور والإنصراف'!$H$4:$H$35796,"أجازة نصف يوم سنوي")+COUNTIFS('يومية الحضور والإنصراف'!$B$4:$B$35796,$B71,'يومية الحضور والإنصراف'!$I$4:$I$35796,"أجازة نصف يوم سنوي"))/2)),0) -> 0
A72: =Table13[[#This Row],[كود الموظف]]&Table13[[#This Row],[شهر]] -> 20711 | B72: 207 | C72: =IFERROR(VLOOKUP(Table13[كود الموظف],Table1[[كود الموظف]:[إسم الموظف]],2,0),"") -> محمد حسن 8 | D72: 2021-11-07 | E72: =TEXT(Table13[[#This Row],[التاريخ]],"DDDD") -> الأحد | F72: 11 | G72: =IF(Table13[[#This Row],[التاريخ]]="","",YEAR(Table13[[#This Row],[التاريخ]])) -> 2021 | H72: 07:55:43 | I72: 16:23:24 | J72: =IFERROR(TIME(HOUR(I72-H72),MINUTE(I72-H72),0),0) -> 08:27:00 | K72: =(J72-INT(J72))*24 -> 8.45 | L72: =(IF(K72<$M$1,$M$1-K72,"---")) -> 0.05 | M72: =IF(K72>$M$1,K72-$M$1,"---") -> --- | V72: =IFERROR(IF(Table13[[#This Row],[إضافي]]>$O$1,Table13[[#This Row],[إضافي]]-Table13[[#This Row],[إضافي ليلي]],0),"") ->  | W72: =IFERROR(IF(Table13[[#This Row],[إضافي]]>$N$1,Table13[[#This Row],[إضافي]]-$N$1,0),"") ->  | Z72: =IF(Table13[[#This Row],[موقف تأخير]]<=0.5,"0",Table13[[#This Row],[موقف تأخير]]) -> 0 | AC72: =VLOOKUP(Table13[كود الموظف],Table1[[كود الموظف]:[تاريخ التعيين]],3,0) -> 2020-01-01 | AD72: =VLOOKUP(Table13[كود الموظف],'بيانات الموظفين'!A:I,12,0) ->  | AE72: =IFERROR(DATEDIF($AC$1,Table13[[#This Row],[تاريخ التعيين]],"D"),"") ->  | AF72: =Table13[[#This Row],[sal]]/30 ->  | AG72: =VLOOKUP(Table13[كود الموظف],Table1[[كود الموظف]:[القسم]],5,0) -> حسابات | AH72: =VLOOKUP(Table13[كود الموظف],#REF!,23,0) ->  | AI72: =IFERROR(VLOOKUP(Table13[كود الموظف],#REF!,7,0),0) -> 0 | AJ72: =IFERROR(Table13[[#This Row],[الرصيد القديم]]-(COUNTIFS('يومية الحضور والإنصراف'!$B$4:$B$35796,$B72,'يومية الحضور والإنصراف'!$H$4:$H$35796,"أجازة")+((COUNTIFS('يومية الحضور والإنصراف'!$B$4:$B$35796,$B72,'يومية الحضور والإنصراف'!$H$4:$H$35796,"أجازة نصف يوم سنوي")+COUNTIFS('يومية الحضور والإنصراف'!$B$4:$B$35796,$B72,'يومية الحضور والإنصراف'!$I$4:$I$35796,"أجازة نصف يوم سنوي"))/2)),0) -> 0
A73: =Table13[[#This Row],[كود الموظف]]&Table13[[#This Row],[شهر]] -> 20711 | B73: 207 | C73: =IFERROR(VLOOKUP(Table13[كود الموظف],Table1[[كود الموظف]:[إسم الموظف]],2,0),"") -> محمد حسن 8 | D73: 2021-11-07 | E73: =TEXT(Table13[[#This Row],[التاريخ]],"DDDD") -> الأحد | F73: 11 | G73: =IF(Table13[[#This Row],[التاريخ]]="","",YEAR(Table13[[#This Row],[التاريخ]])) -> 2021 | H73: 08:02:33 | I73: 16:36:23 | J73: =IFERROR(TIME(HOUR(I73-H73),MINUTE(I73-H73),0),0) -> 08:33:00 | K73: =(J73-INT(J73))*24 -> 8.55 | L73: =(IF(K73<$M$1,$M$1-K73,"---")) -> --- | M73: =IF(K73>$M$1,K73-$M$1,"---") -> 0.05 | V73: =IFERROR(IF(Table13[[#This Row],[إضافي]]>$O$1,Table13[[#This Row],[إضافي]]-Table13[[#This Row],[إضافي ليلي]],0),"") -> 0 | W73: =IFERROR(IF(Table13[[#This Row],[إضافي]]>$N$1,Table13[[#This Row],[إضافي]]-$N$1,0),"") -> 0 | Z73: =IF(Table13[[#This Row],[موقف تأخير]]<=0.5,"0",Table13[[#This Row],[موقف تأخير]]) -> --- | AC73: =VLOOKUP(Table13[كود الموظف],Table1[[كود الموظف]:[تاريخ التعيين]],3,0) -> 2020-01-01 | AD73: =VLOOKUP(Table13[كود الموظف],'بيانات الموظفين'!A:I,12,0) ->  | AE73: =IFERROR(DATEDIF($AC$1,Table13[[#This Row],[تاريخ التعيين]],"D"),"") ->  | AF73: =Table13[[#This Row],[sal]]/30 ->  | AG73: =VLOOKUP(Table13[كود الموظف],Table1[[كود الموظف]:[القسم]],5,0) -> حسابات | AH73: =VLOOKUP(Table13[كود الموظف],#REF!,23,0) ->  | AI73: =IFERROR(VLOOKUP(Table13[كود الموظف],#REF!,7,0),0) -> 0 | AJ73: =IFERROR(Table13[[#This Row],[الرصيد القديم]]-(COUNTIFS('يومية الحضور والإنصراف'!$B$4:$B$35796,$B73,'يومية الحضور والإنصراف'!$H$4:$H$35796,"أجازة")+((COUNTIFS('يومية الحضور والإنصراف'!$B$4:$B$35796,$B73,'يومية الحضور والإنصراف'!$H$4:$H$35796,"أجازة نصف يوم سنوي")+COUNTIFS('يومية الحضور والإنصراف'!$B$4:$B$35796,$B73,'يومية الحضور والإنصراف'!$I$4:$I$35796,"أجازة نصف يوم سنوي"))/2)),0) -> 0
A74: =Table13[[#This Row],[كود الموظف]]&Table13[[#This Row],[شهر]] -> 20711 | B74: 207 | C74: =IFERROR(VLOOKUP(Table13[كود الموظف],Table1[[كود الموظف]:[إسم الموظف]],2,0),"") -> محمد حسن 8 | D74: 2021-11-07 | E74: =TEXT(Table13[[#This Row],[التاريخ]],"DDDD") -> الأحد | F74: 11 | G74: =IF(Table13[[#This Row],[التاريخ]]="","",YEAR(Table13[[#This Row],[التاريخ]])) -> 2021 | H74: 08:07:19 | I74: 23:50:38 | J74: =IFERROR(TIME(HOUR(I74-H74),MINUTE(I74-H74),0),0) -> 15:43:00 | K74: =(J74-INT(J74))*24 -> 15.71666667 | L74: =(IF(K74<$M$1,$M$1-K74,"---")) -> --- | M74: =IF(K74>$M$1,K74-$M$1,"---") -> 7.216666667 | V74: =IFERROR(IF(Table13[[#This Row],[إضافي]]>$O$1,Table13[[#This Row],[إضافي]]-Table13[[#This Row],[إضافي ليلي]],0),"") -> 2 | W74: =IFERROR(IF(Table13[[#This Row],[إضافي]]>$N$1,Table13[[#This Row],[إضافي]]-$N$1,0),"") -> 5.216666667 | Z74: =IF(Table13[[#This Row],[موقف تأخير]]<=0.5,"0",Table13[[#This Row],[موقف تأخير]]) -> --- | AC74: =VLOOKUP(Table13[كود الموظف],Table1[[كود الموظف]:[تاريخ التعيين]],3,0) -> 2020-01-01 | AD74: =VLOOKUP(Table13[كود الموظف],'بيانات الموظفين'!A:I,12,0) ->  | AE74: =IFERROR(DATEDIF($AC$1,Table13[[#This Row],[تاريخ التعيين]],"D"),"") ->  | AF74: =Table13[[#This Row],[sal]]/30 ->  | AG74: =VLOOKUP(Table13[كود الموظف],Table1[[كود الموظف]:[القسم]],5,0) -> حسابات | AH74: =VLOOKUP(Table13[كود الموظف],#REF!,23,0) ->  | AI74: =IFERROR(VLOOKUP(Table13[كود الموظف],#REF!,7,0),0) -> 0 | AJ74: =IFERROR(Table13[[#This Row],[الرصيد القديم]]-(COUNTIFS('يومية الحضور والإنصراف'!$B$4:$B$35796,$B74,'يومية الحضور والإنصراف'!$H$4:$H$35796,"أجازة")+((COUNTIFS('يومية الحضور والإنصراف'!$B$4:$B$35796,$B74,'يومية الحضور والإنصراف'!$H$4:$H$35796,"أجازة نصف يوم سنوي")+COUNTIFS('يومية الحضور والإنصراف'!$B$4:$B$35796,$B74,'يومية الحضور والإنصراف'!$I$4:$I$35796,"أجازة نصف يوم سنوي"))/2)),0) -> 0
A75: =Table13[[#This Row],[كود الموظف]]&Table13[[#This Row],[شهر]] -> 20711 | B75: 207 | C75: =IFERROR(VLOOKUP(Table13[كود الموظف],Table1[[كود الموظف]:[إسم الموظف]],2,0),"") -> محمد حسن 8 | D75: 2021-11-07 | E75: =TEXT(Table13[[#This Row],[التاريخ]],"DDDD") -> الأحد | F75: 11 | G75: =IF(Table13[[#This Row],[التاريخ]]="","",YEAR(Table13[[#This Row],[التاريخ]])) -> 2021 | H75: 07:56:27 | I75: 16:33:31 | J75: =IFERROR(TIME(HOUR(I75-H75),MINUTE(I75-H75),0),0) -> 08:37:00 | K75: =(J75-INT(J75))*24 -> 8.616666667 | L75: =(IF(K75<$M$1,$M$1-K75,"---")) -> --- | M75: =IF(K75>$M$1,K75-$M$1,"---") -> 0.1166666667 | V75: =IFERROR(IF(Table13[[#This Row],[إضافي]]>$O$1,Table13[[#This Row],[إضافي]]-Table13[[#This Row],[إضافي ليلي]],0),"") -> 0 | W75: =IFERROR(IF(Table13[[#This Row],[إضافي]]>$N$1,Table13[[#This Row],[إضافي]]-$N$1,0),"") -> 0 | Z75: =IF(Table13[[#This Row],[موقف تأخير]]<=0.5,"0",Table13[[#This Row],[موقف تأخير]]) -> --- | AC75: =VLOOKUP(Table13[كود الموظف],Table1[[كود الموظف]:[تاريخ التعيين]],3,0) -> 2020-01-01 | AD75: =VLOOKUP(Table13[كود الموظف],'بيانات الموظفين'!A:I,12,0) ->  | AE75: =IFERROR(DATEDIF($AC$1,Table13[[#This Row],[تاريخ التعيين]],"D"),"") ->  | AF75: =Table13[[#This Row],[sal]]/30 ->  | AG75: =VLOOKUP(Table13[كود الموظف],Table1[[كود الموظف]:[القسم]],5,0) -> حسابات | AH75: =VLOOKUP(Table13[كود الموظف],#REF!,23,0) ->  | AI75: =IFERROR(VLOOKUP(Table13[كود الموظف],#REF!,7,0),0) -> 0 | AJ75: =IFERROR(Table13[[#This Row],[الرصيد القديم]]-(COUNTIFS('يومية الحضور والإنصراف'!$B$4:$B$35796,$B75,'يومية الحضور والإنصراف'!$H$4:$H$35796,"أجازة")+((COUNTIFS('يومية الحضور والإنصراف'!$B$4:$B$35796,$B75,'يومية الحضور والإنصراف'!$H$4:$H$35796,"أجازة نصف يوم سنوي")+COUNTIFS('يومية الحضور والإنصراف'!$B$4:$B$35796,$B75,'يومية الحضور والإنصراف'!$I$4:$I$35796,"أجازة نصف يوم سنوي"))/2)),0) -> 0
A76: =Table13[[#This Row],[كود الموظف]]&Table13[[#This Row],[شهر]] -> 20711 | B76: 207 | C76: =IFERROR(VLOOKUP(Table13[كود الموظف],Table1[[كود الموظف]:[إسم الموظف]],2,0),"") -> محمد حسن 8 | D76: 2021-11-07 | E76: =TEXT(Table13[[#This Row],[التاريخ]],"DDDD") -> الأحد | F76: 11 | G76: =IF(Table13[[#This Row],[التاريخ]]="","",YEAR(Table13[[#This Row],[التاريخ]])) -> 2021 | H76: 07:54:27 | I76: 16:28:53 | J76: =IFERROR(TIME(HOUR(I76-H76),MINUTE(I76-H76),0),0) -> 08:34:00 | K76: =(J76-INT(J76))*24 -> 8.566666667 | L76: =(IF(K76<$M$1,$M$1-K76,"---")) -> --- | M76: =IF(K76>$M$1,K76-$M$1,"---") -> 0.06666666667 | V76: =IFERROR(IF(Table13[[#This Row],[إضافي]]>$O$1,Table13[[#This Row],[إضافي]]-Table13[[#This Row],[إضافي ليلي]],0),"") -> 0 | W76: =IFERROR(IF(Table13[[#This Row],[إضافي]]>$N$1,Table13[[#This Row],[إضافي]]-$N$1,0),"") -> 0 | Z76: =IF(Table13[[#This Row],[موقف تأخير]]<=0.5,"0",Table13[[#This Row],[موقف تأخير]]) -> --- | AC76: =VLOOKUP(Table13[كود الموظف],Table1[[كود الموظف]:[تاريخ التعيين]],3,0) -> 2020-01-01 | AD76: =VLOOKUP(Table13[كود الموظف],'بيانات الموظفين'!A:I,12,0) ->  | AE76: =IFERROR(DATEDIF($AC$1,Table13[[#This Row],[تاريخ التعيين]],"D"),"") ->  | AF76: =Table13[[#This Row],[sal]]/30 ->  | AG76: =VLOOKUP(Table13[كود الموظف],Table1[[كود الموظف]:[القسم]],5,0) -> حسابات | AH76: =VLOOKUP(Table13[كود الموظف],#REF!,23,0) ->  | AI76: =IFERROR(VLOOKUP(Table13[كود الموظف],#REF!,7,0),0) -> 0 | AJ76: =IFERROR(Table13[[#This Row],[الرصيد القديم]]-(COUNTIFS('يومية الحضور والإنصراف'!$B$4:$B$35796,$B76,'يومية الحضور والإنصراف'!$H$4:$H$35796,"أجازة")+((COUNTIFS('يومية الحضور والإنصراف'!$B$4:$B$35796,$B76,'يومية الحضور والإنصراف'!$H$4:$H$35796,"أجازة نصف يوم سنوي")+COUNTIFS('يومية الحضور والإنصراف'!$B$4:$B$35796,$B76,'يومية الحضور والإنصراف'!$I$4:$I$35796,"أجازة نصف يوم سنوي"))/2)),0) -> 0
A77: =Table13[[#This Row],[كود الموظف]]&Table13[[#This Row],[شهر]] -> 20711 | B77: 207 | C77: =IFERROR(VLOOKUP(Table13[كود الموظف],Table1[[كود الموظف]:[إسم الموظف]],2,0),"") -> محمد حسن 8 | D77: 2021-11-07 | E77: =TEXT(Table13[[#This Row],[التاريخ]],"DDDD") -> الأحد | F77: 11 | G77: =IF(Table13[[#This Row],[التاريخ]]="","",YEAR(Table13[[#This Row],[التاريخ]])) -> 2021 | H77: 08:06:59 | I77: 16:27:20 | J77: =IFERROR(TIME(HOUR(I77-H77),MINUTE(I77-H77),0),0) -> 08:20:00 | K77: =(J77-INT(J77))*24 -> 8.333333333 | L77: =(IF(K77<$M$1,$M$1-K77,"---")) -> 0.1666666667 | M77: =IF(K77>$M$1,K77-$M$1,"---") -> --- | V77: =IFERROR(IF(Table13[[#This Row],[إضافي]]>$O$1,Table13[[#This Row],[إضافي]]-Table13[[#This Row],[إضافي ليلي]],0),"") ->  | W77: =IFERROR(IF(Table13[[#This Row],[إضافي]]>$N$1,Table13[[#This Row],[إضافي]]-$N$1,0),"") ->  | Z77: =IF(Table13[[#This Row],[موقف تأخير]]<=0.5,"0",Table13[[#This Row],[موقف تأخير]]) -> 0 | AC77: =VLOOKUP(Table13[كود الموظف],Table1[[كود الموظف]:[تاريخ التعيين]],3,0) -> 2020-01-01 | AD77: =VLOOKUP(Table13[كود الموظف],'بيانات الموظفين'!A:I,12,0) ->  | AE77: =IFERROR(DATEDIF($AC$1,Table13[[#This Row],[تاريخ التعيين]],"D"),"") ->  | AF77: =Table13[[#This Row],[sal]]/30 ->  | AG77: =VLOOKUP(Table13[كود الموظف],Table1[[كود الموظف]:[القسم]],5,0) -> حسابات | AH77: =VLOOKUP(Table13[كود الموظف],#REF!,23,0) ->  | AI77: =IFERROR(VLOOKUP(Table13[كود الموظف],#REF!,7,0),0) -> 0 | AJ77: =IFERROR(Table13[[#This Row],[الرصيد القديم]]-(COUNTIFS('يومية الحضور والإنصراف'!$B$4:$B$35796,$B77,'يومية الحضور والإنصراف'!$H$4:$H$35796,"أجازة")+((COUNTIFS('يومية الحضور والإنصراف'!$B$4:$B$35796,$B77,'يومية الحضور والإنصراف'!$H$4:$H$35796,"أجازة نصف يوم سنوي")+COUNTIFS('يومية الحضور والإنصراف'!$B$4:$B$35796,$B77,'يومية الحضور والإنصراف'!$I$4:$I$35796,"أجازة نصف يوم سنوي"))/2)),0) -> 0
A78: =Table13[[#This Row],[كود الموظف]]&Table13[[#This Row],[شهر]] -> 20711 | B78: 207 | C78: =IFERROR(VLOOKUP(Table13[كود الموظف],Table1[[كود الموظف]:[إسم الموظف]],2,0),"") -> محمد حسن 8 | D78: 2021-11-08 | E78: =TEXT(Table13[[#This Row],[التاريخ]],"DDDD") -> الإثنين | F78: 11 | G78: =IF(Table13[[#This Row],[التاريخ]]="","",YEAR(Table13[[#This Row],[التاريخ]])) -> 2021 | H78: 08:04:12 | I78: 16:24:40 | J78: =IFERROR(TIME(HOUR(I78-H78),MINUTE(I78-H78),0),0) -> 08:20:00 | K78: =(J78-INT(J78))*24 -> 8.333333333 | L78: =(IF(K78<$M$1,$M$1-K78,"---")) -> 0.1666666667 | M78: =IF(K78>$M$1,K78-$M$1,"---") -> --- | V78: =IFERROR(IF(Table13[[#This Row],[إضافي]]>$O$1,Table13[[#This Row],[إضافي]]-Table13[[#This Row],[إضافي ليلي]],0),"") ->  | W78: =IFERROR(IF(Table13[[#This Row],[إضافي]]>$N$1,Table13[[#This Row],[إضافي]]-$N$1,0),"") ->  | Z78: =IF(Table13[[#This Row],[موقف تأخير]]<=0.5,"0",Table13[[#This Row],[موقف تأخير]]) -> 0 | AC78: =VLOOKUP(Table13[كود الموظف],Table1[[كود الموظف]:[تاريخ التعيين]],3,0) -> 2020-01-01 | AD78: =VLOOKUP(Table13[كود الموظف],'بيانات الموظفين'!A:I,12,0) ->  | AE78: =IFERROR(DATEDIF($AC$1,Table13[[#This Row],[تاريخ التعيين]],"D"),"") ->  | AF78: =Table13[[#This Row],[sal]]/30 ->  | AG78: =VLOOKUP(Table13[كود الموظف],Table1[[كود الموظف]:[القسم]],5,0) -> حسابات | AH78: =VLOOKUP(Table13[كود الموظف],#REF!,23,0) ->  | AI78: =IFERROR(VLOOKUP(Table13[كود الموظف],#REF!,7,0),0) -> 0 | AJ78: =IFERROR(Table13[[#This Row],[الرصيد القديم]]-(COUNTIFS('يومية الحضور والإنصراف'!$B$4:$B$35796,$B78,'يومية الحضور والإنصراف'!$H$4:$H$35796,"أجازة")+((COUNTIFS('يومية الحضور والإنصراف'!$B$4:$B$35796,$B78,'يومية الحضور والإنصراف'!$H$4:$H$35796,"أجازة نصف يوم سنوي")+COUNTIFS('يومية الحضور والإنصراف'!$B$4:$B$35796,$B78,'يومية الحضور والإنصراف'!$I$4:$I$35796,"أجازة نصف يوم سنوي"))/2)),0) -> 0
A79: =Table13[[#This Row],[كود الموظف]]&Table13[[#This Row],[شهر]] -> 20811 | B79: 208 | C79: =IFERROR(VLOOKUP(Table13[كود الموظف],Table1[[كود الموظف]:[إسم الموظف]],2,0),"") -> محمد حسن 9 | D79: 2021-10-26 | E79: =TEXT(Table13[[#This Row],[التاريخ]],"DDDD") -> الثلاثاء | F79: 11 | G79: =IF(Table13[[#This Row],[التاريخ]]="","",YEAR(Table13[[#This Row],[التاريخ]])) -> 2021 | H79: 07:55:00 | I79: 16:28:06 | J79: =IFERROR(TIME(HOUR(I79-H79),MINUTE(I79-H79),0),0) -> 08:33:00 | K79: =(J79-INT(J79))*24 -> 8.55 | L79: =(IF(K79<$M$1,$M$1-K79,"---")) -> --- | M79: =IF(K79>$M$1,K79-$M$1,"---") -> 0.05 | V79: =IFERROR(IF(Table13[[#This Row],[إضافي]]>$O$1,Table13[[#This Row],[إضافي]]-Table13[[#This Row],[إضافي ليلي]],0),"") -> 0 | W79: =IFERROR(IF(Table13[[#This Row],[إضافي]]>$N$1,Table13[[#This Row],[إضافي]]-$N$1,0),"") -> 0 | Z79: =IF(Table13[[#This Row],[موقف تأخير]]<=0.5,"0",Table13[[#This Row],[موقف تأخير]]) -> --- | AC79: =VLOOKUP(Table13[كود الموظف],Table1[[كود الموظف]:[تاريخ التعيين]],3,0) -> 2020-01-01 | AD79: =VLOOKUP(Table13[كود الموظف],'بيانات الموظفين'!A:I,12,0) ->  | AE79: =IFERROR(DATEDIF($AC$1,Table13[[#This Row],[تاريخ التعيين]],"D"),"") ->  | AF79: =Table13[[#This Row],[sal]]/30 ->  | AG79: =VLOOKUP(Table13[كود الموظف],Table1[[كود الموظف]:[القسم]],5,0) -> حسابات | AH79: =VLOOKUP(Table13[كود الموظف],#REF!,23,0) ->  | AI79: =IFERROR(VLOOKUP(Table13[كود الموظف],#REF!,7,0),0) -> 0 | AJ79: =IFERROR(Table13[[#This Row],[الرصيد القديم]]-(COUNTIFS('يومية الحضور والإنصراف'!$B$4:$B$35796,$B79,'يومية الحضور والإنصراف'!$H$4:$H$35796,"أجازة")+((COUNTIFS('يومية الحضور والإنصراف'!$B$4:$B$35796,$B79,'يومية الحضور والإنصراف'!$H$4:$H$35796,"أجازة نصف يوم سنوي")+COUNTIFS('يومية الحضور والإنصراف'!$B$4:$B$35796,$B79,'يومية الحضور والإنصراف'!$I$4:$I$35796,"أجازة نصف يوم سنوي"))/2)),0) -> -1
A80: =Table13[[#This Row],[كود الموظف]]&Table13[[#This Row],[شهر]] -> 20811 | B80: 208 | C80: =IFERROR(VLOOKUP(Table13[كود الموظف],Table1[[كود الموظف]:[إسم الموظف]],2,0),"") -> محمد حسن 9 | D80: 2021-11-07 | E80: =TEXT(Table13[[#This Row],[التاريخ]],"DDDD") -> الأحد | F80: 11 | G80: =IF(Table13[[#This Row],[التاريخ]]="","",YEAR(Table13[[#This Row],[التاريخ]])) -> 2021 | H80: 07:54:59 | I80: 23:43:00 | J80: =IFERROR(TIME(HOUR(I80-H80),MINUTE(I80-H80),0),0) -> 15:48:00 | K80: =(J80-INT(J80))*24 -> 15.8 | L80: =(IF(K80<$M$1,$M$1-K80,"---")) -> --- | M80: =IF(K80>$M$1,K80-$M$1,"---") -> 7.3 | V80: =IFERROR(IF(Table13[[#This Row],[إضافي]]>$O$1,Table13[[#This Row],[إضافي]]-Table13[[#This Row],[إضافي ليلي]],0),"") -> 2 | W80: =IFERROR(IF(Table13[[#This Row],[إضافي]]>$N$1,Table13[[#This Row],[إضافي]]-$N$1,0),"") -> 5.3 | Z80: =IF(Table13[[#This Row],[موقف تأخير]]<=0.5,"0",Table13[[#This Row],[موقف تأخير]]) -> --- | AC80: =VLOOKUP(Table13[كود الموظف],Table1[[كود الموظف]:[تاريخ التعيين]],3,0) -> 2020-01-01 | AD80: =VLOOKUP(Table13[كود الموظف],'بيانات الموظفين'!A:I,12,0) ->  | AE80: =IFERROR(DATEDIF($AC$1,Table13[[#This Row],[تاريخ التعيين]],"D"),"") ->  | AF80: =Table13[[#This Row],[sal]]/30 ->  | AG80: =VLOOKUP(Table13[كود الموظف],Table1[[كود الموظف]:[القسم]],5,0) -> حسابات | AH80: =VLOOKUP(Table13[كود الموظف],#REF!,23,0) ->  | AI80: =IFERROR(VLOOKUP(Table13[كود الموظف],#REF!,7,0),0) -> 0 | AJ80: =IFERROR(Table13[[#This Row],[الرصيد القديم]]-(COUNTIFS('يومية الحضور والإنصراف'!$B$4:$B$35796,$B80,'يومية الحضور والإنصراف'!$H$4:$H$35796,"أجازة")+((COUNTIFS('يومية الحضور والإنصراف'!$B$4:$B$35796,$B80,'يومية الحضور والإنصراف'!$H$4:$H$35796,"أجازة نصف يوم سنوي")+COUNTIFS('يومية الحضور والإنصراف'!$B$4:$B$35796,$B80,'يومية الحضور والإنصراف'!$I$4:$I$35796,"أجازة نصف يوم سنوي"))/2)),0) -> -1
A81: =Table13[[#This Row],[كود الموظف]]&Table13[[#This Row],[شهر]] -> 20811 | B81: 208 | C81: =IFERROR(VLOOKUP(Table13[كود الموظف],Table1[[كود الموظف]:[إسم الموظف]],2,0),"") -> محمد حسن 9 | D81: 2021-11-07 | E81: =TEXT(Table13[[#This Row],[التاريخ]],"DDDD") -> الأحد | F81: 11 | G81: =IF(Table13[[#This Row],[التاريخ]]="","",YEAR(Table13[[#This Row],[التاريخ]])) -> 2021 | H81: 07:55:00 | I81: 16:28:08 | J81: =IFERROR(TIME(HOUR(I81-H81),MINUTE(I81-H81),0),0) -> 08:33:00 | K81: =(J81-INT(J81))*24 -> 8.55 | L81: =(IF(K81<$M$1,$M$1-K81,"---")) -> --- | M81: =IF(K81>$M$1,K81-$M$1,"---") -> 0.05 | V81: =IFERROR(IF(Table13[[#This Row],[إضافي]]>$O$1,Table13[[#This Row],[إضافي]]-Table13[[#This Row],[إضافي ليلي]],0),"") -> 0 | W81: =IFERROR(IF(Table13[[#This Row],[إضافي]]>$N$1,Table13[[#This Row],[إضافي]]-$N$1,0),"") -> 0 | Z81: =IF(Table13[[#This Row],[موقف تأخير]]<=0.5,"0",Table13[[#This Row],[موقف تأخير]]) -> --- | AC81: =VLOOKUP(Table13[كود الموظف],Table1[[كود الموظف]:[تاريخ التعيين]],3,0) -> 2020-01-01 | AD81: =VLOOKUP(Table13[كود الموظف],'بيانات الموظفين'!A:I,12,0) ->  | AE81: =IFERROR(DATEDIF($AC$1,Table13[[#This Row],[تاريخ التعيين]],"D"),"") ->  | AF81: =Table13[[#This Row],[sal]]/30 ->  | AG81: =VLOOKUP(Table13[كود الموظف],Table1[[كود الموظف]:[القسم]],5,0) -> حسابات | AH81: =VLOOKUP(Table13[كود الموظف],#REF!,23,0) ->  | AI81: =IFERROR(VLOOKUP(Table13[كود الموظف],#REF!,7,0),0) -> 0 | AJ81: =IFERROR(Table13[[#This Row],[الرصيد القديم]]-(COUNTIFS('يومية الحضور والإنصراف'!$B$4:$B$35796,$B81,'يومية الحضور والإنصراف'!$H$4:$H$35796,"أجازة")+((COUNTIFS('يومية الحضور والإنصراف'!$B$4:$B$35796,$B81,'يومية الحضور والإنصراف'!$H$4:$H$35796,"أجازة نصف يوم سنوي")+COUNTIFS('يومية الحضور والإنصراف'!$B$4:$B$35796,$B81,'يومية الحضور والإنصراف'!$I$4:$I$35796,"أجازة نصف يوم سنوي"))/2)),0) -> -1
A82: =Table13[[#This Row],[كود الموظف]]&Table13[[#This Row],[شهر]] -> 20811 | B82: 208 | C82: =IFERROR(VLOOKUP(Table13[كود الموظف],Table1[[كود الموظف]:[إسم الموظف]],2,0),"") -> محمد حسن 9 | D82: 2021-11-07 | E82: =TEXT(Table13[[#This Row],[التاريخ]],"DDDD") -> الأحد | F82: 11 | G82: =IF(Table13[[#This Row],[التاريخ]]="","",YEAR(Table13[[#This Row],[التاريخ]])) -> 2021 | H82: غياب | I82: غياب | J82: =IFERROR(TIME(HOUR(I82-H82),MINUTE(I82-H82),0),0) -> 00:00:00 | K82: =(J82-INT(J82))*24 -> 00:00:00 | L82: =(IF(K82<$M$1,$M$1-K82,"---")) -> 8.5 | M82: =IF(K82>$M$1,K82-$M$1,"---") -> --- | V82: =IFERROR(IF(Table13[[#This Row],[إضافي]]>$O$1,Table13[[#This Row],[إضافي]]-Table13[[#This Row],[إضافي ليلي]],0),"") ->  | W82: =IFERROR(IF(Table13[[#This Row],[إضافي]]>$N$1,Table13[[#This Row],[إضافي]]-$N$1,0),"") ->  | Z82: =IF(Table13[[#This Row],[موقف تأخير]]<=0.5,"0",Table13[[#This Row],[موقف تأخير]]) -> 8.5 | AC82: =VLOOKUP(Table13[كود الموظف],Table1[[كود الموظف]:[تاريخ التعيين]],3,0) -> 2020-01-01 | AD82: =VLOOKUP(Table13[كود الموظف],'بيانات الموظفين'!A:I,12,0) ->  | AE82: =IFERROR(DATEDIF($AC$1,Table13[[#This Row],[تاريخ التعيين]],"D"),"") ->  | AF82: =Table13[[#This Row],[sal]]/30 ->  | AG82: =VLOOKUP(Table13[كود الموظف],Table1[[كود الموظف]:[القسم]],5,0) -> حسابات | AH82: =VLOOKUP(Table13[كود الموظف],#REF!,23,0) ->  | AI82: =IFERROR(VLOOKUP(Table13[كود الموظف],#REF!,7,0),0) -> 0 | AJ82: =IFERROR(Table13[[#This Row],[الرصيد القديم]]-(COUNTIFS('يومية الحضور والإنصراف'!$B$4:$B$35796,$B82,'يومية الحضور والإنصراف'!$H$4:$H$35796,"أجازة")+((COUNTIFS('يومية الحضور والإنصراف'!$B$4:$B$35796,$B82,'يومية الحضور والإنصراف'!$H$4:$H$35796,"أجازة نصف يوم سنوي")+COUNTIFS('يومية الحضور والإنصراف'!$B$4:$B$35796,$B82,'يومية الحضور والإنصراف'!$I$4:$I$35796,"أجازة نصف يوم سنوي"))/2)),0) -> -1
A83: =Table13[[#This Row],[كود الموظف]]&Table13[[#This Row],[شهر]] -> 20811 | B83: 208 | C83: =IFERROR(VLOOKUP(Table13[كود الموظف],Table1[[كود الموظف]:[إسم الموظف]],2,0),"") -> محمد حسن 9 | D83: 2021-11-07 | E83: =TEXT(Table13[[#This Row],[التاريخ]],"DDDD") -> الأحد | F83: 11 | G83: =IF(Table13[[#This Row],[التاريخ]]="","",YEAR(Table13[[#This Row],[التاريخ]])) -> 2021 | H83: 08:03:04 | I83: 23:49:56 | J83: =IFERROR(TIME(HOUR(I83-H83),MINUTE(I83-H83),0),0) -> 15:46:00 | K83: =(J83-INT(J83))*24 -> 15.76666667 | L83: =(IF(K83<$M$1,$M$1-K83,"---")) -> --- | M83: =IF(K83>$M$1,K83-$M$1,"---") -> 7.266666667 | V83: =IFERROR(IF(Table13[[#This Row],[إضافي]]>$O$1,Table13[[#This Row],[إضافي]]-Table13[[#This Row],[إضافي ليلي]],0),"") -> 2 | W83: =IFERROR(IF(Table13[[#This Row],[إضافي]]>$N$1,Table13[[#This Row],[إضافي]]-$N$1,0),"") -> 5.266666667 | Z83: =IF(Table13[[#This Row],[موقف تأخير]]<=0.5,"0",Table13[[#This Row],[موقف تأخير]]) -> --- | AC83: =VLOOKUP(Table13[كود الموظف],Table1[[كود الموظف]:[تاريخ التعيين]],3,0) -> 2020-01-01 | AD83: =VLOOKUP(Table13[كود الموظف],'بيانات الموظفين'!A:I,12,0) ->  | AE83: =IFERROR(DATEDIF($AC$1,Table13[[#This Row],[تاريخ التعيين]],"D"),"") ->  | AF83: =Table13[[#This Row],[sal]]/30 ->  | AG83: =VLOOKUP(Table13[كود الموظف],Table1[[كود الموظف]:[القسم]],5,0) -> حسابات | AH83: =VLOOKUP(Table13[كود الموظف],#REF!,23,0) ->  | AI83: =IFERROR(VLOOKUP(Table13[كود الموظف],#REF!,7,0),0) -> 0 | AJ83: =IFERROR(Table13[[#This Row],[الرصيد القديم]]-(COUNTIFS('يومية الحضور والإنصراف'!$B$4:$B$35796,$B83,'يومية الحضور والإنصراف'!$H$4:$H$35796,"أجازة")+((COUNTIFS('يومية الحضور والإنصراف'!$B$4:$B$35796,$B83,'يومية الحضور والإنصراف'!$H$4:$H$35796,"أجازة نصف يوم سنوي")+COUNTIFS('يومية الحضور والإنصراف'!$B$4:$B$35796,$B83,'يومية الحضور والإنصراف'!$I$4:$I$35796,"أجازة نصف يوم سنوي"))/2)),0) -> -1
A84: =Table13[[#This Row],[كود الموظف]]&Table13[[#This Row],[شهر]] -> 20811 | B84: 208 | C84: =IFERROR(VLOOKUP(Table13[كود الموظف],Table1[[كود الموظف]:[إسم الموظف]],2,0),"") -> محمد حسن 9 | D84: 2021-11-07 | E84: =TEXT(Table13[[#This Row],[التاريخ]],"DDDD") -> الأحد | F84: 11 | G84: =IF(Table13[[#This Row],[التاريخ]]="","",YEAR(Table13[[#This Row],[التاريخ]])) -> 2021 | H84: أجازة | I84: أجازة | J84: =IFERROR(TIME(HOUR(I84-H84),MINUTE(I84-H84),0),0) -> 00:00:00 | K84: =(J84-INT(J84))*24 -> 00:00:00 | L84: =(IF(K84<$M$1,$M$1-K84,"---")) -> 8.5 | M84: =IF(K84>$M$1,K84-$M$1,"---") -> --- | V84: =IFERROR(IF(Table13[[#This Row],[إضافي]]>$O$1,Table13[[#This Row],[إضافي]]-Table13[[#This Row],[إضافي ليلي]],0),"") ->  | W84: =IFERROR(IF(Table13[[#This Row],[إضافي]]>$N$1,Table13[[#This Row],[إضافي]]-$N$1,0),"") ->  | Z84: =IF(Table13[[#This Row],[موقف تأخير]]<=0.5,"0",Table13[[#This Row],[موقف تأخير]]) -> 8.5 | AC84: =VLOOKUP(Table13[كود الموظف],Table1[[كود الموظف]:[تاريخ التعيين]],3,0) -> 2020-01-01 | AD84: =VLOOKUP(Table13[كود الموظف],'بيانات الموظفين'!A:I,12,0) ->  | AE84: =IFERROR(DATEDIF($AC$1,Table13[[#This Row],[تاريخ التعيين]],"D"),"") ->  | AF84: =Table13[[#This Row],[sal]]/30 ->  | AG84: =VLOOKUP(Table13[كود الموظف],Table1[[كود الموظف]:[القسم]],5,0) -> حسابات | AH84: =VLOOKUP(Table13[كود الموظف],#REF!,23,0) ->  | AI84: =IFERROR(VLOOKUP(Table13[كود الموظف],#REF!,7,0),0) -> 0 | AJ84: =IFERROR(Table13[[#This Row],[الرصيد القديم]]-(COUNTIFS('يومية الحضور والإنصراف'!$B$4:$B$35796,$B84,'يومية الحضور والإنصراف'!$H$4:$H$35796,"أجازة")+((COUNTIFS('يومية الحضور والإنصراف'!$B$4:$B$35796,$B84,'يومية الحضور والإنصراف'!$H$4:$H$35796,"أجازة نصف يوم سنوي")+COUNTIFS('يومية الحضور والإنصراف'!$B$4:$B$35796,$B84,'يومية الحضور والإنصراف'!$I$4:$I$35796,"أجازة نصف يوم سنوي"))/2)),0) -> -1
A85: =Table13[[#This Row],[كود الموظف]]&Table13[[#This Row],[شهر]] -> 20811 | B85: 208 | C85: =IFERROR(VLOOKUP(Table13[كود الموظف],Table1[[كود الموظف]:[إسم الموظف]],2,0),"") -> محمد حسن 9 | D85: 2021-11-07 | E85: =TEXT(Table13[[#This Row],[التاريخ]],"DDDD") -> الأحد | F85: 11 | G85: =IF(Table13[[#This Row],[التاريخ]]="","",YEAR(Table13[[#This Row],[التاريخ]])) -> 2021 | H85: 08:02:40 | I85: 16:25:26 | J85: =IFERROR(TIME(HOUR(I85-H85),MINUTE(I85-H85),0),0) -> 08:22:00 | K85: =(J85-INT(J85))*24 -> 8.366666667 | L85: =(IF(K85<$M$1,$M$1-K85,"---")) -> 0.1333333333 | M85: =IF(K85>$M$1,K85-$M$1,"---") -> --- | V85: =IFERROR(IF(Table13[[#This Row],[إضافي]]>$O$1,Table13[[#This Row],[إضافي]]-Table13[[#This Row],[إضافي ليلي]],0),"") ->  | W85: =IFERROR(IF(Table13[[#This Row],[إضافي]]>$N$1,Table13[[#This Row],[إضافي]]-$N$1,0),"") ->  | Z85: =IF(Table13[[#This Row],[موقف تأخير]]<=0.5,"0",Table13[[#This Row],[موقف تأخير]]) -> 0 | AC85: =VLOOKUP(Table13[كود الموظف],Table1[[كود الموظف]:[تاريخ التعيين]],3,0) -> 2020-01-01 | AD85: =VLOOKUP(Table13[كود الموظف],'بيانات الموظفين'!A:I,12,0) ->  | AE85: =IFERROR(DATEDIF($AC$1,Table13[[#This Row],[تاريخ التعيين]],"D"),"") ->  | AF85: =Table13[[#This Row],[sal]]/30 ->  | AG85: =VLOOKUP(Table13[كود الموظف],Table1[[كود الموظف]:[القسم]],5,0) -> حسابات | AH85: =VLOOKUP(Table13[كود الموظف],#REF!,23,0) ->  | AI85: =IFERROR(VLOOKUP(Table13[كود الموظف],#REF!,7,0),0) -> 0 | AJ85: =IFERROR(Table13[[#This Row],[الرصيد القديم]]-(COUNTIFS('يومية الحضور والإنصراف'!$B$4:$B$35796,$B85,'يومية الحضور والإنصراف'!$H$4:$H$35796,"أجازة")+((COUNTIFS('يومية الحضور والإنصراف'!$B$4:$B$35796,$B85,'يومية الحضور والإنصراف'!$H$4:$H$35796,"أجازة نصف يوم سنوي")+COUNTIFS('يومية الحضور والإنصراف'!$B$4:$B$35796,$B85,'يومية الحضور والإنصراف'!$I$4:$I$35796,"أجازة نصف يوم سنوي"))/2)),0) -> -1
A86: =Table13[[#This Row],[كود الموظف]]&Table13[[#This Row],[شهر]] -> 20811 | B86: 208 | C86: =IFERROR(VLOOKUP(Table13[كود الموظف],Table1[[كود الموظف]:[إسم الموظف]],2,0),"") -> محمد حسن 9 | D86: 2021-11-07 | E86: =TEXT(Table13[[#This Row],[التاريخ]],"DDDD") -> الأحد | F86: 11 | G86: =IF(Table13[[#This Row],[التاريخ]]="","",YEAR(Table13[[#This Row],[التاريخ]])) -> 2021 | H86: 07:59:16 | I86: 16:27:20 | J86: =IFERROR(TIME(HOUR(I86-H86),MINUTE(I86-H86),0),0) -> 08:28:00 | K86: =(J86-INT(J86))*24 -> 8.466666667 | L86: =(IF(K86<$M$1,$M$1-K86,"---")) -> 0.03333333333 | M86: =IF(K86>$M$1,K86-$M$1,"---") -> --- | V86: =IFERROR(IF(Table13[[#This Row],[إضافي]]>$O$1,Table13[[#This Row],[إضافي]]-Table13[[#This Row],[إضافي ليلي]],0),"") ->  | W86: =IFERROR(IF(Table13[[#This Row],[إضافي]]>$N$1,Table13[[#This Row],[إضافي]]-$N$1,0),"") ->  | Z86: =IF(Table13[[#This Row],[موقف تأخير]]<=0.5,"0",Table13[[#This Row],[موقف تأخير]]) -> 0 | AC86: =VLOOKUP(Table13[كود الموظف],Table1[[كود الموظف]:[تاريخ التعيين]],3,0) -> 2020-01-01 | AD86: =VLOOKUP(Table13[كود الموظف],'بيانات الموظفين'!A:I,12,0) ->  | AE86: =IFERROR(DATEDIF($AC$1,Table13[[#This Row],[تاريخ التعيين]],"D"),"") ->  | AF86: =Table13[[#This Row],[sal]]/30 ->  | AG86: =VLOOKUP(Table13[كود الموظف],Table1[[كود الموظف]:[القسم]],5,0) -> حسابات | AH86: =VLOOKUP(Table13[كود الموظف],#REF!,23,0) ->  | AI86: =IFERROR(VLOOKUP(Table13[كود الموظف],#REF!,7,0),0) -> 0 | AJ86: =IFERROR(Table13[[#This Row],[الرصيد القديم]]-(COUNTIFS('يومية الحضور والإنصراف'!$B$4:$B$35796,$B86,'يومية الحضور والإنصراف'!$H$4:$H$35796,"أجازة")+((COUNTIFS('يومية الحضور والإنصراف'!$B$4:$B$35796,$B86,'يومية الحضور والإنصراف'!$H$4:$H$35796,"أجازة نصف يوم سنوي")+COUNTIFS('يومية الحضور والإنصراف'!$B$4:$B$35796,$B86,'يومية الحضور والإنصراف'!$I$4:$I$35796,"أجازة نصف يوم سنوي"))/2)),0) -> -1
A87: =Table13[[#This Row],[كود الموظف]]&Table13[[#This Row],[شهر]] -> 20811 | B87: 208 | C87: =IFERROR(VLOOKUP(Table13[كود الموظف],Table1[[كود الموظف]:[إسم الموظف]],2,0),"") -> محمد حسن 9 | D87: 2021-11-08 | E87: =TEXT(Table13[[#This Row],[التاريخ]],"DDDD") -> الإثنين | F87: 11 | G87: =IF(Table13[[#This Row],[التاريخ]]="","",YEAR(Table13[[#This Row],[التاريخ]])) -> 2021 | H87: 08:03:05 | I87: 16:26:37 | J87: =IFERROR(TIME(HOUR(I87-H87),MINUTE(I87-H87),0),0) -> 08:23:00 | K87: =(J87-INT(J87))*24 -> 8.383333333 | L87: =(IF(K87<$M$1,$M$1-K87,"---")) -> 0.1166666667 | M87: =IF(K87>$M$1,K87-$M$1,"---") -> --- | V87: =IFERROR(IF(Table13[[#This Row],[إضافي]]>$O$1,Table13[[#This Row],[إضافي]]-Table13[[#This Row],[إضافي ليلي]],0),"") ->  | W87: =IFERROR(IF(Table13[[#This Row],[إضافي]]>$N$1,Table13[[#This Row],[إضافي]]-$N$1,0),"") ->  | Z87: =IF(Table13[[#This Row],[موقف تأخير]]<=0.5,"0",Table13[[#This Row],[موقف تأخير]]) -> 0 | AC87: =VLOOKUP(Table13[كود الموظف],Table1[[كود الموظف]:[تاريخ التعيين]],3,0) -> 2020-01-01 | AD87: =VLOOKUP(Table13[كود الموظف],'بيانات الموظفين'!A:I,12,0) ->  | AE87: =IFERROR(DATEDIF($AC$1,Table13[[#This Row],[تاريخ التعيين]],"D"),"") ->  | AF87: =Table13[[#This Row],[sal]]/30 ->  | AG87: =VLOOKUP(Table13[كود الموظف],Table1[[كود الموظف]:[القسم]],5,0) -> حسابات | AH87: =VLOOKUP(Table13[كود الموظف],#REF!,23,0) ->  | AI87: =IFERROR(VLOOKUP(Table13[كود الموظف],#REF!,7,0),0) -> 0 | AJ87: =IFERROR(Table13[[#This Row],[الرصيد القديم]]-(COUNTIFS('يومية الحضور والإنصراف'!$B$4:$B$35796,$B87,'يومية الحضور والإنصراف'!$H$4:$H$35796,"أجازة")+((COUNTIFS('يومية الحضور والإنصراف'!$B$4:$B$35796,$B87,'يومية الحضور والإنصراف'!$H$4:$H$35796,"أجازة نصف يوم سنوي")+COUNTIFS('يومية الحضور والإنصراف'!$B$4:$B$35796,$B87,'يومية الحضور والإنصراف'!$I$4:$I$35796,"أجازة نصف يوم سنوي"))/2)),0) -> -1
A88: =Table13[[#This Row],[كود الموظف]]&Table13[[#This Row],[شهر]] -> 20911 | B88: 209 | C88: =IFERROR(VLOOKUP(Table13[كود الموظف],Table1[[كود الموظف]:[إسم الموظف]],2,0),"") -> محمد حسن 10 | D88: 2021-10-26 | E88: =TEXT(Table13[[#This Row],[التاريخ]],"DDDD") -> الثلاثاء | F88: 11 | G88: =IF(Table13[[#This Row],[التاريخ]]="","",YEAR(Table13[[#This Row],[التاريخ]])) -> 2021 | H88: 07:55:00 | I88: 16:26:07 | J88: =IFERROR(TIME(HOUR(I88-H88),MINUTE(I88-H88),0),0) -> 08:31:00 | K88: =(J88-INT(J88))*24 -> 8.516666667 | L88: =(IF(K88<$M$1,$M$1-K88,"---")) -> --- | M88: =IF(K88>$M$1,K88-$M$1,"---") -> 0.01666666667 | V88: =IFERROR(IF(Table13[[#This Row],[إضافي]]>$O$1,Table13[[#This Row],[إضافي]]-Table13[[#This Row],[إضافي ليلي]],0),"") -> 0 | W88: =IFERROR(IF(Table13[[#This Row],[إضافي]]>$N$1,Table13[[#This Row],[إضافي]]-$N$1,0),"") -> 0 | Z88: =IF(Table13[[#This Row],[موقف تأخير]]<=0.5,"0",Table13[[#This Row],[موقف تأخير]]) -> --- | AC88: =VLOOKUP(Table13[كود الموظف],Table1[[كود الموظف]:[تاريخ التعيين]],3,0) -> 2020-01-01 | AD88: =VLOOKUP(Table13[كود الموظف],'بيانات الموظفين'!A:I,12,0) ->  | AE88: =IFERROR(DATEDIF($AC$1,Table13[[#This Row],[تاريخ التعيين]],"D"),"") ->  | AF88: =Table13[[#This Row],[sal]]/30 ->  | AG88: =VLOOKUP(Table13[كود الموظف],Table1[[كود الموظف]:[القسم]],5,0) -> حسابات | AH88: =VLOOKUP(Table13[كود الموظف],#REF!,23,0) ->  | AI88: =IFERROR(VLOOKUP(Table13[كود الموظف],#REF!,7,0),0) -> 0 | AJ88: =IFERROR(Table13[[#This Row],[الرصيد القديم]]-(COUNTIFS('يومية الحضور والإنصراف'!$B$4:$B$35796,$B88,'يومية الحضور والإنصراف'!$H$4:$H$35796,"أجازة")+((COUNTIFS('يومية الحضور والإنصراف'!$B$4:$B$35796,$B88,'يومية الحضور والإنصراف'!$H$4:$H$35796,"أجازة نصف يوم سنوي")+COUNTIFS('يومية الحضور والإنصراف'!$B$4:$B$35796,$B88,'يومية الحضور والإنصراف'!$I$4:$I$35796,"أجازة نصف يوم سنوي"))/2)),0) -> 0
A89: =Table13[[#This Row],[كود الموظف]]&Table13[[#This Row],[شهر]] -> 20911 | B89: 209 | C89: =IFERROR(VLOOKUP(Table13[كود الموظف],Table1[[كود الموظف]:[إسم الموظف]],2,0),"") -> محمد حسن 10 | D89: 2021-11-07 | E89: =TEXT(Table13[[#This Row],[التاريخ]],"DDDD") -> الأحد | F89: 11 | G89: =IF(Table13[[#This Row],[التاريخ]]="","",YEAR(Table13[[#This Row],[التاريخ]])) -> 2021 | H89: 08:04:09 | I89: 16:27:23 | J89: =IFERROR(TIME(HOUR(I89-H89),MINUTE(I89-H89),0),0) -> 08:23:00 | K89: =(J89-INT(J89))*24 -> 8.383333333 | L89: =(IF(K89<$M$1,$M$1-K89,"---")) -> 0.1166666667 | M89: =IF(K89>$M$1,K89-$M$1,"---") -> --- | V89: =IFERROR(IF(Table13[[#This Row],[إضافي]]>$O$1,Table13[[#This Row],[إضافي]]-Table13[[#This Row],[إضافي ليلي]],0),"") ->  | W89: =IFERROR(IF(Table13[[#This Row],[إضافي]]>$N$1,Table13[[#This Row],[إضافي]]-$N$1,0),"") ->  | Z89: =IF(Table13[[#This Row],[موقف تأخير]]<=0.5,"0",Table13[[#This Row],[موقف تأخير]]) -> 0 | AC89: =VLOOKUP(Table13[كود الموظف],Table1[[كود الموظف]:[تاريخ التعيين]],3,0) -> 2020-01-01 | AD89: =VLOOKUP(Table13[كود الموظف],'بيانات الموظفين'!A:I,12,0) ->  | AE89: =IFERROR(DATEDIF($AC$1,Table13[[#This Row],[تاريخ التعيين]],"D"),"") ->  | AF89: =Table13[[#This Row],[sal]]/30 ->  | AG89: =VLOOKUP(Table13[كود الموظف],Table1[[كود الموظف]:[القسم]],5,0) -> حسابات | AH89: =VLOOKUP(Table13[كود الموظف],#REF!,23,0) ->  | AI89: =IFERROR(VLOOKUP(Table13[كود الموظف],#REF!,7,0),0) -> 0 | AJ89: =IFERROR(Table13[[#This Row],[الرصيد القديم]]-(COUNTIFS('يومية الحضور والإنصراف'!$B$4:$B$35796,$B89,'يومية الحضور والإنصراف'!$H$4:$H$35796,"أجازة")+((COUNTIFS('يومية الحضور والإنصراف'!$B$4:$B$35796,$B89,'يومية الحضور والإنصراف'!$H$4:$H$35796,"أجازة نصف يوم سنوي")+COUNTIFS('يومية الحضور والإنصراف'!$B$4:$B$35796,$B89,'يومية الحضور والإنصراف'!$I$4:$I$35796,"أجازة نصف يوم سنوي"))/2)),0) -> 0
A90: =Table13[[#This Row],[كود الموظف]]&Table13[[#This Row],[شهر]] -> 20911 | B90: 209 | C90: =IFERROR(VLOOKUP(Table13[كود الموظف],Table1[[كود الموظف]:[إسم الموظف]],2,0),"") -> محمد حسن 10 | D90: 2021-11-07 | E90: =TEXT(Table13[[#This Row],[التاريخ]],"DDDD") -> الأحد | F90: 11 | G90: =IF(Table13[[#This Row],[التاريخ]]="","",YEAR(Table13[[#This Row],[التاريخ]])) -> 2021 | H90: 07:55:08 | I90: 16:29:16 | J90: =IFERROR(TIME(HOUR(I90-H90),MINUTE(I90-H90),0),0) -> 08:34:00 | K90: =(J90-INT(J90))*24 -> 8.566666667 | L90: =(IF(K90<$M$1,$M$1-K90,"---")) -> --- | M90: =IF(K90>$M$1,K90-$M$1,"---") -> 0.06666666667 | V90: =IFERROR(IF(Table13[[#This Row],[إضافي]]>$O$1,Table13[[#This Row],[إضافي]]-Table13[[#This Row],[إضافي ليلي]],0),"") -> 0 | W90: =IFERROR(IF(Table13[[#This Row],[إضافي]]>$N$1,Table13[[#This Row],[إضافي]]-$N$1,0),"") -> 0 | Z90: =IF(Table13[[#This Row],[موقف تأخير]]<=0.5,"0",Table13[[#This Row],[موقف تأخير]]) -> --- | AC90: =VLOOKUP(Table13[كود الموظف],Table1[[كود الموظف]:[تاريخ التعيين]],3,0) -> 2020-01-01 | AD90: =VLOOKUP(Table13[كود الموظف],'بيانات الموظفين'!A:I,12,0) ->  | AE90: =IFERROR(DATEDIF($AC$1,Table13[[#This Row],[تاريخ التعيين]],"D"),"") ->  | AF90: =Table13[[#This Row],[sal]]/30 ->  | AG90: =VLOOKUP(Table13[كود الموظف],Table1[[كود الموظف]:[القسم]],5,0) -> حسابات | AH90: =VLOOKUP(Table13[كود الموظف],#REF!,23,0) ->  | AI90: =IFERROR(VLOOKUP(Table13[كود الموظف],#REF!,7,0),0) -> 0 | AJ90: =IFERROR(Table13[[#This Row],[الرصيد القديم]]-(COUNTIFS('يومية الحضور والإنصراف'!$B$4:$B$35796,$B90,'يومية الحضور والإنصراف'!$H$4:$H$35796,"أجازة")+((COUNTIFS('يومية الحضور والإنصراف'!$B$4:$B$35796,$B90,'يومية الحضور والإنصراف'!$H$4:$H$35796,"أجازة نصف يوم سنوي")+COUNTIFS('يومية الحضور والإنصراف'!$B$4:$B$35796,$B90,'يومية الحضور والإنصراف'!$I$4:$I$35796,"أجازة نصف يوم سنوي"))/2)),0) -> 0
A91: =Table13[[#This Row],[كود الموظف]]&Table13[[#This Row],[شهر]] -> 20911 | B91: 209 | C91: =IFERROR(VLOOKUP(Table13[كود الموظف],Table1[[كود الموظف]:[إسم الموظف]],2,0),"") -> محمد حسن 10 | D91: 2021-11-07 | E91: =TEXT(Table13[[#This Row],[التاريخ]],"DDDD") -> الأحد | F91: 11 | G91: =IF(Table13[[#This Row],[التاريخ]]="","",YEAR(Table13[[#This Row],[التاريخ]])) -> 2021 | H91: 07:55:13 | I91: 16:22:54 | J91: =IFERROR(TIME(HOUR(I91-H91),MINUTE(I91-H91),0),0) -> 08:27:00 | K91: =(J91-INT(J91))*24 -> 8.45 | L91: =(IF(K91<$M$1,$M$1-K91,"---")) -> 0.05 | M91: =IF(K91>$M$1,K91-$M$1,"---") -> --- | V91: =IFERROR(IF(Table13[[#This Row],[إضافي]]>$O$1,Table13[[#This Row],[إضافي]]-Table13[[#This Row],[إضافي ليلي]],0),"") ->  | W91: =IFERROR(IF(Table13[[#This Row],[إضافي]]>$N$1,Table13[[#This Row],[إضافي]]-$N$1,0),"") ->  | Z91: =IF(Table13[[#This Row],[موقف تأخير]]<=0.5,"0",Table13[[#This Row],[موقف تأخير]]) -> 0 | AC91: =VLOOKUP(Table13[كود الموظف],Table1[[كود الموظف]:[تاريخ التعيين]],3,0) -> 2020-01-01 | AD91: =VLOOKUP(Table13[كود الموظف],'بيانات الموظفين'!A:I,12,0) ->  | AE91: =IFERROR(DATEDIF($AC$1,Table13[[#This Row],[تاريخ التعيين]],"D"),"") ->  | AF91: =Table13[[#This Row],[sal]]/30 ->  | AG91: =VLOOKUP(Table13[كود الموظف],Table1[[كود الموظف]:[القسم]],5,0) -> حسابات | AH91: =VLOOKUP(Table13[كود الموظف],#REF!,23,0) ->  | AI91: =IFERROR(VLOOKUP(Table13[كود الموظف],#REF!,7,0),0) -> 0 | AJ91: =IFERROR(Table13[[#This Row],[الرصيد القديم]]-(COUNTIFS('يومية الحضور والإنصراف'!$B$4:$B$35796,$B91,'يومية الحضور والإنصراف'!$H$4:$H$35796,"أجازة")+((COUNTIFS('يومية الحضور والإنصراف'!$B$4:$B$35796,$B91,'يومية الحضور والإنصراف'!$H$4:$H$35796,"أجازة نصف يوم سنوي")+COUNTIFS('يومية الحضور والإنصراف'!$B$4:$B$35796,$B91,'يومية الحضور والإنصراف'!$I$4:$I$35796,"أجازة نصف يوم سنوي"))/2)),0) -> 0
A92: =Table13[[#This Row],[كود الموظف]]&Table13[[#This Row],[شهر]] -> 20911 | B92: 209 | C92: =IFERROR(VLOOKUP(Table13[كود الموظف],Table1[[كود الموظف]:[إسم الموظف]],2,0),"") -> محمد حسن 10 | D92: 2021-11-07 | E92: =TEXT(Table13[[#This Row],[التاريخ]],"DDDD") -> الأحد | F92: 11 | G92: =IF(Table13[[#This Row],[التاريخ]]="","",YEAR(Table13[[#This Row],[التاريخ]])) -> 2021 | H92: 07:55:52 | I92: 16:31:42 | J92: =IFERROR(TIME(HOUR(I92-H92),MINUTE(I92-H92),0),0) -> 08:35:00 | K92: =(J92-INT(J92))*24 -> 8.583333333 | L92: =(IF(K92<$M$1,$M$1-K92,"---")) -> --- | M92: =IF(K92>$M$1,K92-$M$1,"---") -> 0.08333333333 | V92: =IFERROR(IF(Table13[[#This Row],[إضافي]]>$O$1,Table13[[#This Row],[إضافي]]-Table13[[#This Row],[إضافي ليلي]],0),"") -> 0 | W92: =IFERROR(IF(Table13[[#This Row],[إضافي]]>$N$1,Table13[[#This Row],[إضافي]]-$N$1,0),"") -> 0 | Z92: =IF(Table13[[#This Row],[موقف تأخير]]<=0.5,"0",Table13[[#This Row],[موقف تأخير]]) -> --- | AC92: =VLOOKUP(Table13[كود الموظف],Table1[[كود الموظف]:[تاريخ التعيين]],3,0) -> 2020-01-01 | AD92: =VLOOKUP(Table13[كود الموظف],'بيانات الموظفين'!A:I,12,0) ->  | AE92: =IFERROR(DATEDIF($AC$1,Table13[[#This Row],[تاريخ التعيين]],"D"),"") ->  | AF92: =Table13[[#This Row],[sal]]/30 ->  | AG92: =VLOOKUP(Table13[كود الموظف],Table1[[كود الموظف]:[القسم]],5,0) -> حسابات | AH92: =VLOOKUP(Table13[كود الموظف],#REF!,23,0) ->  | AI92: =IFERROR(VLOOKUP(Table13[كود الموظف],#REF!,7,0),0) -> 0 | AJ92: =IFERROR(Table13[[#This Row],[الرصيد القديم]]-(COUNTIFS('يومية الحضور والإنصراف'!$B$4:$B$35796,$B92,'يومية الحضور والإنصراف'!$H$4:$H$35796,"أجازة")+((COUNTIFS('يومية الحضور والإنصراف'!$B$4:$B$35796,$B92,'يومية الحضور والإنصراف'!$H$4:$H$35796,"أجازة نصف يوم سنوي")+COUNTIFS('يومية الحضور والإنصراف'!$B$4:$B$35796,$B92,'يومية الحضور والإنصراف'!$I$4:$I$35796,"أجازة نصف يوم سنوي"))/2)),0) -> 0
A93: =Table13[[#This Row],[كود الموظف]]&Table13[[#This Row],[شهر]] -> 20911 | B93: 209 | C93: =IFERROR(VLOOKUP(Table13[كود الموظف],Table1[[كود الموظف]:[إسم الموظف]],2,0),"") -> محمد حسن 10 | D93: 2021-11-07 | E93: =TEXT(Table13[[#This Row],[التاريخ]],"DDDD") -> الأحد | F93: 11 | G93: =IF(Table13[[#This Row],[التاريخ]]="","",YEAR(Table13[[#This Row],[التاريخ]])) -> 2021 | H93: 07:54:22 | I93: 16:30:06 | J93: =IFERROR(TIME(HOUR(I93-H93),MINUTE(I93-H93),0),0) -> 08:35:00 | K93: =(J93-INT(J93))*24 -> 8.583333333 | L93: =(IF(K93<$M$1,$M$1-K93,"---")) -> --- | M93: =IF(K93>$M$1,K93-$M$1,"---") -> 0.08333333333 | V93: =IFERROR(IF(Table13[[#This Row],[إضافي]]>$O$1,Table13[[#This Row],[إضافي]]-Table13[[#This Row],[إضافي ليلي]],0),"") -> 0 | W93: =IFERROR(IF(Table13[[#This Row],[إضافي]]>$N$1,Table13[[#This Row],[إضافي]]-$N$1,0),"") -> 0 | Z93: =IF(Table13[[#This Row],[موقف تأخير]]<=0.5,"0",Table13[[#This Row],[موقف تأخير]]) -> --- | AC93: =VLOOKUP(Table13[كود الموظف],Table1[[كود الموظف]:[تاريخ التعيين]],3,0) -> 2020-01-01 | AD93: =VLOOKUP(Table13[كود الموظف],'بيانات الموظفين'!A:I,12,0) ->  | AE93: =IFERROR(DATEDIF($AC$1,Table13[[#This Row],[تاريخ التعيين]],"D"),"") ->  | AF93: =Table13[[#This Row],[sal]]/30 ->  | AG93: =VLOOKUP(Table13[كود الموظف],Table1[[كود الموظف]:[القسم]],5,0) -> حسابات | AH93: =VLOOKUP(Table13[كود الموظف],#REF!,23,0) ->  | AI93: =IFERROR(VLOOKUP(Table13[كود الموظف],#REF!,7,0),0) -> 0 | AJ93: =IFERROR(Table13[[#This Row],[الرصيد القديم]]-(COUNTIFS('يومية الحضور والإنصراف'!$B$4:$B$35796,$B93,'يومية الحضور والإنصراف'!$H$4:$H$35796,"أجازة")+((COUNTIFS('يومية الحضور والإنصراف'!$B$4:$B$35796,$B93,'يومية الحضور والإنصراف'!$H$4:$H$35796,"أجازة نصف يوم سنوي")+COUNTIFS('يومية الحضور والإنصراف'!$B$4:$B$35796,$B93,'يومية الحضور والإنصراف'!$I$4:$I$35796,"أجازة نصف يوم سنوي"))/2)),0) -> 0
A94: =Table13[[#This Row],[كود الموظف]]&Table13[[#This Row],[شهر]] -> 20911 | B94: 209 | C94: =IFERROR(VLOOKUP(Table13[كود الموظف],Table1[[كود الموظف]:[إسم الموظف]],2,0),"") -> محمد حسن 10 | D94: 2021-11-07 | E94: =TEXT(Table13[[#This Row],[التاريخ]],"DDDD") -> الأحد | F94: 11 | G94: =IF(Table13[[#This Row],[التاريخ]]="","",YEAR(Table13[[#This Row],[التاريخ]])) -> 2021 | H94: غياب | I94: غياب | J94: =IFERROR(TIME(HOUR(I94-H94),MINUTE(I94-H94),0),0) -> 00:00:00 | K94: =(J94-INT(J94))*24 -> 00:00:00 | L94: =(IF(K94<$M$1,$M$1-K94,"---")) -> 8.5 | M94: =IF(K94>$M$1,K94-$M$1,"---") -> --- | V94: =IFERROR(IF(Table13[[#This Row],[إضافي]]>$O$1,Table13[[#This Row],[إضافي]]-Table13[[#This Row],[إضافي ليلي]],0),"") ->  | W94: =IFERROR(IF(Table13[[#This Row],[إضافي]]>$N$1,Table13[[#This Row],[إضافي]]-$N$1,0),"") ->  | Z94: =IF(Table13[[#This Row],[موقف تأخير]]<=0.5,"0",Table13[[#This Row],[موقف تأخير]]) -> 8.5 | AC94: =VLOOKUP(Table13[كود الموظف],Table1[[كود الموظف]:[تاريخ التعيين]],3,0) -> 2020-01-01 | AD94: =VLOOKUP(Table13[كود الموظف],'بيانات الموظفين'!A:I,12,0) ->  | AE94: =IFERROR(DATEDIF($AC$1,Table13[[#This Row],[تاريخ التعيين]],"D"),"") ->  | AF94: =Table13[[#This Row],[sal]]/30 ->  | AG94: =VLOOKUP(Table13[كود الموظف],Table1[[كود الموظف]:[القسم]],5,0) -> حسابات | AH94: =VLOOKUP(Table13[كود الموظف],#REF!,23,0) ->  | AI94: =IFERROR(VLOOKUP(Table13[كود الموظف],#REF!,7,0),0) -> 0 | AJ94: =IFERROR(Table13[[#This Row],[الرصيد القديم]]-(COUNTIFS('يومية الحضور والإنصراف'!$B$4:$B$35796,$B94,'يومية الحضور والإنصراف'!$H$4:$H$35796,"أجازة")+((COUNTIFS('يومية الحضور والإنصراف'!$B$4:$B$35796,$B94,'يومية الحضور والإنصراف'!$H$4:$H$35796,"أجازة نصف يوم سنوي")+COUNTIFS('يومية الحضور والإنصراف'!$B$4:$B$35796,$B94,'يومية الحضور والإنصراف'!$I$4:$I$35796,"أجازة نصف يوم سنوي"))/2)),0) -> 0
A95: =Table13[[#This Row],[كود الموظف]]&Table13[[#This Row],[شهر]] -> 20911 | B95: 209 | C95: =IFERROR(VLOOKUP(Table13[كود الموظف],Table1[[كود الموظف]:[إسم الموظف]],2,0),"") -> محمد حسن 10 | D95: 2021-11-07 | E95: =TEXT(Table13[[#This Row],[التاريخ]],"DDDD") -> الأحد | F95: 11 | G95: =IF(Table13[[#This Row],[التاريخ]]="","",YEAR(Table13[[#This Row],[التاريخ]])) -> 2021 | H95: 08:00:53 | I95: 16:31:39 | J95: =IFERROR(TIME(HOUR(I95-H95),MINUTE(I95-H95),0),0) -> 08:30:00 | K95: =(J95-INT(J95))*24 -> 8.5 | L95: =(IF(K95<$M$1,$M$1-K95,"---")) -> --- | M95: =IF(K95>$M$1,K95-$M$1,"---") -> --- | V95: =IFERROR(IF(Table13[[#This Row],[إضافي]]>$O$1,Table13[[#This Row],[إضافي]]-Table13[[#This Row],[إضافي ليلي]],0),"") ->  | W95: =IFERROR(IF(Table13[[#This Row],[إضافي]]>$N$1,Table13[[#This Row],[إضافي]]-$N$1,0),"") ->  | Z95: =IF(Table13[[#This Row],[موقف تأخير]]<=0.5,"0",Table13[[#This Row],[موقف تأخير]]) -> --- | AC95: =VLOOKUP(Table13[كود الموظف],Table1[[كود الموظف]:[تاريخ التعيين]],3,0) -> 2020-01-01 | AD95: =VLOOKUP(Table13[كود الموظف],'بيانات الموظفين'!A:I,12,0) ->  | AE95: =IFERROR(DATEDIF($AC$1,Table13[[#This Row],[تاريخ التعيين]],"D"),"") ->  | AF95: =Table13[[#This Row],[sal]]/30 ->  | AG95: =VLOOKUP(Table13[كود الموظف],Table1[[كود الموظف]:[القسم]],5,0) -> حسابات | AH95: =VLOOKUP(Table13[كود الموظف],#REF!,23,0) ->  | AI95: =IFERROR(VLOOKUP(Table13[كود الموظف],#REF!,7,0),0) -> 0 | AJ95: =IFERROR(Table13[[#This Row],[الرصيد القديم]]-(COUNTIFS('يومية الحضور والإنصراف'!$B$4:$B$35796,$B95,'يومية الحضور والإنصراف'!$H$4:$H$35796,"أجازة")+((COUNTIFS('يومية الحضور والإنصراف'!$B$4:$B$35796,$B95,'يومية الحضور والإنصراف'!$H$4:$H$35796,"أجازة نصف يوم سنوي")+COUNTIFS('يومية الحضور والإنصراف'!$B$4:$B$35796,$B95,'يومية الحضور والإنصراف'!$I$4:$I$35796,"أجازة نصف يوم سنوي"))/2)),0) -> 0
A96: =Table13[[#This Row],[كود الموظف]]&Table13[[#This Row],[شهر]] -> 20911 | B96: 209 | C96: =IFERROR(VLOOKUP(Table13[كود الموظف],Table1[[كود الموظف]:[إسم الموظف]],2,0),"") -> محمد حسن 10 | D96: 2021-11-08 | E96: =TEXT(Table13[[#This Row],[التاريخ]],"DDDD") -> الإثنين | F96: 11 | G96: =IF(Table13[[#This Row],[التاريخ]]="","",YEAR(Table13[[#This Row],[التاريخ]])) -> 2021 | H96: 07:59:26 | I96: 16:22:39 | J96: =IFERROR(TIME(HOUR(I96-H96),MINUTE(I96-H96),0),0) -> 08:23:00 | K96: =(J96-INT(J96))*24 -> 8.383333333 | L96: =(IF(K96<$M$1,$M$1-K96,"---")) -> 0.1166666667 | M96: =IF(K96>$M$1,K96-$M$1,"---") -> --- | V96: =IFERROR(IF(Table13[[#This Row],[إضافي]]>$O$1,Table13[[#This Row],[إضافي]]-Table13[[#This Row],[إضافي ليلي]],0),"") ->  | W96: =IFERROR(IF(Table13[[#This Row],[إضافي]]>$N$1,Table13[[#This Row],[إضافي]]-$N$1,0),"") ->  | Z96: =IF(Table13[[#This Row],[موقف تأخير]]<=0.5,"0",Table13[[#This Row],[موقف تأخير]]) -> 0 | AC96: =VLOOKUP(Table13[كود الموظف],Table1[[كود الموظف]:[تاريخ التعيين]],3,0) -> 2020-01-01 | AD96: =VLOOKUP(Table13[كود الموظف],'بيانات الموظفين'!A:I,12,0) ->  | AE96: =IFERROR(DATEDIF($AC$1,Table13[[#This Row],[تاريخ التعيين]],"D"),"") ->  | AF96: =Table13[[#This Row],[sal]]/30 ->  | AG96: =VLOOKUP(Table13[كود الموظف],Table1[[كود الموظف]:[القسم]],5,0) -> حسابات | AH96: =VLOOKUP(Table13[كود الموظف],#REF!,23,0) ->  | AI96: =IFERROR(VLOOKUP(Table13[كود الموظف],#REF!,7,0),0) -> 0 | AJ96: =IFERROR(Table13[[#This Row],[الرصيد القديم]]-(COUNTIFS('يومية الحضور والإنصراف'!$B$4:$B$35796,$B96,'يومية الحضور والإنصراف'!$H$4:$H$35796,"أجازة")+((COUNTIFS('يومية الحضور والإنصراف'!$B$4:$B$35796,$B96,'يومية الحضور والإنصراف'!$H$4:$H$35796,"أجازة نصف يوم سنوي")+COUNTIFS('يومية الحضور والإنصراف'!$B$4:$B$35796,$B96,'يومية الحضور والإنصراف'!$I$4:$I$35796,"أجازة نصف يوم سنوي"))/2)),0) -> 0
A97: =Table13[[#This Row],[كود الموظف]]&Table13[[#This Row],[شهر]] -> 21011 | B97: 210 | C97: =IFERROR(VLOOKUP(Table13[كود الموظف],Table1[[كود الموظف]:[إسم الموظف]],2,0),"") -> محمد حسن 11 | D97: 2021-10-26 | E97: =TEXT(Table13[[#This Row],[التاريخ]],"DDDD") -> الثلاثاء | F97: 11 | G97: =IF(Table13[[#This Row],[التاريخ]]="","",YEAR(Table13[[#This Row],[التاريخ]])) -> 2021 | H97: 07:55:00 | I97: 16:23:44 | J97: =IFERROR(TIME(HOUR(I97-H97),MINUTE(I97-H97),0),0) -> 08:28:00 | K97: =(J97-INT(J97))*24 -> 8.466666667 | L97: =(IF(K97<$M$1,$M$1-K97,"---")) -> 0.03333333333 | M97: =IF(K97>$M$1,K97-$M$1,"---") -> --- | V97: =IFERROR(IF(Table13[[#This Row],[إضافي]]>$O$1,Table13[[#This Row],[إضافي]]-Table13[[#This Row],[إضافي ليلي]],0),"") ->  | W97: =IFERROR(IF(Table13[[#This Row],[إضافي]]>$N$1,Table13[[#This Row],[إضافي]]-$N$1,0),"") ->  | Z97: =IF(Table13[[#This Row],[موقف تأخير]]<=0.5,"0",Table13[[#This Row],[موقف تأخير]]) -> 0 | AC97: =VLOOKUP(Table13[كود الموظف],Table1[[كود الموظف]:[تاريخ التعيين]],3,0) -> 2020-01-01 | AD97: =VLOOKUP(Table13[كود الموظف],'بيانات الموظفين'!A:I,12,0) ->  | AE97: =IFERROR(DATEDIF($AC$1,Table13[[#This Row],[تاريخ التعيين]],"D"),"") ->  | AF97: =Table13[[#This Row],[sal]]/30 ->  | AG97: =VLOOKUP(Table13[كود الموظف],Table1[[كود الموظف]:[القسم]],5,0) -> حسابات | AH97: =VLOOKUP(Table13[كود الموظف],#REF!,23,0) ->  | AI97: =IFERROR(VLOOKUP(Table13[كود الموظف],#REF!,7,0),0) -> 0 | AJ97: =IFERROR(Table13[[#This Row],[الرصيد القديم]]-(COUNTIFS('يومية الحضور والإنصراف'!$B$4:$B$35796,$B97,'يومية الحضور والإنصراف'!$H$4:$H$35796,"أجازة")+((COUNTIFS('يومية الحضور والإنصراف'!$B$4:$B$35796,$B97,'يومية الحضور والإنصراف'!$H$4:$H$35796,"أجازة نصف يوم سنوي")+COUNTIFS('يومية الحضور والإنصراف'!$B$4:$B$35796,$B97,'يومية الحضور والإنصراف'!$I$4:$I$35796,"أجازة نصف يوم سنوي"))/2)),0) -> 0
A98: =Table13[[#This Row],[كود الموظف]]&Table13[[#This Row],[شهر]] -> 21011 | B98: 210 | C98: =IFERROR(VLOOKUP(Table13[كود الموظف],Table1[[كود الموظف]:[إسم الموظف]],2,0),"") -> محمد حسن 11 | D98: 2021-11-07 | E98: =TEXT(Table13[[#This Row],[التاريخ]],"DDDD") -> الأحد | F98: 11 | G98: =IF(Table13[[#This Row],[التاريخ]]="","",YEAR(Table13[[#This Row],[التاريخ]])) -> 2021 | H98: 08:02:05 | I98: 16:27:03 | J98: =IFERROR(TIME(HOUR(I98-H98),MINUTE(I98-H98),0),0) -> 08:24:00 | K98: =(J98-INT(J98))*24 -> 8.4 | L98: =(IF(K98<$M$1,$M$1-K98,"---")) -> 0.1 | M98: =IF(K98>$M$1,K98-$M$1,"---") -> --- | V98: =IFERROR(IF(Table13[[#This Row],[إضافي]]>$O$1,Table13[[#This Row],[إضافي]]-Table13[[#This Row],[إضافي ليلي]],0),"") ->  | W98: =IFERROR(IF(Table13[[#This Row],[إضافي]]>$N$1,Table13[[#This Row],[إضافي]]-$N$1,0),"") ->  | Z98: =IF(Table13[[#This Row],[موقف تأخير]]<=0.5,"0",Table13[[#This Row],[موقف تأخير]]) -> 0 | AC98: =VLOOKUP(Table13[كود الموظف],Table1[[كود الموظف]:[تاريخ التعيين]],3,0) -> 2020-01-01 | AD98: =VLOOKUP(Table13[كود الموظف],'بيانات الموظفين'!A:I,12,0) ->  | AE98: =IFERROR(DATEDIF($AC$1,Table13[[#This Row],[تاريخ التعيين]],"D"),"") ->  | AF98: =Table13[[#This Row],[sal]]/30 ->  | AG98: =VLOOKUP(Table13[كود الموظف],Table1[[كود الموظف]:[القسم]],5,0) -> حسابات | AH98: =VLOOKUP(Table13[كود الموظف],#REF!,23,0) ->  | AI98: =IFERROR(VLOOKUP(Table13[كود الموظف],#REF!,7,0),0) -> 0 | AJ98: =IFERROR(Table13[[#This Row],[الرصيد القديم]]-(COUNTIFS('يومية الحضور والإنصراف'!$B$4:$B$35796,$B98,'يومية الحضور والإنصراف'!$H$4:$H$35796,"أجازة")+((COUNTIFS('يومية الحضور والإنصراف'!$B$4:$B$35796,$B98,'يومية الحضور والإنصراف'!$H$4:$H$35796,"أجازة نصف يوم سنوي")+COUNTIFS('يومية الحضور والإنصراف'!$B$4:$B$35796,$B98,'يومية الحضور والإنصراف'!$I$4:$I$35796,"أجازة نصف يوم سنوي"))/2)),0) -> 0
A99: =Table13[[#This Row],[كود الموظف]]&Table13[[#This Row],[شهر]] -> 21011 | B99: 210 | C99: =IFERROR(VLOOKUP(Table13[كود الموظف],Table1[[كود الموظف]:[إسم الموظف]],2,0),"") -> محمد حسن 11 | D99: 2021-11-07 | E99: =TEXT(Table13[[#This Row],[التاريخ]],"DDDD") -> الأحد | F99: 11 | G99: =IF(Table13[[#This Row],[التاريخ]]="","",YEAR(Table13[[#This Row],[التاريخ]])) -> 2021 | H99: 08:02:16 | I99: 16:25:12 | J99: =IFERROR(TIME(HOUR(I99-H99),MINUTE(I99-H99),0),0) -> 08:22:00 | K99: =(J99-INT(J99))*24 -> 8.366666667 | L99: =(IF(K99<$M$1,$M$1-K99,"---")) -> 0.1333333333 | M99: =IF(K99>$M$1,K99-$M$1,"---") -> --- | V99: =IFERROR(IF(Table13[[#This Row],[إضافي]]>$O$1,Table13[[#This Row],[إضافي]]-Table13[[#This Row],[إضافي ليلي]],0),"") ->  | W99: =IFERROR(IF(Table13[[#This Row],[إضافي]]>$N$1,Table13[[#This Row],[إضافي]]-$N$1,0),"") ->  | Z99: =IF(Table13[[#This Row],[موقف تأخير]]<=0.5,"0",Table13[[#This Row],[موقف تأخير]]) -> 0 | AC99: =VLOOKUP(Table13[كود الموظف],Table1[[كود الموظف]:[تاريخ التعيين]],3,0) -> 2020-01-01 | AD99: =VLOOKUP(Table13[كود الموظف],'بيانات الموظفين'!A:I,12,0) ->  | AE99: =IFERROR(DATEDIF($AC$1,Table13[[#This Row],[تاريخ التعيين]],"D"),"") ->  | AF99: =Table13[[#This Row],[sal]]/30 ->  | AG99: =VLOOKUP(Table13[كود الموظف],Table1[[كود الموظف]:[القسم]],5,0) -> حسابات | AH99: =VLOOKUP(Table13[كود الموظف],#REF!,23,0) ->  | AI99: =IFERROR(VLOOKUP(Table13[كود الموظف],#REF!,7,0),0) -> 0 | AJ99: =IFERROR(Table13[[#This Row],[الرصيد القديم]]-(COUNTIFS('يومية الحضور والإنصراف'!$B$4:$B$35796,$B99,'يومية الحضور والإنصراف'!$H$4:$H$35796,"أجازة")+((COUNTIFS('يومية الحضور والإنصراف'!$B$4:$B$35796,$B99,'يومية الحضور والإنصراف'!$H$4:$H$35796,"أجازة نصف يوم سنوي")+COUNTIFS('يومية الحضور والإنصراف'!$B$4:$B$35796,$B99,'يومية الحضور والإنصراف'!$I$4:$I$35796,"أجازة نصف يوم سنوي"))/2)),0) -> 0
A100: =Table13[[#This Row],[كود الموظف]]&Table13[[#This Row],[شهر]] -> 21011 | B100: 210 | C100: =IFERROR(VLOOKUP(Table13[كود الموظف],Table1[[كود الموظف]:[إسم الموظف]],2,0),"") -> محمد حسن 11 | D100: 2021-11-07 | E100: =TEXT(Table13[[#This Row],[التاريخ]],"DDDD") -> الأحد | F100: 11 | G100: =IF(Table13[[#This Row],[التاريخ]]="","",YEAR(Table13[[#This Row],[التاريخ]])) -> 2021 | H100: 07:55:00 | I100: 23:49:27 | J100: =IFERROR(TIME(HOUR(I100-H100),MINUTE(I100-H100),0),0) -> 15:54:00 | K100: =(J100-INT(J100))*24 -> 15.9 | L100: =(IF(K100<$M$1,$M$1-K100,"---")) -> --- | M100: =IF(K100>$M$1,K100-$M$1,"---") -> 7.4 | V100: =IFERROR(IF(Table13[[#This Row],[إضافي]]>$O$1,Table13[[#This Row],[إضافي]]-Table13[[#This Row],[إضافي ليلي]],0),"") -> 2 | W100: =IFERROR(IF(Table13[[#This Row],[إضافي]]>$N$1,Table13[[#This Row],[إضافي]]-$N$1,0),"") -> 5.4 | Z100: =IF(Table13[[#This Row],[موقف تأخير]]<=0.5,"0",Table13[[#This Row],[موقف تأخير]]) -> --- | AA100: بمعرفة أ.أحمد لافي | AC100: =VLOOKUP(Table13[كود الموظف],Table1[[كود الموظف]:[تاريخ التعيين]],3,0) -> 2020-01-01 | AD100: =VLOOKUP(Table13[كود الموظف],'بيانات الموظفين'!A:I,12,0) ->  | AE100: =IFERROR(DATEDIF($AC$1,Table13[[#This Row],[تاريخ التعيين]],"D"),"") ->  | AF100: =Table13[[#This Row],[sal]]/30 ->  | AG100: =VLOOKUP(Table13[كود الموظف],Table1[[كود الموظف]:[القسم]],5,0) -> حسابات | AH100: =VLOOKUP(Table13[كود الموظف],#REF!,23,0) ->  | AI100: =IFERROR(VLOOKUP(Table13[كود الموظف],#REF!,7,0),0) -> 0 | AJ100: =IFERROR(Table13[[#This Row],[الرصيد القديم]]-(COUNTIFS('يومية الحضور والإنصراف'!$B$4:$B$35796,$B100,'يومية الحضور والإنصراف'!$H$4:$H$35796,"أجازة")+((COUNTIFS('يومية الحضور والإنصراف'!$B$4:$B$35796,$B100,'يومية الحضور والإنصراف'!$H$4:$H$35796,"أجازة نصف يوم سنوي")+COUNTIFS('يومية الحضور والإنصراف'!$B$4:$B$35796,$B100,'يومية الحضور والإنصراف'!$I$4:$I$35796,"أجازة نصف يوم سنوي"))/2)),0) -> 0
A101: =Table13[[#This Row],[كود الموظف]]&Table13[[#This Row],[شهر]] -> 21011 | B101: 210 | C101: =IFERROR(VLOOKUP(Table13[كود الموظف],Table1[[كود الموظف]:[إسم الموظف]],2,0),"") -> محمد حسن 11 | D101: 2021-11-07 | E101: =TEXT(Table13[[#This Row],[التاريخ]],"DDDD") -> الأحد | F101: 11 | G101: =IF(Table13[[#This Row],[التاريخ]]="","",YEAR(Table13[[#This Row],[التاريخ]])) -> 2021 | H101: 07:51:14 | I101: 23:47:26 | J101: =IFERROR(TIME(HOUR(I101-H101),MINUTE(I101-H101),0),0) -> 15:56:00 | K101: =(J101-INT(J101))*24 -> 15.93333333 | L101: =(IF(K101<$M$1,$M$1-K101,"---")) -> --- | M101: =IF(K101>$M$1,K101-$M$1,"---") -> 7.433333333 | V101: =IFERROR(IF(Table13[[#This Row],[إضافي]]>$O$1,Table13[[#This Row],[إضافي]]-Table13[[#This Row],[إضافي ليلي]],0),"") -> 2 | W101: =IFERROR(IF(Table13[[#This Row],[إضافي]]>$N$1,Table13[[#This Row],[إضافي]]-$N$1,0),"") -> 5.433333333 | Z101: =IF(Table13[[#This Row],[موقف تأخير]]<=0.5,"0",Table13[[#This Row],[موقف تأخير]]) -> --- | AC101: =VLOOKUP(Table13[كود الموظف],Table1[[كود الموظف]:[تاريخ التعيين]],3,0) -> 2020-01-01 | AD101: =VLOOKUP(Table13[كود الموظف],'بيانات الموظفين'!A:I,12,0) ->  | AE101: =IFERROR(DATEDIF($AC$1,Table13[[#This Row],[تاريخ التعيين]],"D"),"") ->  | AF101: =Table13[[#This Row],[sal]]/30 ->  | AG101: =VLOOKUP(Table13[كود الموظف],Table1[[كود الموظف]:[القسم]],5,0) -> حسابات | AH101: =VLOOKUP(Table13[كود الموظف],#REF!,23,0) ->  | AI101: =IFERROR(VLOOKUP(Table13[كود الموظف],#REF!,7,0),0) -> 0 | AJ101: =IFERROR(Table13[[#This Row],[الرصيد القديم]]-(COUNTIFS('يومية الحضور والإنصراف'!$B$4:$B$35796,$B101,'يومية الحضور والإنصراف'!$H$4:$H$35796,"أجازة")+((COUNTIFS('يومية الحضور والإنصراف'!$B$4:$B$35796,$B101,'يومية الحضور والإنصراف'!$H$4:$H$35796,"أجازة نصف يوم سنوي")+COUNTIFS('يومية الحضور والإنصراف'!$B$4:$B$35796,$B101,'يومية الحضور والإنصراف'!$I$4:$I$35796,"أجازة نصف يوم سنوي"))/2)),0) -> 0
A102: =Table13[[#This Row],[كود الموظف]]&Table13[[#This Row],[شهر]] -> 21011 | B102: 210 | C102: =IFERROR(VLOOKUP(Table13[كود الموظف],Table1[[كود الموظف]:[إسم الموظف]],2,0),"") -> محمد حسن 11 | D102: 2021-11-07 | E102: =TEXT(Table13[[#This Row],[التاريخ]],"DDDD") -> الأحد | F102: 11 | G102: =IF(Table13[[#This Row],[التاريخ]]="","",YEAR(Table13[[#This Row],[التاريخ]])) -> 2021 | H102: غياب | I102: غياب | J102: =IFERROR(TIME(HOUR(I102-H102),MINUTE(I102-H102),0),0) -> 00:00:00 | K102: =(J102-INT(J102))*24 -> 00:00:00 | L102: =(IF(K102<$M$1,$M$1-K102,"---")) -> 8.5 | M102: =IF(K102>$M$1,K102-$M$1,"---") -> --- | V102: =IFERROR(IF(Table13[[#This Row],[إضافي]]>$O$1,Table13[[#This Row],[إضافي]]-Table13[[#This Row],[إضافي ليلي]],0),"") ->  | W102: =IFERROR(IF(Table13[[#This Row],[إضافي]]>$N$1,Table13[[#This Row],[إضافي]]-$N$1,0),"") ->  | Z102: =IF(Table13[[#This Row],[موقف تأخير]]<=0.5,"0",Table13[[#This Row],[موقف تأخير]]) -> 8.5 | AC102: =VLOOKUP(Table13[كود الموظف],Table1[[كود الموظف]:[تاريخ التعيين]],3,0) -> 2020-01-01 | AD102: =VLOOKUP(Table13[كود الموظف],'بيانات الموظفين'!A:I,12,0) ->  | AE102: =IFERROR(DATEDIF($AC$1,Table13[[#This Row],[تاريخ التعيين]],"D"),"") ->  | AF102: =Table13[[#This Row],[sal]]/30 ->  | AG102: =VLOOKUP(Table13[كود الموظف],Table1[[كود الموظف]:[القسم]],5,0) -> حسابات | AH102: =VLOOKUP(Table13[كود الموظف],#REF!,23,0) ->  | AI102: =IFERROR(VLOOKUP(Table13[كود الموظف],#REF!,7,0),0) -> 0 | AJ102: =IFERROR(Table13[[#This Row],[الرصيد القديم]]-(COUNTIFS('يومية الحضور والإنصراف'!$B$4:$B$35796,$B102,'يومية الحضور والإنصراف'!$H$4:$H$35796,"أجازة")+((COUNTIFS('يومية الحضور والإنصراف'!$B$4:$B$35796,$B102,'يومية الحضور والإنصراف'!$H$4:$H$35796,"أجازة نصف يوم سنوي")+COUNTIFS('يومية الحضور والإنصراف'!$B$4:$B$35796,$B102,'يومية الحضور والإنصراف'!$I$4:$I$35796,"أجازة نصف يوم سنوي"))/2)),0) -> 0
A103: =Table13[[#This Row],[كود الموظف]]&Table13[[#This Row],[شهر]] -> 21011 | B103: 210 | C103: =IFERROR(VLOOKUP(Table13[كود الموظف],Table1[[كود الموظف]:[إسم الموظف]],2,0),"") -> محمد حسن 11 | D103: 2021-11-07 | E103: =TEXT(Table13[[#This Row],[التاريخ]],"DDDD") -> الأحد | F103: 11 | G103: =IF(Table13[[#This Row],[التاريخ]]="","",YEAR(Table13[[#This Row],[التاريخ]])) -> 2021 | H103: 07:54:14 | I103: 16:27:42 | J103: =IFERROR(TIME(HOUR(I103-H103),MINUTE(I103-H103),0),0) -> 08:33:00 | K103: =(J103-INT(J103))*24 -> 8.55 | L103: =(IF(K103<$M$1,$M$1-K103,"---")) -> --- | M103: =IF(K103>$M$1,K103-$M$1,"---") -> 0.05 | V103: =IFERROR(IF(Table13[[#This Row],[إضافي]]>$O$1,Table13[[#This Row],[إضافي]]-Table13[[#This Row],[إضافي ليلي]],0),"") -> 0 | W103: =IFERROR(IF(Table13[[#This Row],[إضافي]]>$N$1,Table13[[#This Row],[إضافي]]-$N$1,0),"") -> 0 | Z103: =IF(Table13[[#This Row],[موقف تأخير]]<=0.5,"0",Table13[[#This Row],[موقف تأخير]]) -> --- | AC103: =VLOOKUP(Table13[كود الموظف],Table1[[كود الموظف]:[تاريخ التعيين]],3,0) -> 2020-01-01 | AD103: =VLOOKUP(Table13[كود الموظف],'بيانات الموظفين'!A:I,12,0) ->  | AE103: =IFERROR(DATEDIF($AC$1,Table13[[#This Row],[تاريخ التعيين]],"D"),"") ->  | AF103: =Table13[[#This Row],[sal]]/30 ->  | AG103: =VLOOKUP(Table13[كود الموظف],Table1[[كود الموظف]:[القسم]],5,0) -> حسابات | AH103: =VLOOKUP(Table13[كود الموظف],#REF!,23,0) ->  | AI103: =IFERROR(VLOOKUP(Table13[كود الموظف],#REF!,7,0),0) -> 0 | AJ103: =IFERROR(Table13[[#This Row],[الرصيد القديم]]-(COUNTIFS('يومية الحضور والإنصراف'!$B$4:$B$35796,$B103,'يومية الحضور والإنصراف'!$H$4:$H$35796,"أجازة")+((COUNTIFS('يومية الحضور والإنصراف'!$B$4:$B$35796,$B103,'يومية الحضور والإنصراف'!$H$4:$H$35796,"أجازة نصف يوم سنوي")+COUNTIFS('يومية الحضور والإنصراف'!$B$4:$B$35796,$B103,'يومية الحضور والإنصراف'!$I$4:$I$35796,"أجازة نصف يوم سنوي"))/2)),0) -> 0
A104: =Table13[[#This Row],[كود الموظف]]&Table13[[#This Row],[شهر]] -> 21011 | B104: 210 | C104: =IFERROR(VLOOKUP(Table13[كود الموظف],Table1[[كود الموظف]:[إسم الموظف]],2,0),"") -> محمد حسن 11 | D104: 2021-11-07 | E104: =TEXT(Table13[[#This Row],[التاريخ]],"DDDD") -> الأحد | F104: 11 | G104: =IF(Table13[[#This Row],[التاريخ]]="","",YEAR(Table13[[#This Row],[التاريخ]])) -> 2021 | H104: 08:10:00 | I104: 16:28:27 | J104: =IFERROR(TIME(HOUR(I104-H104),MINUTE(I104-H104),0),0) -> 08:18:00 | K104: =(J104-INT(J104))*24 -> 8.3 | L104: =(IF(K104<$M$1,$M$1-K104,"---")) -> 0.2 | M104: =IF(K104>$M$1,K104-$M$1,"---") -> --- | V104: =IFERROR(IF(Table13[[#This Row],[إضافي]]>$O$1,Table13[[#This Row],[إضافي]]-Table13[[#This Row],[إضافي ليلي]],0),"") ->  | W104: =IFERROR(IF(Table13[[#This Row],[إضافي]]>$N$1,Table13[[#This Row],[إضافي]]-$N$1,0),"") ->  | Z104: =IF(Table13[[#This Row],[موقف تأخير]]<=0.5,"0",Table13[[#This Row],[موقف تأخير]]) -> 0 | AC104: =VLOOKUP(Table13[كود الموظف],Table1[[كود الموظف]:[تاريخ التعيين]],3,0) -> 2020-01-01 | AD104: =VLOOKUP(Table13[كود الموظف],'بيانات الموظفين'!A:I,12,0) ->  | AE104: =IFERROR(DATEDIF($AC$1,Table13[[#This Row],[تاريخ التعيين]],"D"),"") ->  | AF104: =Table13[[#This Row],[sal]]/30 ->  | AG104: =VLOOKUP(Table13[كود الموظف],Table1[[كود الموظف]:[القسم]],5,0) -> حسابات | AH104: =VLOOKUP(Table13[كود الموظف],#REF!,23,0) ->  | AI104: =IFERROR(VLOOKUP(Table13[كود الموظف],#REF!,7,0),0) -> 0 | AJ104: =IFERROR(Table13[[#This Row],[الرصيد القديم]]-(COUNTIFS('يومية الحضور والإنصراف'!$B$4:$B$35796,$B104,'يومية الحضور والإنصراف'!$H$4:$H$35796,"أجازة")+((COUNTIFS('يومية الحضور والإنصراف'!$B$4:$B$35796,$B104,'يومية الحضور والإنصراف'!$H$4:$H$35796,"أجازة نصف يوم سنوي")+COUNTIFS('يومية الحضور والإنصراف'!$B$4:$B$35796,$B104,'يومية الحضور والإنصراف'!$I$4:$I$35796,"أجازة نصف يوم سنوي"))/2)),0) -> 0
A105: =Table13[[#This Row],[كود الموظف]]&Table13[[#This Row],[شهر]] -> 21011 | B105: 210 | C105: =IFERROR(VLOOKUP(Table13[كود الموظف],Table1[[كود الموظف]:[إسم الموظف]],2,0),"") -> محمد حسن 11 | D105: 2021-11-08 | E105: =TEXT(Table13[[#This Row],[التاريخ]],"DDDD") -> الإثنين | F105: 11 | G105: =IF(Table13[[#This Row],[التاريخ]]="","",YEAR(Table13[[#This Row],[التاريخ]])) -> 2021 | H105: 07:55:00 | I105: 16:22:29 | J105: =IFERROR(TIME(HOUR(I105-H105),MINUTE(I105-H105),0),0) -> 08:27:00 | K105: =(J105-INT(J105))*24 -> 8.45 | L105: =(IF(K105<$M$1,$M$1-K105,"---")) -> 0.05 | M105: =IF(K105>$M$1,K105-$M$1,"---") -> --- | V105: =IFERROR(IF(Table13[[#This Row],[إضافي]]>$O$1,Table13[[#This Row],[إضافي]]-Table13[[#This Row],[إضافي ليلي]],0),"") ->  | W105: =IFERROR(IF(Table13[[#This Row],[إضافي]]>$N$1,Table13[[#This Row],[إضافي]]-$N$1,0),"") ->  | Z105: =IF(Table13[[#This Row],[موقف تأخير]]<=0.5,"0",Table13[[#This Row],[موقف تأخير]]) -> 0 | AC105: =VLOOKUP(Table13[كود الموظف],Table1[[كود الموظف]:[تاريخ التعيين]],3,0) -> 2020-01-01 | AD105: =VLOOKUP(Table13[كود الموظف],'بيانات الموظفين'!A:I,12,0) ->  | AE105: =IFERROR(DATEDIF($AC$1,Table13[[#This Row],[تاريخ التعيين]],"D"),"") ->  | AF105: =Table13[[#This Row],[sal]]/30 ->  | AG105: =VLOOKUP(Table13[كود الموظف],Table1[[كود الموظف]:[القسم]],5,0) -> حسابات | AH105: =VLOOKUP(Table13[كود الموظف],#REF!,23,0) ->  | AI105: =IFERROR(VLOOKUP(Table13[كود الموظف],#REF!,7,0),0) -> 0 | AJ105: =IFERROR(Table13[[#This Row],[الرصيد القديم]]-(COUNTIFS('يومية الحضور والإنصراف'!$B$4:$B$35796,$B105,'يومية الحضور والإنصراف'!$H$4:$H$35796,"أجازة")+((COUNTIFS('يومية الحضور والإنصراف'!$B$4:$B$35796,$B105,'يومية الحضور والإنصراف'!$H$4:$H$35796,"أجازة نصف يوم سنوي")+COUNTIFS('يومية الحضور والإنصراف'!$B$4:$B$35796,$B105,'يومية الحضور والإنصراف'!$I$4:$I$35796,"أجازة نصف يوم سنوي"))/2)),0) -> 0
A106: =Table13[[#This Row],[كود الموظف]]&Table13[[#This Row],[شهر]] -> 21111 | B106: 211 | C106: =IFERROR(VLOOKUP(Table13[كود الموظف],Table1[[كود الموظف]:[إسم الموظف]],2,0),"") -> محمد حسن 12 | D106: 2021-10-26 | E106: =TEXT(Table13[[#This Row],[التاريخ]],"DDDD") -> الثلاثاء | F106: 11 | G106: =IF(Table13[[#This Row],[التاريخ]]="","",YEAR(Table13[[#This Row],[التاريخ]])) -> 2021 | H106: 08:10:49 | I106: 16:14:30 | J106: =IFERROR(TIME(HOUR(I106-H106),MINUTE(I106-H106),0),0) -> 08:03:00 | K106: =(J106-INT(J106))*24 -> 8.05 | L106: =(IF(K106<$M$1,$M$1-K106,"---")) -> 0.45 | M106: =IF(K106>$M$1,K106-$M$1,"---") -> --- | V106: =IFERROR(IF(Table13[[#This Row],[إضافي]]>$O$1,Table13[[#This Row],[إضافي]]-Table13[[#This Row],[إضافي ليلي]],0),"") ->  | W106: =IFERROR(IF(Table13[[#This Row],[إضافي]]>$N$1,Table13[[#This Row],[إضافي]]-$N$1,0),"") ->  | Z106: =IF(Table13[[#This Row],[موقف تأخير]]<=0.5,"0",Table13[[#This Row],[موقف تأخير]]) -> 0 | AC106: =VLOOKUP(Table13[كود الموظف],Table1[[كود الموظف]:[تاريخ التعيين]],3,0) -> 2020-01-01 | AD106: =VLOOKUP(Table13[كود الموظف],'بيانات الموظفين'!A:I,12,0) ->  | AE106: =IFERROR(DATEDIF($AC$1,Table13[[#This Row],[تاريخ التعيين]],"D"),"") ->  | AF106: =Table13[[#This Row],[sal]]/30 ->  | AG106: =VLOOKUP(Table13[كود الموظف],Table1[[كود الموظف]:[القسم]],5,0) -> حسابات | AH106: =VLOOKUP(Table13[كود الموظف],#REF!,23,0) ->  | AI106: =IFERROR(VLOOKUP(Table13[كود الموظف],#REF!,7,0),0) -> 0 | AJ106: =IFERROR(Table13[[#This Row],[الرصيد القديم]]-(COUNTIFS('يومية الحضور والإنصراف'!$B$4:$B$35796,$B106,'يومية الحضور والإنصراف'!$H$4:$H$35796,"أجازة")+((COUNTIFS('يومية الحضور والإنصراف'!$B$4:$B$35796,$B106,'يومية الحضور والإنصراف'!$H$4:$H$35796,"أجازة نصف يوم سنوي")+COUNTIFS('يومية الحضور والإنصراف'!$B$4:$B$35796,$B106,'يومية الحضور والإنصراف'!$I$4:$I$35796,"أجازة نصف يوم سنوي"))/2)),0) -> 0
A107: =Table13[[#This Row],[كود الموظف]]&Table13[[#This Row],[شهر]] -> 21111 | B107: 211 | C107: =IFERROR(VLOOKUP(Table13[كود الموظف],Table1[[كود الموظف]:[إسم الموظف]],2,0),"") -> محمد حسن 12 | D107: 2021-11-07 | E107: =TEXT(Table13[[#This Row],[التاريخ]],"DDDD") -> الأحد | F107: 11 | G107: =IF(Table13[[#This Row],[التاريخ]]="","",YEAR(Table13[[#This Row],[التاريخ]])) -> 2021 | H107: 07:54:22 | I107: 16:27:52 | J107: =IFERROR(TIME(HOUR(I107-H107),MINUTE(I107-H107),0),0) -> 08:33:00 | K107: =(J107-INT(J107))*24 -> 8.55 | L107: =(IF(K107<$M$1,$M$1-K107,"---")) -> --- | M107: =IF(K107>$M$1,K107-$M$1,"---") -> 0.05 | V107: =IFERROR(IF(Table13[[#This Row],[إضافي]]>$O$1,Table13[[#This Row],[إضافي]]-Table13[[#This Row],[إضافي ليلي]],0),"") -> 0 | W107: =IFERROR(IF(Table13[[#This Row],[إضافي]]>$N$1,Table13[[#This Row],[إضافي]]-$N$1,0),"") -> 0 | Z107: =IF(Table13[[#This Row],[موقف تأخير]]<=0.5,"0",Table13[[#This Row],[موقف تأخير]]) -> --- | AC107: =VLOOKUP(Table13[كود الموظف],Table1[[كود الموظف]:[تاريخ التعيين]],3,0) -> 2020-01-01 | AD107: =VLOOKUP(Table13[كود الموظف],'بيانات الموظفين'!A:I,12,0) ->  | AE107: =IFERROR(DATEDIF($AC$1,Table13[[#This Row],[تاريخ التعيين]],"D"),"") ->  | AF107: =Table13[[#This Row],[sal]]/30 ->  | AG107: =VLOOKUP(Table13[كود الموظف],Table1[[كود الموظف]:[القسم]],5,0) -> حسابات | AH107: =VLOOKUP(Table13[كود الموظف],#REF!,23,0) ->  | AI107: =IFERROR(VLOOKUP(Table13[كود الموظف],#REF!,7,0),0) -> 0 | AJ107: =IFERROR(Table13[[#This Row],[الرصيد القديم]]-(COUNTIFS('يومية الحضور والإنصراف'!$B$4:$B$35796,$B107,'يومية الحضور والإنصراف'!$H$4:$H$35796,"أجازة")+((COUNTIFS('يومية الحضور والإنصراف'!$B$4:$B$35796,$B107,'يومية الحضور والإنصراف'!$H$4:$H$35796,"أجازة نصف يوم سنوي")+COUNTIFS('يومية الحضور والإنصراف'!$B$4:$B$35796,$B107,'يومية الحضور والإنصراف'!$I$4:$I$35796,"أجازة نصف يوم سنوي"))/2)),0) -> 0
A108: =Table13[[#This Row],[كود الموظف]]&Table13[[#This Row],[شهر]] -> 21111 | B108: 211 | C108: =IFERROR(VLOOKUP(Table13[كود الموظف],Table1[[كود الموظف]:[إسم الموظف]],2,0),"") -> محمد حسن 12 | D108: 2021-11-07 | E108: =TEXT(Table13[[#This Row],[التاريخ]],"DDDD") -> الأحد | F108: 11 | G108: =IF(Table13[[#This Row],[التاريخ]]="","",YEAR(Table13[[#This Row],[التاريخ]])) -> 2021 | H108: 07:44:00 | I108: 16:25:15 | J108: =IFERROR(TIME(HOUR(I108-H108),MINUTE(I108-H108),0),0) -> 08:41:00 | K108: =(J108-INT(J108))*24 -> 8.683333333 | L108: =(IF(K108<$M$1,$M$1-K108,"---")) -> --- | M108: =IF(K108>$M$1,K108-$M$1,"---") -> 0.1833333333 | V108: =IFERROR(IF(Table13[[#This Row],[إضافي]]>$O$1,Table13[[#This Row],[إضافي]]-Table13[[#This Row],[إضافي ليلي]],0),"") -> 0 | W108: =IFERROR(IF(Table13[[#This Row],[إضافي]]>$N$1,Table13[[#This Row],[إضافي]]-$N$1,0),"") -> 0 | Z108: =IF(Table13[[#This Row],[موقف تأخير]]<=0.5,"0",Table13[[#This Row],[موقف تأخير]]) -> --- | AC108: =VLOOKUP(Table13[كود الموظف],Table1[[كود الموظف]:[تاريخ التعيين]],3,0) -> 2020-01-01 | AD108: =VLOOKUP(Table13[كود الموظف],'بيانات الموظفين'!A:I,12,0) ->  | AE108: =IFERROR(DATEDIF($AC$1,Table13[[#This Row],[تاريخ التعيين]],"D"),"") ->  | AF108: =Table13[[#This Row],[sal]]/30 ->  | AG108: =VLOOKUP(Table13[كود الموظف],Table1[[كود الموظف]:[القسم]],5,0) -> حسابات | AH108: =VLOOKUP(Table13[كود الموظف],#REF!,23,0) ->  | AI108: =IFERROR(VLOOKUP(Table13[كود الموظف],#REF!,7,0),0) -> 0 | AJ108: =IFERROR(Table13[[#This Row],[الرصيد القديم]]-(COUNTIFS('يومية الحضور والإنصراف'!$B$4:$B$35796,$B108,'يومية الحضور والإنصراف'!$H$4:$H$35796,"أجازة")+((COUNTIFS('يومية الحضور والإنصراف'!$B$4:$B$35796,$B108,'يومية الحضور والإنصراف'!$H$4:$H$35796,"أجازة نصف يوم سنوي")+COUNTIFS('يومية الحضور والإنصراف'!$B$4:$B$35796,$B108,'يومية الحضور والإنصراف'!$I$4:$I$35796,"أجازة نصف يوم سنوي"))/2)),0) -> 0
A109: =Table13[[#This Row],[كود الموظف]]&Table13[[#This Row],[شهر]] -> 21111 | B109: 211 | C109: =IFERROR(VLOOKUP(Table13[كود الموظف],Table1[[كود الموظف]:[إسم الموظف]],2,0),"") -> محمد حسن 12 | D109: 2021-11-07 | E109: =TEXT(Table13[[#This Row],[التاريخ]],"DDDD") -> الأحد | F109: 11 | G109: =IF(Table13[[#This Row],[التاريخ]]="","",YEAR(Table13[[#This Row],[التاريخ]])) -> 2021 | H109: 07:55:00 | I109: 23:49:02 | J109: =IFERROR(TIME(HOUR(I109-H109),MINUTE(I109-H109),0),0) -> 15:54:00 | K109: =(J109-INT(J109))*24 -> 15.9 | L109: =(IF(K109<$M$1,$M$1-K109,"---")) -> --- | M109: =IF(K109>$M$1,K109-$M$1,"---") -> 7.4 | V109: =IFERROR(IF(Table13[[#This Row],[إضافي]]>$O$1,Table13[[#This Row],[إضافي]]-Table13[[#This Row],[إضافي ليلي]],0),"") -> 2 | W109: =IFERROR(IF(Table13[[#This Row],[إضافي]]>$N$1,Table13[[#This Row],[إضافي]]-$N$1,0),"") -> 5.4 | Z109: =IF(Table13[[#This Row],[موقف تأخير]]<=0.5,"0",Table13[[#This Row],[موقف تأخير]]) -> --- | AC109: =VLOOKUP(Table13[كود الموظف],Table1[[كود الموظف]:[تاريخ التعيين]],3,0) -> 2020-01-01 | AD109: =VLOOKUP(Table13[كود الموظف],'بيانات الموظفين'!A:I,12,0) ->  | AE109: =IFERROR(DATEDIF($AC$1,Table13[[#This Row],[تاريخ التعيين]],"D"),"") ->  | AF109: =Table13[[#This Row],[sal]]/30 ->  | AG109: =VLOOKUP(Table13[كود الموظف],Table1[[كود الموظف]:[القسم]],5,0) -> حسابات | AH109: =VLOOKUP(Table13[كود الموظف],#REF!,23,0) ->  | AI109: =IFERROR(VLOOKUP(Table13[كود الموظف],#REF!,7,0),0) -> 0 | AJ109: =IFERROR(Table13[[#This Row],[الرصيد القديم]]-(COUNTIFS('يومية الحضور والإنصراف'!$B$4:$B$35796,$B109,'يومية الحضور والإنصراف'!$H$4:$H$35796,"أجازة")+((COUNTIFS('يومية الحضور والإنصراف'!$B$4:$B$35796,$B109,'يومية الحضور والإنصراف'!$H$4:$H$35796,"أجازة نصف يوم سنوي")+COUNTIFS('يومية الحضور والإنصراف'!$B$4:$B$35796,$B109,'يومية الحضور والإنصراف'!$I$4:$I$35796,"أجازة نصف يوم سنوي"))/2)),0) -> 0
A110: =Table13[[#This Row],[كود الموظف]]&Table13[[#This Row],[شهر]] -> 21111 | B110: 211 | C110: =IFERROR(VLOOKUP(Table13[كود الموظف],Table1[[كود الموظف]:[إسم الموظف]],2,0),"") -> محمد حسن 12 | D110: 2021-11-07 | E110: =TEXT(Table13[[#This Row],[التاريخ]],"DDDD") -> الأحد | F110: 11 | G110: =IF(Table13[[#This Row],[التاريخ]]="","",YEAR(Table13[[#This Row],[التاريخ]])) -> 2021 | H110: 07:53:03 | I110: 23:50:12 | J110: =IFERROR(TIME(HOUR(I110-H110),MINUTE(I110-H110),0),0) -> 15:57:00 | K110: =(J110-INT(J110))*24 -> 15.95 | L110: =(IF(K110<$M$1,$M$1-K110,"---")) -> --- | M110: =IF(K110>$M$1,K110-$M$1,"---") -> 7.45 | V110: =IFERROR(IF(Table13[[#This Row],[إضافي]]>$O$1,Table13[[#This Row],[إضافي]]-Table13[[#This Row],[إضافي ليلي]],0),"") -> 2 | W110: =IFERROR(IF(Table13[[#This Row],[إضافي]]>$N$1,Table13[[#This Row],[إضافي]]-$N$1,0),"") -> 5.45 | Z110: =IF(Table13[[#This Row],[موقف تأخير]]<=0.5,"0",Table13[[#This Row],[موقف تأخير]]) -> --- | AC110: =VLOOKUP(Table13[كود الموظف],Table1[[كود الموظف]:[تاريخ التعيين]],3,0) -> 2020-01-01 | AD110: =VLOOKUP(Table13[كود الموظف],'بيانات الموظفين'!A:I,12,0) ->  | AE110: =IFERROR(DATEDIF($AC$1,Table13[[#This Row],[تاريخ التعيين]],"D"),"") ->  | AF110: =Table13[[#This Row],[sal]]/30 ->  | AG110: =VLOOKUP(Table13[كود الموظف],Table1[[كود الموظف]:[القسم]],5,0) -> حسابات | AH110: =VLOOKUP(Table13[كود الموظف],#REF!,23,0) ->  | AI110: =IFERROR(VLOOKUP(Table13[كود الموظف],#REF!,7,0),0) -> 0 | AJ110: =IFERROR(Table13[[#This Row],[الرصيد القديم]]-(COUNTIFS('يومية الحضور والإنصراف'!$B$4:$B$35796,$B110,'يومية الحضور والإنصراف'!$H$4:$H$35796,"أجازة")+((COUNTIFS('يومية الحضور والإنصراف'!$B$4:$B$35796,$B110,'يومية الحضور والإنصراف'!$H$4:$H$35796,"أجازة نصف يوم سنوي")+COUNTIFS('يومية الحضور والإنصراف'!$B$4:$B$35796,$B110,'يومية الحضور والإنصراف'!$I$4:$I$35796,"أجازة نصف يوم سنوي"))/2)),0) -> 0
A111: =Table13[[#This Row],[كود الموظف]]&Table13[[#This Row],[شهر]] -> 21111 | B111: 211 | C111: =IFERROR(VLOOKUP(Table13[كود الموظف],Table1[[كود الموظف]:[إسم الموظف]],2,0),"") -> محمد حسن 12 | D111: 2021-11-07 | E111: =TEXT(Table13[[#This Row],[التاريخ]],"DDDD") -> الأحد | F111: 11 | G111: =IF(Table13[[#This Row],[التاريخ]]="","",YEAR(Table13[[#This Row],[التاريخ]])) -> 2021 | H111: 08:07:19 | I111: 16:31:22 | J111: =IFERROR(TIME(HOUR(I111-H111),MINUTE(I111-H111),0),0) -> 08:24:00 | K111: =(J111-INT(J111))*24 -> 8.4 | L111: =(IF(K111<$M$1,$M$1-K111,"---")) -> 0.1 | M111: =IF(K111>$M$1,K111-$M$1,"---") -> --- | V111: =IFERROR(IF(Table13[[#This Row],[إضافي]]>$O$1,Table13[[#This Row],[إضافي]]-Table13[[#This Row],[إضافي ليلي]],0),"") ->  | W111: =IFERROR(IF(Table13[[#This Row],[إضافي]]>$N$1,Table13[[#This Row],[إضافي]]-$N$1,0),"") ->  | Z111: =IF(Table13[[#This Row],[موقف تأخير]]<=0.5,"0",Table13[[#This Row],[موقف تأخير]]) -> 0 | AC111: =VLOOKUP(Table13[كود الموظف],Table1[[كود الموظف]:[تاريخ التعيين]],3,0) -> 2020-01-01 | AD111: =VLOOKUP(Table13[كود الموظف],'بيانات الموظفين'!A:I,12,0) ->  | AE111: =IFERROR(DATEDIF($AC$1,Table13[[#This Row],[تاريخ التعيين]],"D"),"") ->  | AF111: =Table13[[#This Row],[sal]]/30 ->  | AG111: =VLOOKUP(Table13[كود الموظف],Table1[[كود الموظف]:[القسم]],5,0) -> حسابات | AH111: =VLOOKUP(Table13[كود الموظف],#REF!,23,0) ->  | AI111: =IFERROR(VLOOKUP(Table13[كود الموظف],#REF!,7,0),0) -> 0 | AJ111: =IFERROR(Table13[[#This Row],[الرصيد القديم]]-(COUNTIFS('يومية الحضور والإنصراف'!$B$4:$B$35796,$B111,'يومية الحضور والإنصراف'!$H$4:$H$35796,"أجازة")+((COUNTIFS('يومية الحضور والإنصراف'!$B$4:$B$35796,$B111,'يومية الحضور والإنصراف'!$H$4:$H$35796,"أجازة نصف يوم سنوي")+COUNTIFS('يومية الحضور والإنصراف'!$B$4:$B$35796,$B111,'يومية الحضور والإنصراف'!$I$4:$I$35796,"أجازة نصف يوم سنوي"))/2)),0) -> 0
A112: =Table13[[#This Row],[كود الموظف]]&Table13[[#This Row],[شهر]] -> 21111 | B112: 211 | C112: =IFERROR(VLOOKUP(Table13[كود الموظف],Table1[[كود الموظف]:[إسم الموظف]],2,0),"") -> محمد حسن 12 | D112: 2021-11-07 | E112: =TEXT(Table13[[#This Row],[التاريخ]],"DDDD") -> الأحد | F112: 11 | G112: =IF(Table13[[#This Row],[التاريخ]]="","",YEAR(Table13[[#This Row],[التاريخ]])) -> 2021 | H112: 08:00:13 | I112: 16:28:44 | J112: =IFERROR(TIME(HOUR(I112-H112),MINUTE(I112-H112),0),0) -> 08:28:00 | K112: =(J112-INT(J112))*24 -> 8.466666667 | L112: =(IF(K112<$M$1,$M$1-K112,"---")) -> 0.03333333333 | M112: =IF(K112>$M$1,K112-$M$1,"---") -> --- | V112: =IFERROR(IF(Table13[[#This Row],[إضافي]]>$O$1,Table13[[#This Row],[إضافي]]-Table13[[#This Row],[إضافي ليلي]],0),"") ->  | W112: =IFERROR(IF(Table13[[#This Row],[إضافي]]>$N$1,Table13[[#This Row],[إضافي]]-$N$1,0),"") ->  | Z112: =IF(Table13[[#This Row],[موقف تأخير]]<=0.5,"0",Table13[[#This Row],[موقف تأخير]]) -> 0 | AC112: =VLOOKUP(Table13[كود الموظف],Table1[[كود الموظف]:[تاريخ التعيين]],3,0) -> 2020-01-01 | AD112: =VLOOKUP(Table13[كود الموظف],'بيانات الموظفين'!A:I,12,0) ->  | AE112: =IFERROR(DATEDIF($AC$1,Table13[[#This Row],[تاريخ التعيين]],"D"),"") ->  | AF112: =Table13[[#This Row],[sal]]/30 ->  | AG112: =VLOOKUP(Table13[كود الموظف],Table1[[كود الموظف]:[القسم]],5,0) -> حسابات | AH112: =VLOOKUP(Table13[كود الموظف],#REF!,23,0) ->  | AI112: =IFERROR(VLOOKUP(Table13[كود الموظف],#REF!,7,0),0) -> 0 | AJ112: =IFERROR(Table13[[#This Row],[الرصيد القديم]]-(COUNTIFS('يومية الحضور والإنصراف'!$B$4:$B$35796,$B112,'يومية الحضور والإنصراف'!$H$4:$H$35796,"أجازة")+((COUNTIFS('يومية الحضور والإنصراف'!$B$4:$B$35796,$B112,'يومية الحضور والإنصراف'!$H$4:$H$35796,"أجازة نصف يوم سنوي")+COUNTIFS('يومية الحضور والإنصراف'!$B$4:$B$35796,$B112,'يومية الحضور والإنصراف'!$I$4:$I$35796,"أجازة نصف يوم سنوي"))/2)),0) -> 0
A113: =Table13[[#This Row],[كود الموظف]]&Table13[[#This Row],[شهر]] -> 21111 | B113: 211 | C113: =IFERROR(VLOOKUP(Table13[كود الموظف],Table1[[كود الموظف]:[إسم الموظف]],2,0),"") -> محمد حسن 12 | D113: 2021-11-07 | E113: =TEXT(Table13[[#This Row],[التاريخ]],"DDDD") -> الأحد | F113: 11 | G113: =IF(Table13[[#This Row],[التاريخ]]="","",YEAR(Table13[[#This Row],[التاريخ]])) -> 2021 | H113: 08:04:36 | I113: 16:26:55 | J113: =IFERROR(TIME(HOUR(I113-H113),MINUTE(I113-H113),0),0) -> 08:22:00 | K113: =(J113-INT(J113))*24 -> 8.366666667 | L113: =(IF(K113<$M$1,$M$1-K113,"---")) -> 0.1333333333 | M113: =IF(K113>$M$1,K113-$M$1,"---") -> --- | V113: =IFERROR(IF(Table13[[#This Row],[إضافي]]>$O$1,Table13[[#This Row],[إضافي]]-Table13[[#This Row],[إضافي ليلي]],0),"") ->  | W113: =IFERROR(IF(Table13[[#This Row],[إضافي]]>$N$1,Table13[[#This Row],[إضافي]]-$N$1,0),"") ->  | Z113: =IF(Table13[[#This Row],[موقف تأخير]]<=0.5,"0",Table13[[#This Row],[موقف تأخير]]) -> 0 | AC113: =VLOOKUP(Table13[كود الموظف],Table1[[كود الموظف]:[تاريخ التعيين]],3,0) -> 2020-01-01 | AD113: =VLOOKUP(Table13[كود الموظف],'بيانات الموظفين'!A:I,12,0) ->  | AE113: =IFERROR(DATEDIF($AC$1,Table13[[#This Row],[تاريخ التعيين]],"D"),"") ->  | AF113: =Table13[[#This Row],[sal]]/30 ->  | AG113: =VLOOKUP(Table13[كود الموظف],Table1[[كود الموظف]:[القسم]],5,0) -> حسابات | AH113: =VLOOKUP(Table13[كود الموظف],#REF!,23,0) ->  | AI113: =IFERROR(VLOOKUP(Table13[كود الموظف],#REF!,7,0),0) -> 0 | AJ113: =IFERROR(Table13[[#This Row],[الرصيد القديم]]-(COUNTIFS('يومية الحضور والإنصراف'!$B$4:$B$35796,$B113,'يومية الحضور والإنصراف'!$H$4:$H$35796,"أجازة")+((COUNTIFS('يومية الحضور والإنصراف'!$B$4:$B$35796,$B113,'يومية الحضور والإنصراف'!$H$4:$H$35796,"أجازة نصف يوم سنوي")+COUNTIFS('يومية الحضور والإنصراف'!$B$4:$B$35796,$B113,'يومية الحضور والإنصراف'!$I$4:$I$35796,"أجازة نصف يوم سنوي"))/2)),0) -> 0
A114: =Table13[[#This Row],[كود الموظف]]&Table13[[#This Row],[شهر]] -> 21111 | B114: 211 | C114: =IFERROR(VLOOKUP(Table13[كود الموظف],Table1[[كود الموظف]:[إسم الموظف]],2,0),"") -> محمد حسن 12 | D114: 2021-11-08 | E114: =TEXT(Table13[[#This Row],[التاريخ]],"DDDD") -> الإثنين | F114: 11 | G114: =IF(Table13[[#This Row],[التاريخ]]="","",YEAR(Table13[[#This Row],[التاريخ]])) -> 2021 | H114: 07:55:00 | I114: 16:24:33 | J114: =IFERROR(TIME(HOUR(I114-H114),MINUTE(I114-H114),0),0) -> 08:29:00 | K114: =(J114-INT(J114))*24 -> 8.483333333 | L114: =(IF(K114<$M$1,$M$1-K114,"---")) -> 0.01666666667 | M114: =IF(K114>$M$1,K114-$M$1,"---") -> --- | V114: =IFERROR(IF(Table13[[#This Row],[إضافي]]>$O$1,Table13[[#This Row],[إضافي]]-Table13[[#This Row],[إضافي ليلي]],0),"") ->  | W114: =IFERROR(IF(Table13[[#This Row],[إضافي]]>$N$1,Table13[[#This Row],[إضافي]]-$N$1,0),"") ->  | Z114: =IF(Table13[[#This Row],[موقف تأخير]]<=0.5,"0",Table13[[#This Row],[موقف تأخير]]) -> 0 | AC114: =VLOOKUP(Table13[كود الموظف],Table1[[كود الموظف]:[تاريخ التعيين]],3,0) -> 2020-01-01 | AD114: =VLOOKUP(Table13[كود الموظف],'بيانات الموظفين'!A:I,12,0) ->  | AE114: =IFERROR(DATEDIF($AC$1,Table13[[#This Row],[تاريخ التعيين]],"D"),"") ->  | AF114: =Table13[[#This Row],[sal]]/30 ->  | AG114: =VLOOKUP(Table13[كود الموظف],Table1[[كود الموظف]:[القسم]],5,0) -> حسابات | AH114: =VLOOKUP(Table13[كود الموظف],#REF!,23,0) ->  | AI114: =IFERROR(VLOOKUP(Table13[كود الموظف],#REF!,7,0),0) -> 0 | AJ114: =IFERROR(Table13[[#This Row],[الرصيد القديم]]-(COUNTIFS('يومية الحضور والإنصراف'!$B$4:$B$35796,$B114,'يومية الحضور والإنصراف'!$H$4:$H$35796,"أجازة")+((COUNTIFS('يومية الحضور والإنصراف'!$B$4:$B$35796,$B114,'يومية الحضور والإنصراف'!$H$4:$H$35796,"أجازة نصف يوم سنوي")+COUNTIFS('يومية الحضور والإنصراف'!$B$4:$B$35796,$B114,'يومية الحضور والإنصراف'!$I$4:$I$35796,"أجازة نصف يوم سنوي"))/2)),0) -> 0
A115: =Table13[[#This Row],[كود الموظف]]&Table13[[#This Row],[شهر]] -> 21211 | B115: 212 | C115: =IFERROR(VLOOKUP(Table13[كود الموظف],Table1[[كود الموظف]:[إسم الموظف]],2,0),"") -> محمد حسن 13 | D115: 2021-10-26 | E115: =TEXT(Table13[[#This Row],[التاريخ]],"DDDD") -> الثلاثاء | F115: 11 | G115: =IF(Table13[[#This Row],[التاريخ]]="","",YEAR(Table13[[#This Row],[التاريخ]])) -> 2021 | H115: 07:53:35 | I115: 16:13:14 | J115: =IFERROR(TIME(HOUR(I115-H115),MINUTE(I115-H115),0),0) -> 08:19:00 | K115: =(J115-INT(J115))*24 -> 8.316666667 | L115: =(IF(K115<$M$1,$M$1-K115,"---")) -> 0.1833333333 | M115: =IF(K115>$M$1,K115-$M$1,"---") -> --- | V115: =IFERROR(IF(Table13[[#This Row],[إضافي]]>$O$1,Table13[[#This Row],[إضافي]]-Table13[[#This Row],[إضافي ليلي]],0),"") ->  | W115: =IFERROR(IF(Table13[[#This Row],[إضافي]]>$N$1,Table13[[#This Row],[إضافي]]-$N$1,0),"") ->  | Z115: =IF(Table13[[#This Row],[موقف تأخير]]<=0.5,"0",Table13[[#This Row],[موقف تأخير]]) -> 0 | AC115: =VLOOKUP(Table13[كود الموظف],Table1[[كود الموظف]:[تاريخ التعيين]],3,0) -> 2020-01-01 | AD115: =VLOOKUP(Table13[كود الموظف],'بيانات الموظفين'!A:I,12,0) ->  | AE115: =IFERROR(DATEDIF($AC$1,Table13[[#This Row],[تاريخ التعيين]],"D"),"") ->  | AF115: =Table13[[#This Row],[sal]]/30 ->  | AG115: =VLOOKUP(Table13[كود الموظف],Table1[[كود الموظف]:[القسم]],5,0) -> حسابات | AH115: =VLOOKUP(Table13[كود الموظف],#REF!,23,0) ->  | AI115: =IFERROR(VLOOKUP(Table13[كود الموظف],#REF!,7,0),0) -> 0 | AJ115: =IFERROR(Table13[[#This Row],[الرصيد القديم]]-(COUNTIFS('يومية الحضور والإنصراف'!$B$4:$B$35796,$B115,'يومية الحضور والإنصراف'!$H$4:$H$35796,"أجازة")+((COUNTIFS('يومية الحضور والإنصراف'!$B$4:$B$35796,$B115,'يومية الحضور والإنصراف'!$H$4:$H$35796,"أجازة نصف يوم سنوي")+COUNTIFS('يومية الحضور والإنصراف'!$B$4:$B$35796,$B115,'يومية الحضور والإنصراف'!$I$4:$I$35796,"أجازة نصف يوم سنوي"))/2)),0) -> -1
A116: =Table13[[#This Row],[كود الموظف]]&Table13[[#This Row],[شهر]] -> 21211 | B116: 212 | C116: =IFERROR(VLOOKUP(Table13[كود الموظف],Table1[[كود الموظف]:[إسم الموظف]],2,0),"") -> محمد حسن 13 | D116: 2021-11-07 | E116: =TEXT(Table13[[#This Row],[التاريخ]],"DDDD") -> الأحد | F116: 11 | G116: =IF(Table13[[#This Row],[التاريخ]]="","",YEAR(Table13[[#This Row],[التاريخ]])) -> 2021 | H116: 08:12:21 | I116: 15:28:00 | J116: =IFERROR(TIME(HOUR(I116-H116),MINUTE(I116-H116),0),0) -> 07:15:00 | K116: =(J116-INT(J116))*24 -> 7.25 | L116: =(IF(K116<$M$1,$M$1-K116,"---")) -> 1.25 | M116: =IF(K116>$M$1,K116-$M$1,"---") -> --- | O116: 1.25 | V116: =IFERROR(IF(Table13[[#This Row],[إضافي]]>$O$1,Table13[[#This Row],[إضافي]]-Table13[[#This Row],[إضافي ليلي]],0),"") ->  | W116: =IFERROR(IF(Table13[[#This Row],[إضافي]]>$N$1,Table13[[#This Row],[إضافي]]-$N$1,0),"") ->  | Z116: =IF(Table13[[#This Row],[موقف تأخير]]<=0.5,"0",Table13[[#This Row],[موقف تأخير]]) -> 1.25 | AC116: =VLOOKUP(Table13[كود الموظف],Table1[[كود الموظف]:[تاريخ التعيين]],3,0) -> 2020-01-01 | AD116: =VLOOKUP(Table13[كود الموظف],'بيانات الموظفين'!A:I,12,0) ->  | AE116: =IFERROR(DATEDIF($AC$1,Table13[[#This Row],[تاريخ التعيين]],"D"),"") ->  | AF116: =Table13[[#This Row],[sal]]/30 ->  | AG116: =VLOOKUP(Table13[كود الموظف],Table1[[كود الموظف]:[القسم]],5,0) -> حسابات | AH116: =VLOOKUP(Table13[كود الموظف],#REF!,23,0) ->  | AI116: =IFERROR(VLOOKUP(Table13[كود الموظف],#REF!,7,0),0) -> 0 | AJ116: =IFERROR(Table13[[#This Row],[الرصيد القديم]]-(COUNTIFS('يومية الحضور والإنصراف'!$B$4:$B$35796,$B116,'يومية الحضور والإنصراف'!$H$4:$H$35796,"أجازة")+((COUNTIFS('يومية الحضور والإنصراف'!$B$4:$B$35796,$B116,'يومية الحضور والإنصراف'!$H$4:$H$35796,"أجازة نصف يوم سنوي")+COUNTIFS('يومية الحضور والإنصراف'!$B$4:$B$35796,$B116,'يومية الحضور والإنصراف'!$I$4:$I$35796,"أجازة نصف يوم سنوي"))/2)),0) -> -1
A117: =Table13[[#This Row],[كود الموظف]]&Table13[[#This Row],[شهر]] -> 21211 | B117: 212 | C117: =IFERROR(VLOOKUP(Table13[كود الموظف],Table1[[كود الموظف]:[إسم الموظف]],2,0),"") -> محمد حسن 13 | D117: 2021-11-07 | E117: =TEXT(Table13[[#This Row],[التاريخ]],"DDDD") -> الأحد | F117: 11 | G117: =IF(Table13[[#This Row],[التاريخ]]="","",YEAR(Table13[[#This Row],[التاريخ]])) -> 2021 | H117: 08:12:50 | I117: 16:30:41 | J117: =IFERROR(TIME(HOUR(I117-H117),MINUTE(I117-H117),0),0) -> 08:17:00 | K117: =(J117-INT(J117))*24 -> 8.283333333 | L117: =(IF(K117<$M$1,$M$1-K117,"---")) -> 0.2166666667 | M117: =IF(K117>$M$1,K117-$M$1,"---") -> --- | V117: =IFERROR(IF(Table13[[#This Row],[إضافي]]>$O$1,Table13[[#This Row],[إضافي]]-Table13[[#This Row],[إضافي ليلي]],0),"") ->  | W117: =IFERROR(IF(Table13[[#This Row],[إضافي]]>$N$1,Table13[[#This Row],[إضافي]]-$N$1,0),"") ->  | Z117: =IF(Table13[[#This Row],[موقف تأخير]]<=0.5,"0",Table13[[#This Row],[موقف تأخير]]) -> 0 | AC117: =VLOOKUP(Table13[كود الموظف],Table1[[كود الموظف]:[تاريخ التعيين]],3,0) -> 2020-01-01 | AD117: =VLOOKUP(Table13[كود الموظف],'بيانات الموظفين'!A:I,12,0) ->  | AE117: =IFERROR(DATEDIF($AC$1,Table13[[#This Row],[تاريخ التعيين]],"D"),"") ->  | AF117: =Table13[[#This Row],[sal]]/30 ->  | AG117: =VLOOKUP(Table13[كود الموظف],Table1[[كود الموظف]:[القسم]],5,0) -> حسابات | AH117: =VLOOKUP(Table13[كود الموظف],#REF!,23,0) ->  | AI117: =IFERROR(VLOOKUP(Table13[كود الموظف],#REF!,7,0),0) -> 0 | AJ117: =IFERROR(Table13[[#This Row],[الرصيد القديم]]-(COUNTIFS('يومية الحضور والإنصراف'!$B$4:$B$35796,$B117,'يومية الحضور والإنصراف'!$H$4:$H$35796,"أجازة")+((COUNTIFS('يومية الحضور والإنصراف'!$B$4:$B$35796,$B117,'يومية الحضور والإنصراف'!$H$4:$H$35796,"أجازة نصف يوم سنوي")+COUNTIFS('يومية الحضور والإنصراف'!$B$4:$B$35796,$B117,'يومية الحضور والإنصراف'!$I$4:$I$35796,"أجازة نصف يوم سنوي"))/2)),0) -> -1
A118: =Table13[[#This Row],[كود الموظف]]&Table13[[#This Row],[شهر]] -> 21211 | B118: 212 | C118: =IFERROR(VLOOKUP(Table13[كود الموظف],Table1[[كود الموظف]:[إسم الموظف]],2,0),"") -> محمد حسن 13 | D118: 2021-11-07 | E118: =TEXT(Table13[[#This Row],[التاريخ]],"DDDD") -> الأحد | F118: 11 | G118: =IF(Table13[[#This Row],[التاريخ]]="","",YEAR(Table13[[#This Row],[التاريخ]])) -> 2021 | H118: أجازة | I118: أجازة | J118: =IFERROR(TIME(HOUR(I118-H118),MINUTE(I118-H118),0),0) -> 00:00:00 | K118: =(J118-INT(J118))*24 -> 00:00:00 | L118: =(IF(K118<$M$1,$M$1-K118,"---")) -> 8.5 | M118: =IF(K118>$M$1,K118-$M$1,"---") -> --- | V118: =IFERROR(IF(Table13[[#This Row],[إضافي]]>$O$1,Table13[[#This Row],[إضافي]]-Table13[[#This Row],[إضافي ليلي]],0),"") ->  | W118: =IFERROR(IF(Table13[[#This Row],[إضافي]]>$N$1,Table13[[#This Row],[إضافي]]-$N$1,0),"") ->  | Z118: =IF(Table13[[#This Row],[موقف تأخير]]<=0.5,"0",Table13[[#This Row],[موقف تأخير]]) -> 8.5 | AC118: =VLOOKUP(Table13[كود الموظف],Table1[[كود الموظف]:[تاريخ التعيين]],3,0) -> 2020-01-01 | AD118: =VLOOKUP(Table13[كود الموظف],'بيانات الموظفين'!A:I,12,0) ->  | AE118: =IFERROR(DATEDIF($AC$1,Table13[[#This Row],[تاريخ التعيين]],"D"),"") ->  | AF118: =Table13[[#This Row],[sal]]/30 ->  | AG118: =VLOOKUP(Table13[كود الموظف],Table1[[كود الموظف]:[القسم]],5,0) -> حسابات | AH118: =VLOOKUP(Table13[كود الموظف],#REF!,23,0) ->  | AI118: =IFERROR(VLOOKUP(Table13[كود الموظف],#REF!,7,0),0) -> 0 | AJ118: =IFERROR(Table13[[#This Row],[الرصيد القديم]]-(COUNTIFS('يومية الحضور والإنصراف'!$B$4:$B$35796,$B118,'يومية الحضور والإنصراف'!$H$4:$H$35796,"أجازة")+((COUNTIFS('يومية الحضور والإنصراف'!$B$4:$B$35796,$B118,'يومية الحضور والإنصراف'!$H$4:$H$35796,"أجازة نصف يوم سنوي")+COUNTIFS('يومية الحضور والإنصراف'!$B$4:$B$35796,$B118,'يومية الحضور والإنصراف'!$I$4:$I$35796,"أجازة نصف يوم سنوي"))/2)),0) -> -1
A119: =Table13[[#This Row],[كود الموظف]]&Table13[[#This Row],[شهر]] -> 21211 | B119: 212 | C119: =IFERROR(VLOOKUP(Table13[كود الموظف],Table1[[كود الموظف]:[إسم الموظف]],2,0),"") -> محمد حسن 13 | D119: 2021-11-07 | E119: =TEXT(Table13[[#This Row],[التاريخ]],"DDDD") -> الأحد | F119: 11 | G119: =IF(Table13[[#This Row],[التاريخ]]="","",YEAR(Table13[[#This Row],[التاريخ]])) -> 2021 | H119: 08:06:48 | I119: 16:31:16 | J119: =IFERROR(TIME(HOUR(I119-H119),MINUTE(I119-H119),0),0) -> 08:24:00 | K119: =(J119-INT(J119))*24 -> 8.4 | L119: =(IF(K119<$M$1,$M$1-K119,"---")) -> 0.1 | M119: =IF(K119>$M$1,K119-$M$1,"---") -> --- | V119: =IFERROR(IF(Table13[[#This Row],[إضافي]]>$O$1,Table13[[#This Row],[إضافي]]-Table13[[#This Row],[إضافي ليلي]],0),"") ->  | W119: =IFERROR(IF(Table13[[#This Row],[إضافي]]>$N$1,Table13[[#This Row],[إضافي]]-$N$1,0),"") ->  | Z119: =IF(Table13[[#This Row],[موقف تأخير]]<=0.5,"0",Table13[[#This Row],[موقف تأخير]]) -> 0 | AC119: =VLOOKUP(Table13[كود الموظف],Table1[[كود الموظف]:[تاريخ التعيين]],3,0) -> 2020-01-01 | AD119: =VLOOKUP(Table13[كود الموظف],'بيانات الموظفين'!A:I,12,0) ->  | AE119: =IFERROR(DATEDIF($AC$1,Table13[[#This Row],[تاريخ التعيين]],"D"),"") ->  | AF119: =Table13[[#This Row],[sal]]/30 ->  | AG119: =VLOOKUP(Table13[كود الموظف],Table1[[كود الموظف]:[القسم]],5,0) -> حسابات | AH119: =VLOOKUP(Table13[كود الموظف],#REF!,23,0) ->  | AI119: =IFERROR(VLOOKUP(Table13[كود الموظف],#REF!,7,0),0) -> 0 | AJ119: =IFERROR(Table13[[#This Row],[الرصيد القديم]]-(COUNTIFS('يومية الحضور والإنصراف'!$B$4:$B$35796,$B119,'يومية الحضور والإنصراف'!$H$4:$H$35796,"أجازة")+((COUNTIFS('يومية الحضور والإنصراف'!$B$4:$B$35796,$B119,'يومية الحضور والإنصراف'!$H$4:$H$35796,"أجازة نصف يوم سنوي")+COUNTIFS('يومية الحضور والإنصراف'!$B$4:$B$35796,$B119,'يومية الحضور والإنصراف'!$I$4:$I$35796,"أجازة نصف يوم سنوي"))/2)),0) -> -1
A120: =Table13[[#This Row],[كود الموظف]]&Table13[[#This Row],[شهر]] -> 21211 | B120: 212 | C120: =IFERROR(VLOOKUP(Table13[كود الموظف],Table1[[كود الموظف]:[إسم الموظف]],2,0),"") -> محمد حسن 13 | D120: 2021-11-07 | E120: =TEXT(Table13[[#This Row],[التاريخ]],"DDDD") -> الأحد | F120: 11 | G120: =IF(Table13[[#This Row],[التاريخ]]="","",YEAR(Table13[[#This Row],[التاريخ]])) -> 2021 | H120: 07:58:48 | I120: 16:30:13 | J120: =IFERROR(TIME(HOUR(I120-H120),MINUTE(I120-H120),0),0) -> 08:31:00 | K120: =(J120-INT(J120))*24 -> 8.516666667 | L120: =(IF(K120<$M$1,$M$1-K120,"---")) -> --- | M120: =IF(K120>$M$1,K120-$M$1,"---") -> 0.01666666667 | V120: =IFERROR(IF(Table13[[#This Row],[إضافي]]>$O$1,Table13[[#This Row],[إضافي]]-Table13[[#This Row],[إضافي ليلي]],0),"") -> 0 | W120: =IFERROR(IF(Table13[[#This Row],[إضافي]]>$N$1,Table13[[#This Row],[إضافي]]-$N$1,0),"") -> 0 | Z120: =IF(Table13[[#This Row],[موقف تأخير]]<=0.5,"0",Table13[[#This Row],[موقف تأخير]]) -> --- | AC120: =VLOOKUP(Table13[كود الموظف],Table1[[كود الموظف]:[تاريخ التعيين]],3,0) -> 2020-01-01 | AD120: =VLOOKUP(Table13[كود الموظف],'بيانات الموظفين'!A:I,12,0) ->  | AE120: =IFERROR(DATEDIF($AC$1,Table13[[#This Row],[تاريخ التعيين]],"D"),"") ->  | AF120: =Table13[[#This Row],[sal]]/30 ->  | AG120: =VLOOKUP(Table13[كود الموظف],Table1[[كود الموظف]:[القسم]],5,0) -> حسابات | AH120: =VLOOKUP(Table13[كود الموظف],#REF!,23,0) ->  | AI120: =IFERROR(VLOOKUP(Table13[كود الموظف],#REF!,7,0),0) -> 0 | AJ120: =IFERROR(Table13[[#This Row],[الرصيد القديم]]-(COUNTIFS('يومية الحضور والإنصراف'!$B$4:$B$35796,$B120,'يومية الحضور والإنصراف'!$H$4:$H$35796,"أجازة")+((COUNTIFS('يومية الحضور والإنصراف'!$B$4:$B$35796,$B120,'يومية الحضور والإنصراف'!$H$4:$H$35796,"أجازة نصف يوم سنوي")+COUNTIFS('يومية الحضور والإنصراف'!$B$4:$B$35796,$B120,'يومية الحضور والإنصراف'!$I$4:$I$35796,"أجازة نصف يوم سنوي"))/2)),0) -> -1
A121: =Table13[[#This Row],[كود الموظف]]&Table13[[#This Row],[شهر]] -> 21211 | B121: 212 | C121: =IFERROR(VLOOKUP(Table13[كود الموظف],Table1[[كود الموظف]:[إسم الموظف]],2,0),"") -> محمد حسن 13 | D121: 2021-11-07 | E121: =TEXT(Table13[[#This Row],[التاريخ]],"DDDD") -> الأحد | F121: 11 | G121: =IF(Table13[[#This Row],[التاريخ]]="","",YEAR(Table13[[#This Row],[التاريخ]])) -> 2021 | H121: 07:57:11 | I121: 16:33:29 | J121: =IFERROR(TIME(HOUR(I121-H121),MINUTE(I121-H121),0),0) -> 08:36:00 | K121: =(J121-INT(J121))*24 -> 8.6 | L121: =(IF(K121<$M$1,$M$1-K121,"---")) -> --- | M121: =IF(K121>$M$1,K121-$M$1,"---") -> 0.1 | V121: =IFERROR(IF(Table13[[#This Row],[إضافي]]>$O$1,Table13[[#This Row],[إضافي]]-Table13[[#This Row],[إضافي ليلي]],0),"") -> 0 | W121: =IFERROR(IF(Table13[[#This Row],[إضافي]]>$N$1,Table13[[#This Row],[إضافي]]-$N$1,0),"") -> 0 | Z121: =IF(Table13[[#This Row],[موقف تأخير]]<=0.5,"0",Table13[[#This Row],[موقف تأخير]]) -> --- | AC121: =VLOOKUP(Table13[كود الموظف],Table1[[كود الموظف]:[تاريخ التعيين]],3,0) -> 2020-01-01 | AD121: =VLOOKUP(Table13[كود الموظف],'بيانات الموظفين'!A:I,12,0) ->  | AE121: =IFERROR(DATEDIF($AC$1,Table13[[#This Row],[تاريخ التعيين]],"D"),"") ->  | AF121: =Table13[[#This Row],[sal]]/30 ->  | AG121: =VLOOKUP(Table13[كود الموظف],Table1[[كود الموظف]:[القسم]],5,0) -> حسابات | AH121: =VLOOKUP(Table13[كود الموظف],#REF!,23,0) ->  | AI121: =IFERROR(VLOOKUP(Table13[كود الموظف],#REF!,7,0),0) -> 0 | AJ121: =IFERROR(Table13[[#This Row],[الرصيد القديم]]-(COUNTIFS('يومية الحضور والإنصراف'!$B$4:$B$35796,$B121,'يومية الحضور والإنصراف'!$H$4:$H$35796,"أجازة")+((COUNTIFS('يومية الحضور والإنصراف'!$B$4:$B$35796,$B121,'يومية الحضور والإنصراف'!$H$4:$H$35796,"أجازة نصف يوم سنوي")+COUNTIFS('يومية الحضور والإنصراف'!$B$4:$B$35796,$B121,'يومية الحضور والإنصراف'!$I$4:$I$35796,"أجازة نصف يوم سنوي"))/2)),0) -> -1
A122: =Table13[[#This Row],[كود الموظف]]&Table13[[#This Row],[شهر]] -> 21211 | B122: 212 | C122: =IFERROR(VLOOKUP(Table13[كود الموظف],Table1[[كود الموظف]:[إسم الموظف]],2,0),"") -> محمد حسن 13 | D122: 2021-11-07 | E122: =TEXT(Table13[[#This Row],[التاريخ]],"DDDD") -> الأحد | F122: 11 | G122: =IF(Table13[[#This Row],[التاريخ]]="","",YEAR(Table13[[#This Row],[التاريخ]])) -> 2021 | H122: 08:10:00 | I122: 16:27:10 | J122: =IFERROR(TIME(HOUR(I122-H122),MINUTE(I122-H122),0),0) -> 08:17:00 | K122: =(J122-INT(J122))*24 -> 8.283333333 | L122: =(IF(K122<$M$1,$M$1-K122,"---")) -> 0.2166666667 | M122: =IF(K122>$M$1,K122-$M$1,"---") -> --- | V122: =IFERROR(IF(Table13[[#This Row],[إضافي]]>$O$1,Table13[[#This Row],[إضافي]]-Table13[[#This Row],[إضافي ليلي]],0),"") ->  | W122: =IFERROR(IF(Table13[[#This Row],[إضافي]]>$N$1,Table13[[#This Row],[إضافي]]-$N$1,0),"") ->  | Z122: =IF(Table13[[#This Row],[موقف تأخير]]<=0.5,"0",Table13[[#This Row],[موقف تأخير]]) -> 0 | AC122: =VLOOKUP(Table13[كود الموظف],Table1[[كود الموظف]:[تاريخ التعيين]],3,0) -> 2020-01-01 | AD122: =VLOOKUP(Table13[كود الموظف],'بيانات الموظفين'!A:I,12,0) ->  | AE122: =IFERROR(DATEDIF($AC$1,Table13[[#This Row],[تاريخ التعيين]],"D"),"") ->  | AF122: =Table13[[#This Row],[sal]]/30 ->  | AG122: =VLOOKUP(Table13[كود الموظف],Table1[[كود الموظف]:[القسم]],5,0) -> حسابات | AH122: =VLOOKUP(Table13[كود الموظف],#REF!,23,0) ->  | AI122: =IFERROR(VLOOKUP(Table13[كود الموظف],#REF!,7,0),0) -> 0 | AJ122: =IFERROR(Table13[[#This Row],[الرصيد القديم]]-(COUNTIFS('يومية الحضور والإنصراف'!$B$4:$B$35796,$B122,'يومية الحضور والإنصراف'!$H$4:$H$35796,"أجازة")+((COUNTIFS('يومية الحضور والإنصراف'!$B$4:$B$35796,$B122,'يومية الحضور والإنصراف'!$H$4:$H$35796,"أجازة نصف يوم سنوي")+COUNTIFS('يومية الحضور والإنصراف'!$B$4:$B$35796,$B122,'يومية الحضور والإنصراف'!$I$4:$I$35796,"أجازة نصف يوم سنوي"))/2)),0) -> -1
A123: =Table13[[#This Row],[كود الموظف]]&Table13[[#This Row],[شهر]] -> 21211 | B123: 212 | C123: =IFERROR(VLOOKUP(Table13[كود الموظف],Table1[[كود الموظف]:[إسم الموظف]],2,0),"") -> محمد حسن 13 | D123: 2021-11-08 | E123: =TEXT(Table13[[#This Row],[التاريخ]],"DDDD") -> الإثنين | F123: 11 | G123: =IF(Table13[[#This Row],[التاريخ]]="","",YEAR(Table13[[#This Row],[التاريخ]])) -> 2021 | H123: 07:53:01 | I123: 16:27:02 | J123: =IFERROR(TIME(HOUR(I123-H123),MINUTE(I123-H123),0),0) -> 08:34:00 | K123: =(J123-INT(J123))*24 -> 8.566666667 | L123: =(IF(K123<$M$1,$M$1-K123,"---")) -> --- | M123: =IF(K123>$M$1,K123-$M$1,"---") -> 0.06666666667 | V123: =IFERROR(IF(Table13[[#This Row],[إضافي]]>$O$1,Table13[[#This Row],[إضافي]]-Table13[[#This Row],[إضافي ليلي]],0),"") -> 0 | W123: =IFERROR(IF(Table13[[#This Row],[إضافي]]>$N$1,Table13[[#This Row],[إضافي]]-$N$1,0),"") -> 0 | Z123: =IF(Table13[[#This Row],[موقف تأخير]]<=0.5,"0",Table13[[#This Row],[موقف تأخير]]) -> --- | AC123: =VLOOKUP(Table13[كود الموظف],Table1[[كود الموظف]:[تاريخ التعيين]],3,0) -> 2020-01-01 | AD123: =VLOOKUP(Table13[كود الموظف],'بيانات الموظفين'!A:I,12,0) ->  | AE123: =IFERROR(DATEDIF($AC$1,Table13[[#This Row],[تاريخ التعيين]],"D"),"") ->  | AF123: =Table13[[#This Row],[sal]]/30 ->  | AG123: =VLOOKUP(Table13[كود الموظف],Table1[[كود الموظف]:[القسم]],5,0) -> حسابات | AH123: =VLOOKUP(Table13[كود الموظف],#REF!,23,0) ->  | AI123: =IFERROR(VLOOKUP(Table13[كود الموظف],#REF!,7,0),0) -> 0 | AJ123: =IFERROR(Table13[[#This Row],[الرصيد القديم]]-(COUNTIFS('يومية الحضور والإنصراف'!$B$4:$B$35796,$B123,'يومية الحضور والإنصراف'!$H$4:$H$35796,"أجازة")+((COUNTIFS('يومية الحضور والإنصراف'!$B$4:$B$35796,$B123,'يومية الحضور والإنصراف'!$H$4:$H$35796,"أجازة نصف يوم سنوي")+COUNTIFS('يومية الحضور والإنصراف'!$B$4:$B$35796,$B123,'يومية الحضور والإنصراف'!$I$4:$I$35796,"أجازة نصف يوم سنوي"))/2)),0) -> -1
A124: =Table13[[#This Row],[كود الموظف]]&Table13[[#This Row],[شهر]] -> 21311 | B124: 213 | C124: =IFERROR(VLOOKUP(Table13[كود الموظف],Table1[[كود الموظف]:[إسم الموظف]],2,0),"") -> محمد حسن 14 | D124: 2021-10-26 | E124: =TEXT(Table13[[#This Row],[التاريخ]],"DDDD") -> الثلاثاء | F124: 11 | G124: =IF(Table13[[#This Row],[التاريخ]]="","",YEAR(Table13[[#This Row],[التاريخ]])) -> 2021 | H124: 07:55:55 | I124: 16:23:55 | J124: =IFERROR(TIME(HOUR(I124-H124),MINUTE(I124-H124),0),0) -> 08:28:00 | K124: =(J124-INT(J124))*24 -> 8.466666667 | L124: =(IF(K124<$M$1,$M$1-K124,"---")) -> 0.03333333333 | M124: =IF(K124>$M$1,K124-$M$1,"---") -> --- | V124: =IFERROR(IF(Table13[[#This Row],[إضافي]]>$O$1,Table13[[#This Row],[إضافي]]-Table13[[#This Row],[إضافي ليلي]],0),"") ->  | W124: =IFERROR(IF(Table13[[#This Row],[إضافي]]>$N$1,Table13[[#This Row],[إضافي]]-$N$1,0),"") ->  | Z124: =IF(Table13[[#This Row],[موقف تأخير]]<=0.5,"0",Table13[[#This Row],[موقف تأخير]]) -> 0 | AC124: =VLOOKUP(Table13[كود الموظف],Table1[[كود الموظف]:[تاريخ التعيين]],3,0) -> 2020-01-01 | AD124: =VLOOKUP(Table13[كود الموظف],'بيانات الموظفين'!A:I,12,0) ->  | AE124: =IFERROR(DATEDIF($AC$1,Table13[[#This Row],[تاريخ التعيين]],"D"),"") ->  | AF124: =Table13[[#This Row],[sal]]/30 ->  | AG124: =VLOOKUP(Table13[كود الموظف],Table1[[كود الموظف]:[القسم]],5,0) -> حسابات | AH124: =VLOOKUP(Table13[كود الموظف],#REF!,23,0) ->  | AI124: =IFERROR(VLOOKUP(Table13[كود الموظف],#REF!,7,0),0) -> 0 | AJ124: =IFERROR(Table13[[#This Row],[الرصيد القديم]]-(COUNTIFS('يومية الحضور والإنصراف'!$B$4:$B$35796,$B124,'يومية الحضور والإنصراف'!$H$4:$H$35796,"أجازة")+((COUNTIFS('يومية الحضور والإنصراف'!$B$4:$B$35796,$B124,'يومية الحضور والإنصراف'!$H$4:$H$35796,"أجازة نصف يوم سنوي")+COUNTIFS('يومية الحضور والإنصراف'!$B$4:$B$35796,$B124,'يومية الحضور والإنصراف'!$I$4:$I$35796,"أجازة نصف يوم سنوي"))/2)),0) -> 0
A125: =Table13[[#This Row],[كود الموظف]]&Table13[[#This Row],[شهر]] -> 21311 | B125: 213 | C125: =IFERROR(VLOOKUP(Table13[كود الموظف],Table1[[كود الموظف]:[إسم الموظف]],2,0),"") -> محمد حسن 14 | D125: 2021-11-07 | E125: =TEXT(Table13[[#This Row],[التاريخ]],"DDDD") -> الأحد | F125: 11 | G125: =IF(Table13[[#This Row],[التاريخ]]="","",YEAR(Table13[[#This Row],[التاريخ]])) -> 2021 | H125: 08:04:53 | I125: 16:28:38 | J125: =IFERROR(TIME(HOUR(I125-H125),MINUTE(I125-H125),0),0) -> 08:23:00 | K125: =(J125-INT(J125))*24 -> 8.383333333 | L125: =(IF(K125<$M$1,$M$1-K125,"---")) -> 0.1166666667 | M125: =IF(K125>$M$1,K125-$M$1,"---") -> --- | V125: =IFERROR(IF(Table13[[#This Row],[إضافي]]>$O$1,Table13[[#This Row],[إضافي]]-Table13[[#This Row],[إضافي ليلي]],0),"") ->  | W125: =IFERROR(IF(Table13[[#This Row],[إضافي]]>$N$1,Table13[[#This Row],[إضافي]]-$N$1,0),"") ->  | Z125: =IF(Table13[[#This Row],[موقف تأخير]]<=0.5,"0",Table13[[#This Row],[موقف تأخير]]) -> 0 | AC125: =VLOOKUP(Table13[كود الموظف],Table1[[كود الموظف]:[تاريخ التعيين]],3,0) -> 2020-01-01 | AD125: =VLOOKUP(Table13[كود الموظف],'بيانات الموظفين'!A:I,12,0) ->  | AE125: =IFERROR(DATEDIF($AC$1,Table13[[#This Row],[تاريخ التعيين]],"D"),"") ->  | AF125: =Table13[[#This Row],[sal]]/30 ->  | AG125: =VLOOKUP(Table13[كود الموظف],Table1[[كود الموظف]:[القسم]],5,0) -> حسابات | AH125: =VLOOKUP(Table13[كود الموظف],#REF!,23,0) ->  | AI125: =IFERROR(VLOOKUP(Table13[كود الموظف],#REF!,7,0),0) -> 0 | AJ125: =IFERROR(Table13[[#This Row],[الرصيد القديم]]-(COUNTIFS('يومية الحضور والإنصراف'!$B$4:$B$35796,$B125,'يومية الحضور والإنصراف'!$H$4:$H$35796,"أجازة")+((COUNTIFS('يومية الحضور والإنصراف'!$B$4:$B$35796,$B125,'يومية الحضور والإنصراف'!$H$4:$H$35796,"أجازة نصف يوم سنوي")+COUNTIFS('يومية الحضور والإنصراف'!$B$4:$B$35796,$B125,'يومية الحضور والإنصراف'!$I$4:$I$35796,"أجازة نصف يوم سنوي"))/2)),0) -> 0
A126: =Table13[[#This Row],[كود الموظف]]&Table13[[#This Row],[شهر]] -> 21311 | B126: 213 | C126: =IFERROR(VLOOKUP(Table13[كود الموظف],Table1[[كود الموظف]:[إسم الموظف]],2,0),"") -> محمد حسن 14 | D126: 2021-11-07 | E126: =TEXT(Table13[[#This Row],[التاريخ]],"DDDD") -> الأحد | F126: 11 | G126: =IF(Table13[[#This Row],[التاريخ]]="","",YEAR(Table13[[#This Row],[التاريخ]])) -> 2021 | H126: 08:02:25 | I126: 16:23:05 | J126: =IFERROR(TIME(HOUR(I126-H126),MINUTE(I126-H126),0),0) -> 08:20:00 | K126: =(J126-INT(J126))*24 -> 8.333333333 | L126: =(IF(K126<$M$1,$M$1-K126,"---")) -> 0.1666666667 | M126: =IF(K126>$M$1,K126-$M$1,"---") -> --- | V126: =IFERROR(IF(Table13[[#This Row],[إضافي]]>$O$1,Table13[[#This Row],[إضافي]]-Table13[[#This Row],[إضافي ليلي]],0),"") ->  | W126: =IFERROR(IF(Table13[[#This Row],[إضافي]]>$N$1,Table13[[#This Row],[إضافي]]-$N$1,0),"") ->  | Z126: =IF(Table13[[#This Row],[موقف تأخير]]<=0.5,"0",Table13[[#This Row],[موقف تأخير]]) -> 0 | AC126: =VLOOKUP(Table13[كود الموظف],Table1[[كود الموظف]:[تاريخ التعيين]],3,0) -> 2020-01-01 | AD126: =VLOOKUP(Table13[كود الموظف],'بيانات الموظفين'!A:I,12,0) ->  | AE126: =IFERROR(DATEDIF($AC$1,Table13[[#This Row],[تاريخ التعيين]],"D"),"") ->  | AF126: =Table13[[#This Row],[sal]]/30 ->  | AG126: =VLOOKUP(Table13[كود الموظف],Table1[[كود الموظف]:[القسم]],5,0) -> حسابات | AH126: =VLOOKUP(Table13[كود الموظف],#REF!,23,0) ->  | AI126: =IFERROR(VLOOKUP(Table13[كود الموظف],#REF!,7,0),0) -> 0 | AJ126: =IFERROR(Table13[[#This Row],[الرصيد القديم]]-(COUNTIFS('يومية الحضور والإنصراف'!$B$4:$B$35796,$B126,'يومية الحضور والإنصراف'!$H$4:$H$35796,"أجازة")+((COUNTIFS('يومية الحضور والإنصراف'!$B$4:$B$35796,$B126,'يومية الحضور والإنصراف'!$H$4:$H$35796,"أجازة نصف يوم سنوي")+COUNTIFS('يومية الحضور والإنصراف'!$B$4:$B$35796,$B126,'يومية الحضور والإنصراف'!$I$4:$I$35796,"أجازة نصف يوم سنوي"))/2)),0) -> 0
A127: =Table13[[#This Row],[كود الموظف]]&Table13[[#This Row],[شهر]] -> 21311 | B127: 213 | C127: =IFERROR(VLOOKUP(Table13[كود الموظف],Table1[[كود الموظف]:[إسم الموظف]],2,0),"") -> محمد حسن 14 | D127: 2021-11-07 | E127: =TEXT(Table13[[#This Row],[التاريخ]],"DDDD") -> الأحد | F127: 11 | G127: =IF(Table13[[#This Row],[التاريخ]]="","",YEAR(Table13[[#This Row],[التاريخ]])) -> 2021 | H127: 07:56:35 | I127: 16:34:43 | J127: =IFERROR(TIME(HOUR(I127-H127),MINUTE(I127-H127),0),0) -> 08:38:00 | K127: =(J127-INT(J127))*24 -> 8.633333333 | L127: =(IF(K127<$M$1,$M$1-K127,"---")) -> --- | M127: =IF(K127>$M$1,K127-$M$1,"---") -> 0.1333333333 | V127: =IFERROR(IF(Table13[[#This Row],[إضافي]]>$O$1,Table13[[#This Row],[إضافي]]-Table13[[#This Row],[إضافي ليلي]],0),"") -> 0 | W127: =IFERROR(IF(Table13[[#This Row],[إضافي]]>$N$1,Table13[[#This Row],[إضافي]]-$N$1,0),"") -> 0 | Z127: =IF(Table13[[#This Row],[موقف تأخير]]<=0.5,"0",Table13[[#This Row],[موقف تأخير]]) -> --- | AC127: =VLOOKUP(Table13[كود الموظف],Table1[[كود الموظف]:[تاريخ التعيين]],3,0) -> 2020-01-01 | AD127: =VLOOKUP(Table13[كود الموظف],'بيانات الموظفين'!A:I,12,0) ->  | AE127: =IFERROR(DATEDIF($AC$1,Table13[[#This Row],[تاريخ التعيين]],"D"),"") ->  | AF127: =Table13[[#This Row],[sal]]/30 ->  | AG127: =VLOOKUP(Table13[كود الموظف],Table1[[كود الموظف]:[القسم]],5,0) -> حسابات | AH127: =VLOOKUP(Table13[كود الموظف],#REF!,23,0) ->  | AI127: =IFERROR(VLOOKUP(Table13[كود الموظف],#REF!,7,0),0) -> 0 | AJ127: =IFERROR(Table13[[#This Row],[الرصيد القديم]]-(COUNTIFS('يومية الحضور والإنصراف'!$B$4:$B$35796,$B127,'يومية الحضور والإنصراف'!$H$4:$H$35796,"أجازة")+((COUNTIFS('يومية الحضور والإنصراف'!$B$4:$B$35796,$B127,'يومية الحضور والإنصراف'!$H$4:$H$35796,"أجازة نصف يوم سنوي")+COUNTIFS('يومية الحضور والإنصراف'!$B$4:$B$35796,$B127,'يومية الحضور والإنصراف'!$I$4:$I$35796,"أجازة نصف يوم سنوي"))/2)),0) -> 0
A128: =Table13[[#This Row],[كود الموظف]]&Table13[[#This Row],[شهر]] -> 21311 | B128: 213 | C128: =IFERROR(VLOOKUP(Table13[كود الموظف],Table1[[كود الموظف]:[إسم الموظف]],2,0),"") -> محمد حسن 14 | D128: 2021-11-07 | E128: =TEXT(Table13[[#This Row],[التاريخ]],"DDDD") -> الأحد | F128: 11 | G128: =IF(Table13[[#This Row],[التاريخ]]="","",YEAR(Table13[[#This Row],[التاريخ]])) -> 2021 | H128: 07:54:08 | I128: 23:49:33 | J128: =IFERROR(TIME(HOUR(I128-H128),MINUTE(I128-H128),0),0) -> 15:55:00 | K128: =(J128-INT(J128))*24 -> 15.91666667 | L128: =(IF(K128<$M$1,$M$1-K128,"---")) -> --- | M128: =IF(K128>$M$1,K128-$M$1,"---") -> 7.416666667 | V128: =IFERROR(IF(Table13[[#This Row],[إضافي]]>$O$1,Table13[[#This Row],[إضافي]]-Table13[[#This Row],[إضافي ليلي]],0),"") -> 2 | W128: =IFERROR(IF(Table13[[#This Row],[إضافي]]>$N$1,Table13[[#This Row],[إضافي]]-$N$1,0),"") -> 5.416666667 | Z128: =IF(Table13[[#This Row],[موقف تأخير]]<=0.5,"0",Table13[[#This Row],[موقف تأخير]]) -> --- | AC128: =VLOOKUP(Table13[كود الموظف],Table1[[كود الموظف]:[تاريخ التعيين]],3,0) -> 2020-01-01 | AD128: =VLOOKUP(Table13[كود الموظف],'بيانات الموظفين'!A:I,12,0) ->  | AE128: =IFERROR(DATEDIF($AC$1,Table13[[#This Row],[تاريخ التعيين]],"D"),"") ->  | AF128: =Table13[[#This Row],[sal]]/30 ->  | AG128: =VLOOKUP(Table13[كود الموظف],Table1[[كود الموظف]:[القسم]],5,0) -> حسابات | AH128: =VLOOKUP(Table13[كود الموظف],#REF!,23,0) ->  | AI128: =IFERROR(VLOOKUP(Table13[كود الموظف],#REF!,7,0),0) -> 0 | AJ128: =IFERROR(Table13[[#This Row],[الرصيد القديم]]-(COUNTIFS('يومية الحضور والإنصراف'!$B$4:$B$35796,$B128,'يومية الحضور والإنصراف'!$H$4:$H$35796,"أجازة")+((COUNTIFS('يومية الحضور والإنصراف'!$B$4:$B$35796,$B128,'يومية الحضور والإنصراف'!$H$4:$H$35796,"أجازة نصف يوم سنوي")+COUNTIFS('يومية الحضور والإنصراف'!$B$4:$B$35796,$B128,'يومية الحضور والإنصراف'!$I$4:$I$35796,"أجازة نصف يوم سنوي"))/2)),0) -> 0
A129: =Table13[[#This Row],[كود الموظف]]&Table13[[#This Row],[شهر]] -> 21311 | B129: 213 | C129: =IFERROR(VLOOKUP(Table13[كود الموظف],Table1[[كود الموظف]:[إسم الموظف]],2,0),"") -> محمد حسن 14 | D129: 2021-11-07 | E129: =TEXT(Table13[[#This Row],[التاريخ]],"DDDD") -> الأحد | F129: 11 | G129: =IF(Table13[[#This Row],[التاريخ]]="","",YEAR(Table13[[#This Row],[التاريخ]])) -> 2021 | H129: 07:53:00 | I129: 16:29:32 | J129: =IFERROR(TIME(HOUR(I129-H129),MINUTE(I129-H129),0),0) -> 08:36:00 | K129: =(J129-INT(J129))*24 -> 8.6 | L129: =(IF(K129<$M$1,$M$1-K129,"---")) -> --- | M129: =IF(K129>$M$1,K129-$M$1,"---") -> 0.1 | V129: =IFERROR(IF(Table13[[#This Row],[إضافي]]>$O$1,Table13[[#This Row],[إضافي]]-Table13[[#This Row],[إضافي ليلي]],0),"") -> 0 | W129: =IFERROR(IF(Table13[[#This Row],[إضافي]]>$N$1,Table13[[#This Row],[إضافي]]-$N$1,0),"") -> 0 | Z129: =IF(Table13[[#This Row],[موقف تأخير]]<=0.5,"0",Table13[[#This Row],[موقف تأخير]]) -> --- | AC129: =VLOOKUP(Table13[كود الموظف],Table1[[كود الموظف]:[تاريخ التعيين]],3,0) -> 2020-01-01 | AD129: =VLOOKUP(Table13[كود الموظف],'بيانات الموظفين'!A:I,12,0) ->  | AE129: =IFERROR(DATEDIF($AC$1,Table13[[#This Row],[تاريخ التعيين]],"D"),"") ->  | AF129: =Table13[[#This Row],[sal]]/30 ->  | AG129: =VLOOKUP(Table13[كود الموظف],Table1[[كود الموظف]:[القسم]],5,0) -> حسابات | AH129: =VLOOKUP(Table13[كود الموظف],#REF!,23,0) ->  | AI129: =IFERROR(VLOOKUP(Table13[كود الموظف],#REF!,7,0),0) -> 0 | AJ129: =IFERROR(Table13[[#This Row],[الرصيد القديم]]-(COUNTIFS('يومية الحضور والإنصراف'!$B$4:$B$35796,$B129,'يومية الحضور والإنصراف'!$H$4:$H$35796,"أجازة")+((COUNTIFS('يومية الحضور والإنصراف'!$B$4:$B$35796,$B129,'يومية الحضور والإنصراف'!$H$4:$H$35796,"أجازة نصف يوم سنوي")+COUNTIFS('يومية الحضور والإنصراف'!$B$4:$B$35796,$B129,'يومية الحضور والإنصراف'!$I$4:$I$35796,"أجازة نصف يوم سنوي"))/2)),0) -> 0
A130: =Table13[[#This Row],[كود الموظف]]&Table13[[#This Row],[شهر]] -> 21311 | B130: 213 | C130: =IFERROR(VLOOKUP(Table13[كود الموظف],Table1[[كود الموظف]:[إسم الموظف]],2,0),"") -> محمد حسن 14 | D130: 2021-11-07 | E130: =TEXT(Table13[[#This Row],[التاريخ]],"DDDD") -> الأحد | F130: 11 | G130: =IF(Table13[[#This Row],[التاريخ]]="","",YEAR(Table13[[#This Row],[التاريخ]])) -> 2021 | H130: غياب | I130: غياب | J130: =IFERROR(TIME(HOUR(I130-H130),MINUTE(I130-H130),0),0) -> 00:00:00 | K130: =(J130-INT(J130))*24 -> 00:00:00 | L130: =(IF(K130<$M$1,$M$1-K130,"---")) -> 8.5 | M130: =IF(K130>$M$1,K130-$M$1,"---") -> --- | V130: =IFERROR(IF(Table13[[#This Row],[إضافي]]>$O$1,Table13[[#This Row],[إضافي]]-Table13[[#This Row],[إضافي ليلي]],0),"") ->  | W130: =IFERROR(IF(Table13[[#This Row],[إضافي]]>$N$1,Table13[[#This Row],[إضافي]]-$N$1,0),"") ->  | Z130: =IF(Table13[[#This Row],[موقف تأخير]]<=0.5,"0",Table13[[#This Row],[موقف تأخير]]) -> 8.5 | AC130: =VLOOKUP(Table13[كود الموظف],Table1[[كود الموظف]:[تاريخ التعيين]],3,0) -> 2020-01-01 | AD130: =VLOOKUP(Table13[كود الموظف],'بيانات الموظفين'!A:I,12,0) ->  | AE130: =IFERROR(DATEDIF($AC$1,Table13[[#This Row],[تاريخ التعيين]],"D"),"") ->  | AF130: =Table13[[#This Row],[sal]]/30 ->  | AG130: =VLOOKUP(Table13[كود الموظف],Table1[[كود الموظف]:[القسم]],5,0) -> حسابات | AH130: =VLOOKUP(Table13[كود الموظف],#REF!,23,0) ->  | AI130: =IFERROR(VLOOKUP(Table13[كود الموظف],#REF!,7,0),0) -> 0 | AJ130: =IFERROR(Table13[[#This Row],[الرصيد القديم]]-(COUNTIFS('يومية الحضور والإنصراف'!$B$4:$B$35796,$B130,'يومية الحضور والإنصراف'!$H$4:$H$35796,"أجازة")+((COUNTIFS('يومية الحضور والإنصراف'!$B$4:$B$35796,$B130,'يومية الحضور والإنصراف'!$H$4:$H$35796,"أجازة نصف يوم سنوي")+COUNTIFS('يومية الحضور والإنصراف'!$B$4:$B$35796,$B130,'يومية الحضور والإنصراف'!$I$4:$I$35796,"أجازة نصف يوم سنوي"))/2)),0) -> 0
A131: =Table13[[#This Row],[كود الموظف]]&Table13[[#This Row],[شهر]] -> 21311 | B131: 213 | C131: =IFERROR(VLOOKUP(Table13[كود الموظف],Table1[[كود الموظف]:[إسم الموظف]],2,0),"") -> محمد حسن 14 | D131: 2021-11-07 | E131: =TEXT(Table13[[#This Row],[التاريخ]],"DDDD") -> الأحد | F131: 11 | G131: =IF(Table13[[#This Row],[التاريخ]]="","",YEAR(Table13[[#This Row],[التاريخ]])) -> 2021 | H131: غياب | I131: غياب | J131: =IFERROR(TIME(HOUR(I131-H131),MINUTE(I131-H131),0),0) -> 00:00:00 | K131: =(J131-INT(J131))*24 -> 00:00:00 | L131: =(IF(K131<$M$1,$M$1-K131,"---")) -> 8.5 | M131: =IF(K131>$M$1,K131-$M$1,"---") -> --- | V131: =IFERROR(IF(Table13[[#This Row],[إضافي]]>$O$1,Table13[[#This Row],[إضافي]]-Table13[[#This Row],[إضافي ليلي]],0),"") ->  | W131: =IFERROR(IF(Table13[[#This Row],[إضافي]]>$N$1,Table13[[#This Row],[إضافي]]-$N$1,0),"") ->  | Z131: =IF(Table13[[#This Row],[موقف تأخير]]<=0.5,"0",Table13[[#This Row],[موقف تأخير]]) -> 8.5 | AC131: =VLOOKUP(Table13[كود الموظف],Table1[[كود الموظف]:[تاريخ التعيين]],3,0) -> 2020-01-01 | AD131: =VLOOKUP(Table13[كود الموظف],'بيانات الموظفين'!A:I,12,0) ->  | AE131: =IFERROR(DATEDIF($AC$1,Table13[[#This Row],[تاريخ التعيين]],"D"),"") ->  | AF131: =Table13[[#This Row],[sal]]/30 ->  | AG131: =VLOOKUP(Table13[كود الموظف],Table1[[كود الموظف]:[القسم]],5,0) -> حسابات | AH131: =VLOOKUP(Table13[كود الموظف],#REF!,23,0) ->  | AI131: =IFERROR(VLOOKUP(Table13[كود الموظف],#REF!,7,0),0) -> 0 | AJ131: =IFERROR(Table13[[#This Row],[الرصيد القديم]]-(COUNTIFS('يومية الحضور والإنصراف'!$B$4:$B$35796,$B131,'يومية الحضور والإنصراف'!$H$4:$H$35796,"أجازة")+((COUNTIFS('يومية الحضور والإنصراف'!$B$4:$B$35796,$B131,'يومية الحضور والإنصراف'!$H$4:$H$35796,"أجازة نصف يوم سنوي")+COUNTIFS('يومية الحضور والإنصراف'!$B$4:$B$35796,$B131,'يومية الحضور والإنصراف'!$I$4:$I$35796,"أجازة نصف يوم سنوي"))/2)),0) -> 0
A132: =Table13[[#This Row],[كود الموظف]]&Table13[[#This Row],[شهر]] -> 21311 | B132: 213 | C132: =IFERROR(VLOOKUP(Table13[كود الموظف],Table1[[كود الموظف]:[إسم الموظف]],2,0),"") -> محمد حسن 14 | D132: 2021-11-08 | E132: =TEXT(Table13[[#This Row],[التاريخ]],"DDDD") -> الإثنين | F132: 11 | G132: =IF(Table13[[#This Row],[التاريخ]]="","",YEAR(Table13[[#This Row],[التاريخ]])) -> 2021 | H132: 07:59:09 | I132: 16:26:46 | J132: =IFERROR(TIME(HOUR(I132-H132),MINUTE(I132-H132),0),0) -> 08:27:00 | K132: =(J132-INT(J132))*24 -> 8.45 | L132: =(IF(K132<$M$1,$M$1-K132,"---")) -> 0.05 | M132: =IF(K132>$M$1,K132-$M$1,"---") -> --- | V132: =IFERROR(IF(Table13[[#This Row],[إضافي]]>$O$1,Table13[[#This Row],[إضافي]]-Table13[[#This Row],[إضافي ليلي]],0),"") ->  | W132: =IFERROR(IF(Table13[[#This Row],[إضافي]]>$N$1,Table13[[#This Row],[إضافي]]-$N$1,0),"") ->  | Z132: =IF(Table13[[#This Row],[موقف تأخير]]<=0.5,"0",Table13[[#This Row],[موقف تأخير]]) -> 0 | AC132: =VLOOKUP(Table13[كود الموظف],Table1[[كود الموظف]:[تاريخ التعيين]],3,0) -> 2020-01-01 | AD132: =VLOOKUP(Table13[كود الموظف],'بيانات الموظفين'!A:I,12,0) ->  | AE132: =IFERROR(DATEDIF($AC$1,Table13[[#This Row],[تاريخ التعيين]],"D"),"") ->  | AF132: =Table13[[#This Row],[sal]]/30 ->  | AG132: =VLOOKUP(Table13[كود الموظف],Table1[[كود الموظف]:[القسم]],5,0) -> حسابات | AH132: =VLOOKUP(Table13[كود الموظف],#REF!,23,0) ->  | AI132: =IFERROR(VLOOKUP(Table13[كود الموظف],#REF!,7,0),0) -> 0 | AJ132: =IFERROR(Table13[[#This Row],[الرصيد القديم]]-(COUNTIFS('يومية الحضور والإنصراف'!$B$4:$B$35796,$B132,'يومية الحضور والإنصراف'!$H$4:$H$35796,"أجازة")+((COUNTIFS('يومية الحضور والإنصراف'!$B$4:$B$35796,$B132,'يومية الحضور والإنصراف'!$H$4:$H$35796,"أجازة نصف يوم سنوي")+COUNTIFS('يومية الحضور والإنصراف'!$B$4:$B$35796,$B132,'يومية الحضور والإنصراف'!$I$4:$I$35796,"أجازة نصف يوم سنوي"))/2)),0) -> 0
A133: =Table13[[#This Row],[كود الموظف]]&Table13[[#This Row],[شهر]] -> 21411 | B133: 214 | C133: =IFERROR(VLOOKUP(Table13[كود الموظف],Table1[[كود الموظف]:[إسم الموظف]],2,0),"") -> محمد حسن 15 | D133: 2021-10-26 | E133: =TEXT(Table13[[#This Row],[التاريخ]],"DDDD") -> الثلاثاء | F133: 11 | G133: =IF(Table13[[#This Row],[التاريخ]]="","",YEAR(Table13[[#This Row],[التاريخ]])) -> 2021 | H133: 07:55:00 | I133: 16:24:46 | J133: =IFERROR(TIME(HOUR(I133-H133),MINUTE(I133-H133),0),0) -> 08:29:00 | K133: =(J133-INT(J133))*24 -> 8.483333333 | L133: =(IF(K133<$M$1,$M$1-K133,"---")) -> 0.01666666667 | M133: =IF(K133>$M$1,K133-$M$1,"---") -> --- | V133: =IFERROR(IF(Table13[[#This Row],[إضافي]]>$O$1,Table13[[#This Row],[إضافي]]-Table13[[#This Row],[إضافي ليلي]],0),"") ->  | W133: =IFERROR(IF(Table13[[#This Row],[إضافي]]>$N$1,Table13[[#This Row],[إضافي]]-$N$1,0),"") ->  | Z133: =IF(Table13[[#This Row],[موقف تأخير]]<=0.5,"0",Table13[[#This Row],[موقف تأخير]]) -> 0 | AC133: =VLOOKUP(Table13[كود الموظف],Table1[[كود الموظف]:[تاريخ التعيين]],3,0) -> 2020-01-01 | AD133: =VLOOKUP(Table13[كود الموظف],'بيانات الموظفين'!A:I,12,0) ->  | AE133: =IFERROR(DATEDIF($AC$1,Table13[[#This Row],[تاريخ التعيين]],"D"),"") ->  | AF133: =Table13[[#This Row],[sal]]/30 ->  | AG133: =VLOOKUP(Table13[كود الموظف],Table1[[كود الموظف]:[القسم]],5,0) -> حسابات | AH133: =VLOOKUP(Table13[كود الموظف],#REF!,23,0) ->  | AI133: =IFERROR(VLOOKUP(Table13[كود الموظف],#REF!,7,0),0) -> 0 | AJ133: =IFERROR(Table13[[#This Row],[الرصيد القديم]]-(COUNTIFS('يومية الحضور والإنصراف'!$B$4:$B$35796,$B133,'يومية الحضور والإنصراف'!$H$4:$H$35796,"أجازة")+((COUNTIFS('يومية الحضور والإنصراف'!$B$4:$B$35796,$B133,'يومية الحضور والإنصراف'!$H$4:$H$35796,"أجازة نصف يوم سنوي")+COUNTIFS('يومية الحضور والإنصراف'!$B$4:$B$35796,$B133,'يومية الحضور والإنصراف'!$I$4:$I$35796,"أجازة نصف يوم سنوي"))/2)),0) -> 0
A134: =Table13[[#This Row],[كود الموظف]]&Table13[[#This Row],[شهر]] -> 21411 | B134: 214 | C134: =IFERROR(VLOOKUP(Table13[كود الموظف],Table1[[كود الموظف]:[إسم الموظف]],2,0),"") -> محمد حسن 15 | D134: 2021-11-07 | E134: =TEXT(Table13[[#This Row],[التاريخ]],"DDDD") -> الأحد | F134: 11 | G134: =IF(Table13[[#This Row],[التاريخ]]="","",YEAR(Table13[[#This Row],[التاريخ]])) -> 2021 | H134: 07:55:16 | I134: 16:27:17 | J134: =IFERROR(TIME(HOUR(I134-H134),MINUTE(I134-H134),0),0) -> 08:32:00 | K134: =(J134-INT(J134))*24 -> 8.533333333 | L134: =(IF(K134<$M$1,$M$1-K134,"---")) -> --- | M134: =IF(K134>$M$1,K134-$M$1,"---") -> 0.03333333333 | V134: =IFERROR(IF(Table13[[#This Row],[إضافي]]>$O$1,Table13[[#This Row],[إضافي]]-Table13[[#This Row],[إضافي ليلي]],0),"") -> 0 | W134: =IFERROR(IF(Table13[[#This Row],[إضافي]]>$N$1,Table13[[#This Row],[إضافي]]-$N$1,0),"") -> 0 | Z134: =IF(Table13[[#This Row],[موقف تأخير]]<=0.5,"0",Table13[[#This Row],[موقف تأخير]]) -> --- | AC134: =VLOOKUP(Table13[كود الموظف],Table1[[كود الموظف]:[تاريخ التعيين]],3,0) -> 2020-01-01 | AD134: =VLOOKUP(Table13[كود الموظف],'بيانات الموظفين'!A:I,12,0) ->  | AE134: =IFERROR(DATEDIF($AC$1,Table13[[#This Row],[تاريخ التعيين]],"D"),"") ->  | AF134: =Table13[[#This Row],[sal]]/30 ->  | AG134: =VLOOKUP(Table13[كود الموظف],Table1[[كود الموظف]:[القسم]],5,0) -> حسابات | AH134: =VLOOKUP(Table13[كود الموظف],#REF!,23,0) ->  | AI134: =IFERROR(VLOOKUP(Table13[كود الموظف],#REF!,7,0),0) -> 0 | AJ134: =IFERROR(Table13[[#This Row],[الرصيد القديم]]-(COUNTIFS('يومية الحضور والإنصراف'!$B$4:$B$35796,$B134,'يومية الحضور والإنصراف'!$H$4:$H$35796,"أجازة")+((COUNTIFS('يومية الحضور والإنصراف'!$B$4:$B$35796,$B134,'يومية الحضور والإنصراف'!$H$4:$H$35796,"أجازة نصف يوم سنوي")+COUNTIFS('يومية الحضور والإنصراف'!$B$4:$B$35796,$B134,'يومية الحضور والإنصراف'!$I$4:$I$35796,"أجازة نصف يوم سنوي"))/2)),0) -> 0
A135: =Table13[[#This Row],[كود الموظف]]&Table13[[#This Row],[شهر]] -> 21411 | B135: 214 | C135: =IFERROR(VLOOKUP(Table13[كود الموظف],Table1[[كود الموظف]:[إسم الموظف]],2,0),"") -> محمد حسن 15 | D135: 2021-11-07 | E135: =TEXT(Table13[[#This Row],[التاريخ]],"DDDD") -> الأحد | F135: 11 | G135: =IF(Table13[[#This Row],[التاريخ]]="","",YEAR(Table13[[#This Row],[التاريخ]])) -> 2021 | H135: 08:00:00 | I135: 16:30:00 | J135: =IFERROR(TIME(HOUR(I135-H135),MINUTE(I135-H135),0),0) -> 08:30:00 | K135: =(J135-INT(J135))*24 -> 8.5 | L135: =(IF(K135<$M$1,$M$1-K135,"---")) -> --- | M135: =IF(K135>$M$1,K135-$M$1,"---") -> --- | V135: =IFERROR(IF(Table13[[#This Row],[إضافي]]>$O$1,Table13[[#This Row],[إضافي]]-Table13[[#This Row],[إضافي ليلي]],0),"") ->  | W135: =IFERROR(IF(Table13[[#This Row],[إضافي]]>$N$1,Table13[[#This Row],[إضافي]]-$N$1,0),"") ->  | Z135: =IF(Table13[[#This Row],[موقف تأخير]]<=0.5,"0",Table13[[#This Row],[موقف تأخير]]) -> --- | AC135: =VLOOKUP(Table13[كود الموظف],Table1[[كود الموظف]:[تاريخ التعيين]],3,0) -> 2020-01-01 | AD135: =VLOOKUP(Table13[كود الموظف],'بيانات الموظفين'!A:I,12,0) ->  | AE135: =IFERROR(DATEDIF($AC$1,Table13[[#This Row],[تاريخ التعيين]],"D"),"") ->  | AF135: =Table13[[#This Row],[sal]]/30 ->  | AG135: =VLOOKUP(Table13[كود الموظف],Table1[[كود الموظف]:[القسم]],5,0) -> حسابات | AH135: =VLOOKUP(Table13[كود الموظف],#REF!,23,0) ->  | AI135: =IFERROR(VLOOKUP(Table13[كود الموظف],#REF!,7,0),0) -> 0 | AJ135: =IFERROR(Table13[[#This Row],[الرصيد القديم]]-(COUNTIFS('يومية الحضور والإنصراف'!$B$4:$B$35796,$B135,'يومية الحضور والإنصراف'!$H$4:$H$35796,"أجازة")+((COUNTIFS('يومية الحضور والإنصراف'!$B$4:$B$35796,$B135,'يومية الحضور والإنصراف'!$H$4:$H$35796,"أجازة نصف يوم سنوي")+COUNTIFS('يومية الحضور والإنصراف'!$B$4:$B$35796,$B135,'يومية الحضور والإنصراف'!$I$4:$I$35796,"أجازة نصف يوم سنوي"))/2)),0) -> 0
A136: =Table13[[#This Row],[كود الموظف]]&Table13[[#This Row],[شهر]] -> 21411 | B136: 214 | C136: =IFERROR(VLOOKUP(Table13[كود الموظف],Table1[[كود الموظف]:[إسم الموظف]],2,0),"") -> محمد حسن 15 | D136: 2021-11-07 | E136: =TEXT(Table13[[#This Row],[التاريخ]],"DDDD") -> الأحد | F136: 11 | G136: =IF(Table13[[#This Row],[التاريخ]]="","",YEAR(Table13[[#This Row],[التاريخ]])) -> 2021 | H136: غياب | I136: غياب | J136: =IFERROR(TIME(HOUR(I136-H136),MINUTE(I136-H136),0),0) -> 00:00:00 | K136: =(J136-INT(J136))*24 -> 00:00:00 | L136: =(IF(K136<$M$1,$M$1-K136,"---")) -> 8.5 | M136: =IF(K136>$M$1,K136-$M$1,"---") -> --- | V136: =IFERROR(IF(Table13[[#This Row],[إضافي]]>$O$1,Table13[[#This Row],[إضافي]]-Table13[[#This Row],[إضافي ليلي]],0),"") ->  | W136: =IFERROR(IF(Table13[[#This Row],[إضافي]]>$N$1,Table13[[#This Row],[إضافي]]-$N$1,0),"") ->  | Z136: =IF(Table13[[#This Row],[موقف تأخير]]<=0.5,"0",Table13[[#This Row],[موقف تأخير]]) -> 8.5 | AC136: =VLOOKUP(Table13[كود الموظف],Table1[[كود الموظف]:[تاريخ التعيين]],3,0) -> 2020-01-01 | AD136: =VLOOKUP(Table13[كود الموظف],'بيانات الموظفين'!A:I,12,0) ->  | AE136: =IFERROR(DATEDIF($AC$1,Table13[[#This Row],[تاريخ التعيين]],"D"),"") ->  | AF136: =Table13[[#This Row],[sal]]/30 ->  | AG136: =VLOOKUP(Table13[كود الموظف],Table1[[كود الموظف]:[القسم]],5,0) -> حسابات | AH136: =VLOOKUP(Table13[كود الموظف],#REF!,23,0) ->  | AI136: =IFERROR(VLOOKUP(Table13[كود الموظف],#REF!,7,0),0) -> 0 | AJ136: =IFERROR(Table13[[#This Row],[الرصيد القديم]]-(COUNTIFS('يومية الحضور والإنصراف'!$B$4:$B$35796,$B136,'يومية الحضور والإنصراف'!$H$4:$H$35796,"أجازة")+((COUNTIFS('يومية الحضور والإنصراف'!$B$4:$B$35796,$B136,'يومية الحضور والإنصراف'!$H$4:$H$35796,"أجازة نصف يوم سنوي")+COUNTIFS('يومية الحضور والإنصراف'!$B$4:$B$35796,$B136,'يومية الحضور والإنصراف'!$I$4:$I$35796,"أجازة نصف يوم سنوي"))/2)),0) -> 0
A137: =Table13[[#This Row],[كود الموظف]]&Table13[[#This Row],[شهر]] -> 21411 | B137: 214 | C137: =IFERROR(VLOOKUP(Table13[كود الموظف],Table1[[كود الموظف]:[إسم الموظف]],2,0),"") -> محمد حسن 15 | D137: 2021-11-07 | E137: =TEXT(Table13[[#This Row],[التاريخ]],"DDDD") -> الأحد | F137: 11 | G137: =IF(Table13[[#This Row],[التاريخ]]="","",YEAR(Table13[[#This Row],[التاريخ]])) -> 2021 | H137: 07:55:00 | I137: 23:50:44 | J137: =IFERROR(TIME(HOUR(I137-H137),MINUTE(I137-H137),0),0) -> 15:55:00 | K137: =(J137-INT(J137))*24 -> 15.91666667 | L137: =(IF(K137<$M$1,$M$1-K137,"---")) -> --- | M137: =IF(K137>$M$1,K137-$M$1,"---") -> 7.416666667 | V137: =IFERROR(IF(Table13[[#This Row],[إضافي]]>$O$1,Table13[[#This Row],[إضافي]]-Table13[[#This Row],[إضافي ليلي]],0),"") -> 2 | W137: =IFERROR(IF(Table13[[#This Row],[إضافي]]>$N$1,Table13[[#This Row],[إضافي]]-$N$1,0),"") -> 5.416666667 | Z137: =IF(Table13[[#This Row],[موقف تأخير]]<=0.5,"0",Table13[[#This Row],[موقف تأخير]]) -> --- | AC137: =VLOOKUP(Table13[كود الموظف],Table1[[كود الموظف]:[تاريخ التعيين]],3,0) -> 2020-01-01 | AD137: =VLOOKUP(Table13[كود الموظف],'بيانات الموظفين'!A:I,12,0) ->  | AE137: =IFERROR(DATEDIF($AC$1,Table13[[#This Row],[تاريخ التعيين]],"D"),"") ->  | AF137: =Table13[[#This Row],[sal]]/30 ->  | AG137: =VLOOKUP(Table13[كود الموظف],Table1[[كود الموظف]:[القسم]],5,0) -> حسابات | AH137: =VLOOKUP(Table13[كود الموظف],#REF!,23,0) ->  | AI137: =IFERROR(VLOOKUP(Table13[كود الموظف],#REF!,7,0),0) -> 0 | AJ137: =IFERROR(Table13[[#This Row],[الرصيد القديم]]-(COUNTIFS('يومية الحضور والإنصراف'!$B$4:$B$35796,$B137,'يومية الحضور والإنصراف'!$H$4:$H$35796,"أجازة")+((COUNTIFS('يومية الحضور والإنصراف'!$B$4:$B$35796,$B137,'يومية الحضور والإنصراف'!$H$4:$H$35796,"أجازة نصف يوم سنوي")+COUNTIFS('يومية الحضور والإنصراف'!$B$4:$B$35796,$B137,'يومية الحضور والإنصراف'!$I$4:$I$35796,"أجازة نصف يوم سنوي"))/2)),0) -> 0
A138: =Table13[[#This Row],[كود الموظف]]&Table13[[#This Row],[شهر]] -> 21411 | B138: 214 | C138: =IFERROR(VLOOKUP(Table13[كود الموظف],Table1[[كود الموظف]:[إسم الموظف]],2,0),"") -> محمد حسن 15 | D138: 2021-11-07 | E138: =TEXT(Table13[[#This Row],[التاريخ]],"DDDD") -> الأحد | F138: 11 | G138: =IF(Table13[[#This Row],[التاريخ]]="","",YEAR(Table13[[#This Row],[التاريخ]])) -> 2021 | H138: 07:54:32 | I138: 16:28:48 | J138: =IFERROR(TIME(HOUR(I138-H138),MINUTE(I138-H138),0),0) -> 08:34:00 | K138: =(J138-INT(J138))*24 -> 8.566666667 | L138: =(IF(K138<$M$1,$M$1-K138,"---")) -> --- | M138: =IF(K138>$M$1,K138-$M$1,"---") -> 0.06666666667 | V138: =IFERROR(IF(Table13[[#This Row],[إضافي]]>$O$1,Table13[[#This Row],[إضافي]]-Table13[[#This Row],[إضافي ليلي]],0),"") -> 0 | W138: =IFERROR(IF(Table13[[#This Row],[إضافي]]>$N$1,Table13[[#This Row],[إضافي]]-$N$1,0),"") -> 0 | Z138: =IF(Table13[[#This Row],[موقف تأخير]]<=0.5,"0",Table13[[#This Row],[موقف تأخير]]) -> --- | AC138: =VLOOKUP(Table13[كود الموظف],Table1[[كود الموظف]:[تاريخ التعيين]],3,0) -> 2020-01-01 | AD138: =VLOOKUP(Table13[كود الموظف],'بيانات الموظفين'!A:I,12,0) ->  | AE138: =IFERROR(DATEDIF($AC$1,Table13[[#This Row],[تاريخ التعيين]],"D"),"") ->  | AF138: =Table13[[#This Row],[sal]]/30 ->  | AG138: =VLOOKUP(Table13[كود الموظف],Table1[[كود الموظف]:[القسم]],5,0) -> حسابات | AH138: =VLOOKUP(Table13[كود الموظف],#REF!,23,0) ->  | AI138: =IFERROR(VLOOKUP(Table13[كود الموظف],#REF!,7,0),0) -> 0 | AJ138: =IFERROR(Table13[[#This Row],[الرصيد القديم]]-(COUNTIFS('يومية الحضور والإنصراف'!$B$4:$B$35796,$B138,'يومية الحضور والإنصراف'!$H$4:$H$35796,"أجازة")+((COUNTIFS('يومية الحضور والإنصراف'!$B$4:$B$35796,$B138,'يومية الحضور والإنصراف'!$H$4:$H$35796,"أجازة نصف يوم سنوي")+COUNTIFS('يومية الحضور والإنصراف'!$B$4:$B$35796,$B138,'يومية الحضور والإنصراف'!$I$4:$I$35796,"أجازة نصف يوم سنوي"))/2)),0) -> 0
A139: =Table13[[#This Row],[كود الموظف]]&Table13[[#This Row],[شهر]] -> 21411 | B139: 214 | C139: =IFERROR(VLOOKUP(Table13[كود الموظف],Table1[[كود الموظف]:[إسم الموظف]],2,0),"") -> محمد حسن 15 | D139: 2021-11-07 | E139: =TEXT(Table13[[#This Row],[التاريخ]],"DDDD") -> الأحد | F139: 11 | G139: =IF(Table13[[#This Row],[التاريخ]]="","",YEAR(Table13[[#This Row],[التاريخ]])) -> 2021 | H139: 08:07:24 | I139: 16:27:53 | J139: =IFERROR(TIME(HOUR(I139-H139),MINUTE(I139-H139),0),0) -> 08:20:00 | K139: =(J139-INT(J139))*24 -> 8.333333333 | L139: =(IF(K139<$M$1,$M$1-K139,"---")) -> 0.1666666667 | M139: =IF(K139>$M$1,K139-$M$1,"---") -> --- | V139: =IFERROR(IF(Table13[[#This Row],[إضافي]]>$O$1,Table13[[#This Row],[إضافي]]-Table13[[#This Row],[إضافي ليلي]],0),"") ->  | W139: =IFERROR(IF(Table13[[#This Row],[إضافي]]>$N$1,Table13[[#This Row],[إضافي]]-$N$1,0),"") ->  | Z139: =IF(Table13[[#This Row],[موقف تأخير]]<=0.5,"0",Table13[[#This Row],[موقف تأخير]]) -> 0 | AC139: =VLOOKUP(Table13[كود الموظف],Table1[[كود الموظف]:[تاريخ التعيين]],3,0) -> 2020-01-01 | AD139: =VLOOKUP(Table13[كود الموظف],'بيانات الموظفين'!A:I,12,0) ->  | AE139: =IFERROR(DATEDIF($AC$1,Table13[[#This Row],[تاريخ التعيين]],"D"),"") ->  | AF139: =Table13[[#This Row],[sal]]/30 ->  | AG139: =VLOOKUP(Table13[كود الموظف],Table1[[كود الموظف]:[القسم]],5,0) -> حسابات | AH139: =VLOOKUP(Table13[كود الموظف],#REF!,23,0) ->  | AI139: =IFERROR(VLOOKUP(Table13[كود الموظف],#REF!,7,0),0) -> 0 | AJ139: =IFERROR(Table13[[#This Row],[الرصيد القديم]]-(COUNTIFS('يومية الحضور والإنصراف'!$B$4:$B$35796,$B139,'يومية الحضور والإنصراف'!$H$4:$H$35796,"أجازة")+((COUNTIFS('يومية الحضور والإنصراف'!$B$4:$B$35796,$B139,'يومية الحضور والإنصراف'!$H$4:$H$35796,"أجازة نصف يوم سنوي")+COUNTIFS('يومية الحضور والإنصراف'!$B$4:$B$35796,$B139,'يومية الحضور والإنصراف'!$I$4:$I$35796,"أجازة نصف يوم سنوي"))/2)),0) -> 0
A140: =Table13[[#This Row],[كود الموظف]]&Table13[[#This Row],[شهر]] -> 21411 | B140: 214 | C140: =IFERROR(VLOOKUP(Table13[كود الموظف],Table1[[كود الموظف]:[إسم الموظف]],2,0),"") -> محمد حسن 15 | D140: 2021-11-07 | E140: =TEXT(Table13[[#This Row],[التاريخ]],"DDDD") -> الأحد | F140: 11 | G140: =IF(Table13[[#This Row],[التاريخ]]="","",YEAR(Table13[[#This Row],[التاريخ]])) -> 2021 | H140: 07:54:18 | I140: 16:31:03 | J140: =IFERROR(TIME(HOUR(I140-H140),MINUTE(I140-H140),0),0) -> 08:36:00 | K140: =(J140-INT(J140))*24 -> 8.6 | L140: =(IF(K140<$M$1,$M$1-K140,"---")) -> --- | M140: =IF(K140>$M$1,K140-$M$1,"---") -> 0.1 | V140: =IFERROR(IF(Table13[[#This Row],[إضافي]]>$O$1,Table13[[#This Row],[إضافي]]-Table13[[#This Row],[إضافي ليلي]],0),"") -> 0 | W140: =IFERROR(IF(Table13[[#This Row],[إضافي]]>$N$1,Table13[[#This Row],[إضافي]]-$N$1,0),"") -> 0 | Z140: =IF(Table13[[#This Row],[موقف تأخير]]<=0.5,"0",Table13[[#This Row],[موقف تأخير]]) -> --- | AC140: =VLOOKUP(Table13[كود الموظف],Table1[[كود الموظف]:[تاريخ التعيين]],3,0) -> 2020-01-01 | AD140: =VLOOKUP(Table13[كود الموظف],'بيانات الموظفين'!A:I,12,0) ->  | AE140: =IFERROR(DATEDIF($AC$1,Table13[[#This Row],[تاريخ التعيين]],"D"),"") ->  | AF140: =Table13[[#This Row],[sal]]/30 ->  | AG140: =VLOOKUP(Table13[كود الموظف],Table1[[كود الموظف]:[القسم]],5,0) -> حسابات | AH140: =VLOOKUP(Table13[كود الموظف],#REF!,23,0) ->  | AI140: =IFERROR(VLOOKUP(Table13[كود الموظف],#REF!,7,0),0) -> 0 | AJ140: =IFERROR(Table13[[#This Row],[الرصيد القديم]]-(COUNTIFS('يومية الحضور والإنصراف'!$B$4:$B$35796,$B140,'يومية الحضور والإنصراف'!$H$4:$H$35796,"أجازة")+((COUNTIFS('يومية الحضور والإنصراف'!$B$4:$B$35796,$B140,'يومية الحضور والإنصراف'!$H$4:$H$35796,"أجازة نصف يوم سنوي")+COUNTIFS('يومية الحضور والإنصراف'!$B$4:$B$35796,$B140,'يومية الحضور والإنصراف'!$I$4:$I$35796,"أجازة نصف يوم سنوي"))/2)),0) -> 0
A141: =Table13[[#This Row],[كود الموظف]]&Table13[[#This Row],[شهر]] -> 21411 | B141: 214 | C141: =IFERROR(VLOOKUP(Table13[كود الموظف],Table1[[كود الموظف]:[إسم الموظف]],2,0),"") -> محمد حسن 15 | D141: 2021-11-08 | E141: =TEXT(Table13[[#This Row],[التاريخ]],"DDDD") -> الإثنين | F141: 11 | G141: =IF(Table13[[#This Row],[التاريخ]]="","",YEAR(Table13[[#This Row],[التاريخ]])) -> 2021 | H141: 07:59:15 | I141: 16:26:58 | J141: =IFERROR(TIME(HOUR(I141-H141),MINUTE(I141-H141),0),0) -> 08:27:00 | K141: =(J141-INT(J141))*24 -> 8.45 | L141: =(IF(K141<$M$1,$M$1-K141,"---")) -> 0.05 | M141: =IF(K141>$M$1,K141-$M$1,"---") -> --- | V141: =IFERROR(IF(Table13[[#This Row],[إضافي]]>$O$1,Table13[[#This Row],[إضافي]]-Table13[[#This Row],[إضافي ليلي]],0),"") ->  | W141: =IFERROR(IF(Table13[[#This Row],[إضافي]]>$N$1,Table13[[#This Row],[إضافي]]-$N$1,0),"") ->  | Z141: =IF(Table13[[#This Row],[موقف تأخير]]<=0.5,"0",Table13[[#This Row],[موقف تأخير]]) -> 0 | AC141: =VLOOKUP(Table13[كود الموظف],Table1[[كود الموظف]:[تاريخ التعيين]],3,0) -> 2020-01-01 | AD141: =VLOOKUP(Table13[كود الموظف],'بيانات الموظفين'!A:I,12,0) ->  | AE141: =IFERROR(DATEDIF($AC$1,Table13[[#This Row],[تاريخ التعيين]],"D"),"") ->  | AF141: =Table13[[#This Row],[sal]]/30 ->  | AG141: =VLOOKUP(Table13[كود الموظف],Table1[[كود الموظف]:[القسم]],5,0) -> حسابات | AH141: =VLOOKUP(Table13[كود الموظف],#REF!,23,0) ->  | AI141: =IFERROR(VLOOKUP(Table13[كود الموظف],#REF!,7,0),0) -> 0 | AJ141: =IFERROR(Table13[[#This Row],[الرصيد القديم]]-(COUNTIFS('يومية الحضور والإنصراف'!$B$4:$B$35796,$B141,'يومية الحضور والإنصراف'!$H$4:$H$35796,"أجازة")+((COUNTIFS('يومية الحضور والإنصراف'!$B$4:$B$35796,$B141,'يومية الحضور والإنصراف'!$H$4:$H$35796,"أجازة نصف يوم سنوي")+COUNTIFS('يومية الحضور والإنصراف'!$B$4:$B$35796,$B141,'يومية الحضور والإنصراف'!$I$4:$I$35796,"أجازة نصف يوم سنوي"))/2)),0) -> 0
A142: =Table13[[#This Row],[كود الموظف]]&Table13[[#This Row],[شهر]] -> 21511 | B142: 215 | C142: =IFERROR(VLOOKUP(Table13[كود الموظف],Table1[[كود الموظف]:[إسم الموظف]],2,0),"") -> محمد حسن 16 | D142: 2021-10-26 | E142: =TEXT(Table13[[#This Row],[التاريخ]],"DDDD") -> الثلاثاء | F142: 11 | G142: =IF(Table13[[#This Row],[التاريخ]]="","",YEAR(Table13[[#This Row],[التاريخ]])) -> 2021 | H142: 07:55:00 | I142: 16:24:57 | J142: =IFERROR(TIME(HOUR(I142-H142),MINUTE(I142-H142),0),0) -> 08:29:00 | K142: =(J142-INT(J142))*24 -> 8.483333333 | L142: =(IF(K142<$M$1,$M$1-K142,"---")) -> 0.01666666667 | M142: =IF(K142>$M$1,K142-$M$1,"---") -> --- | V142: =IFERROR(IF(Table13[[#This Row],[إضافي]]>$O$1,Table13[[#This Row],[إضافي]]-Table13[[#This Row],[إضافي ليلي]],0),"") ->  | W142: =IFERROR(IF(Table13[[#This Row],[إضافي]]>$N$1,Table13[[#This Row],[إضافي]]-$N$1,0),"") ->  | Z142: =IF(Table13[[#This Row],[موقف تأخير]]<=0.5,"0",Table13[[#This Row],[موقف تأخير]]) -> 0 | AC142: =VLOOKUP(Table13[كود الموظف],Table1[[كود الموظف]:[تاريخ التعيين]],3,0) -> 2020-01-01 | AD142: =VLOOKUP(Table13[كود الموظف],'بيانات الموظفين'!A:I,12,0) ->  | AE142: =IFERROR(DATEDIF($AC$1,Table13[[#This Row],[تاريخ التعيين]],"D"),"") ->  | AF142: =Table13[[#This Row],[sal]]/30 ->  | AG142: =VLOOKUP(Table13[كود الموظف],Table1[[كود الموظف]:[القسم]],5,0) -> حسابات | AH142: =VLOOKUP(Table13[كود الموظف],#REF!,23,0) ->  | AI142: =IFERROR(VLOOKUP(Table13[كود الموظف],#REF!,7,0),0) -> 0 | AJ142: =IFERROR(Table13[[#This Row],[الرصيد القديم]]-(COUNTIFS('يومية الحضور والإنصراف'!$B$4:$B$35796,$B142,'يومية الحضور والإنصراف'!$H$4:$H$35796,"أجازة")+((COUNTIFS('يومية الحضور والإنصراف'!$B$4:$B$35796,$B142,'يومية الحضور والإنصراف'!$H$4:$H$35796,"أجازة نصف يوم سنوي")+COUNTIFS('يومية الحضور والإنصراف'!$B$4:$B$35796,$B142,'يومية الحضور والإنصراف'!$I$4:$I$35796,"أجازة نصف يوم سنوي"))/2)),0) -> -2
A143: =Table13[[#This Row],[كود الموظف]]&Table13[[#This Row],[شهر]] -> 21511 | B143: 215 | C143: =IFERROR(VLOOKUP(Table13[كود الموظف],Table1[[كود الموظف]:[إسم الموظف]],2,0),"") -> محمد حسن 16 | D143: 2021-11-07 | E143: =TEXT(Table13[[#This Row],[التاريخ]],"DDDD") -> الأحد | F143: 11 | G143: =IF(Table13[[#This Row],[التاريخ]]="","",YEAR(Table13[[#This Row],[التاريخ]])) -> 2021 | H143: 08:02:30 | I143: 16:23:34 | J143: =IFERROR(TIME(HOUR(I143-H143),MINUTE(I143-H143),0),0) -> 08:21:00 | K143: =(J143-INT(J143))*24 -> 8.35 | L143: =(IF(K143<$M$1,$M$1-K143,"---")) -> 0.15 | M143: =IF(K143>$M$1,K143-$M$1,"---") -> --- | V143: =IFERROR(IF(Table13[[#This Row],[إضافي]]>$O$1,Table13[[#This Row],[إضافي]]-Table13[[#This Row],[إضافي ليلي]],0),"") ->  | W143: =IFERROR(IF(Table13[[#This Row],[إضافي]]>$N$1,Table13[[#This Row],[إضافي]]-$N$1,0),"") ->  | Z143: =IF(Table13[[#This Row],[موقف تأخير]]<=0.5,"0",Table13[[#This Row],[موقف تأخير]]) -> 0 | AC143: =VLOOKUP(Table13[كود الموظف],Table1[[كود الموظف]:[تاريخ التعيين]],3,0) -> 2020-01-01 | AD143: =VLOOKUP(Table13[كود الموظف],'بيانات الموظفين'!A:I,12,0) ->  | AE143: =IFERROR(DATEDIF($AC$1,Table13[[#This Row],[تاريخ التعيين]],"D"),"") ->  | AF143: =Table13[[#This Row],[sal]]/30 ->  | AG143: =VLOOKUP(Table13[كود الموظف],Table1[[كود الموظف]:[القسم]],5,0) -> حسابات | AH143: =VLOOKUP(Table13[كود الموظف],#REF!,23,0) ->  | AI143: =IFERROR(VLOOKUP(Table13[كود الموظف],#REF!,7,0),0) -> 0 | AJ143: =IFERROR(Table13[[#This Row],[الرصيد القديم]]-(COUNTIFS('يومية الحضور والإنصراف'!$B$4:$B$35796,$B143,'يومية الحضور والإنصراف'!$H$4:$H$35796,"أجازة")+((COUNTIFS('يومية الحضور والإنصراف'!$B$4:$B$35796,$B143,'يومية الحضور والإنصراف'!$H$4:$H$35796,"أجازة نصف يوم سنوي")+COUNTIFS('يومية الحضور والإنصراف'!$B$4:$B$35796,$B143,'يومية الحضور والإنصراف'!$I$4:$I$35796,"أجازة نصف يوم سنوي"))/2)),0) -> -2
A144: =Table13[[#This Row],[كود الموظف]]&Table13[[#This Row],[شهر]] -> 21511 | B144: 215 | C144: =IFERROR(VLOOKUP(Table13[كود الموظف],Table1[[كود الموظف]:[إسم الموظف]],2,0),"") -> محمد حسن 16 | D144: 2021-11-07 | E144: =TEXT(Table13[[#This Row],[التاريخ]],"DDDD") -> الأحد | F144: 11 | G144: =IF(Table13[[#This Row],[التاريخ]]="","",YEAR(Table13[[#This Row],[التاريخ]])) -> 2021 | H144: أجازة | I144: أجازة | J144: =IFERROR(TIME(HOUR(I144-H144),MINUTE(I144-H144),0),0) -> 00:00:00 | K144: =(J144-INT(J144))*24 -> 00:00:00 | L144: =(IF(K144<$M$1,$M$1-K144,"---")) -> 8.5 | M144: =IF(K144>$M$1,K144-$M$1,"---") -> --- | V144: =IFERROR(IF(Table13[[#This Row],[إضافي]]>$O$1,Table13[[#This Row],[إضافي]]-Table13[[#This Row],[إضافي ليلي]],0),"") ->  | W144: =IFERROR(IF(Table13[[#This Row],[إضافي]]>$N$1,Table13[[#This Row],[إضافي]]-$N$1,0),"") ->  | Z144: =IF(Table13[[#This Row],[موقف تأخير]]<=0.5,"0",Table13[[#This Row],[موقف تأخير]]) -> 8.5 | AC144: =VLOOKUP(Table13[كود الموظف],Table1[[كود الموظف]:[تاريخ التعيين]],3,0) -> 2020-01-01 | AD144: =VLOOKUP(Table13[كود الموظف],'بيانات الموظفين'!A:I,12,0) ->  | AE144: =IFERROR(DATEDIF($AC$1,Table13[[#This Row],[تاريخ التعيين]],"D"),"") ->  | AF144: =Table13[[#This Row],[sal]]/30 ->  | AG144: =VLOOKUP(Table13[كود الموظف],Table1[[كود الموظف]:[القسم]],5,0) -> حسابات | AH144: =VLOOKUP(Table13[كود الموظف],#REF!,23,0) ->  | AI144: =IFERROR(VLOOKUP(Table13[كود الموظف],#REF!,7,0),0) -> 0 | AJ144: =IFERROR(Table13[[#This Row],[الرصيد القديم]]-(COUNTIFS('يومية الحضور والإنصراف'!$B$4:$B$35796,$B144,'يومية الحضور والإنصراف'!$H$4:$H$35796,"أجازة")+((COUNTIFS('يومية الحضور والإنصراف'!$B$4:$B$35796,$B144,'يومية الحضور والإنصراف'!$H$4:$H$35796,"أجازة نصف يوم سنوي")+COUNTIFS('يومية الحضور والإنصراف'!$B$4:$B$35796,$B144,'يومية الحضور والإنصراف'!$I$4:$I$35796,"أجازة نصف يوم سنوي"))/2)),0) -> -2
A145: =Table13[[#This Row],[كود الموظف]]&Table13[[#This Row],[شهر]] -> 21511 | B145: 215 | C145: =IFERROR(VLOOKUP(Table13[كود الموظف],Table1[[كود الموظف]:[إسم الموظف]],2,0),"") -> محمد حسن 16 | D145: 2021-11-07 | E145: =TEXT(Table13[[#This Row],[التاريخ]],"DDDD") -> الأحد | F145: 11 | G145: =IF(Table13[[#This Row],[التاريخ]]="","",YEAR(Table13[[#This Row],[التاريخ]])) -> 2021 | H145: 08:10:00 | I145: 16:28:01 | J145: =IFERROR(TIME(HOUR(I145-H145),MINUTE(I145-H145),0),0) -> 08:18:00 | K145: =(J145-INT(J145))*24 -> 8.3 | L145: =(IF(K145<$M$1,$M$1-K145,"---")) -> 0.2 | M145: =IF(K145>$M$1,K145-$M$1,"---") -> --- | V145: =IFERROR(IF(Table13[[#This Row],[إضافي]]>$O$1,Table13[[#This Row],[إضافي]]-Table13[[#This Row],[إضافي ليلي]],0),"") ->  | W145: =IFERROR(IF(Table13[[#This Row],[إضافي]]>$N$1,Table13[[#This Row],[إضافي]]-$N$1,0),"") ->  | Z145: =IF(Table13[[#This Row],[موقف تأخير]]<=0.5,"0",Table13[[#This Row],[موقف تأخير]]) -> 0 | AC145: =VLOOKUP(Table13[كود الموظف],Table1[[كود الموظف]:[تاريخ التعيين]],3,0) -> 2020-01-01 | AD145: =VLOOKUP(Table13[كود الموظف],'بيانات الموظفين'!A:I,12,0) ->  | AE145: =IFERROR(DATEDIF($AC$1,Table13[[#This Row],[تاريخ التعيين]],"D"),"") ->  | AF145: =Table13[[#This Row],[sal]]/30 ->  | AG145: =VLOOKUP(Table13[كود الموظف],Table1[[كود الموظف]:[القسم]],5,0) -> حسابات | AH145: =VLOOKUP(Table13[كود الموظف],#REF!,23,0) ->  | AI145: =IFERROR(VLOOKUP(Table13[كود الموظف],#REF!,7,0),0) -> 0 | AJ145: =IFERROR(Table13[[#This Row],[الرصيد القديم]]-(COUNTIFS('يومية الحضور والإنصراف'!$B$4:$B$35796,$B145,'يومية الحضور والإنصراف'!$H$4:$H$35796,"أجازة")+((COUNTIFS('يومية الحضور والإنصراف'!$B$4:$B$35796,$B145,'يومية الحضور والإنصراف'!$H$4:$H$35796,"أجازة نصف يوم سنوي")+COUNTIFS('يومية الحضور والإنصراف'!$B$4:$B$35796,$B145,'يومية الحضور والإنصراف'!$I$4:$I$35796,"أجازة نصف يوم سنوي"))/2)),0) -> -2
A146: =Table13[[#This Row],[كود الموظف]]&Table13[[#This Row],[شهر]] -> 21511 | B146: 215 | C146: =IFERROR(VLOOKUP(Table13[كود الموظف],Table1[[كود الموظف]:[إسم الموظف]],2,0),"") -> محمد حسن 16 | D146: 2021-11-07 | E146: =TEXT(Table13[[#This Row],[التاريخ]],"DDDD") -> الأحد | F146: 11 | G146: =IF(Table13[[#This Row],[التاريخ]]="","",YEAR(Table13[[#This Row],[التاريخ]])) -> 2021 | H146: 08:14:34 | I146: 16:30:34 | J146: =IFERROR(TIME(HOUR(I146-H146),MINUTE(I146-H146),0),0) -> 08:16:00 | K146: =(J146-INT(J146))*24 -> 8.266666667 | L146: =(IF(K146<$M$1,$M$1-K146,"---")) -> 0.2333333333 | M146: =IF(K146>$M$1,K146-$M$1,"---") -> --- | V146: =IFERROR(IF(Table13[[#This Row],[إضافي]]>$O$1,Table13[[#This Row],[إضافي]]-Table13[[#This Row],[إضافي ليلي]],0),"") ->  | W146: =IFERROR(IF(Table13[[#This Row],[إضافي]]>$N$1,Table13[[#This Row],[إضافي]]-$N$1,0),"") ->  | Z146: =IF(Table13[[#This Row],[موقف تأخير]]<=0.5,"0",Table13[[#This Row],[موقف تأخير]]) -> 0 | AC146: =VLOOKUP(Table13[كود الموظف],Table1[[كود الموظف]:[تاريخ التعيين]],3,0) -> 2020-01-01 | AD146: =VLOOKUP(Table13[كود الموظف],'بيانات الموظفين'!A:I,12,0) ->  | AE146: =IFERROR(DATEDIF($AC$1,Table13[[#This Row],[تاريخ التعيين]],"D"),"") ->  | AF146: =Table13[[#This Row],[sal]]/30 ->  | AG146: =VLOOKUP(Table13[كود الموظف],Table1[[كود الموظف]:[القسم]],5,0) -> حسابات | AH146: =VLOOKUP(Table13[كود الموظف],#REF!,23,0) ->  | AI146: =IFERROR(VLOOKUP(Table13[كود الموظف],#REF!,7,0),0) -> 0 | AJ146: =IFERROR(Table13[[#This Row],[الرصيد القديم]]-(COUNTIFS('يومية الحضور والإنصراف'!$B$4:$B$35796,$B146,'يومية الحضور والإنصراف'!$H$4:$H$35796,"أجازة")+((COUNTIFS('يومية الحضور والإنصراف'!$B$4:$B$35796,$B146,'يومية الحضور والإنصراف'!$H$4:$H$35796,"أجازة نصف يوم سنوي")+COUNTIFS('يومية الحضور والإنصراف'!$B$4:$B$35796,$B146,'يومية الحضور والإنصراف'!$I$4:$I$35796,"أجازة نصف يوم سنوي"))/2)),0) -> -2
A147: =Table13[[#This Row],[كود الموظف]]&Table13[[#This Row],[شهر]] -> 21511 | B147: 215 | C147: =IFERROR(VLOOKUP(Table13[كود الموظف],Table1[[كود الموظف]:[إسم الموظف]],2,0),"") -> محمد حسن 16 | D147: 2021-11-07 | E147: =TEXT(Table13[[#This Row],[التاريخ]],"DDDD") -> الأحد | F147: 11 | G147: =IF(Table13[[#This Row],[التاريخ]]="","",YEAR(Table13[[#This Row],[التاريخ]])) -> 2021 | H147: 07:59:52 | I147: 16:31:34 | J147: =IFERROR(TIME(HOUR(I147-H147),MINUTE(I147-H147),0),0) -> 08:31:00 | K147: =(J147-INT(J147))*24 -> 8.516666667 | L147: =(IF(K147<$M$1,$M$1-K147,"---")) -> --- | M147: =IF(K147>$M$1,K147-$M$1,"---") -> 0.01666666667 | V147: =IFERROR(IF(Table13[[#This Row],[إضافي]]>$O$1,Table13[[#This Row],[إضافي]]-Table13[[#This Row],[إضافي ليلي]],0),"") -> 0 | W147: =IFERROR(IF(Table13[[#This Row],[إضافي]]>$N$1,Table13[[#This Row],[إضافي]]-$N$1,0),"") -> 0 | Z147: =IF(Table13[[#This Row],[موقف تأخير]]<=0.5,"0",Table13[[#This Row],[موقف تأخير]]) -> --- | AC147: =VLOOKUP(Table13[كود الموظف],Table1[[كود الموظف]:[تاريخ التعيين]],3,0) -> 2020-01-01 | AD147: =VLOOKUP(Table13[كود الموظف],'بيانات الموظفين'!A:I,12,0) ->  | AE147: =IFERROR(DATEDIF($AC$1,Table13[[#This Row],[تاريخ التعيين]],"D"),"") ->  | AF147: =Table13[[#This Row],[sal]]/30 ->  | AG147: =VLOOKUP(Table13[كود الموظف],Table1[[كود الموظف]:[القسم]],5,0) -> حسابات | AH147: =VLOOKUP(Table13[كود الموظف],#REF!,23,0) ->  | AI147: =IFERROR(VLOOKUP(Table13[كود الموظف],#REF!,7,0),0) -> 0 | AJ147: =IFERROR(Table13[[#This Row],[الرصيد القديم]]-(COUNTIFS('يومية الحضور والإنصراف'!$B$4:$B$35796,$B147,'يومية الحضور والإنصراف'!$H$4:$H$35796,"أجازة")+((COUNTIFS('يومية الحضور والإنصراف'!$B$4:$B$35796,$B147,'يومية الحضور والإنصراف'!$H$4:$H$35796,"أجازة نصف يوم سنوي")+COUNTIFS('يومية الحضور والإنصراف'!$B$4:$B$35796,$B147,'يومية الحضور والإنصراف'!$I$4:$I$35796,"أجازة نصف يوم سنوي"))/2)),0) -> -2
A148: =Table13[[#This Row],[كود الموظف]]&Table13[[#This Row],[شهر]] -> 21511 | B148: 215 | C148: =IFERROR(VLOOKUP(Table13[كود الموظف],Table1[[كود الموظف]:[إسم الموظف]],2,0),"") -> محمد حسن 16 | D148: 2021-11-07 | E148: =TEXT(Table13[[#This Row],[التاريخ]],"DDDD") -> الأحد | F148: 11 | G148: =IF(Table13[[#This Row],[التاريخ]]="","",YEAR(Table13[[#This Row],[التاريخ]])) -> 2021 | H148: أجازة | I148: أجازة | J148: =IFERROR(TIME(HOUR(I148-H148),MINUTE(I148-H148),0),0) -> 00:00:00 | K148: =(J148-INT(J148))*24 -> 00:00:00 | L148: =(IF(K148<$M$1,$M$1-K148,"---")) -> 8.5 | M148: =IF(K148>$M$1,K148-$M$1,"---") -> --- | V148: =IFERROR(IF(Table13[[#This Row],[إضافي]]>$O$1,Table13[[#This Row],[إضافي]]-Table13[[#This Row],[إضافي ليلي]],0),"") ->  | W148: =IFERROR(IF(Table13[[#This Row],[إضافي]]>$N$1,Table13[[#This Row],[إضافي]]-$N$1,0),"") ->  | Z148: =IF(Table13[[#This Row],[موقف تأخير]]<=0.5,"0",Table13[[#This Row],[موقف تأخير]]) -> 8.5 | AC148: =VLOOKUP(Table13[كود الموظف],Table1[[كود الموظف]:[تاريخ التعيين]],3,0) -> 2020-01-01 | AD148: =VLOOKUP(Table13[كود الموظف],'بيانات الموظفين'!A:I,12,0) ->  | AE148: =IFERROR(DATEDIF($AC$1,Table13[[#This Row],[تاريخ التعيين]],"D"),"") ->  | AF148: =Table13[[#This Row],[sal]]/30 ->  | AG148: =VLOOKUP(Table13[كود الموظف],Table1[[كود الموظف]:[القسم]],5,0) -> حسابات | AH148: =VLOOKUP(Table13[كود الموظف],#REF!,23,0) ->  | AI148: =IFERROR(VLOOKUP(Table13[كود الموظف],#REF!,7,0),0) -> 0 | AJ148: =IFERROR(Table13[[#This Row],[الرصيد القديم]]-(COUNTIFS('يومية الحضور والإنصراف'!$B$4:$B$35796,$B148,'يومية الحضور والإنصراف'!$H$4:$H$35796,"أجازة")+((COUNTIFS('يومية الحضور والإنصراف'!$B$4:$B$35796,$B148,'يومية الحضور والإنصراف'!$H$4:$H$35796,"أجازة نصف يوم سنوي")+COUNTIFS('يومية الحضور والإنصراف'!$B$4:$B$35796,$B148,'يومية الحضور والإنصراف'!$I$4:$I$35796,"أجازة نصف يوم سنوي"))/2)),0) -> -2
A149: =Table13[[#This Row],[كود الموظف]]&Table13[[#This Row],[شهر]] -> 21511 | B149: 215 | C149: =IFERROR(VLOOKUP(Table13[كود الموظف],Table1[[كود الموظف]:[إسم الموظف]],2,0),"") -> محمد حسن 16 | D149: 2021-11-07 | E149: =TEXT(Table13[[#This Row],[التاريخ]],"DDDD") -> الأحد | F149: 11 | G149: =IF(Table13[[#This Row],[التاريخ]]="","",YEAR(Table13[[#This Row],[التاريخ]])) -> 2021 | H149: 08:10:00 | I149: 16:29:59 | J149: =IFERROR(TIME(HOUR(I149-H149),MINUTE(I149-H149),0),0) -> 08:19:00 | K149: =(J149-INT(J149))*24 -> 8.316666667 | L149: =(IF(K149<$M$1,$M$1-K149,"---")) -> 0.1833333333 | M149: =IF(K149>$M$1,K149-$M$1,"---") -> --- | V149: =IFERROR(IF(Table13[[#This Row],[إضافي]]>$O$1,Table13[[#This Row],[إضافي]]-Table13[[#This Row],[إضافي ليلي]],0),"") ->  | W149: =IFERROR(IF(Table13[[#This Row],[إضافي]]>$N$1,Table13[[#This Row],[إضافي]]-$N$1,0),"") ->  | Z149: =IF(Table13[[#This Row],[موقف تأخير]]<=0.5,"0",Table13[[#This Row],[موقف تأخير]]) -> 0 | AC149: =VLOOKUP(Table13[كود الموظف],Table1[[كود الموظف]:[تاريخ التعيين]],3,0) -> 2020-01-01 | AD149: =VLOOKUP(Table13[كود الموظف],'بيانات الموظفين'!A:I,12,0) ->  | AE149: =IFERROR(DATEDIF($AC$1,Table13[[#This Row],[تاريخ التعيين]],"D"),"") ->  | AF149: =Table13[[#This Row],[sal]]/30 ->  | AG149: =VLOOKUP(Table13[كود الموظف],Table1[[كود الموظف]:[القسم]],5,0) -> حسابات | AH149: =VLOOKUP(Table13[كود الموظف],#REF!,23,0) ->  | AI149: =IFERROR(VLOOKUP(Table13[كود الموظف],#REF!,7,0),0) -> 0 | AJ149: =IFERROR(Table13[[#This Row],[الرصيد القديم]]-(COUNTIFS('يومية الحضور والإنصراف'!$B$4:$B$35796,$B149,'يومية الحضور والإنصراف'!$H$4:$H$35796,"أجازة")+((COUNTIFS('يومية الحضور والإنصراف'!$B$4:$B$35796,$B149,'يومية الحضور والإنصراف'!$H$4:$H$35796,"أجازة نصف يوم سنوي")+COUNTIFS('يومية الحضور والإنصراف'!$B$4:$B$35796,$B149,'يومية الحضور والإنصراف'!$I$4:$I$35796,"أجازة نصف يوم سنوي"))/2)),0) -> -2
A150: =Table13[[#This Row],[كود الموظف]]&Table13[[#This Row],[شهر]] -> 21511 | B150: 215 | C150: =IFERROR(VLOOKUP(Table13[كود الموظف],Table1[[كود الموظف]:[إسم الموظف]],2,0),"") -> محمد حسن 16 | D150: 2021-11-08 | E150: =TEXT(Table13[[#This Row],[التاريخ]],"DDDD") -> الإثنين | F150: 11 | G150: =IF(Table13[[#This Row],[التاريخ]]="","",YEAR(Table13[[#This Row],[التاريخ]])) -> 2021 | H150: 07:52:34 | I150: 16:24:19 | J150: =IFERROR(TIME(HOUR(I150-H150),MINUTE(I150-H150),0),0) -> 08:31:00 | K150: =(J150-INT(J150))*24 -> 8.516666667 | L150: =(IF(K150<$M$1,$M$1-K150,"---")) -> --- | M150: =IF(K150>$M$1,K150-$M$1,"---") -> 0.01666666667 | V150: =IFERROR(IF(Table13[[#This Row],[إضافي]]>$O$1,Table13[[#This Row],[إضافي]]-Table13[[#This Row],[إضافي ليلي]],0),"") -> 0 | W150: =IFERROR(IF(Table13[[#This Row],[إضافي]]>$N$1,Table13[[#This Row],[إضافي]]-$N$1,0),"") -> 0 | Z150: =IF(Table13[[#This Row],[موقف تأخير]]<=0.5,"0",Table13[[#This Row],[موقف تأخير]]) -> --- | AC150: =VLOOKUP(Table13[كود الموظف],Table1[[كود الموظف]:[تاريخ التعيين]],3,0) -> 2020-01-01 | AD150: =VLOOKUP(Table13[كود الموظف],'بيانات الموظفين'!A:I,12,0) ->  | AE150: =IFERROR(DATEDIF($AC$1,Table13[[#This Row],[تاريخ التعيين]],"D"),"") ->  | AF150: =Table13[[#This Row],[sal]]/30 ->  | AG150: =VLOOKUP(Table13[كود الموظف],Table1[[كود الموظف]:[القسم]],5,0) -> حسابات | AH150: =VLOOKUP(Table13[كود الموظف],#REF!,23,0) ->  | AI150: =IFERROR(VLOOKUP(Table13[كود الموظف],#REF!,7,0),0) -> 0 | AJ150: =IFERROR(Table13[[#This Row],[الرصيد القديم]]-(COUNTIFS('يومية الحضور والإنصراف'!$B$4:$B$35796,$B150,'يومية الحضور والإنصراف'!$H$4:$H$35796,"أجازة")+((COUNTIFS('يومية الحضور والإنصراف'!$B$4:$B$35796,$B150,'يومية الحضور والإنصراف'!$H$4:$H$35796,"أجازة نصف يوم سنوي")+COUNTIFS('يومية الحضور والإنصراف'!$B$4:$B$35796,$B150,'يومية الحضور والإنصراف'!$I$4:$I$35796,"أجازة نصف يوم سنوي"))/2)),0) -> -2

Sheet المرتبات
C1: موقف المرتبات عن شهر | E1: 11 | F1: سنة | G1: 2021 | I1: عدد ساعات العمل في الشهر | K1: 240 | L1: أيام الشهر | M1: 30 | N1: ساعات العمل | O1: 8.5 | P1: نسبة الخصم والغياب والإضافي * | R1: 2 | S1: إنتظام على | T1: 1.51 | U1: 2 | V1: 1.35 | W1: 1.7 | X1: 10 | AM1: =AM3-AF3 -> 143183.2819 | AN1: =AO3-AM1 -> 0 | AO1: فروق
B3: =SUBTOTAL(3,C5:C21) -> 17 | H3: =SUBTOTAL(9,Table5[الراتب الشامل]) -> 80200 | I3: =SUBTOTAL(9,Table5[تأمينات]) -> 528 | AC3: =SUBTOTAL(9,Table5[تكلفة الغياب والجزاءات]) -> 1008 | AE3: =SUBTOTAL(9,Table5[سلف]) -> 0 | AF3: =SUBTOTAL(9,Table5[إجمالي الإستقطاعات]) -> 1629.333333 | AG3: =SUBTOTAL(9,Table5[تكلفة الإضافي]) -> 2662.615278 | AI3: =SUBTOTAL(9,Table5[تسوية]) -> 0 | AJ3: =SUBTOTAL(9,Table5[بدل مواصلات وبدل وجبة]) -> 0 | AK3: =SUBTOTAL(9,Table5[بدل إنتظام]) -> 61950 | AL3: =SUBTOTAL(9,Table5[بدلات أخرى المتغير]) -> 0 | AM3: =SUBTOTAL(9,Table5[المرتب قبل الإستقطاعات]) -> 144812.6153 | AO3: =SUBTOTAL(9,Table5[المرتب بعد الإستقطاعات]) -> 143183.2819 | AP3: =SUBTOTAL(9,Table5[المرتب المستحق معادلة التقريب]) -> 143175 | AQ3: =SUBTOTAL(9,Table5[تكلفة نسيان بصمة]) -> 0 | AS3: =AO3-AP3 -> 8.281944444 | AU3: =SUBTOTAL(9,Table5[نسيان]) -> 0
A4: Merge | B4: كود الموظف | C4: إسم الموظف | D4: الكادر | E4: القسم | F4: تاريخ التعيين | G4: الراتب الأساسي | H4: الراتب الشامل | I4: تأمينات | J4: تكلفة اليوم | K4: تكلفة الساعة | L4: أيام العمل بالشهر | M4: أيام العمل الفعلية | N4: ساعات تأخير | O4: ساعات الإضافي | P4: غياب | Q4: أجازة من الرصيد | R4: نصف يوم من الرصيد | S4: أجازة رسمية للمصنع | T4: أجازة بدون أجر | U4: أجازة مرضي | V4: بدل راحة وتدريب | W4: نصف يوم | X4: جزاء | Y4: ساعات إذن | Z4: ساعات إذن بدون أجر | AA4: تكلفة الأجازات والإذن بدون أجر | AB4: الأجازات والغياب للإنتظام | AC4: تكلفة الغياب والجزاءات | AD4: تكلفة التأخير | AE4: سلف | AF4: إجمالي الإستقطاعات | AG4: تكلفة الإضافي | AH4: حوافز | AI4: تسوية | AJ4: بدل مواصلات وبدل وجبة | AK4: بدل إنتظام | AL4: بدلات أخرى المتغير | AM4: المرتب قبل الإستقطاعات | AN4: وعاء الضريبة | AO4: المرتب بعد الإستقطاعات | AP4: المرتب المستحق معادلة التقريب | AQ4: تكلفة نسيان بصمة | AR4: نسيان | AS4: ملاحظات | AT4: موقف العقد | AU4: رصيد الأجازات | AV4: عطل
A5: =Table5[[#This Row],[كود الموظف]]&$E$1 -> 20011 | B5: 200 | C5: =IFERROR(VLOOKUP($B:$B,'بيانات الموظفين'!A:B,2,0),"") -> محمد حسن 1 | D5: =IFERROR(VLOOKUP($B:$B,'بيانات الموظفين'!A:D,4,0),"") -> مدير | E5: =IFERROR(VLOOKUP($B:$B,'بيانات الموظفين'!A:F,5,0),"") -> حسابات | F5: =IFERROR(VLOOKUP($B:$B,'بيانات الموظفين'!A:H,3,0),"") -> 2015-01-01 | G5: =IFERROR(VLOOKUP($B:$B,'بيانات الموظفين'!A:I,7,0),"") -> 5600 | H5: =IFERROR(VLOOKUP($B:$B,'بيانات الموظفين'!A:I,8,0),"") -> 8000 | I5: =IFERROR(VLOOKUP($B:$B,'بيانات الموظفين'!A:I,9,0),"") -> 0 | J5: =IFERROR(المرتبات!$G5/$M$1,"") -> 186.6666667 | K5: =IFERROR(المرتبات!$G5/$K$1,"") -> 23.33333333 | L5: =COUNTIFS('يومية الحضور والإنصراف'!$B$4:$B$35796,المرتبات!$B5,'يومية الحضور والإنصراف'!$B$4:$B$35796,المرتبات!$B5,'يومية الحضور والإنصراف'!$F$4:$F$35796,$E$1,'يومية الحضور والإنصراف'!$G$4:$G$35796,$G$1) -> 9 | M5: =IFERROR((L5)-(Table5[[#This Row],[غياب]]+Table5[[#This Row],[أجازة من الرصيد]]+Table5[[#This Row],[نصف يوم من الرصيد]]+Table5[[#This Row],[أجازة رسمية للمصنع]]+Table5[[#This Row],[أجازة بدون أجر]]+Table5[[#This Row],[أجازة مرضي]]+Table5[[#This Row],[بدل راحة وتدريب]]+Table5[[#This Row],[نصف يوم]]),"") -> 9 | N5: =(SUMIFS('يومية الحضور والإنصراف'!$Z:$Z,'يومية الحضور والإنصراف'!$B:$B,المرتبات!$B5,'يومية الحضور والإنصراف'!$F:$F,$E$1,'يومية الحضور والإنصراف'!$G:$G,المرتبات!$G$1)-((المرتبات!$U5+المرتبات!$Q5+المرتبات!$P5+المرتبات!$S5+المرتبات!$T5+المرتبات!$R5+المرتبات!$V5+المرتبات!$W5)*$O$1))-($Y5+$Z5)-(المرتبات!$R5+المرتبات!$W5)*$O$1 -> 0 | O5: =(SUMIFS('يومية الحضور والإنصراف'!$V:$V,'يومية الحضور والإنصراف'!$B:$B,المرتبات!$B5,'يومية الحضور والإنصراف'!$F:$F,$E$1,'يومية الحضور والإنصراف'!$G:$G,المرتبات!$G$1)+SUMIFS('يومية الحضور والإنصراف'!$W:$W,'يومية الحضور والإنصراف'!$B:$B,المرتبات!$B5,'يومية الحضور والإنصراف'!$F:$F,$E$1,'يومية الحضور والإنصراف'!$G:$G,المرتبات!$G$1)+(SUMIFS('يومية الحضور والإنصراف'!$X:$X,'يومية الحضور والإنصراف'!$B:$B,المرتبات!$B5,'يومية الحضور والإنصراف'!$F:$F,$E$1,'يومية الحضور والإنصراف'!$G:$G,المرتبات!$G$1)*8.5)) -> 0 | P5: =COUNTIFS('يومية الحضور والإنصراف'!$B$4:$B$35796,المرتبات!$B5,'يومية الحضور والإنصراف'!$H$4:$H$35796,"غياب",'يومية الحضور والإنصراف'!$F$4:$F$35796,$E$1,'يومية الحضور والإنصراف'!$G$4:$G$35796,$G$1) -> 0 | Q5: =COUNTIFS('يومية الحضور والإنصراف'!$B$4:$B$35796,المرتبات!$B5,'يومية الحضور والإنصراف'!$H$4:$H$35796,"أجازة",'يومية الحضور والإنصراف'!$F$4:$F$35796,$E$1,'يومية الحضور والإنصراف'!$G$4:$G$35796,$G$1) -> 0 | R5: =((COUNTIFS('يومية الحضور والإنصراف'!$B$4:$B$35796,المرتبات!$B5,'يومية الحضور والإنصراف'!$H$4:$H$35796,"أجازة نصف يوم سنوي",'يومية الحضور والإنصراف'!$F$4:$F$35796,$E$1,'يومية الحضور والإنصراف'!$G$4:$G$35796,$G$1)+COUNTIFS('يومية الحضور والإنصراف'!$B$4:$B$35796,المرتبات!$B5,'يومية الحضور والإنصراف'!$I$4:$I$35796,"أجازة نصف يوم سنوي",'يومية الحضور والإنصراف'!$F$4:$F$35796,$E$1,'يومية الحضور والإنصراف'!$G$4:$G$35796,$G$1))/2) -> 0 | S5: =COUNTIFS('يومية الحضور والإنصراف'!$B$4:$B$35796,المرتبات!$B5,'يومية الحضور والإنصراف'!$H$4:$H$35796,"أجازة رسمية",'يومية الحضور والإنصراف'!$F$4:$F$35796,$E$1,'يومية الحضور والإنصراف'!$G$4:$G$35796,$G$1) -> 0 | T5: =COUNTIFS('يومية الحضور والإنصراف'!$B$4:$B$35796,المرتبات!$B5,'يومية الحضور والإنصراف'!$H$4:$H$35796,"أجازة بدون أجر",'يومية الحضور والإنصراف'!$F$4:$F$35796,$E$1,'يومية الحضور والإنصراف'!$G$4:$G$35796,$G$1) -> 0 | U5: =COUNTIFS('يومية الحضور والإنصراف'!$B$4:$B$35796,المرتبات!$B5,'يومية الحضور والإنصراف'!$H$4:$H$35796,"أجازة مرضي",'يومية الحضور والإنصراف'!$F$4:$F$35796,$E$1,'يومية الحضور والإنصراف'!$G$4:$G$35796,$G$1) -> 0 | V5: =COUNTIFS('يومية الحضور والإنصراف'!$B$4:$B$35796,المرتبات!$B5,'يومية الحضور والإنصراف'!$H$4:$H$35796,"بدل راحة",'يومية الحضور والإنصراف'!$F$4:$F$35796,$E$1,'يومية الحضور والإنصراف'!$G$4:$G$35796,$G$1)+COUNTIFS('يومية الحضور والإنصراف'!$B$4:$B$35796,المرتبات!$B5,'يومية الحضور والإنصراف'!$H$4:$H$35796,"تدريب",'يومية الحضور والإنصراف'!$F$4:$F$35796,$E$1,'يومية الحضور والإنصراف'!$G$4:$G$35796,$G$1) -> 0 | W5: =((COUNTIFS('يومية الحضور والإنصراف'!$B$4:$B$35796,المرتبات!$B5,'يومية الحضور والإنصراف'!$H$4:$H$35796,"أجازة نصف يوم",'يومية الحضور والإنصراف'!$F$4:$F$35796,$E$1,'يومية الحضور والإنصراف'!$G$4:$G$35796,$G$1)+COUNTIFS('يومية الحضور والإنصراف'!$B$4:$B$35796,المرتبات!$B5,'يومية الحضور والإنصراف'!$I$4:$I$35796,"أجازة نصف يوم",'يومية الحضور والإنصراف'!$F$4:$F$35796,$E$1,'يومية الحضور والإنصراف'!$G$4:$G$35796,$G$1))/2) -> 0 | X5: =SUMIFS('يومية الحضور والإنصراف'!$P:$P,'يومية الحضور والإنصراف'!A:A,المرتبات!$A5,'يومية الحضور والإنصراف'!F:F,$E$1,'يومية الحضور والإنصراف'!G:G,$G$1) -> 0 | Y5: =SUMIFS('يومية الحضور والإنصراف'!$N:$N,'يومية الحضور والإنصراف'!$B:$B,المرتبات!$B5,'يومية الحضور والإنصراف'!$F:$F,$E$1,'يومية الحضور والإنصراف'!$G:$G,المرتبات!$G$1) -> 0 | Z5: =SUMIFS('يومية الحضور والإنصراف'!$O:$O,'يومية الحضور والإنصراف'!$B:$B,المرتبات!$B5,'يومية الحضور والإنصراف'!$F:$F,$E$1,'يومية الحضور والإنصراف'!$G:$G,المرتبات!$G$1) -> 0 | AA5: =IFERROR((المرتبات!$J5*(المرتبات!$T5+المرتبات!$W5)+(المرتبات!$Z5*K5)),0) -> 0 | AB5: =Table5[[#This Row],[غياب]]+Table5[[#This Row],[أجازة من الرصيد]]+Table5[[#This Row],[نصف يوم من الرصيد]]+Table5[[#This Row],[أجازة بدون أجر]]+Table5[[#This Row],[نصف يوم]] -> 0 | AC5: =IFERROR(((Table5[[#This Row],[تكلفة اليوم]]*(Table5[[#This Row],[جزاء]]+Table5[[#This Row],[غياب]]))*$R$1),0) -> 0 | AD5: =IFERROR(((Table5[[#This Row],[ساعات تأخير]])*($R$1*Table5[[#This Row],[تكلفة الساعة]])),0) -> 0 | AE5: =SUMIFS('يومية الحضور والإنصراف'!$Q:$Q,'يومية الحضور والإنصراف'!$B:$B,المرتبات!$B5,'يومية الحضور والإنصراف'!$F:$F,$E$1,'يومية الحضور والإنصراف'!$G:$G,$G$1) -> 0 | AF5: =IFERROR(Table5[[#This Row],[تكلفة التأخير]]+Table5[[#This Row],[تأمينات]]+Table5[[#This Row],[سلف]]+Table5[[#This Row],[تكلفة الغياب والجزاءات]]+Table5[[#This Row],[تكلفة الأجازات والإذن بدون أجر]]+Table5[[#This Row],[تكلفة نسيان بصمة]],0) -> 0 | AG5: =IFERROR((((SUMIFS('يومية الحضور والإنصراف'!$V:$V,'يومية الحضور والإنصراف'!$B:$B,المرتبات!$B5,'يومية الحضور والإنصراف'!$F:$F,$E$1,'يومية الحضور والإنصراف'!$G:$G,المرتبات!$G$1)*($U$1*Table5[[#This Row],[تكلفة الساعة]]))+(SUMIFS('يومية الحضور والإنصراف'!$W:$W,'يومية الحضور والإنصراف'!$B:$B,المرتبات!$B5,'يومية الحضور والإنصراف'!$F:$F,$E$1,'يومية الحضور والإنصراف'!$G:$G,المرتبات!$G$1)*($U$1*Table5[[#This Row],[تكلفة الساعة]])))+((SUMIFS('يومية الحضور والإنصراف'!$X:$X,'يومية الحضور والإنصراف'!$B:$B,المرتبات!$B5,'يومية الحضور والإنصراف'!$F:$F,$E$1,'يومية الحضور والإنصراف'!$G:$G,المرتبات!$G$1)*($U$1*Table5[[#This Row],[تكلفة اليوم]])))),0) -> 0 | AH5: =SUMIFS('يومية الحضور والإنصراف'!$U:$U,'يومية الحضور والإنصراف'!$B:$B,المرتبات!$B5,'يومية الحضور والإنصراف'!$F:$F,$E$1,'يومية الحضور والإنصراف'!$G:$G,$G$1) -> 0 | AI5: =SUMIFS('يومية الحضور والإنصراف'!$Y:$Y,'يومية الحضور والإنصراف'!$B:$B,المرتبات!$B5,'يومية الحضور والإنصراف'!$F:$F,$E$1,'يومية الحضور والإنصراف'!$G:$G,$G$1) -> 0 | AJ5: =SUMIFS('يومية الحضور والإنصراف'!$S:$S,'يومية الحضور والإنصراف'!$B:$B,المرتبات!$B5,'يومية الحضور والإنصراف'!$F:$F,$E$1,'يومية الحضور والإنصراف'!$G:$G,$G$1) -> 0 | AK5: =IFERROR(IF(AND(Table5[[#This Row],[الأجازات والغياب للإنتظام]]<$T$1,Table5[[#This Row],[غياب]]=0),(VLOOKUP(Table5[كود الموظف],'بيانات الموظفين'!A:I,8,0))),0) -> 8000 | AL5: =SUMIFS('يومية الحضور والإنصراف'!$T:$T,'يومية الحضور والإنصراف'!$B:$B,Table5[[#This Row],[كود الموظف]],'يومية الحضور والإنصراف'!$F:$F,$E$1,'يومية الحضور والإنصراف'!$G:$G,$G$1) -> 0 | AM5: =IFERROR(Table5[[#This Row],[الراتب الشامل]]+Table5[[#This Row],[تكلفة الإضافي]]+Table5[[#This Row],[حوافز]]+Table5[[#This Row],[تسوية]]+Table5[[#This Row],[بدل مواصلات وبدل وجبة]]+Table5[[#This Row],[بدل إنتظام]]+Table5[[#This Row],[بدلات أخرى المتغير]],"") -> 16000 | AN5: =IFERROR(VLOOKUP(Table5[كود الموظف],الضريبة!A:Z,16,0),"") -> 2393.75 | AO5: =IFERROR((Table5[[#This Row],[الراتب الشامل]]+Table5[[#This Row],[تكلفة الإضافي]]+Table5[[#This Row],[حوافز]]+Table5[[#This Row],[تسوية]]+Table5[[#This Row],[بدل مواصلات وبدل وجبة]]+Table5[[#This Row],[بدل إنتظام]]+Table5[[#This Row],[بدلات أخرى المتغير]])-(Table5[[#This Row],[إجمالي الإستقطاعات]]),"") -> 16000 | AP5: =ROUND(Table5[[#This Row],[المرتب بعد الإستقطاعات]]/5,0)*5 -> 16000 | AQ5: =Table5[[#This Row],[نسيان]]*$X$1 -> 0 | AR5: =IFERROR(IF(VLOOKUP(Table5[كود الموظف],[1]النتيجة!$A:$CT,98,0)>=1,VLOOKUP(Table5[كود الموظف],[1]النتيجة!$A:$CT,98,0)-1,0),0) -> 0 | AS5: =IFERROR(VLOOKUP($A:$A,'يومية الحضور والإنصراف'!$A:$AZ,27,0),0) -> 0 | AT5: =IFERROR(VLOOKUP(Table5[كود الموظف],#REF!,23,0),0) -> 0 | AU5: =IFERROR(VLOOKUP(Table5[كود الموظف],#REF!,7,0),0) -> 0 | AV5: =IFERROR(VLOOKUP(Table5[كود الموظف],[1]النتيجة!$A:$CU,99,0),0) -> 0
A6: =Table5[[#This Row],[كود الموظف]]&$E$1 -> 20111 | B6: 201 | C6: =IFERROR(VLOOKUP($B:$B,'بيانات الموظفين'!A:B,2,0),"") -> محمد حسن 2 | D6: =IFERROR(VLOOKUP($B:$B,'بيانات الموظفين'!A:D,4,0),"") -> مدير إدارة الجودة | E6: =IFERROR(VLOOKUP($B:$B,'بيانات الموظفين'!A:F,5,0),"") -> حسابات | F6: =IFERROR(VLOOKUP($B:$B,'بيانات الموظفين'!A:H,3,0),"") -> 2020-01-01 | G6: =IFERROR(VLOOKUP($B:$B,'بيانات الموظفين'!A:I,7,0),"") -> 5600 | H6: =IFERROR(VLOOKUP($B:$B,'بيانات الموظفين'!A:I,8,0),"") -> 8000 | I6: =IFERROR(VLOOKUP($B:$B,'بيانات الموظفين'!A:I,9,0),"") -> 0 | J6: =IFERROR(المرتبات!$G6/$M$1,"") -> 186.6666667 | K6: =IFERROR(المرتبات!$G6/$K$1,"") -> 23.33333333 | L6: =COUNTIFS('يومية الحضور والإنصراف'!$B$4:$B$35796,المرتبات!$B6,'يومية الحضور والإنصراف'!$B$4:$B$35796,المرتبات!$B6,'يومية الحضور والإنصراف'!$F$4:$F$35796,$E$1,'يومية الحضور والإنصراف'!$G$4:$G$35796,$G$1) -> 9 | M6: =IFERROR((L6)-(Table5[[#This Row],[غياب]]+Table5[[#This Row],[أجازة من الرصيد]]+Table5[[#This Row],[نصف يوم من الرصيد]]+Table5[[#This Row],[أجازة رسمية للمصنع]]+Table5[[#This Row],[أجازة بدون أجر]]+Table5[[#This Row],[أجازة مرضي]]+Table5[[#This Row],[بدل راحة وتدريب]]+Table5[[#This Row],[نصف يوم]]),"") -> 7 | N6: =(SUMIFS('يومية الحضور والإنصراف'!$Z:$Z,'يومية الحضور والإنصراف'!$B:$B,المرتبات!$B6,'يومية الحضور والإنصراف'!$F:$F,$E$1,'يومية الحضور والإنصراف'!$G:$G,المرتبات!$G$1)-((المرتبات!$U6+المرتبات!$Q6+المرتبات!$P6+المرتبات!$S6+المرتبات!$T6+المرتبات!$R6+المرتبات!$V6+المرتبات!$W6)*$O$1))-($Y6+$Z6)-(المرتبات!$R6+المرتبات!$W6)*$O$1 -> 0 | O6: =(SUMIFS('يومية الحضور والإنصراف'!$V:$V,'يومية الحضور والإنصراف'!$B:$B,المرتبات!$B6,'يومية الحضور والإنصراف'!$F:$F,$E$1,'يومية الحضور والإنصراف'!$G:$G,المرتبات!$G$1)+SUMIFS('يومية الحضور والإنصراف'!$W:$W,'يومية الحضور والإنصراف'!$B:$B,المرتبات!$B6,'يومية الحضور والإنصراف'!$F:$F,$E$1,'يومية الحضور والإنصراف'!$G:$G,المرتبات!$G$1)+(SUMIFS('يومية الحضور والإنصراف'!$X:$X,'يومية الحضور والإنصراف'!$B:$B,المرتبات!$B6,'يومية الحضور والإنصراف'!$F:$F,$E$1,'يومية الحضور والإنصراف'!$G:$G,المرتبات!$G$1)*8.5)) -> 1.983333333 | P6: =COUNTIFS('يومية الحضور والإنصراف'!$B$4:$B$35796,المرتبات!$B6,'يومية الحضور والإنصراف'!$H$4:$H$35796,"غياب",'يومية الحضور والإنصراف'!$F$4:$F$35796,$E$1,'يومية الحضور والإنصراف'!$G$4:$G$35796,$G$1) -> 0 | Q6: =COUNTIFS('يومية الحضور والإنصراف'!$B$4:$B$35796,المرتبات!$B6,'يومية الحضور والإنصراف'!$H$4:$H$35796,"أجازة",'يومية الحضور والإنصراف'!$F$4:$F$35796,$E$1,'يومية الحضور والإنصراف'!$G$4:$G$35796,$G$1) -> 1 | R6: =((COUNTIFS('يومية الحضور والإنصراف'!$B$4:$B$35796,المرتبات!$B6,'يومية الحضور والإنصراف'!$H$4:$H$35796,"أجازة نصف يوم سنوي",'يومية الحضور والإنصراف'!$F$4:$F$35796,$E$1,'يومية الحضور والإنصراف'!$G$4:$G$35796,$G$1)+COUNTIFS('يومية الحضور والإنصراف'!$B$4:$B$35796,المرتبات!$B6,'يومية الحضور والإنصراف'!$I$4:$I$35796,"أجازة نصف يوم سنوي",'يومية الحضور والإنصراف'!$F$4:$F$35796,$E$1,'يومية الحضور والإنصراف'!$G$4:$G$35796,$G$1))/2) -> 0 | S6: =COUNTIFS('يومية الحضور والإنصراف'!$B$4:$B$35796,المرتبات!$B6,'يومية الحضور والإنصراف'!$H$4:$H$35796,"أجازة رسمية",'يومية الحضور والإنصراف'!$F$4:$F$35796,$E$1,'يومية الحضور والإنصراف'!$G$4:$G$35796,$G$1) -> 0 | T6: =COUNTIFS('يومية الحضور والإنصراف'!$B$4:$B$35796,المرتبات!$B6,'يومية الحضور والإنصراف'!$H$4:$H$35796,"أجازة بدون أجر",'يومية الحضور والإنصراف'!$F$4:$F$35796,$E$1,'يومية الحضور والإنصراف'!$G$4:$G$35796,$G$1) -> 0 | U6: =COUNTIFS('يومية الحضور والإنصراف'!$B$4:$B$35796,المرتبات!$B6,'يومية الحضور والإنصراف'!$H$4:$H$35796,"أجازة مرضي",'يومية الحضور والإنصراف'!$F$4:$F$35796,$E$1,'يومية الحضور والإنصراف'!$G$4:$G$35796,$G$1) -> 0 | V6: =COUNTIFS('يومية الحضور والإنصراف'!$B$4:$B$35796,المرتبات!$B6,'يومية الحضور والإنصراف'!$H$4:$H$35796,"بدل راحة",'يومية الحضور والإنصراف'!$F$4:$F$35796,$E$1,'يومية الحضور والإنصراف'!$G$4:$G$35796,$G$1)+COUNTIFS('يومية الحضور والإنصراف'!$B$4:$B$35796,المرتبات!$B6,'يومية الحضور والإنصراف'!$H$4:$H$35796,"تدريب",'يومية الحضور والإنصراف'!$F$4:$F$35796,$E$1,'يومية الحضور والإنصراف'!$G$4:$G$35796,$G$1) -> 1 | W6: =((COUNTIFS('يومية الحضور والإنصراف'!$B$4:$B$35796,المرتبات!$B6,'يومية الحضور والإنصراف'!$H$4:$H$35796,"أجازة نصف يوم",'يومية الحضور والإنصراف'!$F$4:$F$35796,$E$1,'يومية الحضور والإنصراف'!$G$4:$G$35796,$G$1)+COUNTIFS('يومية الحضور والإنصراف'!$B$4:$B$35796,المرتبات!$B6,'يومية الحضور والإنصراف'!$I$4:$I$35796,"أجازة نصف يوم",'يومية الحضور والإنصراف'!$F$4:$F$35796,$E$1,'يومية الحضور والإنصراف'!$G$4:$G$35796,$G$1))/2) -> 0 | X6: =SUMIFS('يومية الحضور والإنصراف'!$P:$P,'يومية الحضور والإنصراف'!A:A,المرتبات!$A6,'يومية الحضور والإنصراف'!F:F,$E$1,'يومية الحضور والإنصراف'!G:G,$G$1) -> 0 | Y6: =SUMIFS('يومية الحضور والإنصراف'!$N:$N,'يومية الحضور والإنصراف'!$B:$B,المرتبات!$B6,'يومية الحضور والإنصراف'!$F:$F,$E$1,'يومية الحضور والإنصراف'!$G:$G,المرتبات!$G$1) -> 0 | Z6: =SUMIFS('يومية الحضور والإنصراف'!$O:$O,'يومية الحضور والإنصراف'!$B:$B,المرتبات!$B6,'يومية الحضور والإنصراف'!$F:$F,$E$1,'يومية الحضور والإنصراف'!$G:$G,المرتبات!$G$1) -> 0 | AA6: =IFERROR((المرتبات!$J6*(المرتبات!$T6+المرتبات!$W6)+(المرتبات!$Z6*K6)),0) -> 0 | AB6: =Table5[[#This Row],[غياب]]+Table5[[#This Row],[أجازة من الرصيد]]+Table5[[#This Row],[نصف يوم من الرصيد]]+Table5[[#This Row],[أجازة بدون أجر]]+Table5[[#This Row],[نصف يوم]] -> 1 | AC6: =IFERROR(((Table5[[#This Row],[تكلفة اليوم]]*(Table5[[#This Row],[جزاء]]+Table5[[#This Row],[غياب]]))*$R$1),0) -> 0 | AD6: =IFERROR(((Table5[[#This Row],[ساعات تأخير]])*($R$1*Table5[[#This Row],[تكلفة الساعة]])),0) -> 0 | AE6: =SUMIFS('يومية الحضور والإنصراف'!$Q:$Q,'يومية الحضور والإنصراف'!$B:$B,المرتبات!$B6,'يومية الحضور والإنصراف'!$F:$F,$E$1,'يومية الحضور والإنصراف'!$G:$G,$G$1) -> 0 | AF6: =IFERROR(Table5[[#This Row],[تكلفة التأخير]]+Table5[[#This Row],[تأمينات]]+Table5[[#This Row],[سلف]]+Table5[[#This Row],[تكلفة الغياب والجزاءات]]+Table5[[#This Row],[تكلفة الأجازات والإذن بدون أجر]]+Table5[[#This Row],[تكلفة نسيان بصمة]],0) -> 0 | AG6: =IFERROR((((SUMIFS('يومية الحضور والإنصراف'!$V:$V,'يومية الحضور والإنصراف'!$B:$B,المرتبات!$B6,'يومية الحضور والإنصراف'!$F:$F,$E$1,'يومية الحضور والإنصراف'!$G:$G,المرتبات!$G$1)*($U$1*Table5[[#This Row],[تكلفة الساعة]]))+(SUMIFS('يومية الحضور والإنصراف'!$W:$W,'يومية الحضور والإنصراف'!$B:$B,المرتبات!$B6,'يومية الحضور والإنصراف'!$F:$F,$E$1,'يومية الحضور والإنصراف'!$G:$G,المرتبات!$G$1)*($U$1*Table5[[#This Row],[تكلفة الساعة]])))+((SUMIFS('يومية الحضور والإنصراف'!$X:$X,'يومية الحضور والإنصراف'!$B:$B,المرتبات!$B6,'يومية الحضور والإنصراف'!$F:$F,$E$1,'يومية الحضور والإنصراف'!$G:$G,المرتبات!$G$1)*($U$1*Table5[[#This Row],[تكلفة اليوم]])))),0) -> 92.55555556 | AH6: =SUMIFS('يومية الحضور والإنصراف'!$U:$U,'يومية الحضور والإنصراف'!$B:$B,المرتبات!$B6,'يومية الحضور والإنصراف'!$F:$F,$E$1,'يومية الحضور والإنصراف'!$G:$G,$G$1) -> 0 | AI6: =SUMIFS('يومية الحضور والإنصراف'!$Y:$Y,'يومية الحضور والإنصراف'!$B:$B,المرتبات!$B6,'يومية الحضور والإنصراف'!$F:$F,$E$1,'يومية الحضور والإنصراف'!$G:$G,$G$1) -> 0 | AJ6: =SUMIFS('يومية الحضور والإنصراف'!$S:$S,'يومية الحضور والإنصراف'!$B:$B,المرتبات!$B6,'يومية الحضور والإنصراف'!$F:$F,$E$1,'يومية الحضور والإنصراف'!$G:$G,$G$1) -> 0 | AK6: =IFERROR(IF(AND(Table5[[#This Row],[الأجازات والغياب للإنتظام]]<$T$1,Table5[[#This Row],[غياب]]=0),(VLOOKUP(Table5[كود الموظف],'بيانات الموظفين'!A:I,8,0))),0) -> 8000 | AL6: =SUMIFS('يومية الحضور والإنصراف'!$T:$T,'يومية الحضور والإنصراف'!$B:$B,Table5[[#This Row],[كود الموظف]],'يومية الحضور والإنصراف'!$F:$F,$E$1,'يومية الحضور والإنصراف'!$G:$G,$G$1) -> 0 | AM6: =IFERROR(Table5[[#This Row],[الراتب الشامل]]+Table5[[#This Row],[تكلفة الإضافي]]+Table5[[#This Row],[حوافز]]+Table5[[#This Row],[تسوية]]+Table5[[#This Row],[بدل مواصلات وبدل وجبة]]+Table5[[#This Row],[بدل إنتظام]]+Table5[[#This Row],[بدلات أخرى المتغير]],"") -> 16092.55556 | AN6: =IFERROR(VLOOKUP(Table5[كود الموظف],الضريبة!A:Z,16,0),"") -> 2412.261111 | AO6: =IFERROR((Table5[[#This Row],[الراتب الشامل]]+Table5[[#This Row],[تكلفة الإضافي]]+Table5[[#This Row],[حوافز]]+Table5[[#This Row],[تسوية]]+Table5[[#This Row],[بدل مواصلات وبدل وجبة]]+Table5[[#This Row],[بدل إنتظام]]+Table5[[#This Row],[بدلات أخرى المتغير]])-(Table5[[#This Row],[إجمالي الإستقطاعات]]),"") -> 16092.55556 | AP6: =ROUND(Table5[[#This Row],[المرتب بعد الإستقطاعات]]/5,0)*5 -> 16095 | AQ6: =Table5[[#This Row],[نسيان]]*$X$1 -> 0 | AR6: =IFERROR(IF(VLOOKUP(Table5[كود الموظف],[1]النتيجة!$A:$CT,98,0)>=1,VLOOKUP(Table5[كود الموظف],[1]النتيجة!$A:$CT,98,0)-1,0),0) -> 0 | AS6: =IFERROR(VLOOKUP($A:$A,'يومية الحضور والإنصراف'!$A:$AZ,27,0),0) -> 0 | AT6: =IFERROR(VLOOKUP(Table5[كود الموظف],#REF!,23,0),0) -> 0 | AU6: =IFERROR(VLOOKUP(Table5[كود الموظف],#REF!,7,0),0) -> 0 | AV6: =IFERROR(VLOOKUP(Table5[كود الموظف],[1]النتيجة!$A:$CU,99,0),0) -> 0
